Workbook

Sheet EMAM to 2015
A1: Year | B1: Emamectin Benzoate (g)
A2: 2002 | B2: 12485.19
A3: 2003 | B3: 29000.07
A4: 2004 | B4: 44977.01
A5: 2005 | B5: 33593.25
A6: 2006 | B6: 36048.82
A7: 2007 | B7: 61703.56
A8: 2008 | B8: 62568.02
A9: 2009 | B9: 51751.72
A10: 2010 | B10: 60255.64
A11: 2011 | B11: 70505.91
A12: 2012 | B12: 73362.52
A13: 2013 | B13: 59286.90
A14: 2014 | B14: 65600.65
A15: 2015 | B15: 71160.47
A16: Total | B16: =SUM(B3:B15) -> 719814.53
A19: * 2016 data is only up to 1 September

Sheet EMAM with 16 pro rated
A1: Year | B1: Emamectin Benzoate (g)
A2: 2002 | B2: 12485.19
A3: 2003 | B3: 29000.07
A4: 2004 | B4: 44977.01
A5: 2005 | B5: 33593.25
A6: 2006 | B6: 36048.82
A7: 2007 | B7: 61703.56
A8: 2008 | B8: 62568.02
A9: 2009 | B9: 51751.72
A10: 2010 | B10: 60255.64
A11: 2011 | B11: 70505.91
A12: 2012 | B12: 73362.52
A13: 2013 | B13: 59286.90
A14: 2014 | B14: 65600.65
A15: 2015 | B15: 71160.47
A16: 2016* | B16: 59229.12
A17: Total | B17: =SUM(B3:B16) -> 779043.65
A20: * 2016 pro rated
A21: Cell B16 | B21: =(B22/9)*12 -> 59229.12 | C21: (44421.84 divided by 9 times by 12)
B22: 44421.84

Sheet CYPER
A1: Year | B1: Cypermethrin (g)
A2: 2002 | B2: 11995.34
A3: 2003 | B3: 8960.71
A4: 2004 | B4: 7872.1
A5: 2005 | B5: 5694
A6: 2006 | B6: 9154.5
A7: 2007 | B7: 36789.2
A8: 2008 | B8: 21453.44
A9: 2009 | B9: 11857.34
A10: 2010 | B10: 2961.7
A11: 2011 | B11: 979.08
A12: 2012 | B12: 0
A13: 2013 | B13: 0
A14: 2014 | B14: 0
A15: 2015 | B15: 0
A16: 2016 | B16: 0
A17: Total | B17: =SUM(B2:B16) -> 117717.41
A20: * 2016 data is only up to 1 September
B22: =(B16/9)*12 -> 0

Sheet DELTA
A1: Year | B1: Deltamethrin (g)
A2: 2002 | B2: 0
A3: 2003 | B3: 0
A4: 2004 | B4: 0
A5: 2005 | B5: 0
A6: 2006 | B6: 0
A7: 2007 | B7: 0
A8: 2008 | B8: 2877.105
A9: 2009 | B9: 13371.79
A10: 2010 | B10: 13609.405
A11: 2011 | B11: 21045.32
A12: 2012 | B12: 20921.335
A13: 2013 | B13: 12362.65
A14: 2014 | B14: 17471.07
A15: 2015 | B15: 12356.55
A16: 2016 | B16: =C21/9*12 -> 10621.82667
A17: Total | B17: =SUM(B3:B16) -> 124637.0517
A20: * 2016 data is only up to 1 September
C21: 7966.37

Sheet AZMET
A1: Year | B1: Azamethiphos (g)
A2: 2002 | B2: 45599.55
A3: 2003 | B3: 30165
A4: 2004 | B4: 7585
A5: 2005 | B5: 0
A6: 2006 | B6: 0
A7: 2007 | B7: 0
A8: 2008 | B8: 100187.062
A9: 2009 | B9: 203934.6003
A10: 2010 | B10: 157615.0006
A11: 2011 | B11: 211919.5005
A12: 2012 | B12: 193920.3609
A13: 2013 | B13: 153728.0003
A14: 2014 | B14: 253287.7812
A15: 2015 | B15: 281784.9993
A16: 2016 | B16: 396573
A17: Total | B17: =SUM(B3:B16) -> 1990700.305
A20: * 2016 data is only up to 1 September
B22: 297430 | C22: =B22/9*12 -> 396573.3333

Sheet TEFLU
A1: Year | B1: Teflubenzuron (g)
A2: 2002 | B2: 72730
A3: 2003 | B3: 36000
A4: 2004 | B4: 0
A5: 2005 | B5: 0
A6: 2006 | B6: 0
A7: 2007 | B7: 95769
A8: 2008 | B8: 0
A9: 2009 | B9: 61759
A10: 2010 | B10: 75000
A11: 2011 | B11: 91555.1
A12: 2012 | B12: 224797
A13: 2013 | B13: 261955
A14: 2014 | B14: 0
A15: 2015 | B15: 0
A16: 2016 | B16: 0
A17: Total | B17: =SUM(B3:B16) -> 846835.1
A20: * 2016 data is only up to 1 September
B22: =(B16/9)*12 -> 0

Sheet ALL
A1: Year | B1: Deltamethrin (g) | C1: Cypermethrin (g) | D1: Azamethiphos (g) | E1: Teflubenzuron (g) | F1: Emamectin Benzoate (g) | G1: Total (g)
A2: 2002 | B2: 0 | C2: 11995.34 | D2: 45599.55 | E2: 72730 | F2: 12485.19 | G2: =SUM(B2:F2) -> 142810.08
A3: 2003 | B3: 0 | C3: 8960.71 | D3: 30165.00 | E3: 36000 | F3: 29000.07 | G3: =SUM(B3:F3) -> 104125.78
A4: 2004 | B4: 0 | C4: 7872.1 | D4: 7585.00 | E4: 0 | F4: 44977.01 | G4: =SUM(C4:F4) -> 60434.11
A5: 2005 | B5: 0 | C5: 5694 | D5: 0.00 | E5: 0 | F5: 33593.25 | G5: =SUM(B5:F5) -> 39287.25
A6: 2006 | B6: 0 | C6: 9154.5 | D6: 0.00 | E6: 0 | F6: 36048.82 | G6: 45203.32
A7: 2007 | B7: 0 | C7: 36789.2 | D7: 0.00 | E7: 95769 | F7: 61703.56 | G7: 194261.76
A8: 2008 | B8: 2877.105 | C8: 21453.44 | D8: 100187.06 | E8: 0 | F8: 62568.02 | G8: 187085.63
A9: 2009 | B9: 13371.79 | C9: 11857.34 | D9: 203934.60 | E9: 61759 | F9: 51751.72 | G9: 342674.45
A10: 2010 | B10: 13609.405 | C10: 2961.7 | D10: 157615.00 | E10: 75000 | F10: 60255.64 | G10: 309441.74
A11: 2011 | B11: 21045.32 | C11: 979.08 | D11: 211919.50 | E11: 91555.1 | F11: 70505.91 | G11: 396004.91
A12: 2012 | B12: 20921.335 | C12: 0 | D12: 193920.36 | E12: 224797 | F12: 73362.52 | G12: 513001.21
A13: 2013 | B13: 12362.65 | C13: 0 | D13: 153728.00 | E13: 261955 | F13: 59286.90 | G13: 487332.56
A14: 2014 | B14: 17471.07 | C14: 0 | D14: 253287.78 | E14: 0 | F14: 65600.65 | G14: 336359.50
A15: 2015 | B15: 12356.55 | C15: 0 | D15: 281785.00 | E15: 0 | F15: 71160.47 | G15: 365302.02
A16: 2016* | B16: =B22 -> 10621.82667 | C16: 0 | D16: =D22 -> 396573.33 | E16: 0 | F16: 59229.11 | G16: 466424.30
F18: Total | G18: 3989749.00
A21: *2016 (up to 1 September) | B21: 7966.37 | C21: 0 | D21: 297430.00 | E21: 0 | F21: 44421.84 | G21: =SUM(B21:F21) -> 349818.21
A22: 2016 (pro rated for full 12 months) | B22: =(B21/9)*12 -> 10621.82667 | C22: =(C21/8)*12 -> 0 | D22: =(D21/9)*12 -> 396573.3329 | E22: 0 | F22: =(F21/9)*12 -> 59229.11593 | G22: =(G21/9)*12 -> 466424.2755

Sheet ALL (2)
A1: Year | B1: Deltamethrin (g) | C1: Cypermethrin (g) | D1: Azamethiphos (g) | E1: Teflubenzuron (g) | F1: Emamectin Benzoate (g) | G1: Total (g)
A2: 2016 | B2: 7966.37 | C2: 0 | D2: 297430.00 | E2: 0 | F2: 44421.84 | G2: =SUM(B2:F2) -> 349818.21
A5: * 2016 data is only up to 1 September

Sheet Summary
A1: Year | B1: Deltamethrin (g) | C1: Cypermethrin (g) | D1: Azamethiphos (g) | E1: Teflubenzuron (g) | F1: Emamectin Benzoate (g) | G1: Total (g) | H1: Total (kg) | I1: Salmon farming production (tonnes) | J1: Chemical use (kg) per tonne of production | K1: Year | L1: Mortalities (Kg) | M1: Mortalities (tonnes) | O1: Year | P1: Mortality rate (%) | Q1: # of salmon put to sea (millions) | R1: Estimated # of morts (millions)
A2: 2002 | B2: 0 | C2: 11995.34 | D2: 45599.55 | E2: 72730 | F2: 12485.19 | G2: =SUM(B2:F2) -> 142810.08 | H2: 143 | I2: 144,589 | K2: 2002 | L2: 4735523 | M2: 4,735 | O2: 2002 | P2: 23.3 | Q2: 50.1 | R2: 11.7
A3: 2003 | B3: 0 | C3: 8960.71 | D3: 30165 | E3: 36000 | F3: 29000.065 | G3: =SUM(B3:F3) -> 104125.775 | H3: 104 | I3: 169,736 | K3: 2003 | L3: 13320044 | M3: 13,320 | O3: 2003 | P3: 22 | Q3: 43.1 | R3: 9.5
A4: 2004 | B4: 0 | C4: 7872.1 | D4: 7585 | E4: 0 | F4: 44977.01387 | G4: =SUM(C4:F4) -> 60434.11387 | H4: 60 | I4: 158,099 | K4: 2004 | L4: 6998211 | M4: 6,998 | O4: 2004 | P4: 24.5 | Q4: 39 | R4: 9.6
A5: 2005 | B5: 0 | C5: 5694 | D5: 0 | E5: 0 | F5: 33593.2477 | G5: =SUM(B5:F5) -> 39287.2477 | H5: 39 | I5: 129,588 | K5: 2005 | L5: 5250462 | M5: 5,250 | O5: 2005 | P5: 21.9 | Q5: 37.2 | R5: 8.1
A6: 2006 | B6: 0 | C6: 9154.5 | D6: 0 | E6: 0 | F6: 36048.82196 | G6: 45203.32196 | H6: 45 | I6: 131,847 | K6: 2006 | L6: 8245111 | M6: 8,245 | O6: 2006 | P6: 27.5 | Q6: 41.1 | R6: 11.3
A7: 2007 | B7: 0 | C7: 36789.2 | D7: 0 | E7: 95769 | F7: 61703.56072 | G7: 194261.7607 | H7: 194 | I7: 129,930 | K7: 2007 | L7: 11618823 | M7: 11,619 | O7: 2007 | P7: 28.2 | Q7: 37.9 | R7: 10.7
A8: 2008 | B8: 2877.105 | C8: 21453.44 | D8: 100187.062 | E8: 0 | F8: 62568.02301 | G8: 187085.63 | H8: 187 | I8: 128,606 | K8: 2008 | L8: 9279675 | M8: 9,280 | O8: 2008 | P8: 17.8 | Q8: 36.7 | R8: 6.5
A9: 2009 | B9: 13371.79 | C9: 11857.34 | D9: 203934.6003 | E9: 61759 | F9: 51751.7159 | G9: 342674.4462 | H9: 343 | I9: 144,247 | K9: 2009 | L9: 8467250 | M9: 8,467 | O9: 2009 | P9: 16.7 | Q9: 38.5 | R9: 6.4
A10: 2010 | B10: 13609.405 | C10: 2961.7 | D10: 157615.0006 | E10: 75000 | F10: 60255.638 | G10: 309441.7435 | H10: 309 | I10: 154,164 | K10: 2010 | L10: 7859774 | M10: 7,860 | O10: 2010 | P10: 17.2 | Q10: 38.5 | R10: 6.6
A11: 2011 | B11: 21045.32 | C11: 979.08 | D11: 211919.5005 | E11: 91555.1 | F11: 70505.90501 | G11: 396004.9055 | H11: 396 | I11: 158,018 | K11: 2011 | L11: 9674658 | M11: 9,675 | O11: 2011 | P11: 23 | Q11: 42.7 | R11: 9.8
A12: 2012 | B12: 20921.335 | C12: 0 | D12: 193920.3609 | E12: 224797 | F12: 73362.51585 | G12: 513001.2117 | H12: 513 | I12: 162,223 | K12: 2012 | L12: 13429327 | M12: 13,429 | O12: 2012 | P12: 14.6 | Q12: 41.1 | R12: 6
A13: 2013 | B13: 12362.65 | C13: 0 | D13: 153728.0003 | E13: 261955 | F13: 59286.90493 | G13: 487332.5552 | H13: 487 | I13: 163,234 | K13: 2013 | L13: 10598601 | M13: 10,599 | O13: 2013 | P13: 23.7 | Q13: 40.9 | R13: 9.7
A14: 2014 | B14: 17471.07 | C14: 0 | D14: 253287.7812 | E14: 0 | F14: 65600.65049 | G14: 336359.5016 | H14: 336 | I14: 179,022 | K14: 2014 | L14: 16489297 | M14: 16,489
A15: 2015 | B15: 12356.55 | C15: 0 | D15: 281784.9993 | E15: 0 | F15: 71160.46799 | G15: 365302.0173 | H15: 365 | I15: 171,722 | K15: 2015 | L15: 18649723 | M15: 18,650
A16: 2016 * | B16: 7966.37 | C16: 0 | D16: 297429.9997 | E16: 0 | F16: 44421.83695 | G16: =SUM(B16:F16) -> 349818.2066 | H16: 350 | I16: 177,857 * | K16: 2016 | L16: 14847090 | M16: 14,847
A17: Total | B17: =SUM(B3:B16) -> 121981.595 | C17: =SUM(C3:C16) -> 105722.07 | D17: =SUM(D3:D16) -> 1891557.305 | E17: =SUM(E3:E16) -> 846835.1 | F17: =SUM(F3:F16) -> 764236.3674
I18: * industry estimate of projected tonnage based on stocks currently being on-grown (read 2015 Fish Farm Production Survey: http://www.gov.scot/Resource/0050/00505162.pdf)
A19: * Pro rated | B19: =B16/9*12 -> 10621.82667 | C19: =C16/9*12 -> 0 | D19: 396573.3329 | E19: 0 | F19: 59229.11593 | G19: 466424.2755
A20: * 2016 data is only up to 1 September

Sheet TOTALS
A1: Year | B1: Total (g)
A2: 2002 | B2: 142810.08
A3: 2003 | B3: 104125.775
A4: 2004 | B4: 60434.11387
A5: 2005 | B5: 39287.2477
A6: 2006 | B6: 45203.32196
A7: 2007 | B7: 194261.7607
A8: 2008 | B8: 187085.63
A9: 2009 | B9: 342674.4462
A10: 2010 | B10: 309441.7435
A11: 2011 | B11: 396004.9055
A12: 2012 | B12: 513001.2117
A13: 2013 | B13: 487332.5552
A14: 2014 | B14: 336359.5016
A15: 2015 | B15: 365302.0173
A16: 2016* | B16: 466424.3
A17: Total | B17: 3989749
A20: * 2016 data pro rated from September

Sheet Companies summary
D1: Chemical Use, Mortality & Biomass Exceedance data (2002-2016) from SEPA
A3: Operator | B3: Morts (t) | C3: Deltameth (g) | D3: Cypermeth (g) | E3: Azameth (g) | F3: Teflubenz (g) | G3: Em benzoate (g) | H3: Biomass Exceedances (t)
A4: Marine Harvest | B4: 43802 | C4: 62831 | D4: 37782 | E4: 700344 | F4: 131995 | G4: 288706 | H4: 24539
A5: The Scottish Salmon Company | B5: 26060 | C5: 36495 | D5: 37503 | E5: 382510 | F5: 153600 | G5: 158109 | H5: 17301
A6: Scottish Sea Farms | B6: 25060 | C6: 12155 | D6: 25509 | E6: 330313 | F6: 334207 | G6: 137652 | H6: 6503
A7: Cooke Aquaculture | B7: 20535 | C7: 348 | D7: 724 | E7: 57029 | F7: 0 | G7: 29341 | H7: 12551
A8: Loch Duart | B8: 7189 | C8: 4806 | D8: 11216 | E8: 159290 | F8: 92935 | G8: 32612 | H8: 920

Sheet Marine Harvest
A1: Monthly Report ID | B1: Year | C1: SEPA Site | D1: Mortalities Kilograms | E1: Actual Biomass on Site (tonnes) | F1: Submitted By | G1: Licence Active at Report | H1: Biomass Exceedence Tonnes | I1: Feed Kilograms | J1: Deltamethrin grams | K1: Cypermethrin grams | L1: Azamethiphos grams | M1: Teflubenzuron grams | N1: Emamectin Benzoate grams | O1: Site Name | P1: Active Licence Number | Q1: Operator | R1: Maximum Biomass Allowed (tonnes) | S1: Receiving Water | T1: National Grid Reference
A2: 2057809 | B2: 2016-03-01 | C2: SRO1 | D2: 8367.490787 | E2: 1833 | F2: Marine Harvest (Scotland) Ltd | G2: CAR/L/1002327 | H2: 0 | I2: 314314 | J2: 945 | K2: 0 | L2: 0 | M2: 0 | N2: 0 | O2: Sron | P2: CAR/L/1002327/C1/V2 | Q2: Marine Harvest (Scotland) Ltd | R2: 2000 | S2: Loch Alsh | T2: NG78402535
A3: 2050517 | B3: 2011-08-01 | C3: CAL1 | D3: 4142.684607 | E3: 2412 | F3: Marine Harvest (Scotland) Ltd | G3: CAR/L/1010002 | H3: 0 | I3: 546596 | J3: 385 | K3: 0 | L3: 860.0000143 | M3: 0 | N3: 0 | O3: Camas an Leim (Torridon) | P3: CAR/L/1010002/C1/V5 | Q3: Marine Harvest (Scotland) Ltd | R3: 2500 | S3: Loch Torridon | T3: NG82385591
A4: 2050559 | B4: 2015-02-01 | C4: CAL1 | D4: 13949.59639 | E4: 2360 | F4: Marine Harvest (Scotland) Ltd | G4: CAR/L/1010002 | H4: 0 | I4: 304371 | J4: 357.5 | K4: 0 | L4: 7349.999875 | M4: 0 | N4: 0 | O4: Camas an Leim (Torridon) | P4: CAR/L/1010002/C1/V5 | Q4: Marine Harvest (Scotland) Ltd | R4: 2500 | S4: Loch Torridon | T4: NG82385591
A5: 2050518 | B5: 2011-09-01 | C5: CAL1 | D5: 8148.019543 | E5: 2499 | F5: Marine Harvest (Scotland) Ltd | G5: CAR/L/1010002 | H5: 0 | I5: 592283 | J5: 332.5 | K5: 0 | L5: 4085.000068 | M5: 0 | N5: 0 | O5: Camas an Leim (Torridon) | P5: CAR/L/1010002/C1/V5 | Q5: Marine Harvest (Scotland) Ltd | R5: 2500 | S5: Loch Torridon | T5: NG82385591
A6: 2069398 | B6: 2015-10-01 | C6: FFMC34 | D6: 29967.13729 | E6: 1419 | F6: Marine Harvest (Scotland) Ltd | G6: CAR/L/1000800 | H6: 0 | I6: 310562 | J6: 285 | K6: 0 | L6: 250 | M6: 0 | N6: 0 | O6: Poll na Gille | P6: CAR/L/1000800/V5 | Q6: Marine Harvest (Scotland) Ltd | R6: 1500 | S6: Sound of Jura | T6: NM77670821 | U6: Easting | V6: Northing | W6: Water Type | X6: Local Authority
A7: 2059172 | B7: 2013-10-01 | C7: CAIR1 | D7: 5890.378592 | E7: 1259 | F7: Marine Harvest (Scotland) Ltd | G7: CAR/L/1010432 | H7: 0 | I7: 343161 | J7: 275 | K7: 0 | L7: 1560 | M7: 0 | N7: 0 | O7: Cairidh | P7: CAR/L/1010432/C1/V3 | Q7: Marine Harvest (Scotland) Ltd | R7: 1800 | S7: Loch Ainort | T7: NG56102890 | U7: 178400 | V7: 825350 | W7: Seawater | X7: Highland
A8: 2050561 | B8: 2015-04-01 | C8: CAL1 | D8: 8148.557143 | E8: 2282 | F8: Marine Harvest (Scotland) Ltd | G8: CAR/L/1010002 | H8: 0 | I8: 347497 | J8: 262.5 | K8: 0 | L8: 5249.999911 | M8: 0 | N8: 0 | O8: Camas an Leim (Torridon) | P8: CAR/L/1010002/C1/V5 | Q8: Marine Harvest (Scotland) Ltd | R8: 2500 | S8: Loch Torridon | T8: NG82385591 | U8: 182379 | V8: 855906 | W8: Seawater | X8: Highland
A9: 2063765 | B9: 2015-07-01 | C9: HEL1 | D9: 12113.07011 | E9: 2029 | F9: Marine Harvest (Scotland) Ltd | G9: CAR/L/1095612 | H9: 0 | I9: 388733 | J9: 262.5 | K9: 0 | L9: 0 | M9: 0 | N9: 0 | O9: Hellisay | P9: CAR/L/1095612/V4 | Q9: Marine Harvest (Scotland) Ltd | R9: 2150 | S9: Sound of Hellisay | T9: NF75950328 | U9: 182379 | V9: 855906 | W9: Seawater | X9: Highland
A10: 2050563 | B10: 2015-06-01 | C10: CAL1 | D10: 9799.051577 | E10: 1903 | F10: Marine Harvest (Scotland) Ltd | G10: CAR/L/1010002 | H10: 0 | I10: 297635 | J10: 255 | K10: 0 | L10: 5949.999899 | M10: 0 | N10: 0 | O10: Camas an Leim (Torridon) | P10: CAR/L/1010002/C1/V5 | Q10: Marine Harvest (Scotland) Ltd | R10: 2500 | S10: Loch Torridon | T10: NG82385591 | U10: 182379 | V10: 855906 | W10: Seawater | X10: Highland
A11: 2050560 | B11: 2015-03-01 | C11: CAL1 | D11: 8376.379184 | E11: 2257 | F11: Marine Harvest (Scotland) Ltd | G11: CAR/L/1010002 | H11: 0 | I11: 342548 | J11: 255 | K11: 0 | L11: 5249.999911 | M11: 0 | N11: 0 | O11: Camas an Leim (Torridon) | P11: CAR/L/1010002/C1/V5 | Q11: Marine Harvest (Scotland) Ltd | R11: 2500 | S11: Loch Torridon | T11: NG82385591 | U11: 177670 | V11: 708214 | W11: Seawater | X11: Argyll and Bute
A12: 2050562 | B12: 2015-05-01 | C12: CAL1 | D12: 26383.85483 | E12: 2179 | F12: Marine Harvest (Scotland) Ltd | G12: CAR/L/1010002 | H12: 0 | I12: 281750 | J12: 245 | K12: 0 | L12: 4899.999917 | M12: 0 | N12: 0 | O12: Camas an Leim (Torridon) | P12: CAR/L/1010002/C1/V5 | Q12: Marine Harvest (Scotland) Ltd | R12: 2500 | S12: Loch Torridon | T12: NG82385591 | U12: 156100 | V12: 828900 | W12: Seawater | X12: Highland
A13: 2059134 | B13: 2010-08-01 | C13: CAIR1 | D13: 10152.73701 | E13: 1362 | F13: Marine Harvest (Scotland) Ltd | G13: CAR/L/1010432 | H13: 0 | I13: 198221 | J13: 230 | K13: 0 | L13: 0 | M13: 0 | N13: 0 | O13: Cairidh | P13: CAR/L/1010432/C1/V3 | Q13: Marine Harvest (Scotland) Ltd | R13: 1800 | S13: Loch Ainort | T13: NG56102890 | U13: 182379 | V13: 855906 | W13: Seawater | X13: Highland
A14: 2039753 | B14: 2011-11-01 | C14: SHNEM2 | D14: 27809.22904 | E14: 1429 | F14: Marine Harvest (Scotland) Ltd | G14: CAR/L/1004218 | H14: 0 | I14: 194389 | J14: 229.5 | K14: 0 | L14: 0 | M14: 0 | N14: 427.6135901 | O14: Mid Loch Shell / Pairc - East (C & D cage groups) | P14: CAR/L/1004218/C1/V2 | Q14: Marine Harvest (Scotland) Ltd | R14: 1100 | S14: Loch Shell | T14: NB35401020 | U14: 75950 | V14: 803280 | W14: Seawater | X14: Eilean Siar
A15: 2058087 | B15: 2012-07-01 | C15: DUI1 | D15: 4453.434287 | E15: 1629 | F15: Marine Harvest (Scotland) Ltd | G15: CAR/L/1010433 | H15: 0 | I15: 293265 | J15: 225 | K15: 0 | L15: 3569.999993 | M15: 0 | N15: 0 | O15: Duich | P15: CAR/L/1010433/V6 | Q15: Marine Harvest (Scotland) Ltd | R15: 2125 | S15: Loch Duich | T15: NG89172320 | U15: 182379 | V15: 855906 | W15: Seawater | X15: Highland
A16: 2057765 | B16: 2012-07-01 | C16: SRO1 | D16: 30202.26315 | E16: 1386 | F16: Marine Harvest (Scotland) Ltd | G16: CAR/L/1002327 | H16: 0 | I16: 269407 | J16: 225 | K16: 0 | L16: 0 | M16: 0 | N16: 0 | O16: Sron | P16: CAR/L/1002327/C1/V2 | Q16: Marine Harvest (Scotland) Ltd | R16: 2000 | S16: Loch Alsh | T16: NG78402535 | U16: 182379 | V16: 855906 | W16: Seawater | X16: Highland
A17: 2039588 | B17: 2011-11-01 | C17: SHNEM1 | D17: 15584.15029 | E17: 1324 | F17: Marine Harvest (Scotland) Ltd | G17: CAR/L/1001802 | H17: 0 | I17: 255422 | J17: 210 | K17: 0 | L17: 0 | M17: 0 | N17: 427.6135901 | O17: Mid Loch Shell / Pairc - West (A & B cage groups) | P17: CAR/L/1001802/C1/V3 | Q17: Marine Harvest (Scotland) Ltd | R17: 1331 | S17: Loch Shell | T17: NB34701030 | U17: 182379 | V17: 855906 | W17: Seawater | X17: Highland
A18: 2057587 | B18: 2012-06-01 | C18: ARDT1 | D18: 32543.04098 | E18: 2467 | F18: Marine Harvest (Scotland) Ltd | G18: CAR/L/1001806 | H18: 0 | I18: 473835 | J18: 210 | K18: 0 | L18: 3500 | M18: 0 | N18: 0 | O18: Ardintoul | P18: CAR/L/1001806/C1/V4 | Q18: Marine Harvest (Scotland) Ltd | R18: 2500 | S18: Loch Alsh | T18: NG82412420 | U18: 156100 | V18: 828900 | W18: Seawater | X18: Highland
A19: 2057588 | B19: 2012-07-01 | C19: ARDT1 | D19: 31428.37569 | E19: 2278 | F19: Marine Harvest (Scotland) Ltd | G19: CAR/L/1001806 | H19: 0 | I19: 428358 | J19: 210 | K19: 0 | L19: 3500 | M19: 0 | N19: 0 | O19: Ardintoul | P19: CAR/L/1001806/C1/V4 | Q19: Marine Harvest (Scotland) Ltd | R19: 2500 | S19: Loch Alsh | T19: NG82412420 | U19: 135400 | V19: 910200 | W19: Seawater | X19: Eilean Siar
A20: 2057764 | B20: 2012-06-01 | C20: SRO1 | D20: 91416.16036 | E20: 1994 | F20: Marine Harvest (Scotland) Ltd | G20: CAR/L/1002327 | H20: 0 | I20: 286877 | J20: 210 | K20: 0 | L20: 2800.000042 | M20: 0 | N20: 0 | O20: Sron | P20: CAR/L/1002327/C1/V2 | Q20: Marine Harvest (Scotland) Ltd | R20: 2000 | S20: Loch Alsh | T20: NG78402535 | U20: 189090 | V20: 823350 | W20: Seawater | X20: Highland
A21: 2050519 | B21: 2011-10-01 | C21: CAL1 | D21: 4902.170097 | E21: 2405 | F21: Marine Harvest (Scotland) Ltd | G21: CAR/L/1010002 | H21: 0 | I21: 314742 | J21: 210 | K21: 0 | L21: 2580.000043 | M21: 0 | N21: 0 | O21: Camas an Leim (Torridon) | P21: CAR/L/1010002/C1/V5 | Q21: Marine Harvest (Scotland) Ltd | R21: 2500 | S21: Loch Torridon | T21: NG82385591 | U21: 178400 | V21: 825350 | W21: Seawater | X21: Highland
A22: 2050515 | B22: 2011-06-01 | C22: CAL1 | D22: 7753.200034 | E22: 2193 | F22: Marine Harvest (Scotland) Ltd | G22: CAR/L/1010002 | H22: 0 | I22: 253845 | J22: 210 | K22: 0 | L22: 0 | M22: 0 | N22: 0 | O22: Camas an Leim (Torridon) | P22: CAR/L/1010002/C1/V5 | Q22: Marine Harvest (Scotland) Ltd | R22: 2500 | S22: Loch Torridon | T22: NG82385591 | U22: 134700 | V22: 910300 | W22: Seawater | X22: Eilean Siar
A23: 2057584 | B23: 2012-03-01 | C23: ARDT1 | D23: 4464.109354 | E23: 2132 | F23: Marine Harvest (Scotland) Ltd | G23: CAR/L/1001806 | H23: 0 | I23: 335996 | J23: 210 | K23: 0 | L23: 0 | M23: 0 | N23: 0 | O23: Ardintoul | P23: CAR/L/1001806/C1/V4 | Q23: Marine Harvest (Scotland) Ltd | R23: 2500 | S23: Loch Alsh | T23: NG82412420 | U23: 182410 | V23: 824200 | W23: Seawater | X23: Highland
A24: 2057582 | B24: 2012-01-01 | C24: ARDT1 | D24: 3289.651549 | E24: 1692 | F24: Marine Harvest (Scotland) Ltd | G24: CAR/L/1001806 | H24: 0 | I24: 244977 | J24: 210 | K24: 0 | L24: 0 | M24: 0 | N24: 0 | O24: Ardintoul | P24: CAR/L/1001806/C1/V4 | Q24: Marine Harvest (Scotland) Ltd | R24: 2500 | S24: Loch Alsh | T24: NG82412420 | U24: 182410 | V24: 824200 | W24: Seawater | X24: Highland
A25: 2057586 | B25: 2012-05-01 | C25: ARDT1 | D25: 2960.302709 | E25: 2444 | F25: Marine Harvest (Scotland) Ltd | G25: CAR/L/1001806 | H25: 0 | I25: 563698 | J25: 210 | K25: 0 | L25: 0 | M25: 0 | N25: 0 | O25: Ardintoul | P25: CAR/L/1001806/C1/V4 | Q25: Marine Harvest (Scotland) Ltd | R25: 2500 | S25: Loch Alsh | T25: NG82412420 | U25: 178400 | V25: 825350 | W25: Seawater | X25: Highland
A26: 2059316 | B26: 2011-01-01 | C26: GRE1 | D26: 2629.446732 | E26: 1868 | F26: Marine Harvest (Scotland) Ltd | G26: CAR/L/1002890 | H26: 0 | I26: 249810 | J26: 206.25 | K26: 0 | L26: 0 | M26: 0 | N26: 0 | O26: Greshornish | P26: CAR/L/1002890/V6 | Q26: Marine Harvest (Scotland) Ltd | R26: 2195 | S26: Loch Snizort | T26: NG35005530 | U26: 182379 | V26: 855906 | W26: Seawater | X26: Highland
A27: 2051472 | B27: 2012-12-01 | C27: NOS1 | D27: 4185.325275 | E27: 1187 | F27: Marine Harvest (Scotland) Ltd | G27: CAR/L/1009974 | H27: 0 | I27: 143088 | J27: 200 | K27: 0 | L27: 200.000003 | M27: 0 | N27: 0 | O27: Noster | P27: CAR/L/1009974/V9 | Q27: Marine Harvest (Scotland) Ltd | R27: 2200 | S27: Loch Seaforth | T27: NB22840348 | U27: 182379 | V27: 855906 | W27: Seawater | X27: Highland
A28: 2046067 | B28: 2015-04-01 | C28: MBM1 | D28: 8822.632581 | E28: 1437 | F28: Marine Harvest (Scotland) Ltd | G28: CAR/L/1028518 | H28: 0 | I28: 240184 | J28: 200 | K28: 0 | L28: 0 | M28: 0 | N28: 0 | O28: Marulaig Bay | P28: CAR/L/1028518/V7 | Q28: Marine Harvest (Scotland) Ltd | R28: 2400 | S28: Loch Boisdale | T28: NF82851646 | U28: 182410 | V28: 824200 | W28: Seawater | X28: Highland
A29: 2046917 | B29: 2013-05-01 | C29: ERI3 | D29: 1096.236134 | E29: 1012 | F29: Marine Harvest (Scotland) Ltd | G29: CAR/L/1004085 | H29: 0 | I29: 180836 | J29: 200 | K29: 0 | L29: 0 | M29: 0 | N29: 0 | O29: Erisort, North Shore West | P29: CAR/L/1004085/V13 | Q29: Marine Harvest (Scotland) Ltd | R29: 1650 | S29: Loch Erisort | T29: NB39092276 | U29: 182410 | V29: 824200 | W29: Seawater | X29: Highland
A30: 2058550 | B30: 2011-08-01 | C30: MAOB1 | D30: 2090.93483 | E30: 1129 | F30: Marine Harvest (Scotland) Ltd | G30: CAR/L/1009643 | H30: 0 | I30: 487459 | J30: 198 | K30: 0 | L30: 0 | M30: 0 | N30: 0 | O30: Maol Ban | P30: CAR/L/1009643/C1/V2 | Q30: Marine Harvest (Scotland) Ltd | R30: 2250 | S30: Inner Sound | T30: NG56403080 | U30: 182410 | V30: 824200 | W30: Seawater | X30: Highland
A31: 2058553 | B31: 2011-11-01 | C31: MAOB1 | D31: 10006.90245 | E31: 2171 | F31: Marine Harvest (Scotland) Ltd | G31: CAR/L/1009643 | H31: 0 | I31: 514902 | J31: 195 | K31: 0 | L31: 0 | M31: 0 | N31: 1001 | O31: Maol Ban | P31: CAR/L/1009643/C1/V2 | Q31: Marine Harvest (Scotland) Ltd | R31: 2250 | S31: Inner Sound | T31: NG56403080 | U31: 135000 | V31: 855300 | W31: Seawater | X31: Highland
A32: 2058555 | B32: 2012-01-01 | C32: MAOB1 | D32: 60136.58569 | E32: 2090 | F32: Marine Harvest (Scotland) Ltd | G32: CAR/L/1009643 | H32: 0 | I32: 197474 | J32: 195 | K32: 0 | L32: 1355.99998 | M32: 0 | N32: 844.199976 | O32: Maol Ban | P32: CAR/L/1009643/C1/V2 | Q32: Marine Harvest (Scotland) Ltd | R32: 2250 | S32: Inner Sound | T32: NG56403080 | U32: 122840 | V32: 903480 | W32: Seawater | X32: Eilean Siar
A33: 2050516 | B33: 2011-07-01 | C33: CAL1 | D33: 3536.195443 | E33: 2285 | F33: Marine Harvest (Scotland) Ltd | G33: CAR/L/1010002 | H33: 0 | I33: 358677 | J33: 195 | K33: 0 | L33: 0 | M33: 0 | N33: 0 | O33: Camas an Leim (Torridon) | P33: CAR/L/1010002/C1/V5 | Q33: Marine Harvest (Scotland) Ltd | R33: 2500 | S33: Loch Torridon | T33: NG82385591 | U33: 82850 | V33: 816460 | W33: Seawater | X33: Eilean Siar
A34: 2058429 | B34: 2015-04-01 | C34: IOEWE2 | D34: 9362.356289 | E34: 1447 | F34: Marine Harvest (Scotland) Ltd | G34: CAR/L/1002963 | H34: 78.21128906 | I34: 209331 | J34: 190 | K34: 0 | L34: 5100 | M34: 0 | N34: 0 | O34: Isle of Ewe | P34: CAR/L/1002963/V7 | Q34: Marine Harvest (Scotland) Ltd | R34: 1027 | S34: Loch Ewe | T34: NG83608850 | U34: 139089 | V34: 922756 | W34: Seawater | X34: Eilean Siar
A35: 2048062 | B35: 2015-04-01 | C35: SOAY1 | D35: 22334.56216 | E35: 1038 | F35: Marine Harvest (Scotland) Ltd | G35: CAR/L/1004053 | H35: 0 | I35: 130493 | J35: 187.5 | K35: 0 | L35: 3750 | M35: 0 | N35: 0 | O35: Soay Sound | P35: CAR/L/1004053/V12 | Q35: Marine Harvest (Scotland) Ltd | R35: 1725 | S35: West Loch Tarbert | T35: NB06600540 | U35: 156400 | V35: 830800 | W35: Seawater | X35: Highland
A36: 2059501 | B36: 2011-09-01 | C36: PORL1 | D36: 4232.027221 | E36: 1676 | F36: Marine Harvest (Scotland) Ltd | G36: CAR/L/1002889 | H36: 0 | I36: 394309 | J36: 185.5 | K36: 0 | L36: 0 | M36: 0 | N36: 0 | O36: Portnalong | P36: CAR/L/1002889/V7 | Q36: Marine Harvest (Scotland) Ltd | R36: 2000 | S36: Loch Bracadale | T36: NG34923550 | U36: 156400 | V36: 830800 | W36: Seawater | X36: Highland
A37: 2057610 | B37: 2014-05-01 | C37: ARDT1 | D37: 4551.695868 | E37: 2495 | F37: Marine Harvest (Scotland) Ltd | G37: CAR/L/1001806 | H37: 0 | I37: 408195 | J37: 180 | K37: 0 | L37: 2603.000069 | M37: 0 | N37: 809.6270066 | O37: Ardintoul | P37: CAR/L/1001806/C1/V4 | Q37: Marine Harvest (Scotland) Ltd | R37: 2500 | S37: Loch Alsh | T37: NG82412420 | U37: 156400 | V37: 830800 | W37: Seawater | X37: Highland
A38: 2046899 | B38: 2011-11-01 | C38: ERI3 | D38: 8622.799315 | E38: 2230 | F38: Marine Harvest (Scotland) Ltd | G38: CAR/L/1004085 | H38: 0 | I38: 417025 | J38: 180 | K38: 0 | L38: 0 | M38: 0 | N38: 127.91 | O38: Erisort, North Shore West | P38: CAR/L/1004085/V13 | Q38: Marine Harvest (Scotland) Ltd | R38: 1650 | S38: Loch Erisort | T38: NB39092276 | U38: 182379 | V38: 855906 | W38: Seawater | X38: Highland
A39: 2050558 | B39: 2015-01-01 | C39: CAL1 | D39: 5120.663046 | E39: 2207 | F39: Marine Harvest (Scotland) Ltd | G39: CAR/L/1010002 | H39: 0 | I39: 347496 | J39: 180 | K39: 0 | L39: 4199.999928 | M39: 0 | N39: 0 | O39: Camas an Leim (Torridon) | P39: CAR/L/1010002/C1/V5 | Q39: Marine Harvest (Scotland) Ltd | R39: 2500 | S39: Loch Torridon | T39: NG82385591 | U39: 183600 | V39: 888500 | W39: Seawater | X39: Highland
A40: 2058538 | B40: 2010-08-01 | C40: MAOB1 | D40: 14653.48061 | E40: 1989 | F40: Marine Harvest (Scotland) Ltd | G40: CAR/L/1009643 | H40: 0 | I40: 255912 | J40: 180 | K40: 0 | L40: 0 | M40: 0 | N40: 0 | O40: Maol Ban | P40: CAR/L/1009643/C1/V2 | Q40: Marine Harvest (Scotland) Ltd | R40: 2250 | S40: Inner Sound | T40: NG56403080 | U40: 106600 | V40: 905400 | W40: Seawater | X40: Eilean Siar
A41: 2057632 | B41: 2016-02-01 | C41: ARDT1 | D41: 13379.11733 | E41: 2472 | F41: Marine Harvest (Scotland) Ltd | G41: CAR/L/1001806 | H41: 0 | I41: 329826 | J41: 180 | K41: 0 | L41: 0 | M41: 0 | N41: 0 | O41: Ardintoul | P41: CAR/L/1001806/C1/V4 | Q41: Marine Harvest (Scotland) Ltd | R41: 2500 | S41: Loch Alsh | T41: NG82412420 | U41: 134920 | V41: 835500 | W41: Seawater | X41: Highland
A42: 2058540 | B42: 2010-10-01 | C42: MAOB1 | D42: 10111.9732 | E42: 2045 | F42: Marine Harvest (Scotland) Ltd | G42: CAR/L/1009643 | H42: 0 | I42: 301529 | J42: 180 | K42: 0 | L42: 0 | M42: 0 | N42: 0 | O42: Maol Ban | P42: CAR/L/1009643/C1/V2 | Q42: Marine Harvest (Scotland) Ltd | R42: 2250 | S42: Inner Sound | T42: NG56403080 | U42: 182410 | V42: 824200 | W42: Seawater | X42: Highland
A43: 2058537 | B43: 2010-07-01 | C43: MAOB1 | D43: 6240.978518 | E43: 2176 | F43: Marine Harvest (Scotland) Ltd | G43: CAR/L/1009643 | H43: 0 | I43: 304612 | J43: 180 | K43: 0 | L43: 0 | M43: 0 | N43: 0 | O43: Maol Ban | P43: CAR/L/1009643/C1/V2 | Q43: Marine Harvest (Scotland) Ltd | R43: 2250 | S43: Inner Sound | T43: NG56403080 | U43: 139089 | V43: 922756 | W43: Seawater | X43: Eilean Siar
A44: 2057565 | B44: 2010-08-01 | C44: ARDT1 | D44: 5211.865404 | E44: 1932 | F44: Marine Harvest (Scotland) Ltd | G44: CAR/L/1001806 | H44: 0 | I44: 403249 | J44: 180 | K44: 0 | L44: 0 | M44: 0 | N44: 0 | O44: Ardintoul | P44: CAR/L/1001806/C1/V4 | Q44: Marine Harvest (Scotland) Ltd | R44: 2500 | S44: Loch Alsh | T44: NG82412420 | U44: 182379 | V44: 855906 | W44: Seawater | X44: Highland
A45: 2057562 | B45: 2010-05-01 | C45: ARDT1 | D45: 2456.977117 | E45: 1970 | F45: Marine Harvest (Scotland) Ltd | G45: CAR/L/1001806 | H45: 0 | I45: 1970 | J45: 180 | K45: 0 | L45: 0 | M45: 0 | N45: 0 | O45: Ardintoul | P45: CAR/L/1001806/C1/V4 | Q45: Marine Harvest (Scotland) Ltd | R45: 2500 | S45: Loch Alsh | T45: NG82412420 | U45: 156400 | V45: 830800 | W45: Seawater | X45: Highland
A46: 2058083 | B46: 2012-03-01 | C46: DUI1 | D46: 2092.570041 | E46: 1442 | F46: Marine Harvest (Scotland) Ltd | G46: CAR/L/1010433 | H46: 0 | I46: 220119 | J46: 180 | K46: 0 | L46: 0 | M46: 0 | N46: 0 | O46: Duich | P46: CAR/L/1010433/V6 | Q46: Marine Harvest (Scotland) Ltd | R46: 2125 | S46: Loch Duich | T46: NG89172320 | U46: 182410 | V46: 824200 | W46: Seawater | X46: Highland
A47: 2058085 | B47: 2012-05-01 | C47: DUI1 | D47: 1438.324771 | E47: 1863 | F47: Marine Harvest (Scotland) Ltd | G47: CAR/L/1010433 | H47: 0 | I47: 293152 | J47: 180 | K47: 0 | L47: 0 | M47: 0 | N47: 0 | O47: Duich | P47: CAR/L/1010433/V6 | Q47: Marine Harvest (Scotland) Ltd | R47: 2125 | S47: Loch Duich | T47: NG89172320 | U47: 156400 | V47: 830800 | W47: Seawater | X47: Highland
A48: 2058081 | B48: 2012-01-01 | C48: DUI1 | D48: 1061.873963 | E48: 1099 | F48: Marine Harvest (Scotland) Ltd | G48: CAR/L/1010433 | H48: 0 | I48: 161431 | J48: 180 | K48: 0 | L48: 0 | M48: 0 | N48: 0 | O48: Duich | P48: CAR/L/1010433/V6 | Q48: Marine Harvest (Scotland) Ltd | R48: 2125 | S48: Loch Duich | T48: NG89172320 | U48: 156400 | V48: 830800 | W48: Seawater | X48: Highland
A49: 2058557 | B49: 2012-03-01 | C49: MAOB1 | D49: 2779.28809 | E49: 2211 | F49: Marine Harvest (Scotland) Ltd | G49: CAR/L/1009643 | H49: 0 | I49: 360794 | J49: 178.85 | K49: 0 | L49: 1243 | M49: 0 | N49: 0 | O49: Maol Ban | P49: CAR/L/1009643/C1/V2 | Q49: Marine Harvest (Scotland) Ltd | R49: 2250 | S49: Inner Sound | T49: NG56403080 | U49: 182410 | V49: 824200 | W49: Seawater | X49: Highland
A50: 2059320 | B50: 2011-05-01 | C50: GRE1 | D50: 3574.067369 | E50: 1447 | F50: Marine Harvest (Scotland) Ltd | G50: CAR/L/1002890 | H50: 0 | I50: 197181 | J50: 178.75 | K50: 0 | L50: 0 | M50: 0 | N50: 0 | O50: Greshornish | P50: CAR/L/1002890/V6 | Q50: Marine Harvest (Scotland) Ltd | R50: 2195 | S50: Loch Snizort | T50: NG35005530 | U50: 182410 | V50: 824200 | W50: Seawater | X50: Highland
A51: 2058084 | B51: 2012-04-01 | C51: DUI1 | D51: 2023.932765 | E51: 1656 | F51: Marine Harvest (Scotland) Ltd | G51: CAR/L/1010433 | H51: 0 | I51: 259293 | J51: 177.5 | K51: 0 | L51: 1200.000018 | M51: 0 | N51: 0 | O51: Duich | P51: CAR/L/1010433/V6 | Q51: Marine Harvest (Scotland) Ltd | R51: 2125 | S51: Loch Duich | T51: NG89172320 | U51: 189090 | V51: 823350 | W51: Seawater | X51: Highland
A52: 2063659 | B52: 2011-06-01 | C52: SKIO1 | D52: 4927.164953 | E52: 1621 | F52: Marine Harvest (Scotland) Ltd | G52: CAR/L/1001968 | H52: 0 | I52: 328871 | J52: 177.49 | K52: 0 | L52: 0 | M52: 0 | N52: 525 | O52: Skipport Outer (Ornish) | P52: CAR/L/1001968/V7 | Q52: Marine Harvest (Scotland) Ltd | R52: 1710 | S52: Loch Skipport | T52: NF85203850 | U52: 189090 | V52: 823350 | W52: Seawater | X52: Highland
A53: 2043078 | B53: 2012-05-01 | C53: INV1 | D53: 4924.439653 | E53: 2372 | F53: Marine Harvest (Scotland) Ltd | G53: CAR/L/1009162 | H53: 132 | I53: 476595 | J53: 175 | K53: 0 | L53: 4000.00006 | M53: 0 | N53: 1174.999952 | O53: Invasion Bay | P53: CAR/L/1009162/C1/V1 | Q53: Marine Harvest (Scotland) Ltd | R53: 1680 | S53: Loch Sunart | T53: NM73316102 | U53: 189090 | V53: 823350 | W53: Seawater | X53: Highland
A54: 2064841 | B54: 2015-09-01 | C54: ERI4 | D54: 2501.468777 | E54: 798 | F54: Marine Harvest (Scotland) Ltd | G54: CAR/L/1129789 | H54: 0 | I54: 224778 | J54: 175 | K54: 0 | L54: 0 | M54: 0 | N54: 265.9999967 | O54: Erisort, North Shore East | P54: CAR/L/1129789/V1 | Q54: Marine Harvest (Scotland) Ltd | R54: 2400 | S54: Loch Erisort | T54: NB39402295 | U54: 156400 | V54: 830800 | W54: Seawater | X54: Highland
A55: 2055675 | B55: 2014-09-01 | C55: ELR1 | D55: 31423.86091 | E55: 1776 | F55: Marine Harvest (Scotland) Ltd | G55: CAR/L/1099410 | H55: 0 | I55: 334455 | J55: 175 | K55: 0 | L55: 1474.999961 | M55: 0 | N55: 256.092 | O55: Eilean Raineach | P55: CAR/L/1099410/V4 | Q55: Marine Harvest (Scotland) Ltd | R55: 2000 | S55: East Loch Tarbert | T55: NG19649749 | U55: 135000 | V55: 855300 | W55: Seawater | X55: Highland
A56: 2055575 | B56: 2011-02-01 | C56: SCOT1 | D56: 1420.665171 | E56: 1440 | F56: Marine Harvest (Scotland) Ltd | G56: CAR/L/1004080 | H56: 0 | I56: 162800 | J56: 175 | K56: 0 | L56: 2479.999959 | M56: 0 | N56: 0 | O56: Scotasay | P56: CAR/L/1004080/C1/V5 | Q56: Marine Harvest (Scotland) Ltd | R56: 2000 | S56: East Loch Tarbert | T56: NG19379754 | U56: 189090 | V56: 823350 | W56: Seawater | X56: Highland
A57: 2050520 | B57: 2011-11-01 | C57: CAL1 | D57: 4152.991241 | E57: 1865 | F57: Marine Harvest (Scotland) Ltd | G57: CAR/L/1010002 | H57: 0 | I57: 91469 | J57: 175 | K57: 0 | L57: 2150.000036 | M57: 0 | N57: 0 | O57: Camas an Leim (Torridon) | P57: CAR/L/1010002/C1/V5 | Q57: Marine Harvest (Scotland) Ltd | R57: 2500 | S57: Loch Torridon | T57: NG82385591 | U57: 85200 | V57: 838500 | W57: Seawater | X57: Eilean Siar
A58: 2058132 | B58: 2016-03-01 | C58: DUI1 | D58: 31579.89838 | E58: 1909 | F58: Marine Harvest (Scotland) Ltd | G58: CAR/L/1010433 | H58: 0 | I58: 260173 | J58: 175 | K58: 0 | L58: 900 | M58: 0 | N58: 0 | O58: Duich | P58: CAR/L/1010433/V6 | Q58: Marine Harvest (Scotland) Ltd | R58: 2125 | S58: Loch Duich | T58: NG89172320 | U58: 173310 | V58: 761020 | W58: Seawater | X58: Highland
A59: 2064130 | B59: 2015-11-01 | C59: FFMC35S | D59: 159450.1315 | E59: 1572 | F59: Marine Harvest (Scotland) Ltd | G59: CAR/L/1099909 | H59: 0 | I59: 208859 | J59: 175 | K59: 0 | L59: 0 | M59: 0 | N59: 0 | O59: Ardmaddy South | P59: CAR/L/1099909/V2 | Q59: Marine Harvest (Scotland) Ltd | R59: 2500 | S59: Seil Sound | T59: NM77391349 | U59: 139405 | V59: 922953 | W59: Seawater | X59: Eilean Siar
A60: 2045940 | B60: 2012-12-01 | C60: SEA5 | D60: 12208.69589 | E60: 1099 | F60: Marine Harvest (Scotland) Ltd | G60: CAR/L/1009963 | H60: 0 | I60: 140018 | J60: 175 | K60: 0 | L60: 0 | M60: 0 | N60: 0 | O60: Seaforth | P60: CAR/L/1009963/V12 | Q60: Marine Harvest (Scotland) Ltd | R60: 2110 | S60: Loch Seaforth | T60: NB23080296 | U60: 119640 | V60: 897490 | W60: Seawater | X60: Eilean Siar
A61: 2047885 | B61: 2016-03-01 | C61: GHC1 | D61: 6653.523153 | E61: 1042 | F61: Marine Harvest (Scotland) Ltd | G61: CAR/L/1025571 | H61: 0 | I61: 265764 | J61: 175 | K61: 0 | L61: 0 | M61: 0 | N61: 0 | O61: Grey Horse Channel | P61: CAR/L/1025571/V6 | Q61: Marine Harvest (Scotland) Ltd | R61: 2000 | S61: Sound of Harris | T61: NF98457545 | U61: 119368 | V61: 897545 | W61: Seawater | X61: Eilean Siar
A62: 2050538 | B62: 2013-05-01 | C62: CAL1 | D62: 4132.118687 | E62: 2100 | F62: Marine Harvest (Scotland) Ltd | G62: CAR/L/1010002 | H62: 0 | I62: 348380 | J62: 175 | K62: 0 | L62: 0 | M62: 0 | N62: 0 | O62: Camas an Leim (Torridon) | P62: CAR/L/1010002/C1/V5 | Q62: Marine Harvest (Scotland) Ltd | R62: 2500 | S62: Loch Torridon | T62: NG82385591 | U62: 182379 | V62: 855906 | W62: Seawater | X62: Highland
A63: 2050535 | B63: 2013-02-01 | C63: CAL1 | D63: 3790.074033 | E63: 2270 | F63: Marine Harvest (Scotland) Ltd | G63: CAR/L/1010002 | H63: 0 | I63: 373550 | J63: 175 | K63: 0 | L63: 0 | M63: 0 | N63: 0 | O63: Camas an Leim (Torridon) | P63: CAR/L/1010002/C1/V5 | Q63: Marine Harvest (Scotland) Ltd | R63: 2500 | S63: Loch Torridon | T63: NG82385591 | U63: 189090 | V63: 823350 | W63: Seawater | X63: Highland
A64: 2050537 | B64: 2013-04-01 | C64: CAL1 | D64: 3657.077848 | E64: 2103 | F64: Marine Harvest (Scotland) Ltd | G64: CAR/L/1010002 | H64: 0 | I64: 383075 | J64: 175 | K64: 0 | L64: 0 | M64: 0 | N64: 0 | O64: Camas an Leim (Torridon) | P64: CAR/L/1010002/C1/V5 | Q64: Marine Harvest (Scotland) Ltd | R64: 2500 | S64: Loch Torridon | T64: NG82385591 | U64: 177390 | V64: 713490 | W64: Seawater | X64: Argyll and Bute
A65: 2047882 | B65: 2016-04-01 | C65: GHC1 | D65: 1328.693049 | E65: 1236 | F65: Marine Harvest (Scotland) Ltd | G65: CAR/L/1025571 | H65: 0 | I65: 204728 | J65: 175 | K65: 0 | L65: 0 | M65: 0 | N65: 0 | O65: Grey Horse Channel | P65: CAR/L/1025571/V6 | Q65: Marine Harvest (Scotland) Ltd | R65: 2000 | S65: Sound of Harris | T65: NF98457545 | U65: 123080 | V65: 902960 | W65: Seawater | X65: Eilean Siar
A66: 2059675 | B66: 2011-07-01 | C66: ARDG1 | D66: 2665.146906 | E66: 2454 | F66: Marine Harvest (Scotland) Ltd | G66: CAR/L/1009970 | H66: 0 | I66: 512528 | J66: 172.5 | K66: 0 | L66: 2600 | M66: 0 | N66: 0 | O66: Ardgour (Linnhe) | P66: CAR/L/1009970/C1/V3 | Q66: Marine Harvest (Scotland) Ltd | R66: 2500 | S66: Loch Linnhe | T66: NN01396458 | U66: 98450 | V66: 875450 | W66: Seawater | X66: Eilean Siar
A67: 2059668 | B67: 2010-12-01 | C67: ARDG1 | D67: 22293.83611 | E67: 2173 | F67: Marine Harvest (Scotland) Ltd | G67: CAR/L/1009970 | H67: 0 | I67: 281674 | J67: 172.5 | K67: 0 | L67: 0 | M67: 0 | N67: 0 | O67: Ardgour (Linnhe) | P67: CAR/L/1009970/C1/V3 | Q67: Marine Harvest (Scotland) Ltd | R67: 2500 | S67: Loch Linnhe | T67: NN01396458 | U67: 182379 | V67: 855906 | W67: Seawater | X67: Highland
A68: 2045917 | B68: 2011-01-01 | C68: SEA5 | D68: 3010.165743 | E68: 1321 | F68: Marine Harvest (Scotland) Ltd | G68: CAR/L/1009963 | H68: 0 | I68: 199718 | J68: 170 | K68: 0 | L68: 2000.00003 | M68: 0 | N68: 0 | O68: Seaforth | P68: CAR/L/1009963/V12 | Q68: Marine Harvest (Scotland) Ltd | R68: 2110 | S68: Loch Seaforth | T68: NB23080296 | U68: 182379 | V68: 855906 | W68: Seawater | X68: Highland
A69: 2055574 | B69: 2011-01-01 | C69: SCOT1 | D69: 5169.241385 | E69: 1707 | F69: Marine Harvest (Scotland) Ltd | G69: CAR/L/1004080 | H69: 0 | I69: 221185 | J69: 169 | K69: 0 | L69: 0 | M69: 0 | N69: 0 | O69: Scotasay | P69: CAR/L/1004080/C1/V5 | Q69: Marine Harvest (Scotland) Ltd | R69: 2000 | S69: East Loch Tarbert | T69: NG19379754 | U69: 182379 | V69: 855906 | W69: Seawater | X69: Highland
A70: 2046914 | B70: 2013-02-01 | C70: ERI3 | D70: 2574.870395 | E70: 485 | F70: Marine Harvest (Scotland) Ltd | G70: CAR/L/1004085 | H70: 0 | I70: 105527 | J70: 167.5 | K70: 0 | L70: 0 | M70: 0 | N70: 0 | O70: Erisort, North Shore West | P70: CAR/L/1004085/V13 | Q70: Marine Harvest (Scotland) Ltd | R70: 1650 | S70: Loch Erisort | T70: NB39092276 | U70: 98450 | V70: 875450 | W70: Seawater | X70: Eilean Siar
A71: 2063658 | B71: 2011-05-01 | C71: SKIO1 | D71: 4891.161725 | E71: 1697 | F71: Marine Harvest (Scotland) Ltd | G71: CAR/L/1001968 | H71: 0 | I71: 376428 | J71: 165.03 | K71: 0 | L71: 0 | M71: 0 | N71: 0 | O71: Skipport Outer (Ornish) | P71: CAR/L/1001968/V7 | Q71: Marine Harvest (Scotland) Ltd | R71: 1710 | S71: Loch Skipport | T71: NF85203850 | U71: 201386 | V71: 764579 | W71: Seawater | X71: Highland
A72: 2046900 | B72: 2011-12-01 | C72: ERI3 | D72: 15115.40998 | E72: 2242 | F72: Marine Harvest (Scotland) Ltd | G72: CAR/L/1004085 | H72: 0 | I72: 283763 | J72: 165 | K72: 0 | L72: 2496.999979 | M72: 0 | N72: 762.28 | O72: Erisort, North Shore West | P72: CAR/L/1004085/V13 | Q72: Marine Harvest (Scotland) Ltd | R72: 1650 | S72: Loch Erisort | T72: NB39092276 | U72: 201386 | V72: 764579 | W72: Seawater | X72: Highland
A73: 2059151 | B73: 2012-01-01 | C73: CAIR1 | D73: 26498.80221 | E73: 1423 | F73: Marine Harvest (Scotland) Ltd | G73: CAR/L/1010432 | H73: 0 | I73: 183722 | J73: 165 | K73: 0 | L73: 2375.999987 | M73: 0 | N73: 629.7999821 | O73: Cairidh | P73: CAR/L/1010432/C1/V3 | Q73: Marine Harvest (Scotland) Ltd | R73: 1800 | S73: Loch Ainort | T73: NG56102890 | U73: 123080 | V73: 902960 | W73: Seawater | X73: Eilean Siar
A74: 2059152 | B74: 2012-02-01 | C74: CAIR1 | D74: 2451.497555 | E74: 1554 | F74: Marine Harvest (Scotland) Ltd | G74: CAR/L/1010432 | H74: 0 | I74: 237980 | J74: 165 | K74: 0 | L74: 2375.999996 | M74: 0 | N74: 0 | O74: Cairidh | P74: CAR/L/1010432/C1/V3 | Q74: Marine Harvest (Scotland) Ltd | R74: 1800 | S74: Loch Ainort | T74: NG56102890 | U74: 119368 | V74: 897545 | W74: Seawater | X74: Eilean Siar
A75: 2057567 | B75: 2010-10-01 | C75: ARDT1 | D75: 67064.4198 | E75: 1998 | F75: Marine Harvest (Scotland) Ltd | G75: CAR/L/1001806 | H75: 0 | I75: 369254 | J75: 165 | K75: 0 | L75: 0 | M75: 0 | N75: 0 | O75: Ardintoul | P75: CAR/L/1001806/C1/V4 | Q75: Marine Harvest (Scotland) Ltd | R75: 2500 | S75: Loch Alsh | T75: NG82412420 | U75: 139089 | V75: 922756 | W75: Seawater | X75: Eilean Siar
A76: 2057742 | B76: 2010-08-01 | C76: SRO1 | D76: 3980.652932 | E76: 1286 | F76: Marine Harvest (Scotland) Ltd | G76: CAR/L/1002327 | H76: 0 | I76: 369644 | J76: 163.75 | K76: 0 | L76: 0 | M76: 0 | N76: 0 | O76: Sron | P76: CAR/L/1002327/C1/V2 | Q76: Marine Harvest (Scotland) Ltd | R76: 2000 | S76: Loch Alsh | T76: NG78402535 | U76: 85200 | V76: 838500 | W76: Seawater | X76: Eilean Siar
A77: 2064366 | B77: 2015-02-01 | C77: ELGN1 | D77: 2624.172216 | E77: 2388 | F77: Marine Harvest (Scotland) Ltd | G77: CAR/L/1078064 | H77: 0 | I77: 279466 | J77: 162.5 | K77: 0 | L77: 0 | M77: 0 | N77: 29.26528823 | O77: Carradale (South) | P77: CAR/L/1078064/V3 | Q77: Marine Harvest (Scotland) Ltd | R77: 2500 | S77: Kilbrannan Sound | T77: NR81664093 | U77: 139089 | V77: 922756 | W77: Seawater | X77: Eilean Siar
A78: 2064368 | B78: 2015-04-01 | C78: ELGN1 | D78: 4342.567864 | E78: 2431 | F78: Marine Harvest (Scotland) Ltd | G78: CAR/L/1078064 | H78: 0 | I78: 323086 | J78: 162.5 | K78: 0 | L78: 0 | M78: 0 | N78: 0 | O78: Carradale (South) | P78: CAR/L/1078064/V3 | Q78: Marine Harvest (Scotland) Ltd | R78: 2500 | S78: Kilbrannan Sound | T78: NR81664093 | U78: 156100 | V78: 828900 | W78: Seawater | X78: Highland
A79: 2051449 | B79: 2011-01-01 | C79: NOS1 | D79: 1824 | E79: 1507 | F79: Marine Harvest (Scotland) Ltd | G79: CAR/L/1009974 | H79: 0 | I79: 186929 | J79: 160 | K79: 0 | L79: 2000.00003 | M79: 0 | N79: 0 | O79: Noster | P79: CAR/L/1009974/V9 | Q79: Marine Harvest (Scotland) Ltd | R79: 2200 | S79: Loch Seaforth | T79: NB22840348 | U79: 156100 | V79: 828900 | W79: Seawater | X79: Highland
A80: 2046923 | B80: 2013-11-01 | C80: ERI3 | D80: 76661.96877 | E80: 2360 | F80: Marine Harvest (Scotland) Ltd | G80: CAR/L/1004085 | H80: 0 | I80: 488275 | J80: 160 | K80: 0 | L80: 300.0000119 | M80: 0 | N80: 0 | O80: Erisort, North Shore West | P80: CAR/L/1004085/V13 | Q80: Marine Harvest (Scotland) Ltd | R80: 1650 | S80: Loch Erisort | T80: NB39092276 | U80: 182410 | V80: 824200 | W80: Seawater | X80: Highland
A81: 2047846 | B81: 2013-01-01 | C81: GHC1 | D81: 5239.4609 | E81: 1677 | F81: Marine Harvest (Scotland) Ltd | G81: CAR/L/1025571 | H81: 0 | I81: 269484 | J81: 160 | K81: 0 | L81: 0 | M81: 0 | N81: 0 | O81: Grey Horse Channel | P81: CAR/L/1025571/V6 | Q81: Marine Harvest (Scotland) Ltd | R81: 2000 | S81: Sound of Harris | T81: NF98457545 | U81: 178400 | V81: 825350 | W81: Seawater | X81: Highland
A82: 2051448 | B82: 2010-12-01 | C82: NOS1 | D82: 2330.154979 | E82: 1460 | F82: Marine Harvest (Scotland) Ltd | G82: CAR/L/1009974 | H82: 0 | I82: 414522 | J82: 160 | K82: 0 | L82: 0 | M82: 0 | N82: 0 | O82: Noster | P82: CAR/L/1009974/V9 | Q82: Marine Harvest (Scotland) Ltd | R82: 2200 | S82: Loch Seaforth | T82: NB22840348 | U82: 181644 | V82: 640861 | W82: Seawater | X82: Argyll and Bute
A83: 2043074 | B83: 2012-01-01 | C83: INV1 | D83: 5973.798999 | E83: 2006 | F83: Marine Harvest (Scotland) Ltd | G83: CAR/L/1009162 | H83: 0 | I83: 224235 | J83: 157.5 | K83: 0 | L83: 2800.000042 | M83: 0 | N83: 757.26 | O83: Invasion Bay | P83: CAR/L/1009162/C1/V1 | Q83: Marine Harvest (Scotland) Ltd | R83: 1680 | S83: Loch Sunart | T83: NM73316102 | U83: 181644 | V83: 640861 | W83: Seawater | X83: Argyll and Bute
A84: 2043077 | B84: 2012-04-01 | C84: INV1 | D84: 3386.144133 | E84: 2428 | F84: Marine Harvest (Scotland) Ltd | G84: CAR/L/1009162 | H84: 188 | I84: 527901 | J84: 157.5 | K84: 0 | L84: 3600.000054 | M84: 0 | N84: 0 | O84: Invasion Bay | P84: CAR/L/1009162/C1/V1 | Q84: Marine Harvest (Scotland) Ltd | R84: 1680 | S84: Loch Sunart | T84: NM73316102 | U84: 122840 | V84: 903480 | W84: Seawater | X84: Eilean Siar
A85: 2046570 | B85: 2011-07-01 | C85: GORS1 | D85: 1856.156267 | E85: 1985 | F85: Marine Harvest (Scotland) Ltd | G85: CAR/L/1009968 | H85: 0 | I85: 431343 | J85: 157.5 | K85: 0 | L85: 2400 | M85: 0 | N85: 0 | O85: Gorsten | P85: CAR/L/1009968/C1/V5 | Q85: Marine Harvest (Scotland) Ltd | R85: 2174 | S85: Loch Linnhe | T85: NN06007060 | U85: 139089 | V85: 922756 | W85: Seawater | X85: Eilean Siar
A86: 2043058 | B86: 2010-09-01 | C86: INV1 | D86: 62863.19971 | E86: 2061 | F86: Marine Harvest (Scotland) Ltd | G86: CAR/L/1009162 | H86: 0 | I86: 165935 | J86: 157.5 | K86: 0 | L86: 2200.000033 | M86: 0 | N86: 0 | O86: Invasion Bay | P86: CAR/L/1009162/C1/V1 | Q86: Marine Harvest (Scotland) Ltd | R86: 1680 | S86: Loch Sunart | T86: NM73316102 | U86: 98450 | V86: 875450 | W86: Seawater | X86: Eilean Siar
A87: 2063656 | B87: 2011-03-01 | C87: SKIO1 | D87: 5741.86284 | E87: 1708 | F87: Marine Harvest (Scotland) Ltd | G87: CAR/L/1001968 | H87: 0 | I87: 274210 | J87: 157.5 | K87: 0 | L87: 0 | M87: 0 | N87: 0 | O87: Skipport Outer (Ornish) | P87: CAR/L/1001968/V7 | Q87: Marine Harvest (Scotland) Ltd | R87: 1710 | S87: Loch Skipport | T87: NF85203850 | U87: 122840 | V87: 903480 | W87: Seawater | X87: Eilean Siar
A88: 2063654 | B88: 2011-01-01 | C88: SKIO1 | D88: 3561.84668 | E88: 1506 | F88: Marine Harvest (Scotland) Ltd | G88: CAR/L/1001968 | H88: 0 | I88: 237238 | J88: 157.5 | K88: 0 | L88: 0 | M88: 0 | N88: 0 | O88: Skipport Outer (Ornish) | P88: CAR/L/1001968/V7 | Q88: Marine Harvest (Scotland) Ltd | R88: 1710 | S88: Loch Skipport | T88: NF85203850 | U88: 173310 | V88: 761020 | W88: Seawater | X88: Highland
A89: 2063660 | B89: 2011-07-01 | C89: SKIO1 | D89: 3794.520713 | E89: 1328 | F89: Marine Harvest (Scotland) Ltd | G89: CAR/L/1001968 | H89: 0 | I89: 214629 | J89: 157.2 | K89: 0 | L89: 0 | M89: 0 | N89: 0 | O89: Skipport Outer (Ornish) | P89: CAR/L/1001968/V7 | Q89: Marine Harvest (Scotland) Ltd | R89: 1710 | S89: Loch Skipport | T89: NF85203850 | U89: 173310 | V89: 761020 | W89: Seawater | X89: Highland
A90: 2043104 | B90: 2014-07-01 | C90: INV1 | D90: 22048.72107 | E90: 1228 | F90: Marine Harvest (Scotland) Ltd | G90: CAR/L/1009162 | H90: 0 | I90: 127340 | J90: 155 | K90: 0 | L90: 0 | M90: 0 | N90: 0 | O90: Invasion Bay | P90: CAR/L/1009162/C1/V1 | Q90: Marine Harvest (Scotland) Ltd | R90: 1680 | S90: Loch Sunart | T90: NM73316102 | U90: 206000 | V90: 770600 | W90: Seawater | X90: Highland
A91: 2045916 | B91: 2010-12-01 | C91: SEA5 | D91: 2914.718436 | E91: 1393 | F91: Marine Harvest (Scotland) Ltd | G91: CAR/L/1009963 | H91: 0 | I91: 360528 | J91: 155 | K91: 0 | L91: 0 | M91: 0 | N91: 0 | O91: Seaforth | P91: CAR/L/1009963/V12 | Q91: Marine Harvest (Scotland) Ltd | R91: 2110 | S91: Loch Seaforth | T91: NB23080296 | U91: 173310 | V91: 761020 | W91: Seawater | X91: Highland
A92: 2064840 | B92: 2015-08-01 | C92: ERI4 | D92: 1280.47407 | E92: 587 | F92: Marine Harvest (Scotland) Ltd | G92: CAR/L/1129789 | H92: 0 | I92: 181054 | J92: 152.5 | K92: 0 | L92: 0 | M92: 0 | N92: 185.7371973 | O92: Erisort, North Shore East | P92: CAR/L/1129789/V1 | Q92: Marine Harvest (Scotland) Ltd | R92: 2400 | S92: Loch Erisort | T92: NB39402295 | U92: 85200 | V92: 838500 | W92: Seawater | X92: Eilean Siar
A93: 2060349 | B93: 2008-09-01 | C93: CAG1 | D93: 7564.389934 | E93: 1731 | F93: Marine Harvest (Scotland) Ltd | G93: CAR/L/1009965 | H93: 0 | I93: 231328 | J93: 152.5 | K93: 0 | L93: 0 | M93: 0 | N93: 0 | O93: Camus Glas | P93: CAR/L/1009965/V7 | Q93: Marine Harvest (Scotland) Ltd | R93: 2000 | S93: Loch Sunart | T93: NM64555895 | U93: 85200 | V93: 838500 | W93: Seawater | X93: Eilean Siar
A94: 2059153 | B94: 2012-03-01 | C94: CAIR1 | D94: 1881.797255 | E94: 1789 | F94: Marine Harvest (Scotland) Ltd | G94: CAR/L/1010432 | H94: 0 | I94: 265833 | J94: 151.25 | K94: 0 | L94: 2183.500067 | M94: 0 | N94: 0 | O94: Cairidh | P94: CAR/L/1010432/C1/V3 | Q94: Marine Harvest (Scotland) Ltd | R94: 1800 | S94: Loch Ainort | T94: NG56102890 | U94: 85200 | V94: 838500 | W94: Seawater | X94: Eilean Siar
A95: 2055253 | B95: 2011-12-01 | C95: PEC3 | D95: 19938.09612 | E95: 1596 | F95: Marine Harvest (Scotland) Ltd | G95: CAR/L/1004078 | H95: 0 | I95: 235624 | J95: 150 | K95: 0 | L95: 2269.999981 | M95: 0 | N95: 759.81 | O95: Sgeir Bhuidhe | P95: CAR/L/1004078/C1/V6 | Q95: Marine Harvest (Scotland) Ltd | R95: 1600 | S95: Loch Erisort | T95: NB40202230 | U95: 173310 | V95: 761020 | W95: Seawater | X95: Highland
A96: 2057758 | B96: 2011-12-01 | C96: SRO1 | D96: 3195.776236 | E96: 1600 | F96: Marine Harvest (Scotland) Ltd | G96: CAR/L/1002327 | H96: 0 | I96: 239950 | J96: 150 | K96: 0 | L96: 0 | M96: 0 | N96: 584.037 | O96: Sron | P96: CAR/L/1002327/C1/V2 | Q96: Marine Harvest (Scotland) Ltd | R96: 2000 | S96: Loch Alsh | T96: NG78402535 | U96: 123080 | V96: 902960 | W96: Seawater | X96: Eilean Siar
A97: 2064381 | B97: 2016-05-01 | C97: ELGN1 | D97: 1989.783667 | E97: 1371 | F97: Marine Harvest (Scotland) Ltd | G97: CAR/L/1078064 | H97: 0 | I97: 196165 | J97: 150 | K97: 0 | L97: 0 | M97: 0 | N97: 518.52 | O97: Carradale (South) | P97: CAR/L/1078064/V3 | Q97: Marine Harvest (Scotland) Ltd | R97: 2500 | S97: Kilbrannan Sound | T97: NR81664093 | U97: 139405 | V97: 922953 | W97: Seawater | X97: Eilean Siar
A98: 2057611 | B98: 2014-06-01 | C98: ARDT1 | D98: 23718.90786 | E98: 2468 | F98: Marine Harvest (Scotland) Ltd | G98: CAR/L/1001806 | H98: 0 | I98: 537645 | J98: 150 | K98: 0 | L98: 1.300999999 | M98: 0 | N98: 240.5730028 | O98: Ardintoul | P98: CAR/L/1001806/C1/V4 | Q98: Marine Harvest (Scotland) Ltd | R98: 2500 | S98: Loch Alsh | T98: NG82412420 | U98: 164550 | V98: 758950 | W98: Seawater | X98: Highland
A99: 2069395 | B99: 2015-08-01 | C99: FFMC34 | D99: 3266.958435 | E99: 1319 | F99: Marine Harvest (Scotland) Ltd | G99: CAR/L/1000800 | H99: 0 | I99: 320610 | J99: 150 | K99: 0 | L99: 0 | M99: 0 | N99: 178.8071934 | O99: Poll na Gille | P99: CAR/L/1000800/V5 | Q99: Marine Harvest (Scotland) Ltd | R99: 1500 | S99: Sound of Jura | T99: NM77670821 | U99: 156100 | V99: 828900 | W99: Seawater | X99: Highland
A100: 2057759 | B100: 2012-01-01 | C100: SRO1 | D100: 6327.023903 | E100: 1713 | F100: Marine Harvest (Scotland) Ltd | G100: CAR/L/1002327 | H100: 0 | I100: 226200 | J100: 150 | K100: 0 | L100: 0 | M100: 0 | N100: 45.963 | O100: Sron | P100: CAR/L/1002327/C1/V2 | Q100: Marine Harvest (Scotland) Ltd | R100: 2000 | S100: Loch Alsh | T100: NG78402535 | U100: 140200 | V100: 922230 | W100: Seawater | X100: Eilean Siar
A101: 2057922 | B101: 2013-07-01 | C101: GRT1 | D101: 5087.35849 | E101: 1603 | F101: Marine Harvest (Scotland) Ltd | G101: CAR/L/1011922 | H101: 0 | I101: 405986 | J101: 150 | K101: 0 | L101: 3600 | M101: 0 | N101: 0 | O101: Groatay | P101: CAR/L/1011922/V9 | Q101: Marine Harvest (Scotland) Ltd | R101: 1850 | S101: Sound of Harris | T101: NF97357383 | U101: 178400 | V101: 825350 | W101: Seawater | X101: Highland
A102: 2048061 | B102: 2015-03-01 | C102: SOAY1 | D102: 39222.45372 | E102: 2035 | F102: Marine Harvest (Scotland) Ltd | G102: CAR/L/1004053 | H102: 0 | I102: 217626 | J102: 150 | K102: 0 | L102: 3000 | M102: 0 | N102: 0 | O102: Soay Sound | P102: CAR/L/1004053/V12 | Q102: Marine Harvest (Scotland) Ltd | R102: 1725 | S102: West Loch Tarbert | T102: NB06600540 | U102: 181644 | V102: 640861 | W102: Seawater | X102: Argyll and Bute
A103: 2059176 | B103: 2014-02-01 | C103: CAIR1 | D103: 8501.86051 | E103: 1767 | F103: Marine Harvest (Scotland) Ltd | G103: CAR/L/1010432 | H103: 0 | I103: 341212 | J103: 150 | K103: 0 | L103: 1139.999986 | M103: 0 | N103: 0 | O103: Cairidh | P103: CAR/L/1010432/C1/V3 | Q103: Marine Harvest (Scotland) Ltd | R103: 1800 | S103: Loch Ainort | T103: NG56102890 | U103: 182410 | V103: 824200 | W103: Seawater | X103: Highland
A104: 2059378 | B104: 2016-02-01 | C104: GRE1 | D104: 10306.77755 | E104: 1656 | F104: Marine Harvest (Scotland) Ltd | G104: CAR/L/1002890 | H104: 0 | I104: 217342 | J104: 150 | K104: 0 | L104: 400.000006 | M104: 0 | N104: 0 | O104: Greshornish | P104: CAR/L/1002890/V6 | Q104: Marine Harvest (Scotland) Ltd | R104: 2195 | S104: Loch Snizort | T104: NG35005530 | U104: 177670 | V104: 708214 | W104: Seawater | X104: Argyll and Bute
A105: 2045756 | B105: 2015-11-01 | C105: TAB1 | D105: 64443.53779 | E105: 1294 | F105: Marine Harvest (Scotland) Ltd | G105: CAR/L/1129793 | H105: 0 | I105: 210512 | J105: 150 | K105: 0 | L105: 0 | M105: 0 | N105: 0 | O105: Tabhaigh | P105: CAR/L/1129793/V3 | Q105: Marine Harvest (Scotland) Ltd | R105: 2500 | S105: Loch Erisort | T105: NB41692299 | U105: 178400 | V105: 825350 | W105: Seawater | X105: Highland
A106: 2046946 | B106: 2015-10-01 | C106: ERI3 | D106: 18906.24009 | E106: 796 | F106: Marine Harvest (Scotland) Ltd | G106: CAR/L/1004085 | H106: 0 | I106: 125436 | J106: 150 | K106: 0 | L106: 0 | M106: 0 | N106: 0 | O106: Erisort, North Shore West | P106: CAR/L/1004085/V13 | Q106: Marine Harvest (Scotland) Ltd | R106: 1650 | S106: Loch Erisort | T106: NB39092276 | U106: 97350 | V106: 873830 | W106: Seawater | X106: Eilean Siar
A107: 2057763 | B107: 2012-05-01 | C107: SRO1 | D107: 17961.52672 | E107: 1925 | F107: Marine Harvest (Scotland) Ltd | G107: CAR/L/1002327 | H107: 0 | I107: 354466 | J107: 150 | K107: 0 | L107: 0 | M107: 0 | N107: 0 | O107: Sron | P107: CAR/L/1002327/C1/V2 | Q107: Marine Harvest (Scotland) Ltd | R107: 2000 | S107: Loch Alsh | T107: NG78402535 | U107: 106600 | V107: 905400 | W107: Seawater | X107: Eilean Siar
A108: 2055252 | B108: 2011-11-01 | C108: PEC3 | D108: 16547.93322 | E108: 1558 | F108: Marine Harvest (Scotland) Ltd | G108: CAR/L/1004078 | H108: 0 | I108: 295566 | J108: 150 | K108: 0 | L108: 0 | M108: 0 | N108: 0 | O108: Sgeir Bhuidhe | P108: CAR/L/1004078/C1/V6 | Q108: Marine Harvest (Scotland) Ltd | R108: 1600 | S108: Loch Erisort | T108: NB40202230 | U108: 156100 | V108: 828900 | W108: Seawater | X108: Highland
A109: 2057569 | B109: 2010-12-01 | C109: ARDT1 | D109: 16303.55376 | E109: 1577 | F109: Marine Harvest (Scotland) Ltd | G109: CAR/L/1001806 | H109: 0 | I109: 186699 | J109: 150 | K109: 0 | L109: 0 | M109: 0 | N109: 0 | O109: Ardintoul | P109: CAR/L/1001806/C1/V4 | Q109: Marine Harvest (Scotland) Ltd | R109: 2500 | S109: Loch Alsh | T109: NG82412420 | U109: 135000 | V109: 855300 | W109: Seawater | X109: Highland
A110: 2059379 | B110: 2016-03-01 | C110: GRE1 | D110: 10672.5213 | E110: 1914 | F110: Marine Harvest (Scotland) Ltd | G110: CAR/L/1002890 | H110: 0 | I110: 297324 | J110: 150 | K110: 0 | L110: 0 | M110: 0 | N110: 0 | O110: Greshornish | P110: CAR/L/1002890/V6 | Q110: Marine Harvest (Scotland) Ltd | R110: 2195 | S110: Loch Snizort | T110: NG35005530 | U110: 141690 | V110: 922986 | W110: Seawater | X110: Eilean Siar
A111: 2069573 | B111: 2016-02-01 | C111: FFMC54 | D111: 8221.893283 | E111: 1899 | F111: Marine Harvest (Scotland) Ltd | G111: CAR/L/1004226 | H111: 0 | I111: 107383 | J111: 150 | K111: 0 | L111: 0 | M111: 0 | N111: 0 | O111: Bagh Dail nan Ceann North and South | P111: CAR/L/1004226/V5 | Q111: Marine Harvest (Scotland) Ltd | R111: 2100 | S111: Sound of Jura | T111: NM77420441 | U111: 139089 | V111: 922756 | W111: Seawater | X111: Eilean Siar
A112: 2057761 | B112: 2012-03-01 | C112: SRO1 | D112: 8090.38995 | E112: 1907 | F112: Marine Harvest (Scotland) Ltd | G112: CAR/L/1002327 | H112: 0 | I112: 336803 | J112: 150 | K112: 0 | L112: 0 | M112: 0 | N112: 0 | O112: Sron | P112: CAR/L/1002327/C1/V2 | Q112: Marine Harvest (Scotland) Ltd | R112: 2000 | S112: Loch Alsh | T112: NG78402535 | U112: 178400 | V112: 825350 | W112: Seawater | X112: Highland
A113: 2057760 | B113: 2012-02-01 | C113: SRO1 | D113: 5493.301945 | E113: 1857 | F113: Marine Harvest (Scotland) Ltd | G113: CAR/L/1002327 | H113: 0 | I113: 264486 | J113: 150 | K113: 0 | L113: 0 | M113: 0 | N113: 0 | O113: Sron | P113: CAR/L/1002327/C1/V2 | Q113: Marine Harvest (Scotland) Ltd | R113: 2000 | S113: Loch Alsh | T113: NG78402535 | U113: 140200 | V113: 922230 | W113: Seawater | X113: Eilean Siar
A114: 2058581 | B114: 2014-03-01 | C114: MAOB1 | D114: 4542.912687 | E114: 2190 | F114: Marine Harvest (Scotland) Ltd | G114: CAR/L/1009643 | H114: 0 | I114: 384739 | J114: 150 | K114: 0 | L114: 0 | M114: 0 | N114: 0 | O114: Maol Ban | P114: CAR/L/1009643/C1/V2 | Q114: Marine Harvest (Scotland) Ltd | R114: 2250 | S114: Inner Sound | T114: NG56403080 | U114: 182410 | V114: 824200 | W114: Seawater | X114: Highland
A115: 2057564 | B115: 2010-07-01 | C115: ARDT1 | D115: 4482.29173 | E115: 1975 | F115: Marine Harvest (Scotland) Ltd | G115: CAR/L/1001806 | H115: 0 | I115: 403385 | J115: 150 | K115: 0 | L115: 0 | M115: 0 | N115: 0 | O115: Ardintoul | P115: CAR/L/1001806/C1/V4 | Q115: Marine Harvest (Scotland) Ltd | R115: 2500 | S115: Loch Alsh | T115: NG82412420 | U115: 135000 | V115: 855300 | W115: Seawater | X115: Highland
A116: 2058536 | B116: 2010-06-01 | C116: MAOB1 | D116: 4309.414795 | E116: 2127 | F116: Marine Harvest (Scotland) Ltd | G116: CAR/L/1009643 | H116: 0 | I116: 278260 | J116: 150 | K116: 0 | L116: 0 | M116: 0 | N116: 0 | O116: Maol Ban | P116: CAR/L/1009643/C1/V2 | Q116: Marine Harvest (Scotland) Ltd | R116: 2250 | S116: Inner Sound | T116: NG56403080 | U116: 177420 | V116: 704410 | W116: Seawater | X116: Argyll and Bute
A117: 2058383 | B117: 2011-06-01 | C117: IOEWE2 | D117: 3639.776974 | E117: 1348 | F117: Marine Harvest (Scotland) Ltd | G117: CAR/L/1002963 | H117: 0 | I117: 291114 | J117: 150 | K117: 0 | L117: 0 | M117: 0 | N117: 0 | O117: Isle of Ewe | P117: CAR/L/1002963/V7 | Q117: Marine Harvest (Scotland) Ltd | R117: 1027 | S117: Loch Ewe | T117: NG83608850 | U117: 178400 | V117: 825350 | W117: Seawater | X117: Highland
A118: 2057606 | B118: 2014-01-01 | C118: ARDT1 | D118: 3307.61628 | E118: 2015 | F118: Marine Harvest (Scotland) Ltd | G118: CAR/L/1001806 | H118: 0 | I118: 431387 | J118: 150 | K118: 0 | L118: 0 | M118: 0 | N118: 0 | O118: Ardintoul | P118: CAR/L/1001806/C1/V4 | Q118: Marine Harvest (Scotland) Ltd | R118: 2500 | S118: Loch Alsh | T118: NG82412420 | U118: 178400 | V118: 825350 | W118: Seawater | X118: Highland
A119: 2057560 | B119: 2010-03-01 | C119: ARDT1 | D119: 2325.163868 | E119: 1583 | F119: Marine Harvest (Scotland) Ltd | G119: CAR/L/1001806 | H119: 0 | I119: 277183 | J119: 150 | K119: 0 | L119: 0 | M119: 0 | N119: 0 | O119: Ardintoul | P119: CAR/L/1001806/C1/V4 | Q119: Marine Harvest (Scotland) Ltd | R119: 2500 | S119: Loch Alsh | T119: NG82412420 | U119: 156400 | V119: 830800 | W119: Seawater | X119: Highland
A120: 2050510 | B120: 2011-01-01 | C120: CAL1 | D120: 2229.814065 | E120: 1972 | F120: Marine Harvest (Scotland) Ltd | G120: CAR/L/1010002 | H120: 0 | I120: 361967 | J120: 150 | K120: 0 | L120: 0 | M120: 0 | N120: 0 | O120: Camas an Leim (Torridon) | P120: CAR/L/1010002/C1/V5 | Q120: Marine Harvest (Scotland) Ltd | R120: 2500 | S120: Loch Torridon | T120: NG82385591 | U120: 182410 | V120: 824200 | W120: Seawater | X120: Highland
A121: 2059506 | B121: 2012-02-01 | C121: PORL1 | D121: 5710.797538 | E121: 1518 | F121: Marine Harvest (Scotland) Ltd | G121: CAR/L/1002889 | H121: 0 | I121: 159889 | J121: 145.75 | K121: 0 | L121: 0 | M121: 0 | N121: 0 | O121: Portnalong | P121: CAR/L/1002889/V7 | Q121: Marine Harvest (Scotland) Ltd | R121: 2000 | S121: Loch Bracadale | T121: NG34923550 | U121: 156400 | V121: 830800 | W121: Seawater | X121: Highland
A122: 2060370 | B122: 2010-06-01 | C122: CAG1 | D122: 4105.147684 | E122: 1999 | F122: Marine Harvest (Scotland) Ltd | G122: CAR/L/1009965 | H122: 0 | I122: 277809 | J122: 145 | K122: 192 | L122: 3200 | M122: 0 | N122: 0 | O122: Camus Glas | P122: CAR/L/1009965/V7 | Q122: Marine Harvest (Scotland) Ltd | R122: 2000 | S122: Loch Sunart | T122: NM64555895 | U122: 183600 | V122: 888500 | W122: Seawater | X122: Highland
A123: 2069396 | B123: 2015-09-01 | C123: FFMC34 | D123: 19409.67252 | E123: 1466 | F123: Marine Harvest (Scotland) Ltd | G123: CAR/L/1000800 | H123: 0 | I123: 318844 | J123: 145 | K123: 0 | L123: 0 | M123: 0 | N123: 441.5999937 | O123: Poll na Gille | P123: CAR/L/1000800/V5 | Q123: Marine Harvest (Scotland) Ltd | R123: 1500 | S123: Sound of Jura | T123: NM77670821 | U123: 182410 | V123: 824200 | W123: Seawater | X123: Highland
A124: 2059674 | B124: 2011-06-01 | C124: ARDG1 | D124: 3101.383744 | E124: 2425 | F124: Marine Harvest (Scotland) Ltd | G124: CAR/L/1009970 | H124: 0 | I124: 511610 | J124: 142.5 | K124: 0 | L124: 0 | M124: 0 | N124: 0 | O124: Ardgour (Linnhe) | P124: CAR/L/1009970/C1/V3 | Q124: Marine Harvest (Scotland) Ltd | R124: 2500 | S124: Loch Linnhe | T124: NN01396458 | U124: 182410 | V124: 824200 | W124: Seawater | X124: Highland
A125: 2046563 | B125: 2010-12-01 | C125: GORS1 | D125: 1530.814377 | E125: 1795 | F125: Marine Harvest (Scotland) Ltd | G125: CAR/L/1009968 | H125: 0 | I125: 294575 | J125: 142.5 | K125: 0 | L125: 0 | M125: 0 | N125: 0 | O125: Gorsten | P125: CAR/L/1009968/C1/V5 | Q125: Marine Harvest (Scotland) Ltd | R125: 2174 | S125: Loch Linnhe | T125: NN06007060 | U125: 182379 | V125: 855906 | W125: Seawater | X125: Highland
A126: 2064363 | B126: 2014-11-01 | C126: ELGN1 | D126: 57312.61262 | E126: 1794 | F126: Marine Harvest (Scotland) Ltd | G126: CAR/L/1078064 | H126: 0 | I126: 311509 | J126: 140 | K126: 0 | L126: 0 | M126: 0 | N126: 785.128006 | O126: Carradale (South) | P126: CAR/L/1078064/V3 | Q126: Marine Harvest (Scotland) Ltd | R126: 2500 | S126: Kilbrannan Sound | T126: NR81664093 | U126: 134920 | V126: 835500 | W126: Seawater | X126: Highland
A127: 2057607 | B127: 2014-02-01 | C127: ARDT1 | D127: 2390.383183 | E127: 2178 | F127: Marine Harvest (Scotland) Ltd | G127: CAR/L/1001806 | H127: 0 | I127: 384146 | J127: 140 | K127: 0 | L127: 0 | M127: 0 | N127: 768.0000114 | O127: Ardintoul | P127: CAR/L/1001806/C1/V4 | Q127: Marine Harvest (Scotland) Ltd | R127: 2500 | S127: Loch Alsh | T127: NG82412420 | U127: 164550 | V127: 758950 | W127: Seawater | X127: Highland
A128: 2045962 | B128: 2014-10-01 | C128: SEA5 | D128: 26026.69939 | E128: 2106 | F128: Marine Harvest (Scotland) Ltd | G128: CAR/L/1009963 | H128: 0 | I128: 200732 | J128: 140 | K128: 0 | L128: 5700 | M128: 0 | N128: 0 | O128: Seaforth | P128: CAR/L/1009963/V12 | Q128: Marine Harvest (Scotland) Ltd | R128: 2110 | S128: Loch Seaforth | T128: NB23080296 | U128: 177670 | V128: 708214 | W128: Seawater | X128: Argyll and Bute
A129: 2060392 | B129: 2012-04-01 | C129: CAG1 | D129: 3617.930352 | E129: 1798 | F129: Marine Harvest (Scotland) Ltd | G129: CAR/L/1009965 | H129: 0 | I129: 294321 | J129: 140 | K129: 0 | L129: 3200.000048 | M129: 0 | N129: 0 | O129: Camus Glas | P129: CAR/L/1009965/V7 | Q129: Marine Harvest (Scotland) Ltd | R129: 2000 | S129: Loch Sunart | T129: NM64555895 | U129: 201386 | V129: 764579 | W129: Seawater | X129: Highland
A130: 2059699 | B130: 2013-07-01 | C130: ARDG1 | D130: 2286.818013 | E130: 1742 | F130: Marine Harvest (Scotland) Ltd | G130: CAR/L/1009970 | H130: 0 | I130: 344563 | J130: 140 | K130: 0 | L130: 3200.000048 | M130: 0 | N130: 0 | O130: Ardgour (Linnhe) | P130: CAR/L/1009970/C1/V3 | Q130: Marine Harvest (Scotland) Ltd | R130: 2500 | S130: Loch Linnhe | T130: NN01396458 | U130: 206000 | V130: 770600 | W130: Seawater | X130: Highland
A131: 2043072 | B131: 2011-11-01 | C131: INV1 | D131: 45923.57737 | E131: 2093 | F131: Marine Harvest (Scotland) Ltd | G131: CAR/L/1009162 | H131: 0 | I131: 345585 | J131: 140 | K131: 0 | L131: 0 | M131: 0 | N131: 0 | O131: Invasion Bay | P131: CAR/L/1009162/C1/V1 | Q131: Marine Harvest (Scotland) Ltd | R131: 1680 | S131: Loch Sunart | T131: NM73316102 | U131: 181644 | V131: 640861 | W131: Seawater | X131: Argyll and Bute
A132: 2050541 | B132: 2013-08-01 | C132: CAL1 | D132: 16839.14779 | E132: 1585 | F132: Marine Harvest (Scotland) Ltd | G132: CAR/L/1010002 | H132: 0 | I132: 324213 | J132: 140 | K132: 0 | L132: 0 | M132: 0 | N132: 0 | O132: Camas an Leim (Torridon) | P132: CAR/L/1010002/C1/V5 | Q132: Marine Harvest (Scotland) Ltd | R132: 2500 | S132: Loch Torridon | T132: NG82385591 | U132: 182410 | V132: 824200 | W132: Seawater | X132: Highland
A133: 2055408 | B133: 2011-01-01 | C133: CED2 | D133: 4951.68157 | E133: 1088 | F133: Marine Harvest (Scotland) Ltd | G133: CAR/L/1004083 | H133: 0 | I133: 171360 | J133: 140 | K133: 0 | L133: 0 | M133: 0 | N133: 0 | O133: Meavaig (Ghille Beidhe) | P133: CAR/L/1004083/V6 | Q133: Marine Harvest (Scotland) Ltd | R133: 1100 | S133: East Loch Tarbert | T133: NG17409610 | U133: 123080 | V133: 902960 | W133: Seawater | X133: Eilean Siar
A134: 2063763 | B134: 2015-05-01 | C134: HEL1 | D134: 4901.900425 | E134: 2069 | F134: Marine Harvest (Scotland) Ltd | G134: CAR/L/1095612 | H134: 0 | I134: 273080 | J134: 140 | K134: 0 | L134: 0 | M134: 0 | N134: 0 | O134: Hellisay | P134: CAR/L/1095612/V4 | Q134: Marine Harvest (Scotland) Ltd | R134: 2150 | S134: Sound of Hellisay | T134: NF75950328 | U134: 164550 | V134: 758950 | W134: Seawater | X134: Highland
A135: 2058109 | B135: 2014-05-01 | C135: DUI1 | D135: 22661.26457 | E135: 1861 | F135: Marine Harvest (Scotland) Ltd | G135: CAR/L/1010433 | H135: 0 | I135: 195955 | J135: 137.5 | K135: 0 | L135: 3000.000119 | M135: 0 | N135: 167.4112055 | O135: Duich | P135: CAR/L/1010433/V6 | Q135: Marine Harvest (Scotland) Ltd | R135: 2125 | S135: Loch Duich | T135: NG89172320 | U135: 201386 | V135: 764579 | W135: Seawater | X135: Highland
A136: 2045814 | B136: 2016-04-01 | C136: STI1 | D136: 1175.917964 | E136: 1154 | F136: Marine Harvest (Scotland) Ltd | G136: CAR/L/1096609 | H136: 0 | I136: 217962 | J136: 137.5 | K136: 0 | L136: 1680 | M136: 0 | N136: 0 | O136: Stulaigh Island | P136: CAR/L/1096609/V5 | Q136: Marine Harvest (Scotland) Ltd | R136: 2500 | S136: Loch Eynort | T136: NF82482413 | U136: 173310 | V136: 761020 | W136: Seawater | X136: Highland
A137: 2063704 | B137: 2015-03-01 | C137: SKIO1 | D137: 9877.289577 | E137: 1078 | F137: Marine Harvest (Scotland) Ltd | G137: CAR/L/1001968 | H137: 0 | I137: 116994 | J137: 137.5 | K137: 0 | L137: 0 | M137: 0 | N137: 0 | O137: Skipport Outer (Ornish) | P137: CAR/L/1001968/V7 | Q137: Marine Harvest (Scotland) Ltd | R137: 1710 | S137: Loch Skipport | T137: NF85203850 | U137: 182379 | V137: 855906 | W137: Seawater | X137: Highland
A138: 2059147 | B138: 2011-09-01 | C138: CAIR1 | D138: 4267.647908 | E138: 953 | F138: Marine Harvest (Scotland) Ltd | G138: CAR/L/1010432 | H138: 0 | I138: 377710 | J138: 137.5 | K138: 0 | L138: 0 | M138: 0 | N138: 0 | O138: Cairidh | P138: CAR/L/1010432/C1/V3 | Q138: Marine Harvest (Scotland) Ltd | R138: 1800 | S138: Loch Ainort | T138: NG56102890 | U138: 117400 | V138: 896100 | W138: Seawater | X138: Eilean Siar
A139: 2059146 | B139: 2011-08-01 | C139: CAIR1 | D139: 1063.044354 | E139: 641 | F139: Marine Harvest (Scotland) Ltd | G139: CAR/L/1010432 | H139: 0 | I139: 264456 | J139: 137.5 | K139: 0 | L139: 0 | M139: 0 | N139: 0 | O139: Cairidh | P139: CAR/L/1010432/C1/V3 | Q139: Marine Harvest (Scotland) Ltd | R139: 1800 | S139: Loch Ainort | T139: NG56102890 | U139: 75950 | V139: 803280 | W139: Seawater | X139: Eilean Siar
A140: 2058583 | B140: 2014-05-01 | C140: MAOB1 | D140: 18041.06799 | E140: 2244 | F140: Marine Harvest (Scotland) Ltd | G140: CAR/L/1009643 | H140: 0 | I140: 332126 | J140: 135 | K140: 0 | L140: 0 | M140: 0 | N140: 127.4645955 | O140: Maol Ban | P140: CAR/L/1009643/C1/V2 | Q140: Marine Harvest (Scotland) Ltd | R140: 2250 | S140: Inner Sound | T140: NG56403080 | U140: 189090 | V140: 823350 | W140: Seawater | X140: Highland
A141: 2069374 | B141: 2013-11-01 | C141: FFMC34 | D141: 19013 | E141: 1739 | F141: Meridian Salmon Farms Ltd | G141: CAR/L/1000800 | H141: 239 | I141: 306529 | J141: 135 | K141: 0 | L141: 0 | M141: 0 | N141: 0 | O141: Poll na Gille | P141: CAR/L/1000800/V5 | Q141: Marine Harvest (Scotland) Ltd | R141: 1500 | S141: Sound of Jura | T141: NM77670821 | U141: 82580 | V141: 824130 | W141: Seawater | X141: Eilean Siar
A142: 2057807 | B142: 2016-01-01 | C142: SRO1 | D142: 34591.20684 | E142: 1998 | F142: Marine Harvest (Scotland) Ltd | G142: CAR/L/1002327 | H142: 0 | I142: 334844 | J142: 135 | K142: 0 | L142: 0 | M142: 0 | N142: 0 | O142: Sron | P142: CAR/L/1002327/C1/V2 | Q142: Marine Harvest (Scotland) Ltd | R142: 2000 | S142: Loch Alsh | T142: NG78402535 | U142: 85200 | V142: 838500 | W142: Seawater | X142: Eilean Siar
A143: 2057808 | B143: 2016-02-01 | C143: SRO1 | D143: 15134.66366 | E143: 1993 | F143: Marine Harvest (Scotland) Ltd | G143: CAR/L/1002327 | H143: 0 | I143: 239155 | J143: 135 | K143: 0 | L143: 0 | M143: 0 | N143: 0 | O143: Sron | P143: CAR/L/1002327/C1/V2 | Q143: Marine Harvest (Scotland) Ltd | R143: 2000 | S143: Loch Alsh | T143: NG78402535 | U143: 156100 | V143: 828900 | W143: Seawater | X143: Highland
A144: 2045779 | B144: 2013-02-01 | C144: STI1 | D144: 14272.26553 | E144: 2077 | F144: Marine Harvest (Scotland) Ltd | G144: CAR/L/1096609 | H144: 0 | I144: 327973 | J144: 135 | K144: 0 | L144: 0 | M144: 0 | N144: 0 | O144: Stulaigh Island | P144: CAR/L/1096609/V5 | Q144: Marine Harvest (Scotland) Ltd | R144: 2500 | S144: Loch Eynort | T144: NF82482413 | U144: 156100 | V144: 828900 | W144: Seawater | X144: Highland
A145: 2057916 | B145: 2013-01-01 | C145: GRT1 | D145: 7913.724058 | E145: 1462 | F145: Marine Harvest (Scotland) Ltd | G145: CAR/L/1011922 | H145: 0 | I145: 220818 | J145: 135 | K145: 0 | L145: 0 | M145: 0 | N145: 0 | O145: Groatay | P145: CAR/L/1011922/V9 | Q145: Marine Harvest (Scotland) Ltd | R145: 1850 | S145: Sound of Harris | T145: NF97357383 | U145: 156400 | V145: 830800 | W145: Seawater | X145: Highland
A146: 2043411 | B146: 2015-08-01 | C146: MCLN1 | D146: 3770.079421 | E146: 1222 | F146: Marine Harvest (Scotland) Ltd | G146: CAR/L/1002965 | H146: 0 | I146: 426115 | J146: 135 | K146: 0 | L146: 0 | M146: 0 | N146: 0 | O146: MacLeans Nose | P146: CAR/L/1002965/V5 | Q146: Marine Harvest (Scotland) Ltd | R146: 2500 | S146: Sound of Mull | T146: NM52536180 | U146: 177670 | V146: 708214 | W146: Seawater | X146: Argyll and Bute
A147: 2051494 | B147: 2014-10-01 | C147: NOS1 | D147: 38417.93262 | E147: 1833 | F147: Marine Harvest (Scotland) Ltd | G147: CAR/L/1009974 | H147: 0 | I147: 199100 | J147: 132.5 | K147: 0 | L147: 3025 | M147: 0 | N147: 0 | O147: Noster | P147: CAR/L/1009974/V9 | Q147: Marine Harvest (Scotland) Ltd | R147: 2200 | S147: Loch Seaforth | T147: NB22840348 | U147: 178400 | V147: 825350 | W147: Seawater | X147: Highland
A148: 2059652 | B148: 2009-08-01 | C148: ARDG1 | D148: 14595.59412 | E148: 2496 | F148: Marine Harvest (Scotland) Ltd | G148: CAR/L/1009970 | H148: 0 | I148: 494890 | J148: 132.5 | K148: 0 | L148: 0 | M148: 0 | N148: 0 | O148: Ardgour (Linnhe) | P148: CAR/L/1009970/C1/V3 | Q148: Marine Harvest (Scotland) Ltd | R148: 2500 | S148: Loch Linnhe | T148: NN01396458 | U148: 178400 | V148: 825350 | W148: Seawater | X148: Highland
A149: 2059669 | B149: 2011-01-01 | C149: ARDG1 | D149: 4513.384046 | E149: 2415 | F149: Marine Harvest (Scotland) Ltd | G149: CAR/L/1009970 | H149: 0 | I149: 273119 | J149: 132.5 | K149: 0 | L149: 0 | M149: 0 | N149: 0 | O149: Ardgour (Linnhe) | P149: CAR/L/1009970/C1/V3 | Q149: Marine Harvest (Scotland) Ltd | R149: 2500 | S149: Loch Linnhe | T149: NN01396458 | U149: 82580 | V149: 824130 | W149: Seawater | X149: Eilean Siar
A150: 2060391 | B150: 2012-03-01 | C150: CAG1 | D150: 3145.512146 | E150: 1745 | F150: Marine Harvest (Scotland) Ltd | G150: CAR/L/1009965 | H150: 0 | I150: 279824 | J150: 131.25 | K150: 0 | L150: 3000.000045 | M150: 0 | N150: 0 | O150: Camus Glas | P150: CAR/L/1009965/V7 | Q150: Marine Harvest (Scotland) Ltd | R150: 2000 | S150: Loch Sunart | T150: NM64555895 | U150: 97350 | V150: 873830 | W150: Seawater | X150: Eilean Siar
A151: 2059698 | B151: 2013-06-01 | C151: ARDG1 | D151: 1691.15951 | E151: 1703 | F151: Marine Harvest (Scotland) Ltd | G151: CAR/L/1009970 | H151: 0 | I151: 322597 | J151: 131.25 | K151: 0 | L151: 2800.000042 | M151: 0 | N151: 0 | O151: Ardgour (Linnhe) | P151: CAR/L/1009970/C1/V3 | Q151: Marine Harvest (Scotland) Ltd | R151: 2500 | S151: Loch Linnhe | T151: NN01396458 | U151: 152530 | V151: 761800 | W151: Seawater | X151: Highland
A152: 2069399 | B152: 2015-11-01 | C152: FFMC34 | D152: 8881.396905 | E152: 1421 | F152: Marine Harvest (Scotland) Ltd | G152: CAR/L/1000800 | H152: 0 | I152: 249703 | J152: 131.25 | K152: 0 | L152: 200 | M152: 0 | N152: 0 | O152: Poll na Gille | P152: CAR/L/1000800/V5 | Q152: Marine Harvest (Scotland) Ltd | R152: 1500 | S152: Sound of Jura | T152: NM77670821 | U152: 122840 | V152: 903480 | W152: Seawater | X152: Eilean Siar
A153: 2057739 | B153: 2010-05-01 | C153: SRO1 | D153: 2912.875726 | E153: 1218 | F153: Marine Harvest (Scotland) Ltd | G153: CAR/L/1002327 | H153: 0 | I153: 1218 | J153: 131.25 | K153: 0 | L153: 0 | M153: 0 | N153: 0 | O153: Sron | P153: CAR/L/1002327/C1/V2 | Q153: Marine Harvest (Scotland) Ltd | R153: 2000 | S153: Loch Alsh | T153: NG78402535 | U153: 201386 | V153: 764579 | W153: Seawater | X153: Highland
A154: 2057740 | B154: 2010-06-01 | C154: SRO1 | D154: 2574.093206 | E154: 1290 | F154: Marine Harvest (Scotland) Ltd | G154: CAR/L/1002327 | H154: 0 | I154: 329608 | J154: 131.25 | K154: 0 | L154: 0 | M154: 0 | N154: 0 | O154: Sron | P154: CAR/L/1002327/C1/V2 | Q154: Marine Harvest (Scotland) Ltd | R154: 2000 | S154: Loch Alsh | T154: NG78402535 | U154: 201386 | V154: 764579 | W154: Seawater | X154: Highland
A155: 2058559 | B155: 2012-05-01 | C155: MAOB1 | D155: 10448.20243 | E155: 2115 | F155: Marine Harvest (Scotland) Ltd | G155: CAR/L/1009643 | H155: 0 | I155: 305718 | J155: 130 | K155: 0 | L155: 903.9999843 | M155: 0 | N155: 258.192 | O155: Maol Ban | P155: CAR/L/1009643/C1/V2 | Q155: Marine Harvest (Scotland) Ltd | R155: 2250 | S155: Inner Sound | T155: NG56403080 | U155: 164550 | V155: 758950 | W155: Seawater | X155: Highland
A156: 2058430 | B156: 2015-05-01 | C156: IOEWE2 | D156: 10350.39398 | E156: 1221 | F156: Marine Harvest (Scotland) Ltd | G156: CAR/L/1002963 | H156: 0 | I156: 165120 | J156: 130 | K156: 0 | L156: 3600.000143 | M156: 0 | N156: 0 | O156: Isle of Ewe | P156: CAR/L/1002963/V7 | Q156: Marine Harvest (Scotland) Ltd | R156: 1027 | S156: Loch Ewe | T156: NG83608850 | U156: 201386 | V156: 764579 | W156: Seawater | X156: Highland
A157: 2048060 | B157: 2015-02-01 | C157: SOAY1 | D157: 3138.460676 | E157: 1931 | F157: Marine Harvest (Scotland) Ltd | G157: CAR/L/1004053 | H157: 0 | I157: 286121 | J157: 130 | K157: 0 | L157: 3250 | M157: 0 | N157: 0 | O157: Soay Sound | P157: CAR/L/1004053/V12 | Q157: Marine Harvest (Scotland) Ltd | R157: 1725 | S157: West Loch Tarbert | T157: NB06600540 | U157: 177670 | V157: 708214 | W157: Seawater | X157: Argyll and Bute
A158: 2057741 | B158: 2010-07-01 | C158: SRO1 | D158: 8933.935402 | E158: 1298 | F158: Marine Harvest (Scotland) Ltd | G158: CAR/L/1002327 | H158: 0 | I158: 217480 | J158: 130 | K158: 0 | L158: 0 | M158: 0 | N158: 0 | O158: Sron | P158: CAR/L/1002327/C1/V2 | Q158: Marine Harvest (Scotland) Ltd | R158: 2000 | S158: Loch Alsh | T158: NG78402535 | U158: 178400 | V158: 825350 | W158: Seawater | X158: Highland
A159: 2050493 | B159: 2009-08-01 | C159: CAL1 | D159: 3564.76974 | E159: 2119 | F159: Marine Harvest (Scotland) Ltd | G159: CAR/L/1010002 | H159: 0 | I159: 577343 | J159: 130 | K159: 0 | L159: 0 | M159: 0 | N159: 0 | O159: Camas an Leim (Torridon) | P159: CAR/L/1010002/C1/V5 | Q159: Marine Harvest (Scotland) Ltd | R159: 2500 | S159: Loch Torridon | T159: NG82385591 | U159: 178400 | V159: 825350 | W159: Seawater | X159: Highland
A160: 2051451 | B160: 2011-03-01 | C160: NOS1 | D160: 1750 | E160: 1210 | F160: Marine Harvest (Scotland) Ltd | G160: CAR/L/1009974 | H160: 0 | I160: 150526 | J160: 130 | K160: 0 | L160: 0 | M160: 0 | N160: 0 | O160: Noster | P160: CAR/L/1009974/V9 | Q160: Marine Harvest (Scotland) Ltd | R160: 2200 | S160: Loch Seaforth | T160: NB22840348 | U160: 156400 | V160: 830800 | W160: Seawater | X160: Highland
A161: 2059676 | B161: 2011-08-01 | C161: ARDG1 | D161: 3670.259497 | E161: 2440 | F161: Marine Harvest (Scotland) Ltd | G161: CAR/L/1009970 | H161: 0 | I161: 514899 | J161: 127.5 | K161: 0 | L161: 3400.000051 | M161: 0 | N161: 1045 | O161: Ardgour (Linnhe) | P161: CAR/L/1009970/C1/V3 | Q161: Marine Harvest (Scotland) Ltd | R161: 2500 | S161: Loch Linnhe | T161: NN01396458 | U161: 183600 | V161: 888500 | W161: Seawater | X161: Highland
A162: 2043055 | B162: 2010-06-01 | C162: INV1 | D162: 3021.159898 | E162: 2229 | F162: Marine Harvest (Scotland) Ltd | G162: CAR/L/1009162 | H162: 0 | I162: 337750 | J162: 127.5 | K162: 0 | L162: 4500 | M162: 0 | N162: 0 | O162: Invasion Bay | P162: CAR/L/1009162/C1/V1 | Q162: Marine Harvest (Scotland) Ltd | R162: 1680 | S162: Loch Sunart | T162: NM73316102 | U162: 106600 | V162: 905400 | W162: Seawater | X162: Eilean Siar
A163: 2043056 | B163: 2010-07-01 | C163: INV1 | D163: 3561.85412 | E163: 2159 | F163: Marine Harvest (Scotland) Ltd | G163: CAR/L/1009162 | H163: 0 | I163: 362530 | J163: 127.5 | K163: 0 | L163: 4250 | M163: 0 | N163: 0 | O163: Invasion Bay | P163: CAR/L/1009162/C1/V1 | Q163: Marine Harvest (Scotland) Ltd | R163: 1680 | S163: Loch Sunart | T163: NM73316102 | U163: 178400 | V163: 825350 | W163: Seawater | X163: Highland
A164: 2058584 | B164: 2014-06-01 | C164: MAOB1 | D164: 62615.90937 | E164: 2083 | F164: Marine Harvest (Scotland) Ltd | G164: CAR/L/1009643 | H164: 0 | I164: 317450 | J164: 125 | K164: 0 | L164: 0 | M164: 0 | N164: 921.0063678 | O164: Maol Ban | P164: CAR/L/1009643/C1/V2 | Q164: Marine Harvest (Scotland) Ltd | R164: 2250 | S164: Inner Sound | T164: NG56403080 | U164: 182379 | V164: 855906 | W164: Seawater | X164: Highland
A165: 2051468 | B165: 2012-08-01 | C165: NOS1 | D165: 14977.56912 | E165: 1233 | F165: Marine Harvest (Scotland) Ltd | G165: CAR/L/1009974 | H165: 0 | I165: 282871 | J165: 125 | K165: 0 | L165: 0 | M165: 0 | N165: 540 | O165: Noster | P165: CAR/L/1009974/V9 | Q165: Marine Harvest (Scotland) Ltd | R165: 2200 | S165: Loch Seaforth | T165: NB22840348 | U165: 122840 | V165: 903480 | W165: Seawater | X165: Eilean Siar
A166: 2045936 | B166: 2012-08-01 | C166: SEA5 | D166: 6173.677554 | E166: 1187 | F166: Marine Harvest (Scotland) Ltd | G166: CAR/L/1009963 | H166: 0 | I166: 262328 | J166: 125 | K166: 0 | L166: 0 | M166: 0 | N166: 487.5 | O166: Seaforth | P166: CAR/L/1009963/V12 | Q166: Marine Harvest (Scotland) Ltd | R166: 2110 | S166: Loch Seaforth | T166: NB23080296 | U166: 201386 | V166: 764579 | W166: Seawater | X166: Highland
A167: 2057803 | B167: 2015-09-01 | C167: SRO1 | D167: 9138.552641 | E167: 1399 | F167: Marine Harvest (Scotland) Ltd | G167: CAR/L/1002327 | H167: 0 | I167: 423182 | J167: 125 | K167: 0 | L167: 0 | M167: 0 | N167: 112.9441581 | O167: Sron | P167: CAR/L/1002327/C1/V2 | Q167: Marine Harvest (Scotland) Ltd | R167: 2000 | S167: Loch Alsh | T167: NG78402535 | U167: 173310 | V167: 761020 | W167: Seawater | X167: Highland
A168: 2039612 | B168: 2013-11-01 | C168: SHNEM1 | D168: 11998.70235 | E168: 1331 | F168: Marine Harvest (Scotland) Ltd | G168: CAR/L/1001802 | H168: 0 | I168: 275719 | J168: 125 | K168: 0 | L168: 2399.999952 | M168: 0 | N168: 0 | O168: Mid Loch Shell / Pairc - West (A & B cage groups) | P168: CAR/L/1001802/C1/V3 | Q168: Marine Harvest (Scotland) Ltd | R168: 1331 | S168: Loch Shell | T168: NB34701030 | U168: 173310 | V168: 761020 | W168: Seawater | X168: Highland
A169: 2045757 | B169: 2016-01-01 | C169: TAB1 | D169: 18746.0545 | E169: 1837 | F169: Marine Harvest (Scotland) Ltd | G169: CAR/L/1129793 | H169: 0 | I169: 286611 | J169: 125 | K169: 0 | L169: 2179.999992 | M169: 0 | N169: 0 | O169: Tabhaigh | P169: CAR/L/1129793/V3 | Q169: Marine Harvest (Scotland) Ltd | R169: 2500 | S169: Loch Erisort | T169: NB41692299 | U169: 156400 | V169: 830800 | W169: Seawater | X169: Highland
A170: 2048033 | B170: 2012-11-01 | C170: SOAY1 | D170: 8190.583818 | E170: 2178 | F170: Marine Harvest (Scotland) Ltd | G170: CAR/L/1004053 | H170: 0 | I170: 342468 | J170: 125 | K170: 0 | L170: 1250 | M170: 0 | N170: 0 | O170: Soay Sound | P170: CAR/L/1004053/V12 | Q170: Marine Harvest (Scotland) Ltd | R170: 1725 | S170: West Loch Tarbert | T170: NB06600540 | U170: 122840 | V170: 903480 | W170: Seawater | X170: Eilean Siar
A171: 2058599 | B171: 2015-09-01 | C171: MAOB1 | D171: 21065.0871 | E171: 2236 | F171: Marine Harvest (Scotland) Ltd | G171: CAR/L/1009643 | H171: 0 | I171: 507115 | J171: 125 | K171: 0 | L171: 0 | M171: 0 | N171: 0 | O171: Maol Ban | P171: CAR/L/1009643/C1/V2 | Q171: Marine Harvest (Scotland) Ltd | R171: 2250 | S171: Inner Sound | T171: NG56403080 | U171: 123080 | V171: 902960 | W171: Seawater | X171: Eilean Siar
A172: 2058108 | B172: 2014-04-01 | C172: DUI1 | D172: 19825.75982 | E172: 1982 | F172: Marine Harvest (Scotland) Ltd | G172: CAR/L/1010433 | H172: 0 | I172: 232789 | J172: 125 | K172: 0 | L172: 0 | M172: 0 | N172: 0 | O172: Duich | P172: CAR/L/1010433/V6 | Q172: Marine Harvest (Scotland) Ltd | R172: 2125 | S172: Loch Duich | T172: NG89172320 | U172: 178400 | V172: 825350 | W172: Seawater | X172: Highland
A173: 2057612 | B173: 2014-07-01 | C173: ARDT1 | D173: 14950.06539 | E173: 2488 | F173: Marine Harvest (Scotland) Ltd | G173: CAR/L/1001806 | H173: 0 | I173: 471883 | J173: 125 | K173: 0 | L173: 0 | M173: 0 | N173: 0 | O173: Ardintoul | P173: CAR/L/1001806/C1/V4 | Q173: Marine Harvest (Scotland) Ltd | R173: 2500 | S173: Loch Alsh | T173: NG82412420 | U173: 134700 | V173: 910300 | W173: Seawater | X173: Eilean Siar
A174: 2048010 | B174: 2010-12-01 | C174: SOAY1 | D174: 13617.72149 | E174: 2228 | F174: Marine Harvest (Scotland) Ltd | G174: CAR/L/1004053 | H174: 0 | I174: 388916 | J174: 125 | K174: 0 | L174: 0 | M174: 0 | N174: 0 | O174: Soay Sound | P174: CAR/L/1004053/V12 | Q174: Marine Harvest (Scotland) Ltd | R174: 1725 | S174: West Loch Tarbert | T174: NB06600540 | U174: 141690 | V174: 922986 | W174: Seawater | X174: Eilean Siar
A175: 2048036 | B175: 2013-02-01 | C175: SOAY1 | D175: 13130.36546 | E175: 1591 | F175: Marine Harvest (Scotland) Ltd | G175: CAR/L/1004053 | H175: 0 | I175: 118849 | J175: 125 | K175: 0 | L175: 0 | M175: 0 | N175: 0 | O175: Soay Sound | P175: CAR/L/1004053/V12 | Q175: Marine Harvest (Scotland) Ltd | R175: 1725 | S175: West Loch Tarbert | T175: NB06600540 | U175: 106600 | V175: 905400 | W175: Seawater | X175: Eilean Siar
A176: 2046065 | B176: 2015-02-01 | C176: MBM1 | D176: 10996.20713 | E176: 1457 | F176: Marine Harvest (Scotland) Ltd | G176: CAR/L/1028518 | H176: 0 | I176: 178307 | J176: 125 | K176: 0 | L176: 0 | M176: 0 | N176: 0 | O176: Marulaig Bay | P176: CAR/L/1028518/V7 | Q176: Marine Harvest (Scotland) Ltd | R176: 2400 | S176: Loch Boisdale | T176: NF82851646 | U176: 156400 | V176: 830800 | W176: Seawater | X176: Highland
A177: 2057805 | B177: 2015-10-01 | C177: SRO1 | D177: 9795.371018 | E177: 1656 | F177: Marine Harvest (Scotland) Ltd | G177: CAR/L/1002327 | H177: 0 | I177: 541118 | J177: 125 | K177: 0 | L177: 0 | M177: 0 | N177: 0 | O177: Sron | P177: CAR/L/1002327/C1/V2 | Q177: Marine Harvest (Scotland) Ltd | R177: 2000 | S177: Loch Alsh | T177: NG78402535 | U177: 189090 | V177: 823350 | W177: Seawater | X177: Highland
A178: 2051447 | B178: 2010-11-01 | C178: NOS1 | D178: 4924.157349 | E178: 1371 | F178: Marine Harvest (Scotland) Ltd | G178: CAR/L/1009974 | H178: 0 | I178: 361305 | J178: 125 | K178: 0 | L178: 0 | M178: 0 | N178: 0 | O178: Noster | P178: CAR/L/1009974/V9 | Q178: Marine Harvest (Scotland) Ltd | R178: 2200 | S178: Loch Seaforth | T178: NB22840348 | U178: 182410 | V178: 824200 | W178: Seawater | X178: Highland
A179: 2055572 | B179: 2010-11-01 | C179: SCOT1 | D179: 3769.403416 | E179: 1888 | F179: Marine Harvest (Scotland) Ltd | G179: CAR/L/1004080 | H179: 0 | I179: 311854 | J179: 125 | K179: 0 | L179: 0 | M179: 0 | N179: 0 | O179: Scotasay | P179: CAR/L/1004080/C1/V5 | Q179: Marine Harvest (Scotland) Ltd | R179: 2000 | S179: East Loch Tarbert | T179: NG19379754 | U179: 106600 | V179: 905400 | W179: Seawater | X179: Eilean Siar
A180: 2045915 | B180: 2010-11-01 | C180: SEA5 | D180: 2274.120087 | E180: 1455 | F180: Marine Harvest (Scotland) Ltd | G180: CAR/L/1009963 | H180: 0 | I180: 354555 | J180: 125 | K180: 0 | L180: 0 | M180: 0 | N180: 0 | O180: Seaforth | P180: CAR/L/1009963/V12 | Q180: Marine Harvest (Scotland) Ltd | R180: 2110 | S180: Loch Seaforth | T180: NB23080296 | U180: 106600 | V180: 905400 | W180: Seawater | X180: Eilean Siar
A181: 2063736 | B181: 2013-02-01 | C181: HEL1 | D181: 1984.22966 | E181: 1688 | F181: Marine Harvest (Scotland) Ltd | G181: CAR/L/1095612 | H181: 0 | I181: 192199 | J181: 125 | K181: 0 | L181: 0 | M181: 0 | N181: 0 | O181: Hellisay | P181: CAR/L/1095612/V4 | Q181: Marine Harvest (Scotland) Ltd | R181: 2150 | S181: Sound of Hellisay | T181: NF75950328 | U181: 82850 | V181: 816460 | W181: Seawater | X181: Eilean Siar
A182: 2059149 | B182: 2011-11-01 | C182: CAIR1 | D182: 12590.9579 | E182: 1552 | F182: Marine Harvest (Scotland) Ltd | G182: CAR/L/1010432 | H182: 0 | I182: 260641 | J182: 123.75 | K182: 0 | L182: 0 | M182: 0 | N182: 646.7999907 | O182: Cairidh | P182: CAR/L/1010432/C1/V3 | Q182: Marine Harvest (Scotland) Ltd | R182: 1800 | S182: Loch Ainort | T182: NG56102890 | U182: 178400 | V182: 825350 | W182: Seawater | X182: Highland
A183: 2059695 | B183: 2013-03-01 | C183: ARDG1 | D183: 4338.430135 | E183: 1810 | F183: Marine Harvest (Scotland) Ltd | G183: CAR/L/1009970 | H183: 0 | I183: 284983 | J183: 122.5 | K183: 0 | L183: 0 | M183: 0 | N183: 0 | O183: Ardgour (Linnhe) | P183: CAR/L/1009970/C1/V3 | Q183: Marine Harvest (Scotland) Ltd | R183: 2500 | S183: Loch Linnhe | T183: NN01396458 | U183: 122840 | V183: 903480 | W183: Seawater | X183: Eilean Siar
A184: 2045919 | B184: 2011-03-01 | C184: SEA5 | D184: 3470.931039 | E184: 1452 | F184: Marine Harvest (Scotland) Ltd | G184: CAR/L/1009963 | H184: 0 | I184: 174673 | J184: 122.5 | K184: 0 | L184: 0 | M184: 0 | N184: 0 | O184: Seaforth | P184: CAR/L/1009963/V12 | Q184: Marine Harvest (Scotland) Ltd | R184: 2110 | S184: Loch Seaforth | T184: NB23080296 | U184: 119368 | V184: 897545 | W184: Seawater | X184: Eilean Siar
A185: 2046571 | B185: 2011-08-01 | C185: GORS1 | D185: 3610.057124 | E185: 1876 | F185: Marine Harvest (Scotland) Ltd | G185: CAR/L/1009968 | H185: 0 | I185: 404444 | J185: 120 | K185: 0 | L185: 3200.000048 | M185: 0 | N185: 798 | O185: Gorsten | P185: CAR/L/1009968/C1/V5 | Q185: Marine Harvest (Scotland) Ltd | R185: 2174 | S185: Loch Linnhe | T185: NN06007060 | U185: 123080 | V185: 902960 | W185: Seawater | X185: Eilean Siar
A186: 2055637 | B186: 2016-03-01 | C186: SCOT1 | D186: 12047.86008 | E186: 1284 | F186: Marine Harvest (Scotland) Ltd | G186: CAR/L/1004080 | H186: 0 | I186: 240202 | J186: 120 | K186: 0 | L186: 0 | M186: 0 | N186: 571.06 | O186: Scotasay | P186: CAR/L/1004080/C1/V5 | Q186: Marine Harvest (Scotland) Ltd | R186: 2000 | S186: East Loch Tarbert | T186: NG19379754 | U186: 75950 | V186: 803280 | W186: Seawater | X186: Eilean Siar
A187: 2069701 | B187: 2012-01-01 | C187: BALM1 | D187: 28759.34125 | E187: 1277 | F187: Marine Harvest (Scotland) Ltd | G187: CAR/L/1002346 | H187: 0 | I187: 89226 | J187: 120 | K187: 0 | L187: 2064.00007 | M187: 0 | N187: 549.3999844 | O187: Sconser, Balmeanach Bay | P187: CAR/L/1002346/V7 | Q187: Marine Harvest (Scotland) Ltd | R187: 1500 | S187: Sound of Raasay | T187: NG53103400 | U187: 156100 | V187: 828900 | W187: Seawater | X187: Highland
A188: 2058110 | B188: 2014-06-01 | C188: DUI1 | D188: 39068.07195 | E188: 1841 | F188: Marine Harvest (Scotland) Ltd | G188: CAR/L/1010433 | H188: 0 | I188: 325028 | J188: 120 | K188: 0 | L188: 0.300000012 | M188: 0 | N188: 530.9088175 | O188: Duich | P188: CAR/L/1010433/V6 | Q188: Marine Harvest (Scotland) Ltd | R188: 2125 | S188: Loch Duich | T188: NG89172320 | U188: 201386 | V188: 764579 | W188: Seawater | X188: Highland
A189: 2055694 | B189: 2016-03-01 | C189: ELR1 | D189: 8286.545556 | E189: 1232 | F189: Marine Harvest (Scotland) Ltd | G189: CAR/L/1099410 | H189: 0 | I189: 206518 | J189: 120 | K189: 0 | L189: 0 | M189: 0 | N189: 492.94 | O189: Eilean Raineach | P189: CAR/L/1099410/V4 | Q189: Marine Harvest (Scotland) Ltd | R189: 2000 | S189: East Loch Tarbert | T189: NG19649749 | U189: 123080 | V189: 902960 | W189: Seawater | X189: Eilean Siar
A190: 2069706 | B190: 2012-06-01 | C190: BALM1 | D190: 14315.17938 | E190: 1430 | F190: Marine Harvest (Scotland) Ltd | G190: CAR/L/1002346 | H190: 0 | I190: 212682 | J190: 120 | K190: 0 | L190: 2069.999998 | M190: 0 | N190: 468.028 | O190: Sconser, Balmeanach Bay | P190: CAR/L/1002346/V7 | Q190: Marine Harvest (Scotland) Ltd | R190: 1500 | S190: Sound of Raasay | T190: NG53103400 | U190: 206000 | V190: 770600 | W190: Seawater | X190: Highland
A191: 2058534 | B191: 2010-04-01 | C191: MAOB1 | D191: 5331.238205 | E191: 2069 | F191: Marine Harvest (Scotland) Ltd | G191: CAR/L/1009643 | H191: 569 | I191: 253478 | J191: 120 | K191: 0 | L191: 0 | M191: 0 | N191: 359.388 | O191: Maol Ban | P191: CAR/L/1009643/C1/V2 | Q191: Marine Harvest (Scotland) Ltd | R191: 2250 | S191: Inner Sound | T191: NG56403080 | U191: 119368 | V191: 897545 | W191: Seawater | X191: Eilean Siar
A192: 2059171 | B192: 2013-09-01 | C192: CAIR1 | D192: 5069.777265 | E192: 1001 | F192: Marine Harvest (Scotland) Ltd | G192: CAR/L/1010432 | H192: 0 | I192: 267249 | J192: 120 | K192: 0 | L192: 0 | M192: 0 | N192: 322.3522714 | O192: Cairidh | P192: CAR/L/1010432/C1/V3 | Q192: Marine Harvest (Scotland) Ltd | R192: 1800 | S192: Loch Ainort | T192: NG56102890 | U192: 153100 | V192: 834000 | W192: Seawater | X192: Highland
A193: 2039586 | B193: 2011-09-01 | C193: SHNEM1 | D193: 69924.26747 | E193: 1030 | F193: Marine Harvest (Scotland) Ltd | G193: CAR/L/1001802 | H193: 0 | I193: 209410 | J193: 120 | K193: 0 | L193: 0 | M193: 0 | N193: 216 | O193: Mid Loch Shell / Pairc - West (A & B cage groups) | P193: CAR/L/1001802/C1/V3 | Q193: Marine Harvest (Scotland) Ltd | R193: 1331 | S193: Loch Shell | T193: NB34701030 | U193: 189090 | V193: 823350 | W193: Seawater | X193: Highland
A194: 2058575 | B194: 2013-09-01 | C194: MAOB1 | D194: 4433.037338 | E194: 728 | F194: Marine Harvest (Scotland) Ltd | G194: CAR/L/1009643 | H194: 0 | I194: 238871 | J194: 120 | K194: 0 | L194: 0 | M194: 0 | N194: 165.456 | O194: Maol Ban | P194: CAR/L/1009643/C1/V2 | Q194: Marine Harvest (Scotland) Ltd | R194: 2250 | S194: Inner Sound | T194: NG56403080 | U194: 119640 | V194: 897490 | W194: Seawater | X194: Eilean Siar
A195: 2057605 | B195: 2013-12-01 | C195: ARDT1 | D195: 4180.228178 | E195: 1704 | F195: Marine Harvest (Scotland) Ltd | G195: CAR/L/1001806 | H195: 0 | I195: 357871 | J195: 120 | K195: 0 | L195: 0 | M195: 0 | N195: 152.775 | O195: Ardintoul | P195: CAR/L/1001806/C1/V4 | Q195: Marine Harvest (Scotland) Ltd | R195: 2500 | S195: Loch Alsh | T195: NG82412420 | U195: 153100 | V195: 834000 | W195: Seawater | X195: Highland
A196: 2060564 | B196: 2011-11-01 | C196: SHEO1 | D196: 25170.011 | E196: 431 | F196: Marine Harvest (Scotland) Ltd | G196: CAR/L/1002894 | H196: 0 | I196: 67173 | J196: 120 | K196: 0 | L196: 1140 | M196: 0 | N196: 128.821997 | O196: Lemreway (Shell Outer) | P196: CAR/L/1002894/V6 | Q196: Marine Harvest (Scotland) Ltd | R196: 620 | S196: Loch Shell | T196: NB38601030 | U196: 156400 | V196: 830800 | W196: Seawater | X196: Highland
A197: 2055693 | B197: 2016-02-01 | C197: ELR1 | D197: 4204.035433 | E197: 1042 | F197: Marine Harvest (Scotland) Ltd | G197: CAR/L/1099410 | H197: 0 | I197: 176580 | J197: 120 | K197: 0 | L197: 0 | M197: 0 | N197: 96.36900236 | O197: Eilean Raineach | P197: CAR/L/1099410/V4 | Q197: Marine Harvest (Scotland) Ltd | R197: 2000 | S197: East Loch Tarbert | T197: NG19649749 | U197: 156100 | V197: 828900 | W197: Seawater | X197: Highland
A198: 2069707 | B198: 2012-07-01 | C198: BALM1 | D198: 74225.52777 | E198: 1427 | F198: Marine Harvest (Scotland) Ltd | G198: CAR/L/1002346 | H198: 0 | I198: 220230 | J198: 120 | K198: 0 | L198: 2069.999993 | M198: 95 | N198: 0 | O198: Sconser, Balmeanach Bay | P198: CAR/L/1002346/V7 | Q198: Marine Harvest (Scotland) Ltd | R198: 1500 | S198: Sound of Raasay | T198: NG53103400 | U198: 134700 | V198: 910300 | W198: Seawater | X198: Eilean Siar
A199: 2039728 | B199: 2009-10-01 | C199: SHNEM2 | D199: 10165.18641 | E199: 1096 | F199: Marine Harvest (Scotland) Ltd | G199: CAR/L/1004218 | H199: 0 | I199: 208817 | J199: 120 | K199: 0 | L199: 2328 | M199: 0 | N199: 0 | O199: Mid Loch Shell / Pairc - East (C & D cage groups) | P199: CAR/L/1004218/C1/V2 | Q199: Marine Harvest (Scotland) Ltd | R199: 1100 | S199: Loch Shell | T199: NB35401020 | U199: 156400 | V199: 830800 | W199: Seawater | X199: Highland
A200: 2039563 | B200: 2009-10-01 | C200: SHNEM1 | D200: 11112.18173 | E200: 898 | F200: Marine Harvest (Scotland) Ltd | G200: CAR/L/1001802 | H200: 0 | I200: 188637 | J200: 120 | K200: 0 | L200: 2325 | M200: 0 | N200: 0 | O200: Mid Loch Shell / Pairc - West (A & B cage groups) | P200: CAR/L/1001802/C1/V3 | Q200: Marine Harvest (Scotland) Ltd | R200: 1331 | S200: Loch Shell | T200: NB34701030 | U200: 182410 | V200: 824200 | W200: Seawater | X200: Highland
... 2050 more rows

Sheet Scottish Salmon Company
A1: Monthly Report ID | B1: Year | C1: SEPA Site | D1: Mortalities Kilograms | E1: Actual Biomass on Site (tonnes) | F1: Submitted By | G1: Licence Active at Report | H1: Biomass Exceedence Tonnes | I1: Feed Kilograms | J1: Deltamethrin grams | K1: Cypermethrin grams | L1: Azamethiphos grams | M1: Teflubenzuron grams | N1: Emamectin Benzoate grams | O1: Site Name | P1: Active Licence Number | Q1: Operator | R1: Maximum Biomass Allowed (tonnes) | S1: Receiving Water | T1: National Grid Reference | U1: Easting | V1: Northing | W1: Water Type | X1: Local Authority
A2: 2072949 | B2: 2014-07-01 | C2: VIB1 | D2: 5327.4 | E2: 1266 | F2: The Scottish Salmon Company Ltd | G2: CAR/L/1015852 | H2: 0 | I2: 195846 | J2: 400 | K2: 0 | L2: 0 | M2: 0 | N2: 0 | O2: Vuia Beag | P2: CAR/L/1015852/V6 | Q2: The Scottish Salmon Company Ltd | R2: 1290 | S2: Loch Roag | T2: NB12103310 | U2: 112100 | V2: 933100 | W2: Seawater | X2: Eilean Siar
A3: 2073823 | B3: 2014-07-01 | C3: KYL1 | D3: 6789 | E3: 1174 | F3: The Scottish Salmon Company Ltd | G3: CAR/L/1001791 | H3: 0 | I3: 185861 | J3: 337.5 | K3: 0 | L3: 0 | M3: 0 | N3: 0 | O3: Kyles Vuia East | P3: CAR/L/1001791/V3 | Q3: The Scottish Salmon Company Ltd | R3: 1390 | S3: Loch Roag | T3: NB13803530 | U3: 113800 | V3: 935300 | W3: Seawater | X3: Eilean Siar
A4: 2074304 | B4: 2014-07-01 | C4: TARA1 | D4: 4333.9 | E4: 1184 | F4: The Scottish Salmon Company Ltd | G4: CAR/L/1017374 | H4: 0 | I4: 226926 | J4: 312.5 | K4: 0 | L4: 0 | M4: 0 | N4: 0 | O4: Taranaish | P4: CAR/L/1017374/V8 | Q4: The Scottish Salmon Company Ltd | R4: 1466 | S4: Loch Roag | T4: NB18063710 | U4: 118060 | V4: 937100 | W4: Seawater | X4: Eilean Siar
A5: 2050375 | B5: 2014-07-01 | C5: VACR1 | D5: 4949.1 | E5: 906 | F5: The Scottish Salmon Company Ltd | G5: CAR/L/1005041 | H5: 0 | I5: 187112 | J5: 287.5 | K5: 0 | L5: 0 | M5: 0 | N5: 0 | O5: Vacasay, Roag | P5: CAR/L/1005041/V7 | Q5: The Scottish Salmon Company Ltd | R5: 1100 | S5: Loch Roag | T5: NB19313618 | U5: 119310 | V5: 936180 | W5: Seawater | X5: Eilean Siar
A6: 2072927 | B6: 2012-09-01 | C6: VIB1 | D6: 39184 | E6: 868 | F6: The Scottish Salmon Company Ltd | G6: CAR/L/1015852 | H6: 0 | I6: 61510 | J6: 280 | K6: 0 | L6: 0 | M6: 0 | N6: 0 | O6: Vuia Beag | P6: CAR/L/1015852/V6 | Q6: The Scottish Salmon Company Ltd | R6: 1290 | S6: Loch Roag | T6: NB12103310 | U6: 112100 | V6: 933100 | W6: Seawater | X6: Eilean Siar
A7: 2072926 | B7: 2012-08-01 | C7: VIB1 | D7: 8533 | E7: 915 | F7: The Scottish Salmon Company Ltd | G7: CAR/L/1015852 | H7: 0 | I7: 118554 | J7: 270 | K7: 0 | L7: 0 | M7: 0 | N7: 0 | O7: Vuia Beag | P7: CAR/L/1015852/V6 | Q7: The Scottish Salmon Company Ltd | R7: 1290 | S7: Loch Roag | T7: NB12103310 | U7: 112100 | V7: 933100 | W7: Seawater | X7: Eilean Siar
A8: 2074597 | B8: 2015-12-01 | C8: ODH1 | D8: 5581.5 | E8: 1597 | F8: The Scottish Salmon Company Ltd | G8: CAR/L/1003879 | H8: 0 | I8: 258615 | J8: 250 | K8: 0 | L8: 0 | M8: 0 | N8: 0 | O8: Gravir Outer | P8: CAR/L/1003879/V7 | Q8: The Scottish Salmon Company Ltd | R8: 2285 | S8: Loch Odhairn | T8: NB41751450 | U8: 141750 | V8: 914500 | W8: Seawater | X8: Eilean Siar
A9: 2048155 | B9: 2014-07-01 | C9: SDUG1 | D9: 3103.1 | E9: 433 | F9: The Scottish Salmon Company Ltd | G9: CAR/L/1098675 | H9: 0 | I9: 130044 | J9: 250 | K9: 0 | L9: 0 | M9: 0 | N9: 0 | O9: Sgeir Dughall | P9: CAR/L/1098675/V3 | Q9: The Scottish Salmon Company Ltd | R9: 2091 | S9: Loch Torridon | T9: NG77176105 | U9: 177170 | V9: 861050 | W9: Seawater | X9: Highland
A10: 2074650 | B10: 2014-08-01 | C10: EUG1 | D10: 6839.6 | E10: 967 | F10: The Scottish Salmon Company Ltd | G10: CAR/L/1082027 | H10: 0 | I10: 170844 | J10: 240 | K10: 0 | L10: 0 | M10: 0 | N10: 0 | O10: Eughlam North | P10: CAR/L/1082027/V4 | Q10: The Scottish Salmon Company Ltd | R10: 1897 | S10: Loch Roag | T10: NB16203950 | U10: 116200 | V10: 939500 | W10: Seawater | X10: Eilean Siar
A11: 2073800 | B11: 2012-08-01 | C11: KYL1 | D11: 7341 | E11: 953 | F11: The Scottish Salmon Company Ltd | G11: CAR/L/1001791 | H11: 0 | I11: 144519 | J11: 210 | K11: 0 | L11: 0 | M11: 0 | N11: 0 | O11: Kyles Vuia East | P11: CAR/L/1001791/V3 | Q11: The Scottish Salmon Company Ltd | R11: 1390 | S11: Loch Roag | T11: NB13803530 | U11: 113800 | V11: 935300 | W11: Seawater | X11: Eilean Siar
A12: 2073801 | B12: 2012-09-01 | C12: KYL1 | D12: 36546 | E12: 1001 | F12: The Scottish Salmon Company Ltd | G12: CAR/L/1001791 | H12: 0 | I12: 93604 | J12: 200 | K12: 0 | L12: 0 | M12: 0 | N12: 0 | O12: Kyles Vuia East | P12: CAR/L/1001791/V3 | Q12: The Scottish Salmon Company Ltd | R12: 1390 | S12: Loch Roag | T12: NB13803530 | U12: 113800 | V12: 935300 | W12: Seawater | X12: Eilean Siar
A13: 2074762 | B13: 2011-11-01 | C13: DMB1 | D13: 36134 | E13: 1791 | F13: The Scottish Salmon Company Ltd | G13: CAR/L/1016394 | H13: 0 | I13: 277551 | J13: 200 | K13: 0 | L13: 0 | M13: 0 | N13: 0 | O13: Druimyeon Bay | P13: CAR/L/1121785/V3 | Q13: The Scottish Salmon Company Ltd | R13: 2499 | S13: Sound of Gigha | T13: NR66855195 | U13: 166850 | V13: 651950 | W13: Seawater | X13: Argyll and Bute
A14: 2072967 | B14: 2016-01-01 | C14: VIB1 | D14: 7240.9 | E14: 1119 | F14: The Scottish Salmon Company Ltd | G14: CAR/L/1015852 | H14: 0 | I14: 154111 | J14: 200 | K14: 0 | L14: 0 | M14: 0 | N14: 0 | O14: Vuia Beag | P14: CAR/L/1015852/V6 | Q14: The Scottish Salmon Company Ltd | R14: 1290 | S14: Loch Roag | T14: NB12103310 | U14: 112100 | V14: 933100 | W14: Seawater | X14: Eilean Siar
A15: 2074030 | B15: 2014-07-01 | C15: SGND1 | D15: 7152.5 | E15: 1510 | F15: The Scottish Salmon Company Ltd | G15: CAR/L/1108041 | H15: 0 | I15: 283267 | J15: 200 | K15: 0 | L15: 0 | M15: 0 | N15: 0 | O15: Sgian Dubh | P15: CAR/L/1108041/V3 | Q15: The Scottish Salmon Company Ltd | R15: 2437 | S15: Loch Striven | T15: NS07907489 | U15: 207902 | V15: 674892 | W15: Seawater | X15: Argyll and Bute
A16: 2074646 | B16: 2014-04-01 | C16: EUG1 | D16: 3583.6 | E16: 1816 | F16: The Scottish Salmon Company Ltd | G16: CAR/L/1082027 | H16: 0 | I16: 224357 | J16: 200 | K16: 0 | L16: 0 | M16: 0 | N16: 0 | O16: Eughlam North | P16: CAR/L/1082027/V4 | Q16: The Scottish Salmon Company Ltd | R16: 1897 | S16: Loch Roag | T16: NB16203950 | U16: 116200 | V16: 939500 | W16: Seawater | X16: Eilean Siar
A17: 2072750 | B17: 2012-09-01 | C17: VUM1 | D17: 73373 | E17: 697 | F17: The Scottish Salmon Company Ltd | G17: CAR/L/1011812 | H17: 0 | I17: 70940 | J17: 195 | K17: 0 | L17: 0 | M17: 0 | N17: 0 | O17: Vuia Mor | P17: CAR/L/1011812/V7 | Q17: The Scottish Salmon Company Ltd | R17: 1667 | S17: Loch Roag | T17: NB12683431 | U17: 112680 | V17: 934310 | W17: Seawater | X17: Eilean Siar
A18: 2074570 | B18: 2013-09-01 | C18: ODH1 | D18: 8177.7 | E18: 1110 | F18: The Scottish Salmon Company Ltd | G18: CAR/L/1003879 | H18: 0 | I18: 228388 | J18: 180 | K18: 0 | L18: 0 | M18: 0 | N18: 0 | O18: Gravir Outer | P18: CAR/L/1003879/V7 | Q18: The Scottish Salmon Company Ltd | R18: 2285 | S18: Loch Odhairn | T18: NB41751450 | U18: 141750 | V18: 914500 | W18: Seawater | X18: Eilean Siar
A19: 2074759 | B19: 2011-08-01 | C19: DMB1 | D19: 5236 | E19: 1219 | F19: The Scottish Salmon Company Ltd | G19: CAR/L/1016394 | H19: 0 | I19: 159513 | J19: 175 | K19: 0 | L19: 0 | M19: 0 | N19: 528 | O19: Druimyeon Bay | P19: CAR/L/1121785/V3 | Q19: The Scottish Salmon Company Ltd | R19: 2499 | S19: Sound of Gigha | T19: NR66855195 | U19: 166850 | V19: 651950 | W19: Seawater | X19: Argyll and Bute
A20: 2072940 | B20: 2013-10-01 | C20: VIB1 | D20: 3230.8 | E20: 655 | F20: The Scottish Salmon Company Ltd | G20: CAR/L/1015852 | H20: 0 | I20: 181582 | J20: 175 | K20: 0 | L20: 0 | M20: 0 | N20: 255.35 | O20: Vuia Beag | P20: CAR/L/1015852/V6 | Q20: The Scottish Salmon Company Ltd | R20: 1290 | S20: Loch Roag | T20: NB12103310 | U20: 112100 | V20: 933100 | W20: Seawater | X20: Eilean Siar
A21: 2072944 | B21: 2014-02-01 | C21: VIB1 | D21: 10707.7 | E21: 919 | F21: The Scottish Salmon Company Ltd | G21: CAR/L/1015852 | H21: 0 | I21: 92856 | J21: 175 | K21: 0 | L21: 0 | M21: 0 | N21: 0 | O21: Vuia Beag | P21: CAR/L/1015852/V6 | Q21: The Scottish Salmon Company Ltd | R21: 1290 | S21: Loch Roag | T21: NB12103310 | U21: 112100 | V21: 933100 | W21: Seawater | X21: Eilean Siar
A22: 2072769 | B22: 2014-04-01 | C22: VUM1 | D22: 7803.3 | E22: 1628 | F22: The Scottish Salmon Company Ltd | G22: CAR/L/1011812 | H22: 0 | I22: 213045 | J22: 175 | K22: 0 | L22: 0 | M22: 0 | N22: 0 | O22: Vuia Mor | P22: CAR/L/1011812/V7 | Q22: The Scottish Salmon Company Ltd | R22: 1667 | S22: Loch Roag | T22: NB12683431 | U22: 112680 | V22: 934310 | W22: Seawater | X22: Eilean Siar
A23: 2047285 | B23: 2014-07-01 | C23: AIR1 | D23: 3739.1 | E23: 379 | F23: The Scottish Salmon Company Ltd | G23: CAR/L/1002917 | H23: 0 | I23: 108077 | J23: 175 | K23: 0 | L23: 0 | M23: 0 | N23: 0 | O23: Aird Ardheslaig | P23: CAR/L/1002917/C1/V4 | Q23: The Scottish Salmon Company Ltd | R23: 1750 | S23: Loch Sheildaig | T23: NG78855605 | U23: 178850 | V23: 856050 | W23: Seawater | X23: Highland
A24: 2074301 | B24: 2014-04-01 | C24: TARA1 | D24: 3035.4 | E24: 1334 | F24: The Scottish Salmon Company Ltd | G24: CAR/L/1017374 | H24: 0 | I24: 151401 | J24: 175 | K24: 0 | L24: 0 | M24: 0 | N24: 0 | O24: Taranaish | P24: CAR/L/1017374/V8 | Q24: The Scottish Salmon Company Ltd | R24: 1466 | S24: Loch Roag | T24: NB18063710 | U24: 118060 | V24: 937100 | W24: Seawater | X24: Eilean Siar
A25: 2051157 | B25: 2013-11-01 | C25: MSTR1 | D25: 1665.4 | E25: 1153 | F25: The Scottish Salmon Company Ltd | G25: CAR/L/1004069 | H25: 0 | I25: 289343 | J25: 175 | K25: 0 | L25: 0 | M25: 0 | N25: 0 | O25: Mid Strome | P25: CAR/L/1004069/V7 | Q25: The Scottish Salmon Company Ltd | R25: 687 | S25: Loch Carron | T25: NG87933670 | U25: 187930 | V25: 836700 | W25: Seawater | X25: Highland
A26: 2073985 | B26: 2014-07-01 | C26: FFMC77 | D26: 4351.9 | E26: 1588 | F26: The Scottish Salmon Company Ltd | G26: CAR/L/1003718 | H26: 0 | I26: 235598 | J26: 162.5 | K26: 0 | L26: 0 | M26: 0 | N26: 0 | O26: Strone Point | P26: CAR/L/1003718/V5 | Q26: The Scottish Salmon Company Ltd | R26: 1986 | S26: Loch Striven | T26: NS08127245 | U26: 208120 | V26: 672450 | W26: Seawater | X26: Argyll and Bute
A27: 2072924 | B27: 2012-06-01 | C27: VIB1 | D27: 3553 | E27: 980 | F27: The Scottish Salmon Company Ltd | G27: CAR/L/1015852 | H27: 0 | I27: 180695 | J27: 160 | K27: 0 | L27: 0 | M27: 0 | N27: 401.7 | O27: Vuia Beag | P27: CAR/L/1015852/V6 | Q27: The Scottish Salmon Company Ltd | R27: 1290 | S27: Loch Roag | T27: NB12103310 | U27: 112100 | V27: 933100 | W27: Seawater | X27: Eilean Siar
A28: 2074027 | B28: 2014-04-01 | C28: SGND1 | D28: 2977.9 | E28: 2142 | F28: The Scottish Salmon Company Ltd | G28: CAR/L/1108041 | H28: 0 | I28: 293826 | J28: 160 | K28: 0 | L28: 0 | M28: 0 | N28: 0 | O28: Sgian Dubh | P28: CAR/L/1108041/V3 | Q28: The Scottish Salmon Company Ltd | R28: 2437 | S28: Loch Striven | T28: NS07907489 | U28: 207902 | V28: 674892 | W28: Seawater | X28: Argyll and Bute
A29: 2073297 | B29: 2014-10-01 | C29: FFMC02 | D29: 997.7 | E29: 473 | F29: The Scottish Salmon Company Ltd | G29: CAR/L/1015850 | H29: 0 | I29: 108051 | J29: 160 | K29: 0 | L29: 0 | M29: 0 | N29: 0 | O29: St Molios | P29: CAR/L/1015850/V7 | Q29: The Scottish Salmon Company Ltd | R29: 1154 | S29: Lamlash Bay | T29: NS04502920 | U29: 204500 | V29: 629200 | W29: Seawater | X29: North Ayrshire
A30: 2074765 | B30: 2012-02-01 | C30: DMB1 | D30: 16292 | E30: 1205 | F30: The Scottish Salmon Company Ltd | G30: CAR/L/1016394 | H30: 0 | I30: 135659 | J30: 150 | K30: 0 | L30: 0 | M30: 0 | N30: 0 | O30: Druimyeon Bay | P30: CAR/L/1121785/V3 | Q30: The Scottish Salmon Company Ltd | R30: 2499 | S30: Sound of Gigha | T30: NR66855195 | U30: 166850 | V30: 651950 | W30: Seawater | X30: Argyll and Bute
A31: 2073668 | B31: 2016-01-01 | C31: GOUS1 | D31: 3284.2 | E31: 591 | F31: The Scottish Salmon Company Ltd | G31: CAR/L/1002929 | H31: 0 | I31: 88199 | J31: 150 | K31: 0 | L31: 0 | M31: 0 | N31: 0 | O31: Gousam | P31: CAR/L/1002929/V7 | Q31: The Scottish Salmon Company Ltd | R31: 850 | S31: Loch Roag | T31: NB11103380 | U31: 111100 | V31: 933800 | W31: Seawater | X31: Eilean Siar
A32: 2074403 | B32: 2014-07-01 | C32: TRM1 | D32: 1921.2 | E32: 888 | F32: The Scottish Salmon Company Ltd | G32: CAR/L/1013016 | H32: 0 | I32: 191051 | J32: 150 | K32: 0 | L32: 0 | M32: 0 | N32: 0 | O32: Trilleachan Mor | P32: CAR/L/1013016/V5 | Q32: The Scottish Salmon Company Ltd | R32: 1700 | S32: Loch Seaforth | T32: NB20870736 | U32: 120870 | V32: 907360 | W32: Seawater | X32: Eilean Siar
A33: 2050353 | B33: 2012-09-01 | C33: VACR1 | D33: 1835 | E33: 1404 | F33: The Scottish Salmon Company Ltd | G33: CAR/L/1005041 | H33: 0 | I33: 284000 | J33: 150 | K33: 0 | L33: 0 | M33: 0 | N33: 0 | O33: Vacasay, Roag | P33: CAR/L/1005041/V7 | Q33: The Scottish Salmon Company Ltd | R33: 1100 | S33: Loch Roag | T33: NB19313618 | U33: 119310 | V33: 936180 | W33: Seawater | X33: Eilean Siar
A34: 2072206 | B34: 2009-06-01 | C34: FFMC47 | D34: 1760 | E34: 1467 | F34: Lighthouse Caledonia Ltd | G34: CAR/L/1010817 | H34: 0 | I34: 251226 | J34: 148.5 | K34: 0 | L34: 0 | M34: 0 | N34: 0 | O34: Ardgaddan | P34: CAR/L/1010817/V5 | Q34: The Scottish Salmon Company Ltd | R34: 1696 | S34: Loch Fyne | T34: NR90938099 | U34: 190930 | V34: 680990 | W34: Seawater | X34: Argyll and Bute
A35: 2072747 | B35: 2012-06-01 | C35: VUM1 | D35: 6173 | E35: 1549 | F35: The Scottish Salmon Company Ltd | G35: CAR/L/1011812 | H35: 0 | I35: 242171 | J35: 140 | K35: 0 | L35: 0 | M35: 0 | N35: 542.34 | O35: Vuia Mor | P35: CAR/L/1011812/V7 | Q35: The Scottish Salmon Company Ltd | R35: 1667 | S35: Loch Roag | T35: NB12683431 | U35: 112680 | V35: 934310 | W35: Seawater | X35: Eilean Siar
A36: 2073798 | B36: 2012-06-01 | C36: KYL1 | D36: 3510 | E36: 1283 | F36: The Scottish Salmon Company Ltd | G36: CAR/L/1001791 | H36: 0 | I36: 236327 | J36: 140 | K36: 0 | L36: 0 | M36: 0 | N36: 510.72 | O36: Kyles Vuia East | P36: CAR/L/1001791/V3 | Q36: The Scottish Salmon Company Ltd | R36: 1390 | S36: Loch Roag | T36: NB13803530 | U36: 113800 | V36: 935300 | W36: Seawater | X36: Eilean Siar
A37: 2073120 | B37: 2014-10-01 | C37: FFMC49 | D37: 7451.8 | E37: 1028 | F37: The Scottish Salmon Company Ltd | G37: CAR/L/1010476 | H37: 0 | I37: 210161 | J37: 140 | K37: 0 | L37: 1960 | M37: 0 | N37: 0 | O37: Tarbert South | P37: CAR/L/1010476/V5 | Q37: The Scottish Salmon Company Ltd | R37: 1030 | S37: Loch Fyne | T37: NR90206530 | U37: 190200 | V37: 665300 | W37: Seawater | X37: Argyll and Bute
A38: 2072601 | B38: 2014-10-01 | C38: FFMC10 | D38: 4750.4 | E38: 1074 | F38: The Scottish Salmon Company Ltd | G38: CAR/L/1010474 | H38: 0 | I38: 212329 | J38: 140 | K38: 0 | L38: 1960 | M38: 0 | N38: 0 | O38: Glenan Bay | P38: CAR/L/1010474/V7 | Q38: The Scottish Salmon Company Ltd | R38: 1220 | S38: Loch Fyne | T38: NR91806980 | U38: 191800 | V38: 669800 | W38: Seawater | X38: Argyll and Bute
A39: 2073119 | B39: 2014-09-01 | C39: FFMC49 | D39: 4946.7 | E39: 957 | F39: The Scottish Salmon Company Ltd | G39: CAR/L/1010476 | H39: 0 | I39: 205090 | J39: 140 | K39: 0 | L39: 0 | M39: 0 | N39: 0 | O39: Tarbert South | P39: CAR/L/1010476/V5 | Q39: The Scottish Salmon Company Ltd | R39: 1030 | S39: Loch Fyne | T39: NR90206530 | U39: 190200 | V39: 665300 | W39: Seawater | X39: Argyll and Bute
A40: 2074551 | B40: 2012-02-01 | C40: ODH1 | D40: 4542 | E40: 1382 | F40: The Scottish Salmon Company Ltd | G40: CAR/L/1003879 | H40: 0 | I40: 103596 | J40: 140 | K40: 0 | L40: 0 | M40: 0 | N40: 0 | O40: Gravir Outer | P40: CAR/L/1003879/V7 | Q40: The Scottish Salmon Company Ltd | R40: 2285 | S40: Loch Odhairn | T40: NB41751450 | U40: 141750 | V40: 914500 | W40: Seawater | X40: Eilean Siar
A41: 2072600 | B41: 2014-09-01 | C41: FFMC10 | D41: 3852.4 | E41: 1063 | F41: The Scottish Salmon Company Ltd | G41: CAR/L/1010474 | H41: 0 | I41: 223201 | J41: 140 | K41: 0 | L41: 0 | M41: 0 | N41: 0 | O41: Glenan Bay | P41: CAR/L/1010474/V7 | Q41: The Scottish Salmon Company Ltd | R41: 1220 | S41: Loch Fyne | T41: NR91806980 | U41: 191800 | V41: 669800 | W41: Seawater | X41: Argyll and Bute
A42: 2072599 | B42: 2014-08-01 | C42: FFMC10 | D42: 3665.6 | E42: 848 | F42: The Scottish Salmon Company Ltd | G42: CAR/L/1010474 | H42: 0 | I42: 193447 | J42: 140 | K42: 0 | L42: 0 | M42: 0 | N42: 0 | O42: Glenan Bay | P42: CAR/L/1010474/V7 | Q42: The Scottish Salmon Company Ltd | R42: 1220 | S42: Loch Fyne | T42: NR91806980 | U42: 191800 | V42: 669800 | W42: Seawater | X42: Argyll and Bute
A43: 2073118 | B43: 2014-08-01 | C43: FFMC49 | D43: 3664.1 | E43: 826 | F43: The Scottish Salmon Company Ltd | G43: CAR/L/1010476 | H43: 0 | I43: 195182 | J43: 140 | K43: 0 | L43: 0 | M43: 0 | N43: 0 | O43: Tarbert South | P43: CAR/L/1010476/V5 | Q43: The Scottish Salmon Company Ltd | R43: 1030 | S43: Loch Fyne | T43: NR90206530 | U43: 190200 | V43: 665300 | W43: Seawater | X43: Argyll and Bute
A44: 2051138 | B44: 2012-04-01 | C44: MSTR1 | D44: 1041 | E44: 510 | F44: The Scottish Salmon Company Ltd | G44: CAR/L/1004069 | H44: 0 | I44: 94685 | J44: 140 | K44: 0 | L44: 0 | M44: 0 | N44: 0 | O44: Mid Strome | P44: CAR/L/1004069/V7 | Q44: The Scottish Salmon Company Ltd | R44: 687 | S44: Loch Carron | T44: NG87933670 | U44: 187930 | V44: 836700 | W44: Seawater | X44: Highland
A45: 2073648 | B45: 2014-07-01 | C45: GOUS1 | D45: 5365.7 | E45: 621 | F45: The Scottish Salmon Company Ltd | G45: CAR/L/1002929 | H45: 0 | I45: 137603 | J45: 137.5 | K45: 0 | L45: 3420 | M45: 0 | N45: 0 | O45: Gousam | P45: CAR/L/1002929/V7 | Q45: The Scottish Salmon Company Ltd | R45: 850 | S45: Loch Roag | T45: NB11103380 | U45: 111100 | V45: 933800 | W45: Seawater | X45: Eilean Siar
A46: 2074786 | B46: 2013-11-01 | C46: DMB1 | D46: 199413.3 | E46: 1024 | F46: The Scottish Salmon Company Ltd | G46: CAR/L/1016394 | H46: 0 | I46: 140203 | J46: 137.5 | K46: 0 | L46: 2900 | M46: 0 | N46: 0 | O46: Druimyeon Bay | P46: CAR/L/1121785/V3 | Q46: The Scottish Salmon Company Ltd | R46: 2499 | S46: Sound of Gigha | T46: NR66855195 | U46: 166850 | V46: 651950 | W46: Seawater | X46: Argyll and Bute
A47: 2074649 | B47: 2014-07-01 | C47: EUG1 | D47: 5689.2 | E47: 1021 | F47: The Scottish Salmon Company Ltd | G47: CAR/L/1082027 | H47: 0 | I47: 215563 | J47: 137.5 | K47: 0 | L47: 0 | M47: 0 | N47: 0 | O47: Eughlam North | P47: CAR/L/1082027/V4 | Q47: The Scottish Salmon Company Ltd | R47: 1897 | S47: Loch Roag | T47: NB16203950 | U47: 116200 | V47: 939500 | W47: Seawater | X47: Eilean Siar
A48: 2074550 | B48: 2012-01-01 | C48: ODH1 | D48: 1844 | E48: 1412 | F48: The Scottish Salmon Company Ltd | G48: CAR/L/1003879 | H48: 0 | I48: 151743 | J48: 132.5 | K48: 0 | L48: 0 | M48: 0 | N48: 0 | O48: Gravir Outer | P48: CAR/L/1003879/V7 | Q48: The Scottish Salmon Company Ltd | R48: 2285 | S48: Loch Odhairn | T48: NB41751450 | U48: 141750 | V48: 914500 | W48: Seawater | X48: Eilean Siar
A49: 2072437 | B49: 2014-09-01 | C49: FFMC66 | D49: 4387.7 | E49: 569 | F49: The Scottish Salmon Company Ltd | G49: CAR/L/1000891 | H49: 0 | I49: 119596 | J49: 130 | K49: 0 | L49: 900 | M49: 0 | N49: 0 | O49: Rubha Stillaig | P49: CAR/L/1000891/C1/V1 | Q49: The Scottish Salmon Company Ltd | R49: 741 | S49: Loch Fyne | T49: NR92506820 | U49: 192500 | V49: 668200 | W49: Seawater | X49: Argyll and Bute
A50: 2051135 | B50: 2012-01-01 | C50: MSTR1 | D50: 1958 | E50: 1365 | F50: The Scottish Salmon Company Ltd | G50: CAR/L/1004069 | H50: 0 | I50: 211627 | J50: 130 | K50: 0 | L50: 0 | M50: 0 | N50: 0 | O50: Mid Strome | P50: CAR/L/1004069/V7 | Q50: The Scottish Salmon Company Ltd | R50: 687 | S50: Loch Carron | T50: NG87933670 | U50: 187930 | V50: 836700 | W50: Seawater | X50: Highland
A51: 2073097 | B51: 2012-11-01 | C51: FFMC49 | D51: 8270 | E51: 937 | F51: The Scottish Salmon Company Ltd | G51: CAR/L/1010476 | H51: 0 | I51: 166768 | J51: 126 | K51: 0 | L51: 0 | M51: 0 | N51: 0 | O51: Tarbert South | P51: CAR/L/1010476/V5 | Q51: The Scottish Salmon Company Ltd | R51: 1030 | S51: Loch Fyne | T51: NR90206530 | U51: 190200 | V51: 665300 | W51: Seawater | X51: Argyll and Bute
A52: 2072578 | B52: 2012-11-01 | C52: FFMC10 | D52: 6701 | E52: 1118 | F52: The Scottish Salmon Company Ltd | G52: CAR/L/1010474 | H52: 0 | I52: 191631 | J52: 126 | K52: 0 | L52: 0 | M52: 0 | N52: 0 | O52: Glenan Bay | P52: CAR/L/1010474/V7 | Q52: The Scottish Salmon Company Ltd | R52: 1220 | S52: Loch Fyne | T52: NR91806980 | U52: 191800 | V52: 669800 | W52: Seawater | X52: Argyll and Bute
A53: 2072579 | B53: 2012-12-01 | C53: FFMC10 | D53: 3902 | E53: 1104 | F53: The Scottish Salmon Company Ltd | G53: CAR/L/1010474 | H53: 0 | I53: 171427 | J53: 126 | K53: 0 | L53: 0 | M53: 0 | N53: 0 | O53: Glenan Bay | P53: CAR/L/1010474/V7 | Q53: The Scottish Salmon Company Ltd | R53: 1220 | S53: Loch Fyne | T53: NR91806980 | U53: 191800 | V53: 669800 | W53: Seawater | X53: Argyll and Bute
A54: 2073098 | B54: 2012-12-01 | C54: FFMC49 | D54: 3131 | E54: 891 | F54: The Scottish Salmon Company Ltd | G54: CAR/L/1010476 | H54: 0 | I54: 132423 | J54: 126 | K54: 0 | L54: 0 | M54: 0 | N54: 0 | O54: Tarbert South | P54: CAR/L/1010476/V5 | Q54: The Scottish Salmon Company Ltd | R54: 1030 | S54: Loch Fyne | T54: NR90206530 | U54: 190200 | V54: 665300 | W54: Seawater | X54: Argyll and Bute
A55: 2072270 | B55: 2014-10-01 | C55: FFMC47 | D55: 4747.7 | E55: 1389 | F55: The Scottish Salmon Company Ltd | G55: CAR/L/1010817 | H55: 0 | I55: 261158 | J55: 125 | K55: 0 | L55: 2300 | M55: 0 | N55: 0 | O55: Ardgaddan | P55: CAR/L/1010817/V5 | Q55: The Scottish Salmon Company Ltd | R55: 1696 | S55: Loch Fyne | T55: NR90938099 | U55: 190930 | V55: 680990 | W55: Seawater | X55: Argyll and Bute
A56: 2072102 | B56: 2014-10-01 | C56: FFMC70 | D56: 1463.5 | E56: 989 | F56: The Scottish Salmon Company Ltd | G56: CAR/L/1003721 | H56: 0 | I56: 203526 | J56: 125 | K56: 0 | L56: 2300 | M56: 0 | N56: 0 | O56: Strondoir Bay | P56: CAR/L/1003721/V6 | Q56: The Scottish Salmon Company Ltd | R56: 1767 | S56: Loch Fyne | T56: NR85707970 | U56: 185700 | V56: 679700 | W56: Seawater | X56: Argyll and Bute
A57: 2069172 | B57: 2014-10-01 | C57: FFMC46 | D57: 4460.6 | E57: 1055 | F57: The Scottish Salmon Company Ltd | G57: CAR/L/1010773 | H57: 0 | I57: 256144 | J57: 125 | K57: 0 | L57: 2070 | M57: 0 | N57: 0 | O57: Gob a Bharra | P57: CAR/L/1010773/C1/V2 | Q57: The Scottish Salmon Company Ltd | R57: 1072 | S57: Loch Fyne | T57: NR90277601 | U57: 190270 | V57: 676010 | W57: Seawater | X57: Argyll and Bute
A58: 2048322 | B58: 2013-09-01 | C58: POR2 | D58: 8338 | E58: 1045 | F58: The Scottish Salmon Company Ltd | G58: CAR/L/1002350 | H58: 0 | I58: 222133 | J58: 125 | K58: 0 | L58: 500.5 | M58: 0 | N58: 0 | O58: Loch Portree (Torvaig) | P58: CAR/L/1002350/V6 | Q58: The Scottish Salmon Company Ltd | R58: 2022 | S58: Sound of Raasay | T58: NG50604412 | U58: 150600 | V58: 844120 | W58: Seawater | X58: Highland
A59: 2047265 | B59: 2012-11-01 | C59: AIR1 | D59: 9017 | E59: 803 | F59: The Scottish Salmon Company Ltd | G59: CAR/L/1002917 | H59: 0 | I59: 148186 | J59: 125 | K59: 0 | L59: 0 | M59: 0 | N59: 0 | O59: Aird Ardheslaig | P59: CAR/L/1002917/C1/V4 | Q59: The Scottish Salmon Company Ltd | R59: 1750 | S59: Loch Sheildaig | T59: NG78855605 | U59: 178850 | V59: 856050 | W59: Seawater | X59: Highland
A60: 2072248 | B60: 2012-12-01 | C60: FFMC47 | D60: 7010 | E60: 1423 | F60: The Scottish Salmon Company Ltd | G60: CAR/L/1010817 | H60: 0 | I60: 215155 | J60: 125 | K60: 0 | L60: 0 | M60: 0 | N60: 0 | O60: Ardgaddan | P60: CAR/L/1010817/V5 | Q60: The Scottish Salmon Company Ltd | R60: 1696 | S60: Loch Fyne | T60: NR90938099 | U60: 190930 | V60: 680990 | W60: Seawater | X60: Argyll and Bute
A61: 2073820 | B61: 2014-04-01 | C61: KYL1 | D61: 5283.6 | E61: 1150 | F61: The Scottish Salmon Company Ltd | G61: CAR/L/1001791 | H61: 0 | I61: 111912 | J61: 125 | K61: 0 | L61: 0 | M61: 0 | N61: 0 | O61: Kyles Vuia East | P61: CAR/L/1001791/V3 | Q61: The Scottish Salmon Company Ltd | R61: 1390 | S61: Loch Roag | T61: NB13803530 | U61: 113800 | V61: 935300 | W61: Seawater | X61: Eilean Siar
A62: 2048321 | B62: 2013-08-01 | C62: POR2 | D62: 5135.3 | E62: 1097 | F62: The Scottish Salmon Company Ltd | G62: CAR/L/1002350 | H62: 0 | I62: 280298 | J62: 125 | K62: 0 | L62: 0 | M62: 0 | N62: 0 | O62: Loch Portree (Torvaig) | P62: CAR/L/1002350/V6 | Q62: The Scottish Salmon Company Ltd | R62: 2022 | S62: Sound of Raasay | T62: NG50604412 | U62: 150600 | V62: 844120 | W62: Seawater | X62: Highland
A63: 2072946 | B63: 2014-04-01 | C63: VIB1 | D63: 4954.2 | E63: 810 | F63: The Scottish Salmon Company Ltd | G63: CAR/L/1015852 | H63: 0 | I63: 104245 | J63: 125 | K63: 0 | L63: 0 | M63: 0 | N63: 0 | O63: Vuia Beag | P63: CAR/L/1015852/V6 | Q63: The Scottish Salmon Company Ltd | R63: 1290 | S63: Loch Roag | T63: NB12103310 | U63: 112100 | V63: 933100 | W63: Seawater | X63: Eilean Siar
A64: 2072247 | B64: 2012-11-01 | C64: FFMC47 | D64: 3690 | E64: 1370 | F64: The Scottish Salmon Company Ltd | G64: CAR/L/1010817 | H64: 0 | I64: 287830 | J64: 125 | K64: 0 | L64: 0 | M64: 0 | N64: 0 | O64: Ardgaddan | P64: CAR/L/1010817/V5 | Q64: The Scottish Salmon Company Ltd | R64: 1696 | S64: Loch Fyne | T64: NR90938099 | U64: 190930 | V64: 680990 | W64: Seawater | X64: Argyll and Bute
A65: 2069149 | B65: 2012-11-01 | C65: FFMC46 | D65: 3207 | E65: 1158 | F65: The Scottish Salmon Company Ltd | G65: CAR/L/1010773 | H65: 0 | I65: 223992 | J65: 125 | K65: 0 | L65: 0 | M65: 0 | N65: 0 | O65: Gob a Bharra | P65: CAR/L/1010773/C1/V2 | Q65: The Scottish Salmon Company Ltd | R65: 1072 | S65: Loch Fyne | T65: NR90277601 | U65: 190270 | V65: 676010 | W65: Seawater | X65: Argyll and Bute
A66: 2051159 | B66: 2014-01-01 | C66: MSTR1 | D66: 3122.8 | E66: 919 | F66: The Scottish Salmon Company Ltd | G66: CAR/L/1004069 | H66: 0 | I66: 217073 | J66: 125 | K66: 0 | L66: 0 | M66: 0 | N66: 0 | O66: Mid Strome | P66: CAR/L/1004069/V7 | Q66: The Scottish Salmon Company Ltd | R66: 687 | S66: Loch Carron | T66: NG87933670 | U66: 187930 | V66: 836700 | W66: Seawater | X66: Highland
A67: 2073645 | B67: 2014-04-01 | C67: GOUS1 | D67: 2845.8 | E67: 636 | F67: The Scottish Salmon Company Ltd | G67: CAR/L/1002929 | H67: 0 | I67: 89710 | J67: 125 | K67: 0 | L67: 0 | M67: 0 | N67: 0 | O67: Gousam | P67: CAR/L/1002929/V7 | Q67: The Scottish Salmon Company Ltd | R67: 850 | S67: Loch Roag | T67: NB11103380 | U67: 111100 | V67: 933800 | W67: Seawater | X67: Eilean Siar
A68: 2069171 | B68: 2014-09-01 | C68: FFMC46 | D68: 2386.5 | E68: 1057 | F68: The Scottish Salmon Company Ltd | G68: CAR/L/1010773 | H68: 0 | I68: 236047 | J68: 125 | K68: 0 | L68: 0 | M68: 0 | N68: 0 | O68: Gob a Bharra | P68: CAR/L/1010773/C1/V2 | Q68: The Scottish Salmon Company Ltd | R68: 1072 | S68: Loch Fyne | T68: NR90277601 | U68: 190270 | V68: 676010 | W68: Seawater | X68: Argyll and Bute
A69: 2072269 | B69: 2014-09-01 | C69: FFMC47 | D69: 1820.7 | E69: 1209 | F69: The Scottish Salmon Company Ltd | G69: CAR/L/1010817 | H69: 0 | I69: 255347 | J69: 125 | K69: 0 | L69: 0 | M69: 0 | N69: 0 | O69: Ardgaddan | P69: CAR/L/1010817/V5 | Q69: The Scottish Salmon Company Ltd | R69: 1696 | S69: Loch Fyne | T69: NR90938099 | U69: 190930 | V69: 680990 | W69: Seawater | X69: Argyll and Bute
A70: 2069170 | B70: 2014-08-01 | C70: FFMC46 | D70: 1769.2 | E70: 1033 | F70: The Scottish Salmon Company Ltd | G70: CAR/L/1010773 | H70: 0 | I70: 253685 | J70: 125 | K70: 0 | L70: 0 | M70: 0 | N70: 0 | O70: Gob a Bharra | P70: CAR/L/1010773/C1/V2 | Q70: The Scottish Salmon Company Ltd | R70: 1072 | S70: Loch Fyne | T70: NR90277601 | U70: 190270 | V70: 676010 | W70: Seawater | X70: Argyll and Bute
A71: 2072268 | B71: 2014-08-01 | C71: FFMC47 | D71: 1355.4 | E71: 978 | F71: The Scottish Salmon Company Ltd | G71: CAR/L/1010817 | H71: 0 | I71: 220567 | J71: 125 | K71: 0 | L71: 0 | M71: 0 | N71: 0 | O71: Ardgaddan | P71: CAR/L/1010817/V5 | Q71: The Scottish Salmon Company Ltd | R71: 1696 | S71: Loch Fyne | T71: NR90938099 | U71: 190930 | V71: 680990 | W71: Seawater | X71: Argyll and Bute
A72: 2072100 | B72: 2014-08-01 | C72: FFMC70 | D72: 999.6 | E72: 629 | F72: The Scottish Salmon Company Ltd | G72: CAR/L/1003721 | H72: 0 | I72: 161801 | J72: 125 | K72: 0 | L72: 0 | M72: 0 | N72: 0 | O72: Strondoir Bay | P72: CAR/L/1003721/V6 | Q72: The Scottish Salmon Company Ltd | R72: 1767 | S72: Loch Fyne | T72: NR85707970 | U72: 185700 | V72: 679700 | W72: Seawater | X72: Argyll and Bute
A73: 2072101 | B73: 2014-09-01 | C73: FFMC70 | D73: 792.9 | E73: 813 | F73: The Scottish Salmon Company Ltd | G73: CAR/L/1003721 | H73: 0 | I73: 184326 | J73: 125 | K73: 0 | L73: 0 | M73: 0 | N73: 0 | O73: Strondoir Bay | P73: CAR/L/1003721/V6 | Q73: The Scottish Salmon Company Ltd | R73: 1767 | S73: Loch Fyne | T73: NR85707970 | U73: 185700 | V73: 679700 | W73: Seawater | X73: Argyll and Bute
A74: 2048143 | B74: 2013-07-01 | C74: SDUG1 | D74: 12368.9 | E74: 1726 | F74: The Scottish Salmon Company Ltd | G74: CAR/L/1098675 | H74: 0 | I74: 277981 | J74: 122.5 | K74: 0 | L74: 0 | M74: 0 | N74: 0 | O74: Sgeir Dughall | P74: CAR/L/1098675/V3 | Q74: The Scottish Salmon Company Ltd | R74: 2091 | S74: Loch Torridon | T74: NG77176105 | U74: 177170 | V74: 861050 | W74: Seawater | X74: Highland
A75: 2074330 | B75: 2016-08-01 | C75: TRM1 | D75: 22449 | E75: 882 | F75: The Scottish Salmon Company Ltd | G75: CAR/L/1013016 | H75: 0 | I75: 172801 | J75: 120 | K75: 0 | L75: 0 | M75: 0 | N75: 360 | O75: Trilleachan Mor | P75: CAR/L/1013016/V5 | Q75: The Scottish Salmon Company Ltd | R75: 1700 | S75: Loch Seaforth | T75: NB20870736 | U75: 120870 | V75: 907360 | W75: Seawater | X75: Eilean Siar
A76: 2074382 | B76: 2012-10-01 | C76: TRM1 | D76: 236581 | E76: 868 | F76: The Scottish Salmon Company Ltd | G76: CAR/L/1013016 | H76: 0 | I76: 150842 | J76: 120 | K76: 0 | L76: 0 | M76: 0 | N76: 234.94 | O76: Trilleachan Mor | P76: CAR/L/1013016/V5 | Q76: The Scottish Salmon Company Ltd | R76: 1700 | S76: Loch Seaforth | T76: NB20870736 | U76: 120870 | V76: 907360 | W76: Seawater | X76: Eilean Siar
A77: 2075126 | B77: 2013-09-01 | C77: EPO1 | D77: 2472.5 | E77: 647 | F77: The Scottish Salmon Company Ltd | G77: CAR/L/1033617 | H77: 0 | I77: 143734 | J77: 120 | K77: 0 | L77: 0 | M77: 0 | N77: 226.3 | O77: Eport Outer (Sgeir n Lolla) | P77: CAR/L/1033617/V5 | Q77: The Scottish Salmon Company Ltd | R77: 675 | S77: Loch Eport | T77: NF90806360 | U77: 90800 | V77: 863600 | W77: Seawater | X77: Eilean Siar
A78: 2075124 | B78: 2013-07-01 | C78: EPO1 | D78: 263 | E78: 411 | F78: The Scottish Salmon Company Ltd | G78: CAR/L/1033617 | H78: 0 | I78: 82955 | J78: 120 | K78: 0 | L78: 0 | M78: 0 | N78: 166.6 | O78: Eport Outer (Sgeir n Lolla) | P78: CAR/L/1033617/V5 | Q78: The Scottish Salmon Company Ltd | R78: 675 | S78: Loch Eport | T78: NF90806360 | U78: 90800 | V78: 863600 | W78: Seawater | X78: Eilean Siar
A79: 2074572 | B79: 2013-11-01 | C79: ODH1 | D79: 3542.3 | E79: 1065 | F79: The Scottish Salmon Company Ltd | G79: CAR/L/1003879 | H79: 0 | I79: 237139 | J79: 120 | K79: 0 | L79: 2100 | M79: 0 | N79: 0 | O79: Gravir Outer | P79: CAR/L/1003879/V7 | Q79: The Scottish Salmon Company Ltd | R79: 2285 | S79: Loch Odhairn | T79: NB41751450 | U79: 141750 | V79: 914500 | W79: Seawater | X79: Eilean Siar
A80: 2071934 | B80: 2014-10-01 | C80: FFMC14 | D80: 1954.6 | E80: 796 | F80: The Scottish Salmon Company Ltd | G80: CAR/L/1015860 | H80: 0 | I80: 228934 | J80: 120 | K80: 0 | L80: 1400 | M80: 0 | N80: 0 | O80: Meall Mhor | P80: CAR/L/1015860/V7 | Q80: The Scottish Salmon Company Ltd | R80: 1345 | S80: Loch Fyne | T80: NR86507450 | U80: 186500 | V80: 674500 | W80: Seawater | X80: Argyll and Bute
A81: 2050352 | B81: 2012-08-01 | C81: VACR1 | D81: 14607 | E81: 1404 | F81: The Scottish Salmon Company Ltd | G81: CAR/L/1005041 | H81: 0 | I81: 209000 | J81: 120 | K81: 0 | L81: 0 | M81: 0 | N81: 0 | O81: Vacasay, Roag | P81: CAR/L/1005041/V7 | Q81: The Scottish Salmon Company Ltd | R81: 1100 | S81: Loch Roag | T81: NB19313618 | U81: 119310 | V81: 936180 | W81: Seawater | X81: Eilean Siar
A82: 2073844 | B82: 2016-04-01 | C82: KYL1 | D82: 3738.9 | E82: 748 | F82: The Scottish Salmon Company Ltd | G82: CAR/L/1001791 | H82: 0 | I82: 111397 | J82: 120 | K82: 0 | L82: 0 | M82: 0 | N82: 0 | O82: Kyles Vuia East | P82: CAR/L/1001791/V3 | Q82: The Scottish Salmon Company Ltd | R82: 1390 | S82: Loch Roag | T82: NB13803530 | U82: 113800 | V82: 935300 | W82: Seawater | X82: Eilean Siar
A83: 2075131 | B83: 2014-02-01 | C83: EPO1 | D83: 2672.8 | E83: 773 | F83: The Scottish Salmon Company Ltd | G83: CAR/L/1033617 | H83: 0 | I83: 99794 | J83: 120 | K83: 0 | L83: 0 | M83: 0 | N83: 0 | O83: Eport Outer (Sgeir n Lolla) | P83: CAR/L/1033617/V5 | Q83: The Scottish Salmon Company Ltd | R83: 675 | S83: Loch Eport | T83: NF90806360 | U83: 90800 | V83: 863600 | W83: Seawater | X83: Eilean Siar
A84: 2073669 | B84: 2016-04-01 | C84: GOUS1 | D84: 2585.6 | E84: 710 | F84: The Scottish Salmon Company Ltd | G84: CAR/L/1002929 | H84: 0 | I84: 67032 | J84: 120 | K84: 0 | L84: 0 | M84: 0 | N84: 0 | O84: Gousam | P84: CAR/L/1002929/V7 | Q84: The Scottish Salmon Company Ltd | R84: 850 | S84: Loch Roag | T84: NB11103380 | U84: 111100 | V84: 933800 | W84: Seawater | X84: Eilean Siar
A85: 2074282 | B85: 2012-09-01 | C85: TARA1 | D85: 2336 | E85: 1317 | F85: The Scottish Salmon Company Ltd | G85: CAR/L/1017374 | H85: 0 | I85: 254565 | J85: 120 | K85: 0 | L85: 0 | M85: 0 | N85: 0 | O85: Taranaish | P85: CAR/L/1017374/V8 | Q85: The Scottish Salmon Company Ltd | R85: 1466 | S85: Loch Roag | T85: NB18063710 | U85: 118060 | V85: 937100 | W85: Seawater | X85: Eilean Siar
A86: 2074281 | B86: 2012-08-01 | C86: TARA1 | D86: 2173 | E86: 1338 | F86: The Scottish Salmon Company Ltd | G86: CAR/L/1017374 | H86: 0 | I86: 233000 | J86: 120 | K86: 0 | L86: 0 | M86: 0 | N86: 0 | O86: Taranaish | P86: CAR/L/1017374/V8 | Q86: The Scottish Salmon Company Ltd | R86: 1466 | S86: Loch Roag | T86: NB18063710 | U86: 118060 | V86: 937100 | W86: Seawater | X86: Eilean Siar
A87: 2072923 | B87: 2012-05-01 | C87: VIB1 | D87: 2067 | E87: 826 | F87: The Scottish Salmon Company Ltd | G87: CAR/L/1015852 | H87: 0 | I87: 135130 | J87: 120 | K87: 0 | L87: 0 | M87: 0 | N87: 0 | O87: Vuia Beag | P87: CAR/L/1015852/V6 | Q87: The Scottish Salmon Company Ltd | R87: 1290 | S87: Loch Roag | T87: NB12103310 | U87: 112100 | V87: 933100 | W87: Seawater | X87: Eilean Siar
A88: 2075125 | B88: 2013-08-01 | C88: EPO1 | D88: 574.6 | E88: 533 | F88: The Scottish Salmon Company Ltd | G88: CAR/L/1033617 | H88: 0 | I88: 121562 | J88: 120 | K88: 0 | L88: 0 | M88: 0 | N88: 0 | O88: Eport Outer (Sgeir n Lolla) | P88: CAR/L/1033617/V5 | Q88: The Scottish Salmon Company Ltd | R88: 675 | S88: Loch Eport | T88: NF90806360 | U88: 90800 | V88: 863600 | W88: Seawater | X88: Eilean Siar
A89: 2071534 | B89: 2009-06-01 | C89: FFMC29 | D89: 6491 | E89: 1396 | F89: Lighthouse Caledonia Ltd | G89: CAR/L/1003088 | H89: 52 | I89: 179547 | J89: 117.6 | K89: 0 | L89: 3600 | M89: 0 | N89: 0 | O89: Quarry Point | P89: CAR/L/1003088/C1/V6 | Q89: The Scottish Salmon Company Ltd | R89: 1061 | S89: Loch Fyne | T89: NR99809800 | U89: 199800 | V89: 698000 | W89: Seawater | X89: Argyll and Bute
A90: 2071702 | B90: 2009-06-01 | C90: FFMC43 | D90: 8699 | E90: 1323 | F90: Lighthouse Caledonia Ltd | G90: CAR/L/1010775 | H90: 0 | I90: 212638 | J90: 117.6 | K90: 0 | L90: 0 | M90: 0 | N90: 0 | O90: Ardcastle | P90: CAR/L/1010775/C1/V6 | Q90: The Scottish Salmon Company Ltd | R90: 1372 | S90: Loch Fyne | T90: NR95599241 | U90: 195590 | V90: 692410 | W90: Seawater | X90: Argyll and Bute
A91: 2048141 | B91: 2013-05-01 | C91: SDUG1 | D91: 20336.5 | E91: 1367 | F91: The Scottish Salmon Company Ltd | G91: CAR/L/1098675 | H91: 0 | I91: 180110 | J91: 115.5 | K91: 0 | L91: 0 | M91: 0 | N91: 603.9 | O91: Sgeir Dughall | P91: CAR/L/1098675/V3 | Q91: The Scottish Salmon Company Ltd | R91: 2091 | S91: Loch Torridon | T91: NG77176105 | U91: 177170 | V91: 861050 | W91: Seawater | X91: Highland
A92: 2051293 | B92: 2011-06-01 | C92: STOC1 | D92: 3816 | E92: 424 | F92: The Scottish Salmon Company Ltd | G92: CAR/L/1001853 | H92: 0 | I92: 44178 | J92: 112.5 | K92: 16 | L92: 300 | M92: 0 | N92: 0 | O92: Stockinish | P92: CAR/L/1001853/V8 | Q92: The Scottish Salmon Company Ltd | R92: 300 | S92: Loch Stockinish | T92: NG12989126 | U92: 112984 | V92: 891259 | W92: Seawater | X92: Eilean Siar
A93: 2071617 | B93: 2016-06-01 | C93: FFMC29 | D93: 417.2 | E93: 522 | F93: The Scottish Salmon Company Ltd | G93: CAR/L/1003088 | H93: 0 | I93: 135660 | J93: 112.5 | K93: 0 | L93: 0 | M93: 0 | N93: 189 | O93: Quarry Point | P93: CAR/L/1003088/C1/V6 | Q93: The Scottish Salmon Company Ltd | R93: 1061 | S93: Loch Fyne | T93: NR99809800 | U93: 199800 | V93: 698000 | W93: Seawater | X93: Argyll and Bute
A94: 2071786 | B94: 2016-06-01 | C94: FFMC43 | D94: 1254.9 | E94: 406 | F94: The Scottish Salmon Company Ltd | G94: CAR/L/1010775 | H94: 0 | I94: 107611 | J94: 112.5 | K94: 0 | L94: 0 | M94: 0 | N94: 155.5 | O94: Ardcastle | P94: CAR/L/1010775/C1/V6 | Q94: The Scottish Salmon Company Ltd | R94: 1372 | S94: Loch Fyne | T94: NR95599241 | U94: 195590 | V94: 692410 | W94: Seawater | X94: Argyll and Bute
A95: 2074338 | B95: 2009-02-01 | C95: TRM1 | D95: 2498 | E95: 1118 | F95: Lighthouse Caledonia Ltd | G95: CAR/L/1013016 | H95: 118 | I95: 119740 | J95: 112.5 | K95: 0 | L95: 2662.5 | M95: 0 | N95: 0 | O95: Trilleachan Mor | P95: CAR/L/1013016/V5 | Q95: The Scottish Salmon Company Ltd | R95: 1700 | S95: Loch Seaforth | T95: NB20870736 | U95: 120870 | V95: 907360 | W95: Seawater | X95: Eilean Siar
A96: 2071598 | B96: 2014-10-01 | C96: FFMC29 | D96: 1379.1 | E96: 1042 | F96: The Scottish Salmon Company Ltd | G96: CAR/L/1003088 | H96: 0 | I96: 214976 | J96: 112.5 | K96: 0 | L96: 2070 | M96: 0 | N96: 0 | O96: Quarry Point | P96: CAR/L/1003088/C1/V6 | Q96: The Scottish Salmon Company Ltd | R96: 1061 | S96: Loch Fyne | T96: NR99809800 | U96: 199800 | V96: 698000 | W96: Seawater | X96: Argyll and Bute
A97: 2071766 | B97: 2014-10-01 | C97: FFMC43 | D97: 1168.8 | E97: 1220 | F97: The Scottish Salmon Company Ltd | G97: CAR/L/1010775 | H97: 0 | I97: 247930 | J97: 112.5 | K97: 0 | L97: 2070 | M97: 0 | N97: 0 | O97: Ardcastle | P97: CAR/L/1010775/C1/V6 | Q97: The Scottish Salmon Company Ltd | R97: 1372 | S97: Loch Fyne | T97: NR95599241 | U97: 195590 | V97: 692410 | W97: Seawater | X97: Argyll and Bute
A98: 2071575 | B98: 2012-11-01 | C98: FFMC29 | D98: 49666 | E98: 1197 | F98: The Scottish Salmon Company Ltd | G98: CAR/L/1003088 | H98: 0 | I98: 188545 | J98: 112.5 | K98: 0 | L98: 0 | M98: 0 | N98: 0 | O98: Quarry Point | P98: CAR/L/1003088/C1/V6 | Q98: The Scottish Salmon Company Ltd | R98: 1061 | S98: Loch Fyne | T98: NR99809800 | U98: 199800 | V98: 698000 | W98: Seawater | X98: Argyll and Bute
A99: 2071743 | B99: 2012-11-01 | C99: FFMC43 | D99: 23816 | E99: 1198 | F99: The Scottish Salmon Company Ltd | G99: CAR/L/1010775 | H99: 0 | I99: 180552 | J99: 112.5 | K99: 0 | L99: 0 | M99: 0 | N99: 0 | O99: Ardcastle | P99: CAR/L/1010775/C1/V6 | Q99: The Scottish Salmon Company Ltd | R99: 1372 | S99: Loch Fyne | T99: NR95599241 | U99: 195590 | V99: 692410 | W99: Seawater | X99: Argyll and Bute
A100: 2072079 | B100: 2012-11-01 | C100: FFMC70 | D100: 20983 | E100: 898 | F100: The Scottish Salmon Company Ltd | G100: CAR/L/1003721 | H100: 0 | I100: 194560 | J100: 112.5 | K100: 0 | L100: 0 | M100: 0 | N100: 0 | O100: Strondoir Bay | P100: CAR/L/1003721/V6 | Q100: The Scottish Salmon Company Ltd | R100: 1767 | S100: Loch Fyne | T100: NR85707970 | U100: 185700 | V100: 679700 | W100: Seawater | X100: Argyll and Bute
A101: 2071744 | B101: 2012-12-01 | C101: FFMC43 | D101: 8890 | E101: 1233 | F101: The Scottish Salmon Company Ltd | G101: CAR/L/1010775 | H101: 0 | I101: 121509 | J101: 112.5 | K101: 0 | L101: 0 | M101: 0 | N101: 0 | O101: Ardcastle | P101: CAR/L/1010775/C1/V6 | Q101: The Scottish Salmon Company Ltd | R101: 1372 | S101: Loch Fyne | T101: NR95599241 | U101: 195590 | V101: 692410 | W101: Seawater | X101: Argyll and Bute
A102: 2042582 | B102: 2011-09-01 | C102: FFMC59 | D102: 8578 | E102: 857 | F102: The Scottish Salmon Company Ltd | G102: CAR/L/1000808 | H102: 0 | I102: 152750 | J102: 112.5 | K102: 0 | L102: 0 | M102: 0 | N102: 0 | O102: Geasgill | P102: CAR/L/1000808/C1/V6 | Q102: The Scottish Salmon Company Ltd | R102: 2091 | S102: Loch na Keal | T102: NM43633764 | U102: 143630 | V102: 737639 | W102: Seawater | X102: Argyll and Bute
A103: 2042581 | B103: 2011-08-01 | C103: FFMC59 | D103: 5700 | E103: 1055 | F103: The Scottish Salmon Company Ltd | G103: CAR/L/1000808 | H103: 0 | I103: 200672 | J103: 112.5 | K103: 0 | L103: 0 | M103: 0 | N103: 0 | O103: Geasgill | P103: CAR/L/1000808/C1/V6 | Q103: The Scottish Salmon Company Ltd | R103: 2091 | S103: Loch na Keal | T103: NM43633764 | U103: 143630 | V103: 737639 | W103: Seawater | X103: Argyll and Bute
A104: 2042605 | B104: 2013-08-01 | C104: FFMC59 | D104: 4157.2 | E104: 674 | F104: The Scottish Salmon Company Ltd | G104: CAR/L/1000808 | H104: 0 | I104: 196060 | J104: 112.5 | K104: 0 | L104: 0 | M104: 0 | N104: 0 | O104: Geasgill | P104: CAR/L/1000808/C1/V6 | Q104: The Scottish Salmon Company Ltd | R104: 2091 | S104: Loch na Keal | T104: NM43633764 | U104: 143630 | V104: 737639 | W104: Seawater | X104: Argyll and Bute
A105: 2071597 | B105: 2014-09-01 | C105: FFMC29 | D105: 676.1 | E105: 916 | F105: The Scottish Salmon Company Ltd | G105: CAR/L/1003088 | H105: 0 | I105: 207185 | J105: 112.5 | K105: 0 | L105: 0 | M105: 0 | N105: 0 | O105: Quarry Point | P105: CAR/L/1003088/C1/V6 | Q105: The Scottish Salmon Company Ltd | R105: 1061 | S105: Loch Fyne | T105: NR99809800 | U105: 199800 | V105: 698000 | W105: Seawater | X105: Argyll and Bute
A106: 2071596 | B106: 2014-08-01 | C106: FFMC29 | D106: 542 | E106: 712 | F106: The Scottish Salmon Company Ltd | G106: CAR/L/1003088 | H106: 0 | I106: 193407 | J106: 112.5 | K106: 0 | L106: 0 | M106: 0 | N106: 0 | O106: Quarry Point | P106: CAR/L/1003088/C1/V6 | Q106: The Scottish Salmon Company Ltd | R106: 1061 | S106: Loch Fyne | T106: NR99809800 | U106: 199800 | V106: 698000 | W106: Seawater | X106: Argyll and Bute
A107: 2071765 | B107: 2014-09-01 | C107: FFMC43 | D107: 531 | E107: 983 | F107: The Scottish Salmon Company Ltd | G107: CAR/L/1010775 | H107: 0 | I107: 220117 | J107: 112.5 | K107: 0 | L107: 0 | M107: 0 | N107: 0 | O107: Ardcastle | P107: CAR/L/1010775/C1/V6 | Q107: The Scottish Salmon Company Ltd | R107: 1372 | S107: Loch Fyne | T107: NR95599241 | U107: 195590 | V107: 692410 | W107: Seawater | X107: Argyll and Bute
A108: 2071764 | B108: 2014-08-01 | C108: FFMC43 | D108: 453.1 | E108: 764 | F108: The Scottish Salmon Company Ltd | G108: CAR/L/1010775 | H108: 0 | I108: 197630 | J108: 112.5 | K108: 0 | L108: 0 | M108: 0 | N108: 0 | O108: Ardcastle | P108: CAR/L/1010775/C1/V6 | Q108: The Scottish Salmon Company Ltd | R108: 1372 | S108: Loch Fyne | T108: NR95599241 | U108: 195590 | V108: 692410 | W108: Seawater | X108: Argyll and Bute
A109: 2073983 | B109: 2014-05-01 | C109: FFMC77 | D109: 1098.4 | E109: 1499 | F109: The Scottish Salmon Company Ltd | G109: CAR/L/1003718 | H109: 0 | I109: 206935 | J109: 112.1 | K109: 0 | L109: 0 | M109: 0 | N109: 413.4 | O109: Strone Point | P109: CAR/L/1003718/V5 | Q109: The Scottish Salmon Company Ltd | R109: 1986 | S109: Loch Striven | T109: NS08127245 | U109: 208120 | V109: 672450 | W109: Seawater | X109: Argyll and Bute
A110: 2073623 | B110: 2012-06-01 | C110: GOUS1 | D110: 4297 | E110: 754 | F110: The Scottish Salmon Company Ltd | G110: CAR/L/1002929 | H110: 0 | I110: 113272 | J110: 110 | K110: 0 | L110: 0 | M110: 0 | N110: 284.28 | O110: Gousam | P110: CAR/L/1002929/V7 | Q110: The Scottish Salmon Company Ltd | R110: 850 | S110: Loch Roag | T110: NB11103380 | U110: 111100 | V110: 933800 | W110: Seawater | X110: Eilean Siar
A111: 2074573 | B111: 2013-12-01 | C111: ODH1 | D111: 2487.3 | E111: 1132 | F111: The Scottish Salmon Company Ltd | G111: CAR/L/1003879 | H111: 0 | I111: 194535 | J111: 110 | K111: 0 | L111: 3150 | M111: 0 | N111: 0 | O111: Gravir Outer | P111: CAR/L/1003879/V7 | Q111: The Scottish Salmon Company Ltd | R111: 2285 | S111: Loch Odhairn | T111: NB41751450 | U111: 141750 | V111: 914500 | W111: Seawater | X111: Eilean Siar
A112: 2074574 | B112: 2014-01-01 | C112: ODH1 | D112: 2173.4 | E112: 1220 | F112: The Scottish Salmon Company Ltd | G112: CAR/L/1003879 | H112: 0 | I112: 256829 | J112: 110 | K112: 0 | L112: 1800 | M112: 0 | N112: 0 | O112: Gravir Outer | P112: CAR/L/1003879/V7 | Q112: The Scottish Salmon Company Ltd | R112: 2285 | S112: Loch Odhairn | T112: NB41751450 | U112: 141750 | V112: 914500 | W112: Seawater | X112: Eilean Siar
A113: 2074605 | B113: 2016-09-01 | C113: EUG1 | D113: 28101 | E113: 1151 | F113: The Scottish Salmon Company Ltd | G113: CAR/L/1082027 | H113: 0 | I113: 138472 | J113: 110 | K113: 0 | L113: 0 | M113: 0 | N113: 0 | O113: Eughlam North | P113: CAR/L/1082027/V4 | Q113: The Scottish Salmon Company Ltd | R113: 1897 | S113: Loch Roag | T113: NB16203950 | U113: 116200 | V113: 939500 | W113: Seawater | X113: Eilean Siar
A114: 2074196 | B114: 2013-10-01 | C114: FFMC72 | D114: 27843.3 | E114: 549 | F114: The Scottish Salmon Company Ltd | G114: CAR/L/1000789 | H114: 0 | I114: 71950 | J114: 110 | K114: 0 | L114: 0 | M114: 0 | N114: 0 | O114: East Tarbert Bay | P114: CAR/L/1000789/V5 | Q114: The Scottish Salmon Company Ltd | R114: 600 | S114: Sound of Gigha | T114: NR66785322 | U114: 166780 | V114: 653220 | W114: Seawater | X114: Argyll and Bute
A115: 2072749 | B115: 2012-08-01 | C115: VUM1 | D115: 10052 | E115: 1429 | F115: The Scottish Salmon Company Ltd | G115: CAR/L/1011812 | H115: 0 | I115: 164144 | J115: 110 | K115: 0 | L115: 0 | M115: 0 | N115: 0 | O115: Vuia Mor | P115: CAR/L/1011812/V7 | Q115: The Scottish Salmon Company Ltd | R115: 1667 | S115: Loch Roag | T115: NB12683431 | U115: 112680 | V115: 934310 | W115: Seawater | X115: Eilean Siar
A116: 2074552 | B116: 2012-03-01 | C116: ODH1 | D116: 9318 | E116: 1164 | F116: The Scottish Salmon Company Ltd | G116: CAR/L/1003879 | H116: 0 | I116: 120656 | J116: 110 | K116: 0 | L116: 0 | M116: 0 | N116: 0 | O116: Gravir Outer | P116: CAR/L/1003879/V7 | Q116: The Scottish Salmon Company Ltd | R116: 2285 | S116: Loch Odhairn | T116: NB41751450 | U116: 141750 | V116: 914500 | W116: Seawater | X116: Eilean Siar
A117: 2050396 | B117: 2016-04-01 | C117: VACR1 | D117: 4820.3 | E117: 983 | F117: The Scottish Salmon Company Ltd | G117: CAR/L/1005041 | H117: 0 | I117: 128679 | J117: 110 | K117: 0 | L117: 0 | M117: 0 | N117: 0 | O117: Vacasay, Roag | P117: CAR/L/1005041/V7 | Q117: The Scottish Salmon Company Ltd | R117: 1100 | S117: Loch Roag | T117: NB19313618 | U117: 119310 | V117: 936180 | W117: Seawater | X117: Eilean Siar
A118: 2073056 | B118: 2009-06-01 | C118: FFMC49 | D118: 1221 | E118: 1063 | F118: Lighthouse Caledonia Ltd | G118: CAR/L/1010476 | H118: 33 | I118: 184588 | J118: 109.2 | K118: 0 | L118: 0 | M118: 0 | N118: 0 | O118: Tarbert South | P118: CAR/L/1010476/V5 | Q118: The Scottish Salmon Company Ltd | R118: 1030 | S118: Loch Fyne | T118: NR90206530 | U118: 190200 | V118: 665300 | W118: Seawater | X118: Argyll and Bute
A119: 2071705 | B119: 2009-09-01 | C119: FFMC43 | D119: 11150 | E119: 1482 | F119: Lighthouse Caledonia Ltd | G119: CAR/L/1010775 | H119: 0 | I119: 259013 | J119: 109.2 | K119: 0 | L119: 0 | M119: 0 | N119: 0 | O119: Ardcastle | P119: CAR/L/1010775/C1/V6 | Q119: The Scottish Salmon Company Ltd | R119: 1372 | S119: Loch Fyne | T119: NR95599241 | U119: 195590 | V119: 692410 | W119: Seawater | X119: Argyll and Bute
A120: 2072535 | B120: 2009-04-01 | C120: FFMC10 | D120: 1421 | E120: 1277 | F120: Lighthouse Caledonia Ltd | G120: CAR/L/1010474 | H120: 0 | I120: 136272 | J120: 109.2 | K120: 0 | L120: 0 | M120: 0 | N120: 0 | O120: Glenan Bay | P120: CAR/L/1010474/V7 | Q120: The Scottish Salmon Company Ltd | R120: 1220 | S120: Loch Fyne | T120: NR91806980 | U120: 191800 | V120: 669800 | W120: Seawater | X120: Argyll and Bute
A121: 2071912 | B121: 2012-12-01 | C121: FFMC14 | D121: 4958 | E121: 856 | F121: The Scottish Salmon Company Ltd | G121: CAR/L/1015860 | H121: 0 | I121: 146224 | J121: 108 | K121: 0 | L121: 0 | M121: 0 | N121: 0 | O121: Meall Mhor | P121: CAR/L/1015860/V7 | Q121: The Scottish Salmon Company Ltd | R121: 1345 | S121: Loch Fyne | T121: NR86507450 | U121: 186500 | V121: 674500 | W121: Seawater | X121: Argyll and Bute
A122: 2074606 | B122: 2016-08-01 | C122: EUG1 | D122: 13306 | E122: 1251 | F122: The Scottish Salmon Company Ltd | G122: CAR/L/1082027 | H122: 0 | I122: 167712 | J122: 107.5 | K122: 0 | L122: 0 | M122: 0 | N122: 0 | O122: Eughlam North | P122: CAR/L/1082027/V4 | Q122: The Scottish Salmon Company Ltd | R122: 1897 | S122: Loch Roag | T122: NB16203950 | U122: 116200 | V122: 939500 | W122: Seawater | X122: Eilean Siar
A123: 2073794 | B123: 2012-02-01 | C123: KYL1 | D123: 1026 | E123: 727 | F123: The Scottish Salmon Company Ltd | G123: CAR/L/1001791 | H123: 0 | I123: 106481 | J123: 105.6 | K123: 0 | L123: 0 | M123: 0 | N123: 0 | O123: Kyles Vuia East | P123: CAR/L/1001791/V3 | Q123: The Scottish Salmon Company Ltd | R123: 1390 | S123: Loch Roag | T123: NB13803530 | U123: 113800 | V123: 935300 | W123: Seawater | X123: Eilean Siar
A124: 2051133 | B124: 2011-11-01 | C124: MSTR1 | D124: 1672 | E124: 1273 | F124: The Scottish Salmon Company Ltd | G124: CAR/L/1004069 | H124: 0 | I124: 243115 | J124: 105 | K124: 0 | L124: 0 | M124: 0 | N124: 528 | O124: Mid Strome | P124: CAR/L/1004069/V7 | Q124: The Scottish Salmon Company Ltd | R124: 687 | S124: Loch Carron | T124: NG87933670 | U124: 187930 | V124: 836700 | W124: Seawater | X124: Highland
A125: 2047251 | B125: 2011-09-01 | C125: AIR1 | D125: 3237 | E125: 627 | F125: The Scottish Salmon Company Ltd | G125: CAR/L/1002917 | H125: 0 | I125: 142307 | J125: 105 | K125: 0 | L125: 5250 | M125: 0 | N125: 0 | O125: Aird Ardheslaig | P125: CAR/L/1002917/C1/V4 | Q125: The Scottish Salmon Company Ltd | R125: 1750 | S125: Loch Sheildaig | T125: NG78855605 | U125: 178850 | V125: 856050 | W125: Seawater | X125: Highland
A126: 2051332 | B126: 2014-09-01 | C126: STOC1 | D126: 56778.1 | E126: 313 | F126: The Scottish Salmon Company Ltd | G126: CAR/L/1001853 | H126: 0 | I126: 54800 | J126: 105 | K126: 0 | L126: 0 | M126: 0 | N126: 0 | O126: Stockinish | P126: CAR/L/1001853/V8 | Q126: The Scottish Salmon Company Ltd | R126: 300 | S126: Loch Stockinish | T126: NG12989126 | U126: 112984 | V126: 891259 | W126: Seawater | X126: Eilean Siar
A127: 2074621 | B127: 2012-03-01 | C127: EUG1 | D127: 11279 | E127: 748 | F127: The Scottish Salmon Company Ltd | G127: CAR/L/1082027 | H127: 0 | I127: 95689 | J127: 105 | K127: 0 | L127: 0 | M127: 0 | N127: 0 | O127: Eughlam North | P127: CAR/L/1082027/V4 | Q127: The Scottish Salmon Company Ltd | R127: 1897 | S127: Loch Roag | T127: NB16203950 | U127: 116200 | V127: 939500 | W127: Seawater | X127: Eilean Siar
A128: 2072746 | B128: 2012-05-01 | C128: VUM1 | D128: 7308 | E128: 1324 | F128: The Scottish Salmon Company Ltd | G128: CAR/L/1011812 | H128: 0 | I128: 205808 | J128: 105 | K128: 0 | L128: 0 | M128: 0 | N128: 0 | O128: Vuia Mor | P128: CAR/L/1011812/V7 | Q128: The Scottish Salmon Company Ltd | R128: 1667 | S128: Loch Roag | T128: NB12683431 | U128: 112680 | V128: 934310 | W128: Seawater | X128: Eilean Siar
A129: 2072766 | B129: 2014-01-01 | C129: VUM1 | D129: 5539.5 | E129: 1233 | F129: The Scottish Salmon Company Ltd | G129: CAR/L/1011812 | H129: 0 | I129: 131208 | J129: 105 | K129: 0 | L129: 0 | M129: 0 | N129: 0 | O129: Vuia Mor | P129: CAR/L/1011812/V7 | Q129: The Scottish Salmon Company Ltd | R129: 1667 | S129: Loch Roag | T129: NB12683431 | U129: 112680 | V129: 934310 | W129: Seawater | X129: Eilean Siar
A130: 2073797 | B130: 2012-05-01 | C130: KYL1 | D130: 3664 | E130: 1062 | F130: The Scottish Salmon Company Ltd | G130: CAR/L/1001791 | H130: 0 | I130: 166100 | J130: 105 | K130: 0 | L130: 0 | M130: 0 | N130: 0 | O130: Kyles Vuia East | P130: CAR/L/1001791/V3 | Q130: The Scottish Salmon Company Ltd | R130: 1390 | S130: Loch Roag | T130: NB13803530 | U130: 113800 | V130: 935300 | W130: Seawater | X130: Eilean Siar
A131: 2073821 | B131: 2014-05-01 | C131: KYL1 | D131: 3594.1 | E131: 1158 | F131: The Scottish Salmon Company Ltd | G131: CAR/L/1001791 | H131: 0 | I131: 161472 | J131: 105 | K131: 0 | L131: 0 | M131: 0 | N131: 0 | O131: Kyles Vuia East | P131: CAR/L/1001791/V3 | Q131: The Scottish Salmon Company Ltd | R131: 1390 | S131: Loch Roag | T131: NB13803530 | U131: 113800 | V131: 935300 | W131: Seawater | X131: Eilean Siar
A132: 2074259 | B132: 2010-10-01 | C132: TARA1 | D132: 2720 | E132: 957 | F132: The Scottish Salmon Company Ltd | G132: CAR/L/1017374 | H132: 0 | I132: 214000 | J132: 105 | K132: 0 | L132: 0 | M132: 0 | N132: 0 | O132: Taranaish | P132: CAR/L/1017374/V8 | Q132: The Scottish Salmon Company Ltd | R132: 1466 | S132: Loch Roag | T132: NB18063710 | U132: 118060 | V132: 937100 | W132: Seawater | X132: Eilean Siar
A133: 2072558 | B133: 2011-03-01 | C133: FFMC10 | D133: 2217 | E133: 1094 | F133: The Scottish Salmon Company Ltd | G133: CAR/L/1010474 | H133: 0 | I133: 122754 | J133: 105 | K133: 0 | L133: 0 | M133: 0 | N133: 0 | O133: Glenan Bay | P133: CAR/L/1010474/V7 | Q133: The Scottish Salmon Company Ltd | R133: 1220 | S133: Loch Fyne | T133: NR91806980 | U133: 191800 | V133: 669800 | W133: Seawater | X133: Argyll and Bute
A134: 2051134 | B134: 2011-12-01 | C134: MSTR1 | D134: 1440 | E134: 1374 | F134: The Scottish Salmon Company Ltd | G134: CAR/L/1004069 | H134: 0 | I134: 230648 | J134: 105 | K134: 0 | L134: 0 | M134: 0 | N134: 0 | O134: Mid Strome | P134: CAR/L/1004069/V7 | Q134: The Scottish Salmon Company Ltd | R134: 687 | S134: Loch Carron | T134: NG87933670 | U134: 187930 | V134: 836700 | W134: Seawater | X134: Highland
A135: 2071722 | B135: 2011-02-01 | C135: FFMC43 | D135: 1253 | E135: 884 | F135: The Scottish Salmon Company Ltd | G135: CAR/L/1010775 | H135: 0 | I135: 121994 | J135: 105 | K135: 0 | L135: 0 | M135: 0 | N135: 0 | O135: Ardcastle | P135: CAR/L/1010775/C1/V6 | Q135: The Scottish Salmon Company Ltd | R135: 1372 | S135: Loch Fyne | T135: NR95599241 | U135: 195590 | V135: 692410 | W135: Seawater | X135: Argyll and Bute
A136: 2069105 | B136: 2009-03-01 | C136: FFMC46 | D136: 3999 | E136: 1409 | F136: Lighthouse Caledonia Ltd | G136: CAR/L/1010773 | H136: 4 | I136: 183569 | J136: 103.8 | K136: 0 | L136: 0 | M136: 0 | N136: 0 | O136: Gob a Bharra | P136: CAR/L/1010773/C1/V2 | Q136: The Scottish Salmon Company Ltd | R136: 1072 | S136: Loch Fyne | T136: NR90277601 | U136: 190270 | V136: 676010 | W136: Seawater | X136: Argyll and Bute
A137: 2051132 | B137: 2011-10-01 | C137: MSTR1 | D137: 1466 | E137: 1292 | F137: The Scottish Salmon Company Ltd | G137: CAR/L/1004069 | H137: 0 | I137: 260885 | J137: 102.7 | K137: 0 | L137: 0 | M137: 0 | N137: 0 | O137: Mid Strome | P137: CAR/L/1004069/V7 | Q137: The Scottish Salmon Company Ltd | R137: 687 | S137: Loch Carron | T137: NG87933670 | U137: 187930 | V137: 836700 | W137: Seawater | X137: Highland
A138: 2071532 | B138: 2009-04-01 | C138: FFMC29 | D138: 22526 | E138: 1303 | F138: Lighthouse Caledonia Ltd | G138: CAR/L/1003088 | H138: 0 | I138: 127655 | J138: 100.8 | K138: 0 | L138: 0 | M138: 0 | N138: 0 | O138: Quarry Point | P138: CAR/L/1003088/C1/V6 | Q138: The Scottish Salmon Company Ltd | R138: 1061 | S138: Loch Fyne | T138: NR99809800 | U138: 199800 | V138: 698000 | W138: Seawater | X138: Argyll and Bute
A139: 2073778 | B139: 2010-10-01 | C139: KYL1 | D139: 4425 | E139: 975 | F139: The Scottish Salmon Company Ltd | G139: CAR/L/1001791 | H139: 0 | I139: 169582 | J139: 100.4 | K139: 0 | L139: 0 | M139: 0 | N139: 0 | O139: Kyles Vuia East | P139: CAR/L/1001791/V3 | Q139: The Scottish Salmon Company Ltd | R139: 1390 | S139: Loch Roag | T139: NB13803530 | U139: 113800 | V139: 935300 | W139: Seawater | X139: Eilean Siar
A140: 2072763 | B140: 2013-10-01 | C140: VUM1 | D140: 3561.2 | E140: 933 | F140: The Scottish Salmon Company Ltd | G140: CAR/L/1011812 | H140: 0 | I140: 232698 | J140: 100 | K140: 0 | L140: 0 | M140: 0 | N140: 408.14 | O140: Vuia Mor | P140: CAR/L/1011812/V7 | Q140: The Scottish Salmon Company Ltd | R140: 1667 | S140: Loch Roag | T140: NB12683431 | U140: 112680 | V140: 934310 | W140: Seawater | X140: Eilean Siar
A141: 2047288 | B141: 2014-10-01 | C141: AIR1 | D141: 4568.4 | E141: 911 | F141: The Scottish Salmon Company Ltd | G141: CAR/L/1002917 | H141: 0 | I141: 241368 | J141: 100 | K141: 0 | L141: 0 | M141: 0 | N141: 340.4 | O141: Aird Ardheslaig | P141: CAR/L/1002917/C1/V4 | Q141: The Scottish Salmon Company Ltd | R141: 1750 | S141: Loch Sheildaig | T141: NG78855605 | U141: 178850 | V141: 856050 | W141: Seawater | X141: Highland
A142: 2048316 | B142: 2013-03-01 | C142: POR2 | D142: 6106 | E142: 704 | F142: The Scottish Salmon Company Ltd | G142: CAR/L/1002350 | H142: 0 | I142: 69995 | J142: 100 | K142: 0 | L142: 0 | M142: 0 | N142: 270.2 | O142: Loch Portree (Torvaig) | P142: CAR/L/1002350/V6 | Q142: The Scottish Salmon Company Ltd | R142: 2022 | S142: Sound of Raasay | T142: NG50604412 | U142: 150600 | V142: 844120 | W142: Seawater | X142: Highland
A143: 2075047 | B143: 2012-11-01 | C143: PLOC1 | D143: 2809 | E143: 567 | F143: The Scottish Salmon Company Ltd | G143: CAR/L/1016553 | H143: 0 | I143: 91575 | J143: 100 | K143: 0 | L143: 1000 | M143: 0 | N143: 177.52 | O143: Plocrapol | P143: CAR/L/1016553/V6 | Q143: The Scottish Salmon Company Ltd | R143: 1092 | S143: East Loch Tarbert | T143: NG18609400 | U143: 118600 | V143: 894000 | W143: Seawater | X143: Eilean Siar
A144: 2074957 | B144: 2013-11-01 | C144: FFMC26 | D144: 8905 | E144: 525 | F144: Scottish Sea Farms Ltd | G144: CAR/L/1015868 | H144: 0 | I144: 53326 | J144: 100 | K144: 0 | L144: 1500 | M144: 0 | N144: 0 | O144: Tuath (Rubha na Gall) | P144: CAR/L/1015868/C1/V3 | Q144: The Scottish Salmon Company Ltd | R144: 850 | S144: Loch Tuath | T144: NM41904130 | U144: 141900 | V144: 741300 | W144: Seawater | X144: Argyll and Bute
A145: 2072438 | B145: 2014-10-01 | C145: FFMC66 | D145: 7532.4 | E145: 614 | F145: The Scottish Salmon Company Ltd | G145: CAR/L/1000891 | H145: 0 | I145: 118155 | J145: 100 | K145: 0 | L145: 1400 | M145: 0 | N145: 0 | O145: Rubha Stillaig | P145: CAR/L/1000891/C1/V1 | Q145: The Scottish Salmon Company Ltd | R145: 741 | S145: Loch Fyne | T145: NR92506820 | U145: 192500 | V145: 668200 | W145: Seawater | X145: Argyll and Bute
A146: 2073986 | B146: 2014-08-01 | C146: FFMC77 | D146: 21990.2 | E146: 914 | F146: The Scottish Salmon Company Ltd | G146: CAR/L/1003718 | H146: 0 | I146: 172656 | J146: 100 | K146: 0 | L146: 0 | M146: 0 | N146: 0 | O146: Strone Point | P146: CAR/L/1003718/V5 | Q146: The Scottish Salmon Company Ltd | R146: 1986 | S146: Loch Striven | T146: NS08127245 | U146: 208120 | V146: 672450 | W146: Seawater | X146: Argyll and Bute
A147: 2072790 | B147: 2016-01-01 | C147: VUM1 | D147: 10506 | E147: 821 | F147: The Scottish Salmon Company Ltd | G147: CAR/L/1011812 | H147: 0 | I147: 131233 | J147: 100 | K147: 0 | L147: 0 | M147: 0 | N147: 0 | O147: Vuia Mor | P147: CAR/L/1011812/V7 | Q147: The Scottish Salmon Company Ltd | R147: 1667 | S147: Loch Roag | T147: NB12683431 | U147: 112680 | V147: 934310 | W147: Seawater | X147: Eilean Siar
A148: 2074031 | B148: 2014-08-01 | C148: SGND1 | D148: 8245.6 | E148: 832 | F148: The Scottish Salmon Company Ltd | G148: CAR/L/1108041 | H148: 0 | I148: 221357 | J148: 100 | K148: 0 | L148: 0 | M148: 0 | N148: 0 | O148: Sgian Dubh | P148: CAR/L/1108041/V3 | Q148: The Scottish Salmon Company Ltd | R148: 2437 | S148: Loch Striven | T148: NS07907489 | U148: 207902 | V148: 674892 | W148: Seawater | X148: Argyll and Bute
A149: 2072227 | B149: 2011-03-01 | C149: FFMC47 | D149: 5603 | E149: 1155 | F149: The Scottish Salmon Company Ltd | G149: CAR/L/1010817 | H149: 0 | I149: 133586 | J149: 100 | K149: 0 | L149: 0 | M149: 0 | N149: 0 | O149: Ardgaddan | P149: CAR/L/1010817/V5 | Q149: The Scottish Salmon Company Ltd | R149: 1696 | S149: Loch Fyne | T149: NR90938099 | U149: 190930 | V149: 680990 | W149: Seawater | X149: Argyll and Bute
A150: 2071911 | B150: 2012-11-01 | C150: FFMC14 | D150: 4182 | E150: 713 | F150: The Scottish Salmon Company Ltd | G150: CAR/L/1015860 | H150: 0 | I150: 169786 | J150: 100 | K150: 0 | L150: 0 | M150: 0 | N150: 0 | O150: Meall Mhor | P150: CAR/L/1015860/V7 | Q150: The Scottish Salmon Company Ltd | R150: 1345 | S150: Loch Fyne | T150: NR86507450 | U150: 186500 | V150: 674500 | W150: Seawater | X150: Argyll and Bute
A151: 2071576 | B151: 2012-12-01 | C151: FFMC29 | D151: 4092 | E151: 1041 | F151: The Scottish Salmon Company Ltd | G151: CAR/L/1003088 | H151: 0 | I151: 143928 | J151: 100 | K151: 0 | L151: 0 | M151: 0 | N151: 0 | O151: Quarry Point | P151: CAR/L/1003088/C1/V6 | Q151: The Scottish Salmon Company Ltd | R151: 1061 | S151: Loch Fyne | T151: NR99809800 | U151: 199800 | V151: 698000 | W151: Seawater | X151: Argyll and Bute
A152: 2047287 | B152: 2014-09-01 | C152: AIR1 | D152: 3719.3 | E152: 713 | F152: The Scottish Salmon Company Ltd | G152: CAR/L/1002917 | H152: 0 | I152: 196497 | J152: 100 | K152: 0 | L152: 0 | M152: 0 | N152: 0 | O152: Aird Ardheslaig | P152: CAR/L/1002917/C1/V4 | Q152: The Scottish Salmon Company Ltd | R152: 1750 | S152: Loch Sheildaig | T152: NG78855605 | U152: 178850 | V152: 856050 | W152: Seawater | X152: Highland
A153: 2073841 | B153: 2016-01-01 | C153: KYL1 | D153: 2818.1 | E153: 737 | F153: The Scottish Salmon Company Ltd | G153: CAR/L/1001791 | H153: 0 | I153: 84607 | J153: 100 | K153: 0 | L153: 0 | M153: 0 | N153: 0 | O153: Kyles Vuia East | P153: CAR/L/1001791/V3 | Q153: The Scottish Salmon Company Ltd | R153: 1390 | S153: Loch Roag | T153: NB13803530 | U153: 113800 | V153: 935300 | W153: Seawater | X153: Eilean Siar
A154: 2042583 | B154: 2011-10-01 | C154: FFMC59 | D154: 2679 | E154: 658 | F154: The Scottish Salmon Company Ltd | G154: CAR/L/1000808 | H154: 0 | I154: 117533 | J154: 100 | K154: 0 | L154: 0 | M154: 0 | N154: 0 | O154: Geasgill | P154: CAR/L/1000808/C1/V6 | Q154: The Scottish Salmon Company Ltd | R154: 2091 | S154: Loch na Keal | T154: NM43633764 | U154: 143630 | V154: 737639 | W154: Seawater | X154: Argyll and Bute
A155: 2072436 | B155: 2014-08-01 | C155: FFMC66 | D155: 2032.3 | E155: 491 | F155: The Scottish Salmon Company Ltd | G155: CAR/L/1000891 | H155: 0 | I155: 110438 | J155: 100 | K155: 0 | L155: 0 | M155: 0 | N155: 0 | O155: Rubha Stillaig | P155: CAR/L/1000891/C1/V1 | Q155: The Scottish Salmon Company Ltd | R155: 741 | S155: Loch Fyne | T155: NR92506820 | U155: 192500 | V155: 668200 | W155: Seawater | X155: Argyll and Bute
A156: 2074402 | B156: 2014-06-01 | C156: TRM1 | D156: 1897.1 | E156: 709 | F156: The Scottish Salmon Company Ltd | G156: CAR/L/1013016 | H156: 0 | I156: 121763 | J156: 100 | K156: 0 | L156: 0 | M156: 0 | N156: 0 | O156: Trilleachan Mor | P156: CAR/L/1013016/V5 | Q156: The Scottish Salmon Company Ltd | R156: 1700 | S156: Loch Seaforth | T156: NB20870736 | U156: 120870 | V156: 907360 | W156: Seawater | X156: Eilean Siar
A157: 2051137 | B157: 2012-03-01 | C157: MSTR1 | D157: 1503 | E157: 847 | F157: The Scottish Salmon Company Ltd | G157: CAR/L/1004069 | H157: 0 | I157: 134933 | J157: 100 | K157: 0 | L157: 0 | M157: 0 | N157: 0 | O157: Mid Strome | P157: CAR/L/1004069/V7 | Q157: The Scottish Salmon Company Ltd | R157: 687 | S157: Loch Carron | T157: NG87933670 | U157: 187930 | V157: 836700 | W157: Seawater | X157: Highland
A158: 2071933 | B158: 2014-09-01 | C158: FFMC14 | D158: 1112.8 | E158: 837 | F158: The Scottish Salmon Company Ltd | G158: CAR/L/1015860 | H158: 0 | I158: 187152 | J158: 100 | K158: 0 | L158: 0 | M158: 0 | N158: 0 | O158: Meall Mhor | P158: CAR/L/1015860/V7 | Q158: The Scottish Salmon Company Ltd | R158: 1345 | S158: Loch Fyne | T158: NR86507450 | U158: 186500 | V158: 674500 | W158: Seawater | X158: Argyll and Bute
A159: 2073822 | B159: 2014-06-01 | C159: KYL1 | D159: 4015.1 | E159: 1080 | F159: The Scottish Salmon Company Ltd | G159: CAR/L/1001791 | H159: 0 | I159: 180752 | J159: 98.8 | K159: 0 | L159: 0 | M159: 0 | N159: 588 | O159: Kyles Vuia East | P159: CAR/L/1001791/V3 | Q159: The Scottish Salmon Company Ltd | R159: 1390 | S159: Loch Roag | T159: NB13803530 | U159: 113800 | V159: 935300 | W159: Seawater | X159: Eilean Siar
A160: 2072921 | B160: 2012-03-01 | C160: VIB1 | D160: 968 | E160: 624 | F160: The Scottish Salmon Company Ltd | G160: CAR/L/1015852 | H160: 0 | I160: 105083 | J160: 97.5 | K160: 0 | L160: 0 | M160: 0 | N160: 214.5 | O160: Vuia Beag | P160: CAR/L/1015852/V6 | Q160: The Scottish Salmon Company Ltd | R160: 1290 | S160: Loch Roag | T160: NB12103310 | U160: 112100 | V160: 933100 | W160: Seawater | X160: Eilean Siar
A161: 2072918 | B161: 2011-12-01 | C161: VIB1 | D161: 992 | E161: 430 | F161: The Scottish Salmon Company Ltd | G161: CAR/L/1015852 | H161: 0 | I161: 47953 | J161: 97.5 | K161: 0 | L161: 0 | M161: 0 | N161: 176 | O161: Vuia Beag | P161: CAR/L/1015852/V6 | Q161: The Scottish Salmon Company Ltd | R161: 1290 | S161: Loch Roag | T161: NB12103310 | U161: 112100 | V161: 933100 | W161: Seawater | X161: Eilean Siar
A162: 2073121 | B162: 2014-11-01 | C162: FFMC49 | D162: 4871.1 | E162: 794 | F162: The Scottish Salmon Company Ltd | G162: CAR/L/1010476 | H162: 0 | I162: 214727 | J162: 97.5 | K162: 0 | L162: 0 | M162: 0 | N162: 0 | O162: Tarbert South | P162: CAR/L/1010476/V5 | Q162: The Scottish Salmon Company Ltd | R162: 1030 | S162: Loch Fyne | T162: NR90206530 | U162: 190200 | V162: 665300 | W162: Seawater | X162: Argyll and Bute
A163: 2071554 | B163: 2011-02-01 | C163: FFMC29 | D163: 1907 | E163: 984 | F163: The Scottish Salmon Company Ltd | G163: CAR/L/1003088 | H163: 0 | I163: 115239 | J163: 97.5 | K163: 0 | L163: 0 | M163: 0 | N163: 0 | O163: Quarry Point | P163: CAR/L/1003088/C1/V6 | Q163: The Scottish Salmon Company Ltd | R163: 1061 | S163: Loch Fyne | T163: NR99809800 | U163: 199800 | V163: 698000 | W163: Seawater | X163: Argyll and Bute
A164: 2050330 | B164: 2010-10-01 | C164: VACR1 | D164: 1306 | E164: 1094 | F164: The Scottish Salmon Company Ltd | G164: CAR/L/1005041 | H164: 0 | I164: 235665 | J164: 96.25 | K164: 0 | L164: 0 | M164: 0 | N164: 0 | O164: Vacasay, Roag | P164: CAR/L/1005041/V7 | Q164: The Scottish Salmon Company Ltd | R164: 1100 | S164: Loch Roag | T164: NB19313618 | U164: 119310 | V164: 936180 | W164: Seawater | X164: Eilean Siar
A165: 2072203 | B165: 2009-03-01 | C165: FFMC47 | D165: 2830 | E165: 1218 | F165: Lighthouse Caledonia Ltd | G165: CAR/L/1010817 | H165: 0 | I165: 114525 | J165: 92.4 | K165: 0 | L165: 0 | M165: 0 | N165: 480 | O165: Ardgaddan | P165: CAR/L/1010817/V5 | Q165: The Scottish Salmon Company Ltd | R165: 1696 | S165: Loch Fyne | T165: NR90938099 | U165: 190930 | V165: 680990 | W165: Seawater | X165: Argyll and Bute
A166: 2072904 | B166: 2010-10-01 | C166: VIB1 | D166: 2119 | E166: 1160 | F166: The Scottish Salmon Company Ltd | G166: CAR/L/1015852 | H166: 0 | I166: 141359 | J166: 92.07 | K166: 0 | L166: 0 | M166: 0 | N166: 0 | O166: Vuia Beag | P166: CAR/L/1015852/V6 | Q166: The Scottish Salmon Company Ltd | R166: 1290 | S166: Loch Roag | T166: NB12103310 | U166: 112100 | V166: 933100 | W166: Seawater | X166: Eilean Siar
A167: 2073602 | B167: 2010-09-01 | C167: GOUS1 | D167: 1108 | E167: 744 | F167: The Scottish Salmon Company Ltd | G167: CAR/L/1002929 | H167: 0 | I167: 109292 | J167: 92 | K167: 0 | L167: 0 | M167: 0 | N167: 0 | O167: Gousam | P167: CAR/L/1002929/V7 | Q167: The Scottish Salmon Company Ltd | R167: 850 | S167: Loch Roag | T167: NB11103380 | U167: 111100 | V167: 933800 | W167: Seawater | X167: Eilean Siar
A168: 2074303 | B168: 2014-06-01 | C168: TARA1 | D168: 31196.6 | E168: 1145 | F168: The Scottish Salmon Company Ltd | G168: CAR/L/1017374 | H168: 0 | I168: 177951 | J168: 90 | K168: 0 | L168: 0 | M168: 0 | N168: 503.12 | O168: Taranaish | P168: CAR/L/1017374/V8 | Q168: The Scottish Salmon Company Ltd | R168: 1466 | S168: Loch Roag | T168: NB18063710 | U168: 118060 | V168: 937100 | W168: Seawater | X168: Eilean Siar
A169: 2074273 | B169: 2011-12-01 | C169: TARA1 | D169: 7085 | E169: 1059 | F169: The Scottish Salmon Company Ltd | G169: CAR/L/1017374 | H169: 0 | I169: 74450 | J169: 90 | K169: 0 | L169: 0 | M169: 0 | N169: 500.5 | O169: Taranaish | P169: CAR/L/1017374/V8 | Q169: The Scottish Salmon Company Ltd | R169: 1466 | S169: Loch Roag | T169: NB18063710 | U169: 118060 | V169: 937100 | W169: Seawater | X169: Eilean Siar
A170: 2072744 | B170: 2012-03-01 | C170: VUM1 | D170: 1217 | E170: 1051 | F170: The Scottish Salmon Company Ltd | G170: CAR/L/1011812 | H170: 0 | I170: 148346 | J170: 90 | K170: 0 | L170: 0 | M170: 0 | N170: 414 | O170: Vuia Mor | P170: CAR/L/1011812/V7 | Q170: The Scottish Salmon Company Ltd | R170: 1667 | S170: Loch Roag | T170: NB12683431 | U170: 112680 | V170: 934310 | W170: Seawater | X170: Eilean Siar
A171: 2050374 | B171: 2014-06-01 | C171: VACR1 | D171: 15702.2 | E171: 894 | F171: The Scottish Salmon Company Ltd | G171: CAR/L/1005041 | H171: 0 | I171: 144179 | J171: 90 | K171: 0 | L171: 0 | M171: 0 | N171: 360.36 | O171: Vacasay, Roag | P171: CAR/L/1005041/V7 | Q171: The Scottish Salmon Company Ltd | R171: 1100 | S171: Loch Roag | T171: NB19313618 | U171: 119310 | V171: 936180 | W171: Seawater | X171: Eilean Siar
A172: 2074276 | B172: 2012-03-01 | C172: TARA1 | D172: 4578 | E172: 825 | F172: The Scottish Salmon Company Ltd | G172: CAR/L/1017374 | H172: 0 | I172: 144231 | J172: 90 | K172: 0 | L172: 0 | M172: 0 | N172: 317.4 | O172: Taranaish | P172: CAR/L/1017374/V8 | Q172: The Scottish Salmon Company Ltd | R172: 1466 | S172: Loch Roag | T172: NB18063710 | U172: 118060 | V172: 937100 | W172: Seawater | X172: Eilean Siar
A173: 2072741 | B173: 2011-12-01 | C173: VUM1 | D173: 2102 | E173: 782 | F173: The Scottish Salmon Company Ltd | G173: CAR/L/1011812 | H173: 0 | I173: 94246 | J173: 90 | K173: 0 | L173: 0 | M173: 0 | N173: 310.8 | O173: Vuia Mor | P173: CAR/L/1011812/V7 | Q173: The Scottish Salmon Company Ltd | R173: 1667 | S173: Loch Roag | T173: NB12683431 | U173: 112680 | V173: 934310 | W173: Seawater | X173: Eilean Siar
A174: 2073792 | B174: 2011-12-01 | C174: KYL1 | D174: 13421 | E174: 559 | F174: The Scottish Salmon Company Ltd | G174: CAR/L/1001791 | H174: 0 | I174: 63149 | J174: 90 | K174: 0 | L174: 0 | M174: 0 | N174: 242 | O174: Kyles Vuia East | P174: CAR/L/1001791/V3 | Q174: The Scottish Salmon Company Ltd | R174: 1390 | S174: Loch Roag | T174: NB13803530 | U174: 113800 | V174: 935300 | W174: Seawater | X174: Eilean Siar
A175: 2071953 | B175: 2016-06-01 | C175: FFMC14 | D175: 1836.9 | E175: 452 | F175: The Scottish Salmon Company Ltd | G175: CAR/L/1015860 | H175: 0 | I175: 79412 | J175: 90 | K175: 0 | L175: 0 | M175: 0 | N175: 167.96 | O175: Meall Mhor | P175: CAR/L/1015860/V7 | Q175: The Scottish Salmon Company Ltd | R175: 1345 | S175: Loch Fyne | T175: NR86507450 | U175: 186500 | V175: 674500 | W175: Seawater | X175: Argyll and Bute
A176: 2075150 | B176: 2015-09-01 | C176: EPO1 | D176: 649.6 | E176: 353 | F176: The Scottish Salmon Company Ltd | G176: CAR/L/1033617 | H176: 0 | I176: 89197 | J176: 90 | K176: 0 | L176: 0 | M176: 0 | N176: 134.54 | O176: Eport Outer (Sgeir n Lolla) | P176: CAR/L/1033617/V5 | Q176: The Scottish Salmon Company Ltd | R176: 675 | S176: Loch Eport | T176: NF90806360 | U176: 90800 | V176: 863600 | W176: Seawater | X176: Eilean Siar
A177: 2074962 | B177: 2014-04-01 | C177: FFMC26 | D177: 6153.1 | E177: 776 | F177: Scottish Sea Farms Ltd | G177: CAR/L/1015868 | H177: 0 | I177: 95233 | J177: 90 | K177: 0 | L177: 0 | M177: 0 | N177: 0 | O177: Tuath (Rubha na Gall) | P177: CAR/L/1015868/C1/V3 | Q177: The Scottish Salmon Company Ltd | R177: 850 | S177: Loch Tuath | T177: NM41904130 | U177: 141900 | V177: 741300 | W177: Seawater | X177: Argyll and Bute
A178: 2073622 | B178: 2012-05-01 | C178: GOUS1 | D178: 5017 | E178: 706 | F178: The Scottish Salmon Company Ltd | G178: CAR/L/1002929 | H178: 0 | I178: 99714 | J178: 90 | K178: 0 | L178: 0 | M178: 0 | N178: 0 | O178: Gousam | P178: CAR/L/1002929/V7 | Q178: The Scottish Salmon Company Ltd | R178: 850 | S178: Loch Roag | T178: NB11103380 | U178: 111100 | V178: 933800 | W178: Seawater | X178: Eilean Siar
A179: 2073625 | B179: 2012-08-01 | C179: GOUS1 | D179: 5013 | E179: 270 | F179: The Scottish Salmon Company Ltd | G179: CAR/L/1002929 | H179: 0 | I179: 37163 | J179: 90 | K179: 0 | L179: 0 | M179: 0 | N179: 0 | O179: Gousam | P179: CAR/L/1002929/V7 | Q179: The Scottish Salmon Company Ltd | R179: 850 | S179: Loch Roag | T179: NB11103380 | U179: 111100 | V179: 933800 | W179: Seawater | X179: Eilean Siar
A180: 2072416 | B180: 2012-12-01 | C180: FFMC66 | D180: 3480 | E180: 684 | F180: The Scottish Salmon Company Ltd | G180: CAR/L/1000891 | H180: 0 | I180: 90663 | J180: 90 | K180: 0 | L180: 0 | M180: 0 | N180: 0 | O180: Rubha Stillaig | P180: CAR/L/1000891/C1/V1 | Q180: The Scottish Salmon Company Ltd | R180: 741 | S180: Loch Fyne | T180: NR92506820 | U180: 192500 | V180: 668200 | W180: Seawater | X180: Argyll and Bute
A181: 2072602 | B181: 2014-11-01 | C181: FFMC10 | D181: 3405.4 | E181: 879 | F181: The Scottish Salmon Company Ltd | G181: CAR/L/1010474 | H181: 0 | I181: 225397 | J181: 90 | K181: 0 | L181: 0 | M181: 0 | N181: 0 | O181: Glenan Bay | P181: CAR/L/1010474/V7 | Q181: The Scottish Salmon Company Ltd | R181: 1220 | S181: Loch Fyne | T181: NR91806980 | U181: 191800 | V181: 669800 | W181: Seawater | X181: Argyll and Bute
A182: 2074173 | B182: 2011-11-01 | C182: FFMC72 | D182: 2977 | E182: 579 | F182: The Scottish Salmon Company Ltd | G182: CAR/L/1000789 | H182: 0 | I182: 56900 | J182: 90 | K182: 0 | L182: 0 | M182: 0 | N182: 0 | O182: East Tarbert Bay | P182: CAR/L/1000789/V5 | Q182: The Scottish Salmon Company Ltd | R182: 600 | S182: Sound of Gigha | T182: NR66785322 | U182: 166780 | V182: 653220 | W182: Seawater | X182: Argyll and Bute
A183: 2072415 | B183: 2012-11-01 | C183: FFMC66 | D183: 2921 | E183: 656 | F183: The Scottish Salmon Company Ltd | G183: CAR/L/1000891 | H183: 0 | I183: 113881 | J183: 90 | K183: 0 | L183: 0 | M183: 0 | N183: 0 | O183: Rubha Stillaig | P183: CAR/L/1000891/C1/V1 | Q183: The Scottish Salmon Company Ltd | R183: 741 | S183: Loch Fyne | T183: NR92506820 | U183: 192500 | V183: 668200 | W183: Seawater | X183: Argyll and Bute
A184: 2072559 | B184: 2011-04-01 | C184: FFMC10 | D184: 1382 | E184: 963 | F184: The Scottish Salmon Company Ltd | G184: CAR/L/1010474 | H184: 0 | I184: 127950 | J184: 90 | K184: 0 | L184: 0 | M184: 0 | N184: 0 | O184: Glenan Bay | P184: CAR/L/1010474/V7 | Q184: The Scottish Salmon Company Ltd | R184: 1220 | S184: Loch Fyne | T184: NR91806980 | U184: 191800 | V184: 669800 | W184: Seawater | X184: Argyll and Bute
A185: 2075133 | B185: 2014-04-01 | C185: EPO1 | D185: 1372.9 | E185: 585 | F185: The Scottish Salmon Company Ltd | G185: CAR/L/1033617 | H185: 0 | I185: 80636 | J185: 90 | K185: 0 | L185: 0 | M185: 0 | N185: 0 | O185: Eport Outer (Sgeir n Lolla) | P185: CAR/L/1033617/V5 | Q185: The Scottish Salmon Company Ltd | R185: 675 | S185: Loch Eport | T185: NF90806360 | U185: 90800 | V185: 863600 | W185: Seawater | X185: Eilean Siar
A186: 2071932 | B186: 2014-08-01 | C186: FFMC14 | D186: 1209.6 | E186: 658 | F186: The Scottish Salmon Company Ltd | G186: CAR/L/1015860 | H186: 0 | I186: 164213 | J186: 90 | K186: 0 | L186: 0 | M186: 0 | N186: 0 | O186: Meall Mhor | P186: CAR/L/1015860/V7 | Q186: The Scottish Salmon Company Ltd | R186: 1345 | S186: Loch Fyne | T186: NR86507450 | U186: 186500 | V186: 674500 | W186: Seawater | X186: Argyll and Bute
A187: 2051330 | B187: 2014-07-01 | C187: STOC1 | D187: 897 | E187: 245 | F187: The Scottish Salmon Company Ltd | G187: CAR/L/1001853 | H187: 0 | I187: 49500 | J187: 90 | K187: 0 | L187: 0 | M187: 0 | N187: 0 | O187: Stockinish | P187: CAR/L/1001853/V8 | Q187: The Scottish Salmon Company Ltd | R187: 300 | S187: Loch Stockinish | T187: NG12989126 | U187: 112984 | V187: 891259 | W187: Seawater | X187: Eilean Siar
A188: 2072772 | B188: 2014-07-01 | C188: VUM1 | D188: 6070.2 | E188: 614 | F188: The Scottish Salmon Company Ltd | G188: CAR/L/1011812 | H188: 0 | I188: 138858 | J188: 87.5 | K188: 0 | L188: 0 | M188: 0 | N188: 0 | O188: Vuia Mor | P188: CAR/L/1011812/V7 | Q188: The Scottish Salmon Company Ltd | R188: 1667 | S188: Loch Roag | T188: NB12683431 | U188: 112680 | V188: 934310 | W188: Seawater | X188: Eilean Siar
A189: 2047273 | B189: 2013-07-01 | C189: AIR1 | D189: 5527.9 | E189: 1143 | F189: The Scottish Salmon Company Ltd | G189: CAR/L/1002917 | H189: 0 | I189: 218195 | J189: 87.5 | K189: 0 | L189: 0 | M189: 0 | N189: 0 | O189: Aird Ardheslaig | P189: CAR/L/1002917/C1/V4 | Q189: The Scottish Salmon Company Ltd | R189: 1750 | S189: Loch Sheildaig | T189: NG78855605 | U189: 178850 | V189: 856050 | W189: Seawater | X189: Highland
A190: 2069129 | B190: 2011-03-01 | C190: FFMC46 | D190: 3060 | E190: 812 | F190: The Scottish Salmon Company Ltd | G190: CAR/L/1010773 | H190: 0 | I190: 105929 | J190: 87.5 | K190: 0 | L190: 0 | M190: 0 | N190: 0 | O190: Gob a Bharra | P190: CAR/L/1010773/C1/V2 | Q190: The Scottish Salmon Company Ltd | R190: 1072 | S190: Loch Fyne | T190: NR90277601 | U190: 190270 | V190: 676010 | W190: Seawater | X190: Argyll and Bute
A191: 2073271 | B191: 2012-08-01 | C191: FFMC02 | D191: 792 | E191: 346 | F191: The Scottish Salmon Company Ltd | G191: CAR/L/1015850 | H191: 0 | I191: 63984 | J191: 87.5 | K191: 0 | L191: 0 | M191: 0 | N191: 0 | O191: St Molios | P191: CAR/L/1015850/V7 | Q191: The Scottish Salmon Company Ltd | R191: 1154 | S191: Lamlash Bay | T191: NS04502920 | U191: 204500 | V191: 629200 | W191: Seawater | X191: North Ayrshire
A192: 2072457 | B192: 2016-06-01 | C192: FFMC66 | D192: 1217.7 | E192: 365 | F192: The Scottish Salmon Company Ltd | G192: CAR/L/1000891 | H192: 0 | I192: 82023 | J192: 87.2 | K192: 0 | L192: 0 | M192: 0 | N192: 139.5 | O192: Rubha Stillaig | P192: CAR/L/1000891/C1/V1 | Q192: The Scottish Salmon Company Ltd | R192: 741 | S192: Loch Fyne | T192: NR92506820 | U192: 192500 | V192: 668200 | W192: Seawater | X192: Argyll and Bute
A193: 2051114 | B193: 2010-04-01 | C193: MSTR1 | D193: 1942 | E193: 852 | F193: Lighthouse Caledonia Ltd | G193: CAR/L/1004069 | H193: 0 | I193: 131311 | J193: 85 | K193: 0 | L193: 0 | M193: 0 | N193: 0 | O193: Mid Strome | P193: CAR/L/1004069/V7 | Q193: The Scottish Salmon Company Ltd | R193: 687 | S193: Loch Carron | T193: NG87933670 | U193: 187930 | V193: 836700 | W193: Seawater | X193: Highland
A194: 2072537 | B194: 2009-06-01 | C194: FFMC10 | D194: 1324 | E194: 1426 | F194: Lighthouse Caledonia Ltd | G194: CAR/L/1010474 | H194: 70 | I194: 187866 | J194: 84 | K194: 0 | L194: 0 | M194: 0 | N194: 0 | O194: Glenan Bay | P194: CAR/L/1010474/V7 | Q194: The Scottish Salmon Company Ltd | R194: 1220 | S194: Loch Fyne | T194: NR91806980 | U194: 191800 | V194: 669800 | W194: Seawater | X194: Argyll and Bute
A195: 2073059 | B195: 2009-09-01 | C195: FFMC49 | D195: 696 | E195: 1040 | F195: Lighthouse Caledonia Ltd | G195: CAR/L/1010476 | H195: 10 | I195: 178115 | J195: 84 | K195: 0 | L195: 0 | M195: 0 | N195: 0 | O195: Tarbert South | P195: CAR/L/1010476/V5 | Q195: The Scottish Salmon Company Ltd | R195: 1030 | S195: Loch Fyne | T195: NR90206530 | U195: 190200 | V195: 665300 | W195: Seawater | X195: Argyll and Bute
A196: 2074648 | B196: 2014-06-01 | C196: EUG1 | D196: 5113.2 | E196: 1296 | F196: The Scottish Salmon Company Ltd | G196: CAR/L/1082027 | H196: 0 | I196: 225738 | J196: 82.5 | K196: 0 | L196: 0 | M196: 0 | N196: 518.1 | O196: Eughlam North | P196: CAR/L/1082027/V4 | Q196: The Scottish Salmon Company Ltd | R196: 1897 | S196: Loch Roag | T196: NB16203950 | U196: 116200 | V196: 939500 | W196: Seawater | X196: Eilean Siar
A197: 2072209 | B197: 2009-09-01 | C197: FFMC47 | D197: 2395 | E197: 1056 | F197: Lighthouse Caledonia Ltd | G197: CAR/L/1010817 | H197: 0 | I197: 178842 | J197: 82.5 | K197: 0 | L197: 0 | M197: 0 | N197: 0 | O197: Ardgaddan | P197: CAR/L/1010817/V5 | Q197: The Scottish Salmon Company Ltd | R197: 1696 | S197: Loch Fyne | T197: NR90938099 | U197: 190930 | V197: 680990 | W197: Seawater | X197: Argyll and Bute
A198: 2071917 | B198: 2013-05-01 | C198: FFMC14 | D198: 1913.4 | E198: 426 | F198: The Scottish Salmon Company Ltd | G198: CAR/L/1015860 | H198: 0 | I198: 83493 | J198: 81 | K198: 0 | L198: 0 | M198: 0 | N198: 0 | O198: Meall Mhor | P198: CAR/L/1015860/V7 | Q198: The Scottish Salmon Company Ltd | R198: 1345 | S198: Loch Fyne | T198: NR86507450 | U198: 186500 | V198: 674500 | W198: Seawater | X198: Argyll and Bute
A199: 2070592 | B199: 2012-10-01 | C199: ACHR1 | D199: 445 | E199: 158 | F199: The Scottish Salmon Company Ltd | G199: CAR/L/1004153 | H199: 0 | I199: 49384 | J199: 80 | K199: 0 | L199: 0 | M199: 0 | N199: 59.36 | O199: Kenmore Bay (Loch a Chracaich) | P199: CAR/L/1004153/V6 | Q199: The Scottish Salmon Company Ltd | R199: 694 | S199: Loch Torridon | T199: NG76515703 | U199: 176508 | V199: 857027 | W199: Seawater | X199: Highland
A200: 2074230 | B200: 2016-09-01 | C200: TARA1 | D200: 56170 | E200: 811 | F200: The Scottish Salmon Company Ltd | G200: CAR/L/1017374 | H200: 0 | I200: 102876 | J200: 80 | K200: 0 | L200: 420 | M200: 0 | N200: 0 | O200: Taranaish | P200: CAR/L/1017374/V8 | Q200: The Scottish Salmon Company Ltd | R200: 1466 | S200: Loch Roag | T200: NB18063710 | U200: 118060 | V200: 937100 | W200: Seawater | X200: Eilean Siar
... 2050 more rows

Sheet Scottish Sea Farms
A1: Monthly Report ID | B1: Year | C1: SEPA Site | D1: Mortalities Kilograms | E1: Actual Biomass on Site (tonnes) | F1: Submitted By | G1: Licence Active at Report | H1: Biomass Exceedence Tonnes | I1: Feed Kilograms | J1: Deltamethrin grams | K1: Cypermethrin grams | L1: Azamethiphos grams | M1: Teflubenzuron grams | N1: Emamectin Benzoate grams | O1: Site Name | P1: Active Licence Number | Q1: Operator | R1: Maximum Biomass Allowed (tonnes) | S1: Receiving Water | T1: National Grid Reference | U1: Easting | V1: Northing | W1: Water Type | X1: Local Authority
A2: 2061658 | B2: 2011-10-01 | C2: FFMC19 | D2: 12130 | E2: 1393 | F2: Scottish Sea Farms Ltd | G2: CAR/L/1000843 | H2: 0 | I2: 127104 | J2: 156 | K2: 0 | L2: 0 | M2: 0 | N2: 0 | O2: Creran A | P2: CAR/L/1000843/C1/V2 | Q2: Scottish Sea Farms Ltd | R2: 1500 | S2: Loch Creran | T2: NM93074182 | U2: 193070 | V2: 741820 | W2: Seawater | X2: Argyll and Bute
A3: 2050187 | B3: 2009-08-01 | C3: VIDM1 | D3: 4638 | E3: 1988 | F3: Scottish Sea Farms Ltd | G3: CAR/L/1003928 | H3: 0 | I3: 408817 | J3: 127.68 | K3: 0 | L3: 0 | M3: 0 | N3: 0 | O3: Vidlin North | P3: CAR/L/1003928/V6 | Q3: Scottish Sea Farms Ltd | R3: 916 | S3: Vidlin Voe | T3: HU48406730 | U3: 448400 | V3: 1167300 | W3: Seawater | X3: Shetland Islands
A4: 2065741 | B4: 2012-04-01 | C4: BEL1 | D4: 20038 | E4: 1807 | F4: Scottish Sea Farms Ltd | G4: CAR/L/1034670 | H4: 0 | I4: 264572 | J4: 125 | K4: 0 | L4: 3330 | M4: 0 | N4: 0 | O4: Bellister | P4: CAR/L/1034670/V2 | Q4: Scottish Sea Farms Ltd | R4: 1910 | S4: Dury Voe | T4: HU49146099 | U4: 449170 | V4: 1160970 | W4: Seawater | X4: Shetland Islands
A5: 2065738 | B5: 2012-01-01 | C5: BEL1 | D5: 3714 | E5: 1792 | F5: Scottish Sea Farms Ltd | G5: CAR/L/1034670 | H5: 0 | I5: 253704 | J5: 125 | K5: 0 | L5: 3330 | M5: 0 | N5: 0 | O5: Bellister | P5: CAR/L/1034670/V2 | Q5: Scottish Sea Farms Ltd | R5: 1910 | S5: Dury Voe | T5: HU49146099 | U5: 449170 | V5: 1160970 | W5: Seawater | X5: Shetland Islands
A6: 2056655 | B6: 2012-01-01 | C6: NNES2 | D6: 41787 | E6: 823 | F6: Scottish Sea Farms Ltd | G6: CAR/L/1004209 | H6: 0 | I6: 97604 | J6: 125 | K6: 0 | L6: 2050 | M6: 0 | N6: 0 | O6: North Nesting Site 2 | P6: CAR/L/1004209/V3 | Q6: Scottish Sea Farms Ltd | R6: 995 | S6: Dury Voe | T6: HU46106238 | U6: 446100 | V6: 1162380 | W6: Seawater | X6: Shetland Islands
A7: 2064864 | B7: 2012-03-01 | C7: AAC3 | D7: 1891 | E7: 1662 | F7: Scottish Sea Farms Ltd | G7: CAR/L/1004062 | H7: 0 | I7: 220607 | J7: 112.5 | K7: 0 | L7: 0 | M7: 0 | N7: 0 | O7: Allt a Chois (Kishorn North Shore) | P7: CAR/L/1004062/C1/V2 | Q7: Scottish Sea Farms Ltd | R7: 1900 | S7: Loch Kishorn | T7: NG79253795 | U7: 179250 | V7: 837950 | W7: Seawater | X7: Highland
A8: 2064862 | B8: 2012-01-01 | C8: AAC3 | D8: 1710 | E8: 1887 | F8: Scottish Sea Farms Ltd | G8: CAR/L/1004062 | H8: 0 | I8: 308453 | J8: 112.5 | K8: 0 | L8: 0 | M8: 0 | N8: 0 | O8: Allt a Chois (Kishorn North Shore) | P8: CAR/L/1004062/C1/V2 | Q8: Scottish Sea Farms Ltd | R8: 1900 | S8: Loch Kishorn | T8: NG79253795 | U8: 179250 | V8: 837950 | W8: Seawater | X8: Highland
A9: 2068369 | B9: 2009-08-01 | C9: VIDM2 | D9: 4834 | E9: 1148 | F9: Scottish Sea Farms Ltd | G9: CAR/L/1003907 | H9: 0 | I9: 233516 | J9: 103.2 | K9: 0 | L9: 0 | M9: 0 | N9: 0 | O9: Vidlin Outer | P9: CAR/L/1003907/V5 | Q9: Scottish Sea Farms Ltd | R9: 900 | S9: Vidlin Voe | T9: HU48306775 | U9: 448300 | V9: 1167750 | W9: Seawater | X9: Shetland Islands
A10: 2065715 | B10: 2010-02-01 | C10: BEL1 | D10: 2674 | E10: 1614 | F10: Scottish Sea Farms Ltd | G10: CAR/L/1034670 | H10: 0 | I10: 256714 | J10: 100 | K10: 0 | L10: 0 | M10: 0 | N10: 0 | O10: Bellister | P10: CAR/L/1034670/V2 | Q10: Scottish Sea Farms Ltd | R10: 1910 | S10: Dury Voe | T10: HU49146099 | U10: 449170 | V10: 1160970 | W10: Seawater | X10: Shetland Islands
A11: 2065712 | B11: 2009-11-01 | C11: BEL1 | D11: 1084 | E11: 941 | F11: Scottish Sea Farms Ltd | G11: CAR/L/1034670 | H11: 0 | I11: 111537 | J11: 100 | K11: 0 | L11: 0 | M11: 0 | N11: 0 | O11: Bellister | P11: CAR/L/1034670/V2 | Q11: Scottish Sea Farms Ltd | R11: 1910 | S11: Dury Voe | T11: HU49146099 | U11: 449170 | V11: 1160970 | W11: Seawater | X11: Shetland Islands
A12: 2061657 | B12: 2011-09-01 | C12: FFMC19 | D12: 6156 | E12: 1456 | F12: Scottish Sea Farms Ltd | G12: CAR/L/1000843 | H12: 0 | I12: 184422 | J12: 91 | K12: 0 | L12: 0 | M12: 0 | N12: 0 | O12: Creran A | P12: CAR/L/1000843/C1/V2 | Q12: Scottish Sea Farms Ltd | R12: 1500 | S12: Loch Creran | T12: NM93074182 | U12: 193070 | V12: 741820 | W12: Seawater | X12: Argyll and Bute
A13: 2061656 | B13: 2011-08-01 | C13: FFMC19 | D13: 3912 | E13: 1479 | F13: Scottish Sea Farms Ltd | G13: CAR/L/1000843 | H13: 0 | I13: 303918 | J13: 91 | K13: 0 | L13: 0 | M13: 0 | N13: 0 | O13: Creran A | P13: CAR/L/1000843/C1/V2 | Q13: Scottish Sea Farms Ltd | R13: 1500 | S13: Loch Creran | T13: NM93074182 | U13: 193070 | V13: 741820 | W13: Seawater | X13: Argyll and Bute
A14: 2066513 | B14: 2011-06-01 | C14: TEI1 | D14: 3083 | E14: 1335 | F14: Scottish Sea Farms Ltd | G14: CAR/L/1016872 | H14: 0 | I14: 247909 | J14: 90 | K14: 0 | L14: 525 | M14: 0 | N14: 0 | O14: Teisti Geo | P14: CAR/L/1016872/V4 | Q14: Scottish Sea Farms Ltd | R14: 1500 | S14: Clift Sound | T14: HU38472941 | U14: 438470 | V14: 1129410 | W14: Seawater | X14: Shetland Islands
A15: 2068238 | B15: 2012-06-01 | C15: MAN2 | D15: 9182 | E15: 1478 | F15: Scottish Sea Farms Ltd | G15: CAR/L/1003943 | H15: 0 | I15: 342565 | J15: 84 | K15: 0 | L15: 1548 | M15: 0 | N15: 0 | O15: South Sound, Mangaster Voe | P15: CAR/L/1003943/V5 | Q15: Scottish Sea Farms Ltd | R15: 1500 | S15: Mangaster Voe | T15: HU32216968 | U15: 432210 | V15: 1169680 | W15: Seawater | X15: Shetland Islands
A16: 2068240 | B16: 2012-08-01 | C16: MAN2 | D16: 11849 | E16: 1371 | F16: Scottish Sea Farms Ltd | G16: CAR/L/1003943 | H16: 0 | I16: 237086 | J16: 84 | K16: 0 | L16: 1500 | M16: 0 | N16: 0 | O16: South Sound, Mangaster Voe | P16: CAR/L/1003943/V5 | Q16: Scottish Sea Farms Ltd | R16: 1500 | S16: Mangaster Voe | T16: HU32216968 | U16: 432210 | V16: 1169680 | W16: Seawater | X16: Shetland Islands
A17: 2062995 | B17: 2012-06-01 | C17: STOU1 | D17: 1955 | E17: 1162 | F17: Scottish Sea Farms Ltd | G17: CAR/L/1004072 | H17: 0 | I17: 160934 | J17: 82.5 | K17: 0 | L17: 1360 | M17: 0 | N17: 0 | O17: Stoull (Nevis B) | P17: CAR/L/1004072/V3 | Q17: Scottish Sea Farms Ltd | R17: 1500 | S17: Loch Nevis | T17: NM74809530 | U17: 174800 | V17: 795300 | W17: Seawater | X17: Highland
A18: 2062823 | B18: 2012-05-01 | C18: EAR1 | D18: 1045 | E18: 1368 | F18: Scottish Sea Farms Ltd | G18: CAR/L/1004071 | H18: 0 | I18: 234487 | J18: 82.5 | K18: 0 | L18: 2.86 | M18: 0 | N18: 0 | O18: Earnsaig (Nevis A) | P18: CAR/L/1004071/V7 | Q18: Scottish Sea Farms Ltd | R18: 1350 | S18: Loch Nevis | T18: NM74309750 | U18: 174300 | V18: 797500 | W18: Seawater | X18: Highland
A19: 2063492 | B19: 2012-04-01 | C19: ACH1 | D19: 2548 | E19: 944 | F19: Scottish Sea Farms Ltd | G19: CAR/L/1015867 | H19: 0 | I19: 133759 | J19: 82.5 | K19: 0 | L19: 0 | M19: 0 | N19: 0 | O19: Achintraid (Kishorn Site 1) | P19: CAR/L/1015867/C1/V3 | Q19: Scottish Sea Farms Ltd | R19: 1299 | S19: Loch Kishorn | T19: NG82473855 | U19: 182466 | V19: 838551 | W19: Seawater | X19: Highland
A20: 2063491 | B20: 2012-03-01 | C20: ACH1 | D20: 1867 | E20: 1023 | F20: Scottish Sea Farms Ltd | G20: CAR/L/1015867 | H20: 0 | I20: 123261 | J20: 82.5 | K20: 0 | L20: 0 | M20: 0 | N20: 0 | O20: Achintraid (Kishorn Site 1) | P20: CAR/L/1015867/C1/V3 | Q20: Scottish Sea Farms Ltd | R20: 1299 | S20: Loch Kishorn | T20: NG82473855 | U20: 182466 | V20: 838551 | W20: Seawater | X20: Highland
A21: 2063489 | B21: 2012-01-01 | C21: ACH1 | D21: 1289 | E21: 1063 | F21: Scottish Sea Farms Ltd | G21: CAR/L/1015867 | H21: 0 | I21: 138470 | J21: 82.5 | K21: 0 | L21: 0 | M21: 0 | N21: 0 | O21: Achintraid (Kishorn Site 1) | P21: CAR/L/1015867/C1/V3 | Q21: Scottish Sea Farms Ltd | R21: 1299 | S21: Loch Kishorn | T21: NG82473855 | U21: 182466 | V21: 838551 | W21: Seawater | X21: Highland
A22: 2062994 | B22: 2012-05-01 | C22: STOU1 | D22: 1055 | E22: 1190 | F22: Scottish Sea Farms Ltd | G22: CAR/L/1004072 | H22: 0 | I22: 150500 | J22: 82.5 | K22: 0 | L22: 0 | M22: 0 | N22: 0 | O22: Stoull (Nevis B) | P22: CAR/L/1004072/V3 | Q22: Scottish Sea Farms Ltd | R22: 1500 | S22: Loch Nevis | T22: NM74809530 | U22: 174800 | V22: 795300 | W22: Seawater | X22: Highland
A23: 2061655 | B23: 2011-07-01 | C23: FFMC19 | D23: 3816 | E23: 1392 | F23: Scottish Sea Farms Ltd | G23: CAR/L/1000843 | H23: 0 | I23: 271234 | J23: 81.25 | K23: 0 | L23: 0 | M23: 0 | N23: 0 | O23: Creran A | P23: CAR/L/1000843/C1/V2 | Q23: Scottish Sea Farms Ltd | R23: 1500 | S23: Loch Creran | T23: NM93074182 | U23: 193070 | V23: 741820 | W23: Seawater | X23: Argyll and Bute
A24: 2062803 | B24: 2010-09-01 | C24: EAR1 | D24: 8878 | E24: 1071 | F24: Scottish Sea Farms Ltd | G24: CAR/L/1004071 | H24: 0 | I24: 152233 | J24: 80 | K24: 0 | L24: 0 | M24: 0 | N24: 0 | O24: Earnsaig (Nevis A) | P24: CAR/L/1004071/V7 | Q24: Scottish Sea Farms Ltd | R24: 1350 | S24: Loch Nevis | T24: NM74309750 | U24: 174300 | V24: 797500 | W24: Seawater | X24: Highland
A25: 2062802 | B25: 2010-08-01 | C25: EAR1 | D25: 7175 | E25: 1475 | F25: Scottish Sea Farms Ltd | G25: CAR/L/1004071 | H25: 0 | I25: 158590 | J25: 80 | K25: 0 | L25: 0 | M25: 0 | N25: 0 | O25: Earnsaig (Nevis A) | P25: CAR/L/1004071/V7 | Q25: Scottish Sea Farms Ltd | R25: 1350 | S25: Loch Nevis | T25: NM74309750 | U25: 174300 | V25: 797500 | W25: Seawater | X25: Highland
A26: 2056632 | B26: 2010-02-01 | C26: NNES2 | D26: 2016 | E26: 696 | F26: Scottish Sea Farms Ltd | G26: CAR/L/1004209 | H26: 0 | I26: 99455 | J26: 80 | K26: 0 | L26: 0 | M26: 0 | N26: 0 | O26: North Nesting Site 2 | P26: CAR/L/1004209/V3 | Q26: Scottish Sea Farms Ltd | R26: 995 | S26: Dury Voe | T26: HU46106238 | U26: 446100 | V26: 1162380 | W26: Seawater | X26: Shetland Islands
A27: 2062795 | B27: 2010-01-01 | C27: EAR1 | D27: 1722 | E27: 895 | F27: Scottish Sea Farms Ltd | G27: CAR/L/1004071 | H27: 0 | I27: 108218 | J27: 80 | K27: 0 | L27: 0 | M27: 0 | N27: 0 | O27: Earnsaig (Nevis A) | P27: CAR/L/1004071/V7 | Q27: Scottish Sea Farms Ltd | R27: 1350 | S27: Loch Nevis | T27: NM74309750 | U27: 174300 | V27: 797500 | W27: Seawater | X27: Highland
A28: 2062797 | B28: 2010-03-01 | C28: EAR1 | D28: 875 | E28: 1147 | F28: Scottish Sea Farms Ltd | G28: CAR/L/1004071 | H28: 0 | I28: 175115 | J28: 80 | K28: 0 | L28: 0 | M28: 0 | N28: 0 | O28: Earnsaig (Nevis A) | P28: CAR/L/1004071/V7 | Q28: Scottish Sea Farms Ltd | R28: 1350 | S28: Loch Nevis | T28: NM74309750 | U28: 174300 | V28: 797500 | W28: Seawater | X28: Highland
A29: 2056629 | B29: 2009-11-01 | C29: NNES2 | D29: 619 | E29: 430 | F29: Scottish Sea Farms Ltd | G29: CAR/L/1004209 | H29: 0 | I29: 59977 | J29: 80 | K29: 0 | L29: 0 | M29: 0 | N29: 0 | O29: North Nesting Site 2 | P29: CAR/L/1004209/V3 | Q29: Scottish Sea Farms Ltd | R29: 995 | S29: Dury Voe | T29: HU46106238 | U29: 446100 | V29: 1162380 | W29: Seawater | X29: Shetland Islands
A30: 2057231 | B30: 2011-10-01 | C30: FFMC18 | D30: 6390 | E30: 789 | F30: Scottish Sea Farms Ltd | G30: CAR/L/1009032 | H30: 0 | I30: 81705 | J30: 78 | K30: 0 | L30: 0 | M30: 0 | N30: 0 | O30: Shuna | P30: CAR/L/1009032/C1/V3 | Q30: Scottish Sea Farms Ltd | R30: 800 | S30: Loch Linnhe | T30: NM92504968 | U30: 192500 | V30: 749680 | W30: Seawater | X30: Argyll and Bute
A31: 2066678 | B31: 2011-06-01 | C31: HGEO3 | D31: 7352 | E31: 1162 | F31: Scottish Sea Farms Ltd | G31: CAR/L/1004210 | H31: 0 | I31: 233023 | J31: 75 | K31: 0 | L31: 1750 | M31: 0 | N31: 0 | O31: Holms Geo (Site 3) | P31: CAR/L/1004210/V4 | Q31: Scottish Sea Farms Ltd | R31: 1200 | S31: Clift Sound | T31: HU38893113 | U31: 438890 | V31: 1131130 | W31: Seawater | X31: Shetland Islands
A32: 2062990 | B32: 2012-01-01 | C32: STOU1 | D32: 1548 | E32: 1041 | F32: Scottish Sea Farms Ltd | G32: CAR/L/1004072 | H32: 0 | I32: 160574 | J32: 75 | K32: 0 | L32: 0 | M32: 0 | N32: 0 | O32: Stoull (Nevis B) | P32: CAR/L/1004072/V3 | Q32: Scottish Sea Farms Ltd | R32: 1500 | S32: Loch Nevis | T32: NM74809530 | U32: 174800 | V32: 795300 | W32: Seawater | X32: Highland
A33: 2062819 | B33: 2012-01-01 | C33: EAR1 | D33: 828 | E33: 926 | F33: Scottish Sea Farms Ltd | G33: CAR/L/1004071 | H33: 0 | I33: 118275 | J33: 75 | K33: 0 | L33: 0 | M33: 0 | N33: 0 | O33: Earnsaig (Nevis A) | P33: CAR/L/1004071/V7 | Q33: Scottish Sea Farms Ltd | R33: 1350 | S33: Loch Nevis | T33: NM74309750 | U33: 174300 | V33: 797500 | W33: Seawater | X33: Highland
A34: 2062821 | B34: 2012-03-01 | C34: EAR1 | D34: 621 | E34: 1186 | F34: Scottish Sea Farms Ltd | G34: CAR/L/1004071 | H34: 0 | I34: 206844 | J34: 75 | K34: 0 | L34: 0 | M34: 0 | N34: 0 | O34: Earnsaig (Nevis A) | P34: CAR/L/1004071/V7 | Q34: Scottish Sea Farms Ltd | R34: 1350 | S34: Loch Nevis | T34: NM74309750 | U34: 174300 | V34: 797500 | W34: Seawater | X34: Highland
A35: 2061784 | B35: 2009-08-01 | C35: FFMC20 | D35: 646 | E35: 1289 | F35: Scottish Sea Farms Ltd | G35: WPC/W/22899/R1 | H35: 0 | I35: 223000 | J35: 70 | K35: 0 | L35: 0 | M35: 0 | N35: 420 | O35: Creran B | P35: CAR/L/1003492/V5 | Q35: Scottish Sea Farms Ltd | R35: 1500 | S35: Loch Creran | T35: NM93804220 | U35: 193800 | V35: 742200 | W35: Seawater | X35: Argyll and Bute
A36: 2056639 | B36: 2010-09-01 | C36: NNES2 | D36: 9237 | E36: 907 | F36: Scottish Sea Farms Ltd | G36: CAR/L/1004209 | H36: 0 | I36: 102760 | J36: 70 | K36: 0 | L36: 1400 | M36: 0 | N36: 0 | O36: North Nesting Site 2 | P36: CAR/L/1004209/V3 | Q36: Scottish Sea Farms Ltd | R36: 995 | S36: Dury Voe | T36: HU46106238 | U36: 446100 | V36: 1162380 | W36: Seawater | X36: Shetland Islands
A37: 2043252 | B37: 2012-08-01 | C37: ARDI1 | D37: 14627 | E37: 607 | F37: Scottish Sea Farms Ltd | G37: CAR/L/1002353 | H37: 0 | I37: 102094 | J37: 67.5 | K37: 0 | L37: 1575 | M37: 0 | N37: 0 | O37: Ardintigh (Nevis C) | P37: CAR/L/1002353/V6 | Q37: Scottish Sea Farms Ltd | R37: 1630 | S37: Loch Nevis | T37: NM77009360 | U37: 177000 | V37: 793600 | W37: Seawater | X37: Highland
A38: 2043255 | B38: 2012-11-01 | C38: ARDI1 | D38: 10407 | E38: 995 | F38: Scottish Sea Farms Ltd | G38: CAR/L/1002353 | H38: 0 | I38: 196680 | J38: 67.5 | K38: 0 | L38: 1575 | M38: 0 | N38: 0 | O38: Ardintigh (Nevis C) | P38: CAR/L/1002353/V6 | Q38: Scottish Sea Farms Ltd | R38: 1630 | S38: Loch Nevis | T38: NM77009360 | U38: 177000 | V38: 793600 | W38: Seawater | X38: Highland
A39: 2043254 | B39: 2012-10-01 | C39: ARDI1 | D39: 3412 | E39: 900 | F39: Scottish Sea Farms Ltd | G39: CAR/L/1002353 | H39: 0 | I39: 244445 | J39: 67.5 | K39: 0 | L39: 1575 | M39: 0 | N39: 0 | O39: Ardintigh (Nevis C) | P39: CAR/L/1002353/V6 | Q39: Scottish Sea Farms Ltd | R39: 1630 | S39: Loch Nevis | T39: NM77009360 | U39: 177000 | V39: 793600 | W39: Seawater | X39: Highland
A40: 2043250 | B40: 2012-06-01 | C40: ARDI1 | D40: 1360 | E40: 898 | F40: Scottish Sea Farms Ltd | G40: CAR/L/1002353 | H40: 0 | I40: 120413 | J40: 67.5 | K40: 0 | L40: 1575 | M40: 0 | N40: 0 | O40: Ardintigh (Nevis C) | P40: CAR/L/1002353/V6 | Q40: Scottish Sea Farms Ltd | R40: 1630 | S40: Loch Nevis | T40: NM77009360 | U40: 177000 | V40: 793600 | W40: Seawater | X40: Highland
A41: 2062997 | B41: 2012-08-01 | C41: STOU1 | D41: 12069 | E41: 1015 | F41: Scottish Sea Farms Ltd | G41: CAR/L/1004072 | H41: 0 | I41: 91606 | J41: 67.5 | K41: 0 | L41: 945 | M41: 0 | N41: 0 | O41: Stoull (Nevis B) | P41: CAR/L/1004072/V3 | Q41: Scottish Sea Farms Ltd | R41: 1500 | S41: Loch Nevis | T41: NM74809530 | U41: 174800 | V41: 795300 | W41: Seawater | X41: Highland
A42: 2043249 | B42: 2012-05-01 | C42: ARDI1 | D42: 1058 | E42: 814 | F42: Scottish Sea Farms Ltd | G42: CAR/L/1002353 | H42: 0 | I42: 176203 | J42: 67.5 | K42: 0 | L42: 0 | M42: 0 | N42: 0 | O42: Ardintigh (Nevis C) | P42: CAR/L/1002353/V6 | Q42: Scottish Sea Farms Ltd | R42: 1630 | S42: Loch Nevis | T42: NM77009360 | U42: 177000 | V42: 793600 | W42: Seawater | X42: Highland
A43: 2043247 | B43: 2012-03-01 | C43: ARDI1 | D43: 986 | E43: 541 | F43: Scottish Sea Farms Ltd | G43: CAR/L/1002353 | H43: 0 | I43: 170464 | J43: 67.5 | K43: 0 | L43: 0 | M43: 0 | N43: 0 | O43: Ardintigh (Nevis C) | P43: CAR/L/1002353/V6 | Q43: Scottish Sea Farms Ltd | R43: 1630 | S43: Loch Nevis | T43: NM77009360 | U43: 177000 | V43: 793600 | W43: Seawater | X43: Highland
A44: 2043245 | B44: 2012-01-01 | C44: ARDI1 | D44: 805 | E44: 304 | F44: Scottish Sea Farms Ltd | G44: CAR/L/1002353 | H44: 0 | I44: 120058 | J44: 67.5 | K44: 0 | L44: 0 | M44: 0 | N44: 0 | O44: Ardintigh (Nevis C) | P44: CAR/L/1002353/V6 | Q44: Scottish Sea Farms Ltd | R44: 1630 | S44: Loch Nevis | T44: NM77009360 | U44: 177000 | V44: 793600 | W44: Seawater | X44: Highland
A45: 2061654 | B45: 2011-06-01 | C45: FFMC19 | D45: 2061 | E45: 1269 | F45: Scottish Sea Farms Ltd | G45: CAR/L/1000843 | H45: 0 | I45: 237162 | J45: 66 | K45: 0 | L45: 0 | M45: 0 | N45: 0 | O45: Creran A | P45: CAR/L/1000843/C1/V2 | Q45: Scottish Sea Farms Ltd | R45: 1500 | S45: Loch Creran | T45: NM93074182 | U45: 193070 | V45: 741820 | W45: Seawater | X45: Argyll and Bute
A46: 2049767 | B46: 2016-07-01 | C46: FFMC01 | D46: 6124 | E46: 1540 | F46: Scottish Sea Farms Ltd | G46: CAR/L/1010606 | H46: 0 | I46: 283069 | J46: 65 | K46: 0 | L46: 0 | M46: 0 | N46: 0 | O46: Scallastle Bay | P46: CAR/L/1010606/C1/V6 | Q46: Scottish Sea Farms Ltd | R46: 2000 | S46: Sound of Mull | T46: NM68903970 | U46: 168900 | V46: 739700 | W46: Seawater | X46: Argyll and Bute
A47: 2062974 | B47: 2010-09-01 | C47: STOU1 | D47: 3667 | E47: 1015 | F47: Scottish Sea Farms Ltd | G47: CAR/L/1004072 | H47: 0 | I47: 112025 | J47: 65 | K47: 0 | L47: 0 | M47: 0 | N47: 0 | O47: Stoull (Nevis B) | P47: CAR/L/1004072/V3 | Q47: Scottish Sea Farms Ltd | R47: 1500 | S47: Loch Nevis | T47: NM74809530 | U47: 174800 | V47: 795300 | W47: Seawater | X47: Highland
A48: 2061785 | B48: 2009-09-01 | C48: FFMC20 | D48: 899 | E48: 659 | F48: Scottish Sea Farms Ltd | G48: WPC/W/22899/R1 | H48: 0 | I48: 145500 | J48: 65 | K48: 0 | L48: 0 | M48: 0 | N48: 0 | O48: Creran B | P48: CAR/L/1003492/V5 | Q48: Scottish Sea Farms Ltd | R48: 1500 | S48: Loch Creran | T48: NM93804220 | U48: 193800 | V48: 742200 | W48: Seawater | X48: Argyll and Bute
A49: 2070799 | B49: 2016-06-01 | C49: FIU1 | D49: 2485 | E49: 2098 | F49: Scottish Sea Farms Ltd | G49: CAR/L/1002326 | H49: 0 | I49: 387424 | J49: 64.5 | K49: 0 | L49: 0 | M49: 0 | N49: 0 | O49: Fiunary | P49: CAR/L/1002326/V4 | Q49: Scottish Sea Farms Ltd | R49: 2156 | S49: Sound of Mull | T49: NM59274765 | U49: 159270 | V49: 747650 | W49: Seawater | X49: Highland
A50: 2050185 | B50: 2009-06-01 | C50: VIDM1 | D50: 6313 | E50: 1572 | F50: Scottish Sea Farms Ltd | G50: CAR/L/1003928 | H50: 0 | I50: 318870 | J50: 63.84 | K50: 0 | L50: 0 | M50: 0 | N50: 585 | O50: Vidlin North | P50: CAR/L/1003928/V6 | Q50: Scottish Sea Farms Ltd | R50: 916 | S50: Vidlin Voe | T50: HU48406730 | U50: 448400 | V50: 1167300 | W50: Seawater | X50: Shetland Islands
A51: 2050184 | B51: 2009-05-01 | C51: VIDM1 | D51: 5280 | E51: 1331 | F51: Scottish Sea Farms Ltd | G51: CAR/L/1003928 | H51: 0 | I51: 209126 | J51: 63.84 | K51: 0 | L51: 0 | M51: 0 | N51: 0 | O51: Vidlin North | P51: CAR/L/1003928/V6 | Q51: Scottish Sea Farms Ltd | R51: 916 | S51: Vidlin Voe | T51: HU48406730 | U51: 448400 | V51: 1167300 | W51: Seawater | X51: Shetland Islands
A52: 2050189 | B52: 2009-10-01 | C52: VIDM1 | D52: 14974 | E52: 1894 | F52: Scottish Sea Farms Ltd | G52: CAR/L/1003928 | H52: 0 | I52: 301128 | J52: 63.6 | K52: 0 | L52: 0 | M52: 0 | N52: 0 | O52: Vidlin North | P52: CAR/L/1003928/V6 | Q52: Scottish Sea Farms Ltd | R52: 916 | S52: Vidlin Voe | T52: HU48406730 | U52: 448400 | V52: 1167300 | W52: Seawater | X52: Shetland Islands
A53: 2049343 | B53: 2009-10-01 | C53: FFMC41 | D53: 3971 | E53: 857 | F53: Scottish Sea Farms Ltd | G53: WPC/W/22831/R1 | H53: 0 | I53: 176416 | J53: 60 | K53: 0 | L53: 0 | M53: 0 | N53: 0 | O53: Achnacroish (Walters,Lismore East) | P53: CAR/L/1003486/C2/V3 | Q53: Scottish Sea Farms Ltd | R53: 999 | S53: Lynn of Lorn | T53: NM84904010 | U53: 184900 | V53: 740100 | W53: Seawater | X53: Argyll and Bute
A54: 2061652 | B54: 2011-04-01 | C54: FFMC19 | D54: 1080 | E54: 813 | F54: Scottish Sea Farms Ltd | G54: CAR/L/1000843 | H54: 0 | I54: 147157 | J54: 60 | K54: 0 | L54: 0 | M54: 0 | N54: 0 | O54: Creran A | P54: CAR/L/1000843/C1/V2 | Q54: Scottish Sea Farms Ltd | R54: 1500 | S54: Loch Creran | T54: NM93074182 | U54: 193070 | V54: 741820 | W54: Seawater | X54: Argyll and Bute
A55: 2061650 | B55: 2011-02-01 | C55: FFMC19 | D55: 893 | E55: 566 | F55: Scottish Sea Farms Ltd | G55: CAR/L/1000843 | H55: 0 | I55: 55546 | J55: 60 | K55: 0 | L55: 0 | M55: 0 | N55: 0 | O55: Creran A | P55: CAR/L/1000843/C1/V2 | Q55: Scottish Sea Farms Ltd | R55: 1500 | S55: Loch Creran | T55: NM93074182 | U55: 193070 | V55: 741820 | W55: Seawater | X55: Argyll and Bute
A56: 2049367 | B56: 2011-10-01 | C56: FFMC41 | D56: 7782 | E56: 997 | F56: Scottish Sea Farms Ltd | G56: CAR/L/1003486 | H56: 0 | I56: 139544 | J56: 58.5 | K56: 0 | L56: 0 | M56: 0 | N56: 0 | O56: Achnacroish (Walters,Lismore East) | P56: CAR/L/1003486/C2/V3 | Q56: Scottish Sea Farms Ltd | R56: 999 | S56: Lynn of Lorn | T56: NM84904010 | U56: 184900 | V56: 740100 | W56: Seawater | X56: Argyll and Bute
A57: 2053708 | B57: 2011-08-01 | C57: FFMC56 | D57: 6374 | E57: 1009 | F57: Scottish Sea Farms Ltd | G57: CAR/L/1008759 | H57: 0 | I57: 186595 | J57: 58.5 | K57: 0 | L57: 0 | M57: 0 | N57: 0 | O57: Charlottes Bay (Kerrara B) | P57: CAR/L/1008759/C1/V2 | Q57: Scottish Sea Farms Ltd | R57: 1063 | S57: Firth of Lorn | T57: NM83433057 | U57: 183430 | V57: 730570 | W57: Seawater | X57: Argyll and Bute
A58: 2049365 | B58: 2011-08-01 | C58: FFMC41 | D58: 4964 | E58: 937 | F58: Scottish Sea Farms Ltd | G58: CAR/L/1003486 | H58: 0 | I58: 185417 | J58: 58.5 | K58: 0 | L58: 0 | M58: 0 | N58: 0 | O58: Achnacroish (Walters,Lismore East) | P58: CAR/L/1003486/C2/V3 | Q58: Scottish Sea Farms Ltd | R58: 999 | S58: Lynn of Lorn | T58: NM84904010 | U58: 184900 | V58: 740100 | W58: Seawater | X58: Argyll and Bute
A59: 2049366 | B59: 2011-09-01 | C59: FFMC41 | D59: 4942 | E59: 979 | F59: Scottish Sea Farms Ltd | G59: CAR/L/1003486 | H59: 0 | I59: 150349 | J59: 58.5 | K59: 0 | L59: 0 | M59: 0 | N59: 0 | O59: Achnacroish (Walters,Lismore East) | P59: CAR/L/1003486/C2/V3 | Q59: Scottish Sea Farms Ltd | R59: 999 | S59: Lynn of Lorn | T59: NM84904010 | U59: 184900 | V59: 740100 | W59: Seawater | X59: Argyll and Bute
A60: 2061959 | B60: 2011-08-01 | C60: FFMC60 | D60: 1682 | E60: 1039 | F60: Scottish Sea Farms Ltd | G60: CAR/L/1000890 | H60: 0 | I60: 163783 | J60: 58.5 | K60: 0 | L60: 0 | M60: 0 | N60: 0 | O60: Port nan Ledaig (Lismore B) | P60: CAR/L/1000890/C1/V2 | Q60: Scottish Sea Farms Ltd | R60: 1130 | S60: Loch Linnhe | T60: NM82104080 | U60: 182100 | V60: 740800 | W60: Seawater | X60: Argyll and Bute
A61: 2061692 | B61: 2014-08-01 | C61: FFMC19 | D61: 7427 | E61: 642 | F61: Scottish Sea Farms Ltd | G61: CAR/L/1000843 | H61: 0 | I61: 218420 | J61: 57.4 | K61: 0 | L61: 0 | M61: 0 | N61: 0 | O61: Creran A | P61: CAR/L/1000843/C1/V2 | Q61: Scottish Sea Farms Ltd | R61: 1500 | S61: Loch Creran | T61: NM93074182 | U61: 193070 | V61: 741820 | W61: Seawater | X61: Argyll and Bute
A62: 2049770 | B62: 2016-08-01 | C62: FFMC01 | D62: 20673 | E62: 1281 | F62: Scottish Sea Farms Ltd | G62: CAR/L/1010606 | H62: 0 | I62: 206196 | J62: 57.2 | K62: 0 | L62: 0 | M62: 0 | N62: 0 | O62: Scallastle Bay | P62: CAR/L/1010606/C1/V6 | Q62: Scottish Sea Farms Ltd | R62: 2000 | S62: Sound of Mull | T62: NM68903970 | U62: 168900 | V62: 739700 | W62: Seawater | X62: Argyll and Bute
A63: 2068205 | B63: 2009-09-01 | C63: MAN2 | D63: 88312 | E63: 1319 | F63: Scottish Sea Farms Ltd | G63: CAR/L/1003943 | H63: 0 | I63: 194499 | J63: 57 | K63: 0 | L63: 1040 | M63: 0 | N63: 0 | O63: South Sound, Mangaster Voe | P63: CAR/L/1003943/V5 | Q63: Scottish Sea Farms Ltd | R63: 1500 | S63: Mangaster Voe | T63: HU32216968 | U63: 432210 | V63: 1169680 | W63: Seawater | X63: Shetland Islands
A64: 2068203 | B64: 2009-07-01 | C64: MAN2 | D64: 14176 | E64: 1267 | F64: Scottish Sea Farms Ltd | G64: CAR/L/1003943 | H64: 0 | I64: 384222 | J64: 57 | K64: 0 | L64: 1035 | M64: 0 | N64: 0 | O64: South Sound, Mangaster Voe | P64: CAR/L/1003943/V5 | Q64: Scottish Sea Farms Ltd | R64: 1500 | S64: Mangaster Voe | T64: HU32216968 | U64: 432210 | V64: 1169680 | W64: Seawater | X64: Shetland Islands
A65: 2061958 | B65: 2011-07-01 | C65: FFMC60 | D65: 2112 | E65: 1080 | F65: Scottish Sea Farms Ltd | G65: CAR/L/1000890 | H65: 0 | I65: 141863 | J65: 56.25 | K65: 0 | L65: 0 | M65: 0 | N65: 0 | O65: Port nan Ledaig (Lismore B) | P65: CAR/L/1000890/C1/V2 | Q65: Scottish Sea Farms Ltd | R65: 1130 | S65: Loch Linnhe | T65: NM82104080 | U65: 182100 | V65: 740800 | W65: Seawater | X65: Argyll and Bute
A66: 2049364 | B66: 2011-07-01 | C66: FFMC41 | D66: 1415 | E66: 830 | F66: Scottish Sea Farms Ltd | G66: CAR/L/1003486 | H66: 0 | I66: 157067 | J66: 56.25 | K66: 0 | L66: 0 | M66: 0 | N66: 0 | O66: Achnacroish (Walters,Lismore East) | P66: CAR/L/1003486/C2/V3 | Q66: Scottish Sea Farms Ltd | R66: 999 | S66: Lynn of Lorn | T66: NM84904010 | U66: 184900 | V66: 740100 | W66: Seawater | X66: Argyll and Bute
A67: 2066756 | B67: 2011-06-01 | C67: LGEO2 | D67: 2591 | E67: 729 | F67: Scottish Sea Farms Ltd | G67: CAR/L/1003902 | H67: 0 | I67: 133061 | J67: 55.2 | K67: 0 | L67: 0 | M67: 0 | N67: 0 | O67: Lippie Geo (Site 2) | P67: CAR/L/1003902/V4 | Q67: Scottish Sea Farms Ltd | R67: 948 | S67: Clift Sound | T67: HU39403285 | U67: 439400 | V67: 1132850 | W67: Seawater | X67: Shetland Islands
A68: 2062968 | B68: 2010-03-01 | C68: STOU1 | D68: 1147 | E68: 960 | F68: Scottish Sea Farms Ltd | G68: CAR/L/1004072 | H68: 0 | I68: 151373 | J68: 55 | K68: 0 | L68: 0 | M68: 0 | N68: 0 | O68: Stoull (Nevis B) | P68: CAR/L/1004072/V3 | Q68: Scottish Sea Farms Ltd | R68: 1500 | S68: Loch Nevis | T68: NM74809530 | U68: 174800 | V68: 795300 | W68: Seawater | X68: Highland
A69: 2061783 | B69: 2009-07-01 | C69: FFMC20 | D69: 1103 | E69: 1285 | F69: Scottish Sea Farms Ltd | G69: WPC/W/22899/R1 | H69: 0 | I69: 263560 | J69: 55 | K69: 0 | L69: 0 | M69: 0 | N69: 0 | O69: Creran B | P69: CAR/L/1003492/V5 | Q69: Scottish Sea Farms Ltd | R69: 1500 | S69: Loch Creran | T69: NM93804220 | U69: 193800 | V69: 742200 | W69: Seawater | X69: Argyll and Bute
A70: 2062966 | B70: 2010-01-01 | C70: STOU1 | D70: 1070 | E70: 821 | F70: Scottish Sea Farms Ltd | G70: CAR/L/1004072 | H70: 0 | I70: 112863 | J70: 55 | K70: 0 | L70: 0 | M70: 0 | N70: 0 | O70: Stoull (Nevis B) | P70: CAR/L/1004072/V3 | Q70: Scottish Sea Farms Ltd | R70: 1500 | S70: Loch Nevis | T70: NM74809530 | U70: 174800 | V70: 795300 | W70: Seawater | X70: Highland
A71: 2068531 | B71: 2009-07-01 | C71: MAN3 | D71: 10139 | E71: 865 | F71: Scottish Sea Farms Ltd | G71: CAR/L/1003903 | H71: 0 | I71: 218434 | J71: 52.5 | K71: 0 | L71: 1862 | M71: 0 | N71: 0 | O71: Mangaster Voe Inner | P71: CAR/L/1003903/V7 | Q71: Scottish Sea Farms Ltd | R71: 999 | S71: Mangaster Voe | T71: HU32907030 | U71: 432900 | V71: 1170300 | W71: Seawater | X71: Shetland Islands
A72: 2063486 | B72: 2011-10-01 | C72: ACH1 | D72: 706 | E72: 858 | F72: Scottish Sea Farms Ltd | G72: CAR/L/1015867 | H72: 0 | I72: 247155 | J72: 52.5 | K72: 0 | L72: 0 | M72: 0 | N72: 0 | O72: Achintraid (Kishorn Site 1) | P72: CAR/L/1015867/C1/V3 | Q72: Scottish Sea Farms Ltd | R72: 1299 | S72: Loch Kishorn | T72: NG82473855 | U72: 182466 | V72: 838551 | W72: Seawater | X72: Highland
A73: 2065481 | B73: 2012-04-01 | C73: WBEL3 | D73: 15546 | E73: 988 | F73: Scottish Sea Farms Ltd | G73: CAR/L/1003113 | H73: 0 | I73: 110809 | J73: 52 | K73: 0 | L73: 0 | M73: 0 | N73: 0 | O73: Loura Voe (Site 3) | P73: CAR/L/1003113/V4 | Q73: Scottish Sea Farms Ltd | R73: 995 | S73: Dury Voe | T73: HU47356180 | U73: 447350 | V73: 1161800 | W73: Seawater | X73: Shetland Islands
A74: 2065478 | B74: 2012-01-01 | C74: WBEL3 | D74: 9950 | E74: 885 | F74: Scottish Sea Farms Ltd | G74: CAR/L/1003113 | H74: 0 | I74: 114165 | J74: 52 | K74: 0 | L74: 0 | M74: 0 | N74: 0 | O74: Loura Voe (Site 3) | P74: CAR/L/1003113/V4 | Q74: Scottish Sea Farms Ltd | R74: 995 | S74: Dury Voe | T74: HU47356180 | U74: 447350 | V74: 1161800 | W74: Seawater | X74: Shetland Islands
A75: 2065455 | B75: 2010-02-01 | C75: WBEL3 | D75: 6583 | E75: 956 | F75: Scottish Sea Farms Ltd | G75: CAR/L/1003113 | H75: 0 | I75: 195959 | J75: 52 | K75: 0 | L75: 0 | M75: 0 | N75: 0 | O75: Loura Voe (Site 3) | P75: CAR/L/1003113/V4 | Q75: Scottish Sea Farms Ltd | R75: 995 | S75: Dury Voe | T75: HU47356180 | U75: 447350 | V75: 1161800 | W75: Seawater | X75: Shetland Islands
A76: 2053710 | B76: 2011-10-01 | C76: FFMC56 | D76: 6409 | E76: 846 | F76: Scottish Sea Farms Ltd | G76: CAR/L/1008759 | H76: 0 | I76: 101991 | J76: 52 | K76: 0 | L76: 0 | M76: 0 | N76: 0 | O76: Charlottes Bay (Kerrara B) | P76: CAR/L/1008759/C1/V2 | Q76: Scottish Sea Farms Ltd | R76: 1063 | S76: Firth of Lorn | T76: NM83433057 | U76: 183430 | V76: 730570 | W76: Seawater | X76: Argyll and Bute
A77: 2057229 | B77: 2011-08-01 | C77: FFMC18 | D77: 1940 | E77: 756 | F77: Scottish Sea Farms Ltd | G77: CAR/L/1009032 | H77: 0 | I77: 150567 | J77: 52 | K77: 0 | L77: 0 | M77: 0 | N77: 0 | O77: Shuna | P77: CAR/L/1009032/C1/V3 | Q77: Scottish Sea Farms Ltd | R77: 800 | S77: Loch Linnhe | T77: NM92504968 | U77: 192500 | V77: 749680 | W77: Seawater | X77: Argyll and Bute
A78: 2047421 | B78: 2011-08-01 | C78: FFMC27 | D78: 1427 | E78: 976 | F78: Scottish Sea Farms Ltd | G78: CAR/L/1009031 | H78: 0 | I78: 194163 | J78: 52 | K78: 0 | L78: 0 | M78: 0 | N78: 0 | O78: Dunstaffnage | P78: CAR/L/1009031/C1/V4 | Q78: Scottish Sea Farms Ltd | R78: 1300 | S78: Firth of Lorn | T78: NM86623398 | U78: 186620 | V78: 733980 | W78: Seawater | X78: Argyll and Bute
A79: 2065452 | B79: 2009-11-01 | C79: WBEL3 | D79: 1357 | E79: 726 | F79: Scottish Sea Farms Ltd | G79: CAR/L/1003113 | H79: 0 | I79: 80867 | J79: 52 | K79: 0 | L79: 0 | M79: 0 | N79: 0 | O79: Loura Voe (Site 3) | P79: CAR/L/1003113/V4 | Q79: Scottish Sea Farms Ltd | R79: 995 | S79: Dury Voe | T79: HU47356180 | U79: 447350 | V79: 1161800 | W79: Seawater | X79: Shetland Islands
A80: 2068367 | B80: 2009-06-01 | C80: VIDM2 | D80: 2214 | E80: 1056 | F80: Scottish Sea Farms Ltd | G80: CAR/L/1003907 | H80: 0 | I80: 215630 | J80: 51.6 | K80: 0 | L80: 0 | M80: 0 | N80: 390 | O80: Vidlin Outer | P80: CAR/L/1003907/V5 | Q80: Scottish Sea Farms Ltd | R80: 900 | S80: Vidlin Voe | T80: HU48306775 | U80: 448300 | V80: 1167750 | W80: Seawater | X80: Shetland Islands
A81: 2068366 | B81: 2009-05-01 | C81: VIDM2 | D81: 2207 | E81: 850 | F81: Scottish Sea Farms Ltd | G81: CAR/L/1003907 | H81: 0 | I81: 93637 | J81: 51.6 | K81: 0 | L81: 0 | M81: 0 | N81: 0 | O81: Vidlin Outer | P81: CAR/L/1003907/V5 | Q81: Scottish Sea Farms Ltd | R81: 900 | S81: Vidlin Voe | T81: HU48306775 | U81: 448300 | V81: 1167750 | W81: Seawater | X81: Shetland Islands
A82: 2068371 | B82: 2009-10-01 | C82: VIDM2 | D82: 10487 | E82: 1185 | F82: Scottish Sea Farms Ltd | G82: CAR/L/1003907 | H82: 0 | I82: 218046 | J82: 51.2 | K82: 0 | L82: 0 | M82: 0 | N82: 0 | O82: Vidlin Outer | P82: CAR/L/1003907/V5 | Q82: Scottish Sea Farms Ltd | R82: 900 | S82: Vidlin Voe | T82: HU48306775 | U82: 448300 | V82: 1167750 | W82: Seawater | X82: Shetland Islands
A83: 2061828 | B83: 2013-04-01 | C83: FFMC20 | D83: 1260 | E83: 1375 | F83: Scottish Sea Farms Ltd | G83: CAR/L/1003492 | H83: 0 | I83: 143189 | J83: 50 | K83: 0 | L83: 1500 | M83: 0 | N83: 0 | O83: Creran B | P83: CAR/L/1003492/V5 | Q83: Scottish Sea Farms Ltd | R83: 1500 | S83: Loch Creran | T83: NM93804220 | U83: 193800 | V83: 742200 | W83: Seawater | X83: Argyll and Bute
A84: 2047420 | B84: 2011-07-01 | C84: FFMC27 | D84: 6938 | E84: 927 | F84: Scottish Sea Farms Ltd | G84: CAR/L/1009031 | H84: 0 | I84: 118683 | J84: 50 | K84: 0 | L84: 0 | M84: 0 | N84: 0 | O84: Dunstaffnage | P84: CAR/L/1009031/C1/V4 | Q84: Scottish Sea Farms Ltd | R84: 1300 | S84: Firth of Lorn | T84: NM86623398 | U84: 186620 | V84: 733980 | W84: Seawater | X84: Argyll and Bute
A85: 2064992 | B85: 2010-03-01 | C85: AAC3 | D85: 6599 | E85: 1812 | F85: Scottish Sea Farms Ltd | G85: CAR/L/1004062 | H85: 0 | I85: 101041 | J85: 50 | K85: 0 | L85: 0 | M85: 0 | N85: 0 | O85: Allt a Chois (Kishorn North Shore) | P85: CAR/L/1004062/C1/V2 | Q85: Scottish Sea Farms Ltd | R85: 1900 | S85: Loch Kishorn | T85: NG79253795 | U85: 179250 | V85: 837950 | W85: Seawater | X85: Highland
A86: 2062804 | B86: 2010-10-01 | C86: EAR1 | D86: 5698 | E86: 1005 | F86: Scottish Sea Farms Ltd | G86: CAR/L/1004071 | H86: 0 | I86: 114031 | J86: 50 | K86: 0 | L86: 0 | M86: 0 | N86: 0 | O86: Earnsaig (Nevis A) | P86: CAR/L/1004071/V7 | Q86: Scottish Sea Farms Ltd | R86: 1350 | S86: Loch Nevis | T86: NM74309750 | U86: 174300 | V86: 797500 | W86: Seawater | X86: Highland
A87: 2057228 | B87: 2011-07-01 | C87: FFMC18 | D87: 2964 | E87: 799 | F87: Scottish Sea Farms Ltd | G87: CAR/L/1009032 | H87: 0 | I87: 179063 | J87: 50 | K87: 0 | L87: 0 | M87: 0 | N87: 0 | O87: Shuna | P87: CAR/L/1009032/C1/V3 | Q87: Scottish Sea Farms Ltd | R87: 800 | S87: Loch Linnhe | T87: NM92504968 | U87: 192500 | V87: 749680 | W87: Seawater | X87: Argyll and Bute
A88: 2057227 | B88: 2011-06-01 | C88: FFMC18 | D88: 2378 | E88: 794 | F88: Scottish Sea Farms Ltd | G88: CAR/L/1009032 | H88: 0 | I88: 183069 | J88: 50 | K88: 0 | L88: 0 | M88: 0 | N88: 0 | O88: Shuna | P88: CAR/L/1009032/C1/V3 | Q88: Scottish Sea Farms Ltd | R88: 800 | S88: Loch Linnhe | T88: NM92504968 | U88: 192500 | V88: 749680 | W88: Seawater | X88: Argyll and Bute
A89: 2062973 | B89: 2010-08-01 | C89: STOU1 | D89: 2163 | E89: 1199 | F89: Scottish Sea Farms Ltd | G89: CAR/L/1004072 | H89: 0 | I89: 191437 | J89: 50 | K89: 0 | L89: 0 | M89: 0 | N89: 0 | O89: Stoull (Nevis B) | P89: CAR/L/1004072/V3 | Q89: Scottish Sea Farms Ltd | R89: 1500 | S89: Loch Nevis | T89: NM74809530 | U89: 174800 | V89: 795300 | W89: Seawater | X89: Highland
A90: 2061825 | B90: 2013-01-01 | C90: FFMC20 | D90: 774 | E90: 886 | F90: Scottish Sea Farms Ltd | G90: CAR/L/1003492 | H90: 0 | I90: 133194 | J90: 50 | K90: 0 | L90: 0 | M90: 0 | N90: 0 | O90: Creran B | P90: CAR/L/1003492/V5 | Q90: Scottish Sea Farms Ltd | R90: 1500 | S90: Loch Creran | T90: NM93804220 | U90: 193800 | V90: 742200 | W90: Seawater | X90: Argyll and Bute
A91: 2057224 | B91: 2011-03-01 | C91: FFMC18 | D91: 545 | E91: 651 | F91: Scottish Sea Farms Ltd | G91: CAR/L/1009032 | H91: 0 | I91: 93163 | J91: 50 | K91: 0 | L91: 0 | M91: 0 | N91: 0 | O91: Shuna | P91: CAR/L/1009032/C1/V3 | Q91: Scottish Sea Farms Ltd | R91: 800 | S91: Loch Linnhe | T91: NM92504968 | U91: 192500 | V91: 749680 | W91: Seawater | X91: Argyll and Bute
A92: 2068535 | B92: 2009-11-01 | C92: MAN3 | D92: 25839 | E92: 460 | F92: Scottish Sea Farms Ltd | G92: CAR/L/1003903 | H92: 0 | I92: 22651 | J92: 49.84 | K92: 0 | L92: 0 | M92: 0 | N92: 0 | O92: Mangaster Voe Inner | P92: CAR/L/1003903/V7 | Q92: Scottish Sea Farms Ltd | R92: 999 | S92: Mangaster Voe | T92: HU32907030 | U92: 432900 | V92: 1170300 | W92: Seawater | X92: Shetland Islands
A93: 2053879 | B93: 2011-08-01 | C93: FFMC40A | D93: 1577 | E93: 649 | F93: Scottish Sea Farms Ltd | G93: CAR/L/1008832 | H93: 0 | I93: 161420 | J93: 49.6 | K93: 0 | L93: 0 | M93: 0 | N93: 0 | O93: Port na Moralachd (Lismore A) | P93: CAR/L/1008832/V5 | Q93: Scottish Sea Farms Ltd | R93: 680 | S93: Loch Linnhe | T93: NM86644541 | U93: 186640 | V93: 745410 | W93: Seawater | X93: Argyll and Bute
A94: 2053878 | B94: 2011-07-01 | C94: FFMC40A | D94: 1061 | E94: 629 | F94: Scottish Sea Farms Ltd | G94: CAR/L/1008832 | H94: 0 | I94: 86420 | J94: 49.6 | K94: 0 | L94: 0 | M94: 0 | N94: 0 | O94: Port na Moralachd (Lismore A) | P94: CAR/L/1008832/V5 | Q94: Scottish Sea Farms Ltd | R94: 680 | S94: Loch Linnhe | T94: NM86644541 | U94: 186640 | V94: 745410 | W94: Seawater | X94: Argyll and Bute
A95: 2049363 | B95: 2011-06-01 | C95: FFMC41 | D95: 1619 | E95: 709 | F95: Scottish Sea Farms Ltd | G95: CAR/L/1003486 | H95: 0 | I95: 139755 | J95: 49.5 | K95: 0 | L95: 0 | M95: 0 | N95: 0 | O95: Achnacroish (Walters,Lismore East) | P95: CAR/L/1003486/C2/V3 | Q95: Scottish Sea Farms Ltd | R95: 999 | S95: Lynn of Lorn | T95: NM84904010 | U95: 184900 | V95: 740100 | W95: Seawater | X95: Argyll and Bute
A96: 2057204 | B96: 2009-07-01 | C96: FFMC18 | D96: 2136 | E96: 796 | F96: Scottish Sea Farms Ltd | G96: WPC/W/22833/R1 | H96: 0 | I96: 224000 | J96: 47.5 | K96: 0 | L96: 0 | M96: 0 | N96: 0 | O96: Shuna | P96: CAR/L/1009032/C1/V3 | Q96: Scottish Sea Farms Ltd | R96: 800 | S96: Loch Linnhe | T96: NM92504968 | U96: 192500 | V96: 749680 | W96: Seawater | X96: Argyll and Bute
A97: 2049500 | B97: 2008-08-01 | C97: FFMC23 | D97: 16632 | E97: 828 | F97: Scottish Sea Farms Ltd | G97: CAR/L/1003493 | H97: 0 | I97: 253240 | J97: 45 | K97: 16 | L97: 0 | M97: 0 | N97: 0 | O97: Fishnish A | P97: CAR/L/1003493/V4 | Q97: Scottish Sea Farms Ltd | R97: 1300 | S97: Sound of Mull | T97: NM63914254 | U97: 163910 | V97: 742540 | W97: Seawater | X97: Argyll and Bute
A98: 2061935 | B98: 2009-08-01 | C98: FFMC60 | D98: 1886 | E98: 979 | F98: Scottish Sea Farms Ltd | G98: WPC/W/30726 | H98: 0 | I98: 216410 | J98: 45 | K98: 0 | L98: 0 | M98: 0 | N98: 350 | O98: Port nan Ledaig (Lismore B) | P98: CAR/L/1000890/C1/V2 | Q98: Scottish Sea Farms Ltd | R98: 1130 | S98: Loch Linnhe | T98: NM82104080 | U98: 182100 | V98: 740800 | W98: Seawater | X98: Argyll and Bute
A99: 2049512 | B99: 2009-08-01 | C99: FFMC23 | D99: 611 | E99: 162 | F99: Scottish Sea Farms Ltd | G99: CAR/L/1003493 | H99: 0 | I99: 55402 | J99: 45 | K99: 0 | L99: 0 | M99: 0 | N99: 56.32 | O99: Fishnish A | P99: CAR/L/1003493/V4 | Q99: Scottish Sea Farms Ltd | R99: 1300 | S99: Sound of Mull | T99: NM63914254 | U99: 163910 | V99: 742540 | W99: Seawater | X99: Argyll and Bute
A100: 2049382 | B100: 2013-01-01 | C100: FFMC41 | D100: 15208 | E100: 594 | F100: Scottish Sea Farms Ltd | G100: CAR/L/1003486 | H100: 0 | I100: 90813 | J100: 45 | K100: 0 | L100: 1575 | M100: 0 | N100: 0 | O100: Achnacroish (Walters,Lismore East) | P100: CAR/L/1003486/C2/V3 | Q100: Scottish Sea Farms Ltd | R100: 999 | S100: Lynn of Lorn | T100: NM84904010 | U100: 184900 | V100: 740100 | W100: Seawater | X100: Argyll and Bute
A101: 2056658 | B101: 2012-04-01 | C101: NNES2 | D101: 13708 | E101: 414 | F101: Scottish Sea Farms Ltd | G101: CAR/L/1004209 | H101: 0 | I101: 42545 | J101: 45 | K101: 0 | L101: 1230 | M101: 0 | N101: 0 | O101: North Nesting Site 2 | P101: CAR/L/1004209/V3 | Q101: Scottish Sea Farms Ltd | R101: 995 | S101: Dury Voe | T101: HU46106238 | U101: 446100 | V101: 1162380 | W101: Seawater | X101: Shetland Islands
A102: 2065122 | B102: 2010-09-01 | C102: FFMC71 | D102: 64049 | E102: 922 | F102: Scottish Sea Farms Ltd | G102: CAR/L/1000844 | H102: 0 | I102: 111350 | J102: 45 | K102: 0 | L102: 0 | M102: 0 | N102: 0 | O102: Bloody Bay | P102: CAR/L/1000844/V5 | Q102: Scottish Sea Farms Ltd | R102: 998 | S102: Sound of Mull | T102: NM49205770 | U102: 149200 | V102: 757700 | W102: Seawater | X102: Argyll and Bute
A103: 2049501 | B103: 2008-09-01 | C103: FFMC23 | D103: 21411 | E103: 939 | F103: Scottish Sea Farms Ltd | G103: CAR/L/1003493 | H103: 0 | I103: 188320 | J103: 45 | K103: 0 | L103: 0 | M103: 0 | N103: 0 | O103: Fishnish A | P103: CAR/L/1003493/V4 | Q103: Scottish Sea Farms Ltd | R103: 1300 | S103: Sound of Mull | T103: NM63914254 | U103: 163910 | V103: 742540 | W103: Seawater | X103: Argyll and Bute
A104: 2047397 | B104: 2009-08-01 | C104: FFMC27 | D104: 8329 | E104: 1213 | F104: Scottish Sea Farms Ltd | G104: CAR/L/1009031 | H104: 0 | I104: 218674 | J104: 45 | K104: 0 | L104: 0 | M104: 0 | N104: 0 | O104: Dunstaffnage | P104: CAR/L/1009031/C1/V4 | Q104: Scottish Sea Farms Ltd | R104: 1300 | S104: Firth of Lorn | T104: NM86623398 | U104: 186620 | V104: 733980 | W104: Seawater | X104: Argyll and Bute
A105: 2065119 | B105: 2010-06-01 | C105: FFMC71 | D105: 6372 | E105: 990 | F105: Scottish Sea Farms Ltd | G105: CAR/L/1000844 | H105: 0 | I105: 228100 | J105: 45 | K105: 0 | L105: 0 | M105: 0 | N105: 0 | O105: Bloody Bay | P105: CAR/L/1000844/V5 | Q105: Scottish Sea Farms Ltd | R105: 998 | S105: Sound of Mull | T105: NM49205770 | U105: 149200 | V105: 757700 | W105: Seawater | X105: Argyll and Bute
A106: 2047398 | B106: 2009-09-01 | C106: FFMC27 | D106: 6224 | E106: 1199 | F106: Scottish Sea Farms Ltd | G106: CAR/L/1009031 | H106: 0 | I106: 310043 | J106: 45 | K106: 0 | L106: 0 | M106: 0 | N106: 0 | O106: Dunstaffnage | P106: CAR/L/1009031/C1/V4 | Q106: Scottish Sea Farms Ltd | R106: 1300 | S106: Firth of Lorn | T106: NM86623398 | U106: 186620 | V106: 733980 | W106: Seawater | X106: Argyll and Bute
A107: 2065113 | B107: 2009-12-01 | C107: FFMC71 | D107: 6090 | E107: 614 | F107: Scottish Sea Farms Ltd | G107: CAR/L/1000844 | H107: 0 | I107: 169725 | J107: 45 | K107: 0 | L107: 0 | M107: 0 | N107: 0 | O107: Bloody Bay | P107: CAR/L/1000844/V5 | Q107: Scottish Sea Farms Ltd | R107: 998 | S107: Sound of Mull | T107: NM49205770 | U107: 149200 | V107: 757700 | W107: Seawater | X107: Argyll and Bute
A108: 2047399 | B108: 2009-10-01 | C108: FFMC27 | D108: 3128 | E108: 932 | F108: Scottish Sea Farms Ltd | G108: CAR/L/1009031 | H108: 0 | I108: 174877 | J108: 45 | K108: 0 | L108: 0 | M108: 0 | N108: 0 | O108: Dunstaffnage | P108: CAR/L/1009031/C1/V4 | Q108: Scottish Sea Farms Ltd | R108: 1300 | S108: Firth of Lorn | T108: NM86623398 | U108: 186620 | V108: 733980 | W108: Seawater | X108: Argyll and Bute
A109: 2049513 | B109: 2009-09-01 | C109: FFMC23 | D109: 3038 | E109: 256 | F109: Scottish Sea Farms Ltd | G109: CAR/L/1003493 | H109: 0 | I109: 109463 | J109: 45 | K109: 0 | L109: 0 | M109: 0 | N109: 0 | O109: Fishnish A | P109: CAR/L/1003493/V4 | Q109: Scottish Sea Farms Ltd | R109: 1300 | S109: Sound of Mull | T109: NM63914254 | U109: 163910 | V109: 742540 | W109: Seawater | X109: Argyll and Bute
A110: 2065115 | B110: 2010-02-01 | C110: FFMC71 | D110: 2696 | E110: 727 | F110: Scottish Sea Farms Ltd | G110: CAR/L/1000844 | H110: 0 | I110: 69900 | J110: 45 | K110: 0 | L110: 0 | M110: 0 | N110: 0 | O110: Bloody Bay | P110: CAR/L/1000844/V5 | Q110: Scottish Sea Farms Ltd | R110: 998 | S110: Sound of Mull | T110: NM49205770 | U110: 149200 | V110: 757700 | W110: Seawater | X110: Argyll and Bute
A111: 2043230 | B111: 2010-10-01 | C111: ARDI1 | D111: 2576 | E111: 728 | F111: Scottish Sea Farms Ltd | G111: CAR/L/1002353 | H111: 0 | I111: 214360 | J111: 45 | K111: 0 | L111: 0 | M111: 0 | N111: 0 | O111: Ardintigh (Nevis C) | P111: CAR/L/1002353/V6 | Q111: Scottish Sea Farms Ltd | R111: 1630 | S111: Loch Nevis | T111: NM77009360 | U111: 177000 | V111: 793600 | W111: Seawater | X111: Highland
A112: 2043229 | B112: 2010-09-01 | C112: ARDI1 | D112: 2185 | E112: 663 | F112: Scottish Sea Farms Ltd | G112: CAR/L/1002353 | H112: 0 | I112: 176070 | J112: 45 | K112: 0 | L112: 0 | M112: 0 | N112: 0 | O112: Ardintigh (Nevis C) | P112: CAR/L/1002353/V6 | Q112: Scottish Sea Farms Ltd | R112: 1630 | S112: Loch Nevis | T112: NM77009360 | U112: 177000 | V112: 793600 | W112: Seawater | X112: Highland
A113: 2065117 | B113: 2010-04-01 | C113: FFMC71 | D113: 1897 | E113: 885 | F113: Scottish Sea Farms Ltd | G113: CAR/L/1000844 | H113: 0 | I113: 134250 | J113: 45 | K113: 0 | L113: 0 | M113: 0 | N113: 0 | O113: Bloody Bay | P113: CAR/L/1000844/V5 | Q113: Scottish Sea Farms Ltd | R113: 998 | S113: Sound of Mull | T113: NM49205770 | U113: 149200 | V113: 757700 | W113: Seawater | X113: Argyll and Bute
A114: 2049525 | B114: 2010-09-01 | C114: FFMC23 | D114: 1794 | E114: 1295 | F114: Scottish Sea Farms Ltd | G114: CAR/L/1003493 | H114: 0 | I114: 238229 | J114: 45 | K114: 0 | L114: 0 | M114: 0 | N114: 0 | O114: Fishnish A | P114: CAR/L/1003493/V4 | Q114: Scottish Sea Farms Ltd | R114: 1300 | S114: Sound of Mull | T114: NM63914254 | U114: 163910 | V114: 742540 | W114: Seawater | X114: Argyll and Bute
A115: 2053700 | B115: 2010-12-01 | C115: FFMC56 | D115: 1553 | E115: 699 | F115: Scottish Sea Farms Ltd | G115: CAR/L/1008759 | H115: 0 | I115: 133232 | J115: 45 | K115: 0 | L115: 0 | M115: 0 | N115: 0 | O115: Charlottes Bay (Kerrara B) | P115: CAR/L/1008759/C1/V2 | Q115: Scottish Sea Farms Ltd | R115: 1063 | S115: Firth of Lorn | T115: NM83433057 | U115: 183430 | V115: 730570 | W115: Seawater | X115: Argyll and Bute
A116: 2043228 | B116: 2010-08-01 | C116: ARDI1 | D116: 1445 | E116: 540 | F116: Scottish Sea Farms Ltd | G116: CAR/L/1002353 | H116: 0 | I116: 118954 | J116: 45 | K116: 0 | L116: 0 | M116: 0 | N116: 0 | O116: Ardintigh (Nevis C) | P116: CAR/L/1002353/V6 | Q116: Scottish Sea Farms Ltd | R116: 1630 | S116: Loch Nevis | T116: NM77009360 | U116: 177000 | V116: 793600 | W116: Seawater | X116: Highland
A117: 2061937 | B117: 2009-10-01 | C117: FFMC60 | D117: 1394 | E117: 747 | F117: Scottish Sea Farms Ltd | G117: WPC/W/30726 | H117: 0 | I117: 158959 | J117: 45 | K117: 0 | L117: 0 | M117: 0 | N117: 0 | O117: Port nan Ledaig (Lismore B) | P117: CAR/L/1000890/C1/V2 | Q117: Scottish Sea Farms Ltd | R117: 1130 | S117: Loch Linnhe | T117: NM82104080 | U117: 182100 | V117: 740800 | W117: Seawater | X117: Argyll and Bute
A118: 2057221 | B118: 2010-12-01 | C118: FFMC18 | D118: 1374 | E118: 441 | F118: Scottish Sea Farms Ltd | G118: CAR/L/1009032 | H118: 0 | I118: 114649 | J118: 45 | K118: 0 | L118: 0 | M118: 0 | N118: 0 | O118: Shuna | P118: CAR/L/1009032/C1/V3 | Q118: Scottish Sea Farms Ltd | R118: 800 | S118: Loch Linnhe | T118: NM92504968 | U118: 192500 | V118: 749680 | W118: Seawater | X118: Argyll and Bute
A119: 2049511 | B119: 2009-07-01 | C119: FFMC23 | D119: 1056 | E119: 121 | F119: Scottish Sea Farms Ltd | G119: CAR/L/1003493 | H119: 0 | I119: 40378 | J119: 45 | K119: 0 | L119: 0 | M119: 0 | N119: 0 | O119: Fishnish A | P119: CAR/L/1003493/V4 | Q119: Scottish Sea Farms Ltd | R119: 1300 | S119: Sound of Mull | T119: NM63914254 | U119: 163910 | V119: 742540 | W119: Seawater | X119: Argyll and Bute
A120: 2061957 | B120: 2011-06-01 | C120: FFMC60 | D120: 973 | E120: 1074 | F120: Scottish Sea Farms Ltd | G120: CAR/L/1000890 | H120: 0 | I120: 167737 | J120: 45 | K120: 0 | L120: 0 | M120: 0 | N120: 0 | O120: Port nan Ledaig (Lismore B) | P120: CAR/L/1000890/C1/V2 | Q120: Scottish Sea Farms Ltd | R120: 1130 | S120: Loch Linnhe | T120: NM82104080 | U120: 182100 | V120: 740800 | W120: Seawater | X120: Argyll and Bute
A121: 2043222 | B121: 2010-02-01 | C121: ARDI1 | D121: 817 | E121: 213 | F121: Scottish Sea Farms Ltd | G121: CAR/L/1002353 | H121: 0 | I121: 56880 | J121: 45 | K121: 0 | L121: 0 | M121: 0 | N121: 0 | O121: Ardintigh (Nevis C) | P121: CAR/L/1002353/V6 | Q121: Scottish Sea Farms Ltd | R121: 1630 | S121: Loch Nevis | T121: NM77009360 | U121: 177000 | V121: 793600 | W121: Seawater | X121: Highland
A122: 2053702 | B122: 2011-02-01 | C122: FFMC56 | D122: 731 | E122: 870 | F122: Scottish Sea Farms Ltd | G122: CAR/L/1008759 | H122: 0 | I122: 95042 | J122: 45 | K122: 0 | L122: 0 | M122: 0 | N122: 0 | O122: Charlottes Bay (Kerrara B) | P122: CAR/L/1008759/C1/V2 | Q122: Scottish Sea Farms Ltd | R122: 1063 | S122: Firth of Lorn | T122: NM83433057 | U122: 183430 | V122: 730570 | W122: Seawater | X122: Argyll and Bute
A123: 2043220 | B123: 2009-12-01 | C123: ARDI1 | D123: 655 | E123: 129 | F123: Scottish Sea Farms Ltd | G123: CAR/L/1002353 | H123: 0 | I123: 49032 | J123: 45 | K123: 0 | L123: 0 | M123: 0 | N123: 0 | O123: Ardintigh (Nevis C) | P123: CAR/L/1002353/V6 | Q123: Scottish Sea Farms Ltd | R123: 1630 | S123: Loch Nevis | T123: NM77009360 | U123: 177000 | V123: 793600 | W123: Seawater | X123: Highland
A124: 2061951 | B124: 2010-12-01 | C124: FFMC60 | D124: 612 | E124: 552 | F124: Scottish Sea Farms Ltd | G124: CAR/L/1000890 | H124: 0 | I124: 111094 | J124: 45 | K124: 0 | L124: 0 | M124: 0 | N124: 0 | O124: Port nan Ledaig (Lismore B) | P124: CAR/L/1000890/C1/V2 | Q124: Scottish Sea Farms Ltd | R124: 1130 | S124: Loch Linnhe | T124: NM82104080 | U124: 182100 | V124: 740800 | W124: Seawater | X124: Argyll and Bute
A125: 2061955 | B125: 2011-04-01 | C125: FFMC60 | D125: 511 | E125: 848 | F125: Scottish Sea Farms Ltd | G125: CAR/L/1000890 | H125: 0 | I125: 124101 | J125: 45 | K125: 0 | L125: 0 | M125: 0 | N125: 0 | O125: Port nan Ledaig (Lismore B) | P125: CAR/L/1000890/C1/V2 | Q125: Scottish Sea Farms Ltd | R125: 1130 | S125: Loch Linnhe | T125: NM82104080 | U125: 182100 | V125: 740800 | W125: Seawater | X125: Argyll and Bute
A126: 2049519 | B126: 2010-03-01 | C126: FFMC23 | D126: 487 | E126: 763 | F126: Scottish Sea Farms Ltd | G126: CAR/L/1003493 | H126: 0 | I126: 116074 | J126: 45 | K126: 0 | L126: 0 | M126: 0 | N126: 0 | O126: Fishnish A | P126: CAR/L/1003493/V4 | Q126: Scottish Sea Farms Ltd | R126: 1300 | S126: Sound of Mull | T126: NM63914254 | U126: 163910 | V126: 742540 | W126: Seawater | X126: Argyll and Bute
A127: 2049517 | B127: 2010-01-01 | C127: FFMC23 | D127: 365 | E127: 597 | F127: Scottish Sea Farms Ltd | G127: CAR/L/1003493 | H127: 0 | I127: 84789 | J127: 45 | K127: 0 | L127: 0 | M127: 0 | N127: 0 | O127: Fishnish A | P127: CAR/L/1003493/V4 | Q127: Scottish Sea Farms Ltd | R127: 1300 | S127: Sound of Mull | T127: NM63914254 | U127: 163910 | V127: 742540 | W127: Seawater | X127: Argyll and Bute
A128: 2061954 | B128: 2011-03-01 | C128: FFMC60 | D128: 250 | E128: 746 | F128: Scottish Sea Farms Ltd | G128: CAR/L/1000890 | H128: 0 | I128: 66396 | J128: 45 | K128: 0 | L128: 0 | M128: 0 | N128: 0 | O128: Port nan Ledaig (Lismore B) | P128: CAR/L/1000890/C1/V2 | Q128: Scottish Sea Farms Ltd | R128: 1130 | S128: Loch Linnhe | T128: NM82104080 | U128: 182100 | V128: 740800 | W128: Seawater | X128: Argyll and Bute
A129: 2053880 | B129: 2011-09-01 | C129: FFMC40A | D129: 5381 | E129: 640 | F129: Scottish Sea Farms Ltd | G129: CAR/L/1008832 | H129: 0 | I129: 112255 | J129: 43.4 | K129: 0 | L129: 0 | M129: 0 | N129: 0 | O129: Port na Moralachd (Lismore A) | P129: CAR/L/1008832/V5 | Q129: Scottish Sea Farms Ltd | R129: 680 | S129: Loch Linnhe | T129: NM86644541 | U129: 186640 | V129: 745410 | W129: Seawater | X129: Argyll and Bute
A130: 2068700 | B130: 2009-12-01 | C130: SNA1 | D130: 2495 | E130: 487 | F130: Scottish Sea Farms Ltd | G130: CAR/L/1004045 | H130: 0 | I130: 116117 | J130: 43.2 | K130: 0 | L130: 0 | M130: 0 | N130: 0 | O130: Snarraness Voe | P130: CAR/L/1004045/V4 | Q130: Scottish Sea Farms Ltd | R130: 995 | S130: Snarraness Voe | T130: HU23705650 | U130: 423700 | V130: 1156500 | W130: Seawater | X130: Shetland Islands
A131: 2057206 | B131: 2009-09-01 | C131: FFMC18 | D131: 5485 | E131: 776 | F131: Scottish Sea Farms Ltd | G131: WPC/W/22833/R1 | H131: 0 | I131: 179000 | J131: 42.5 | K131: 0 | L131: 0 | M131: 0 | N131: 0 | O131: Shuna | P131: CAR/L/1009032/C1/V3 | Q131: Scottish Sea Farms Ltd | R131: 800 | S131: Loch Linnhe | T131: NM92504968 | U131: 192500 | V131: 749680 | W131: Seawater | X131: Argyll and Bute
A132: 2062466 | B132: 2011-02-01 | C132: TAN2 | D132: 1354 | E132: 608 | F132: Scottish Sea Farms Ltd | G132: CAR/L/1002915 | H132: 0 | I132: 70712 | J132: 42 | K132: 0 | L132: 0 | M132: 0 | N132: 0 | O132: Tanera 2 | P132: CAR/L/1002915/V4 | Q132: Scottish Sea Farms Ltd | R132: 625 | S132: Summer Isles | T132: NB99400740 | U132: 199400 | V132: 907400 | W132: Seawater | X132: Highland
A133: 2062298 | B133: 2011-05-01 | C133: MINE1 | D133: 1207 | E133: 559 | F133: Scottish Sea Farms Ltd | G133: CAR/L/1002914 | H133: 0 | I133: 65901 | J133: 42 | K133: 0 | L133: 0 | M133: 0 | N133: 0 | O133: Tanera 1 | P133: CAR/L/1002914/V4 | Q133: Scottish Sea Farms Ltd | R133: 625 | S133: Summer Isles | T133: NB99200770 | U133: 199200 | V133: 907700 | W133: Seawater | X133: Highland
A134: 2062294 | B134: 2011-01-01 | C134: MINE1 | D134: 1055 | E134: 0 | F134: Scottish Sea Farms Ltd | G134: CAR/L/1002914 | H134: 0 | I134: 67711 | J134: 42 | K134: 0 | L134: 0 | M134: 0 | N134: 0 | O134: Tanera 1 | P134: CAR/L/1002914/V4 | Q134: Scottish Sea Farms Ltd | R134: 625 | S134: Summer Isles | T134: NB99200770 | U134: 199200 | V134: 907700 | W134: Seawater | X134: Highland
A135: 2062703 | B135: 2016-08-01 | C135: EAR1 | D135: 2207 | E135: 153 | F135: Scottish Sea Farms Ltd | G135: CAR/L/1004071 | H135: 0 | I135: 62796 | J135: 40.4 | K135: 0 | L135: 0 | M135: 0 | N135: 72 | O135: Earnsaig (Nevis A) | P135: CAR/L/1004071/V7 | Q135: Scottish Sea Farms Ltd | R135: 1350 | S135: Loch Nevis | T135: NM74309750 | U135: 174300 | V135: 797500 | W135: Seawater | X135: Highland
A136: 2057265 | B136: 2014-08-01 | C136: FFMC18 | D136: 786 | E136: 220 | F136: Scottish Sea Farms Ltd | G136: CAR/L/1009032 | H136: 0 | I136: 81478 | J136: 40 | K136: 0 | L136: 0 | M136: 0 | N136: 144 | O136: Shuna | P136: CAR/L/1009032/C1/V3 | Q136: Scottish Sea Farms Ltd | R136: 800 | S136: Loch Linnhe | T136: NM92504968 | U136: 192500 | V136: 749680 | W136: Seawater | X136: Argyll and Bute
A137: 2053870 | B137: 2010-11-01 | C137: FFMC40A | D137: 252 | E137: 242 | F137: Scottish Sea Farms Ltd | G137: CAR/L/1008832 | H137: 0 | I137: 64567 | J137: 40 | K137: 0 | L137: 0 | M137: 0 | N137: 120 | O137: Port na Moralachd (Lismore A) | P137: CAR/L/1008832/V5 | Q137: Scottish Sea Farms Ltd | R137: 680 | S137: Loch Linnhe | T137: NM86644541 | U137: 186640 | V137: 745410 | W137: Seawater | X137: Argyll and Bute
A138: 2057253 | B138: 2013-08-01 | C138: FFMC18 | D138: 6473 | E138: 694 | F138: Scottish Sea Farms Ltd | G138: CAR/L/1009032 | H138: 0 | I138: 208383 | J138: 40 | K138: 0 | L138: 1600 | M138: 0 | N138: 0 | O138: Shuna | P138: CAR/L/1009032/C1/V3 | Q138: Scottish Sea Farms Ltd | R138: 800 | S138: Loch Linnhe | T138: NM92504968 | U138: 192500 | V138: 749680 | W138: Seawater | X138: Argyll and Bute
A139: 2049424 | B139: 2016-07-01 | C139: FFMC23 | D139: 9347 | E139: 1206 | F139: Scottish Sea Farms Ltd | G139: CAR/L/1003493 | H139: 0 | I139: 221260 | J139: 40 | K139: 0 | L139: 0 | M139: 0 | N139: 0 | O139: Fishnish A | P139: CAR/L/1003493/V4 | Q139: Scottish Sea Farms Ltd | R139: 1300 | S139: Sound of Mull | T139: NM63914254 | U139: 163910 | V139: 742540 | W139: Seawater | X139: Argyll and Bute
A140: 2047419 | B140: 2011-06-01 | C140: FFMC27 | D140: 5995 | E140: 921 | F140: Scottish Sea Farms Ltd | G140: CAR/L/1009031 | H140: 0 | I140: 105995 | J140: 40 | K140: 0 | L140: 0 | M140: 0 | N140: 0 | O140: Dunstaffnage | P140: CAR/L/1009031/C1/V4 | Q140: Scottish Sea Farms Ltd | R140: 1300 | S140: Firth of Lorn | T140: NM86623398 | U140: 186620 | V140: 733980 | W140: Seawater | X140: Argyll and Bute
A141: 2049359 | B141: 2011-02-01 | C141: FFMC41 | D141: 5886 | E141: 380 | F141: Scottish Sea Farms Ltd | G141: CAR/L/1003486 | H141: 0 | I141: 50605 | J141: 40 | K141: 0 | L141: 0 | M141: 0 | N141: 0 | O141: Achnacroish (Walters,Lismore East) | P141: CAR/L/1003486/C2/V3 | Q141: Scottish Sea Farms Ltd | R141: 999 | S141: Lynn of Lorn | T141: NM84904010 | U141: 184900 | V141: 740100 | W141: Seawater | X141: Argyll and Bute
A142: 2049357 | B142: 2010-12-01 | C142: FFMC41 | D142: 2400 | E142: 307 | F142: Scottish Sea Farms Ltd | G142: CAR/L/1003486 | H142: 0 | I142: 70995 | J142: 40 | K142: 0 | L142: 0 | M142: 0 | N142: 0 | O142: Achnacroish (Walters,Lismore East) | P142: CAR/L/1003486/C2/V3 | Q142: Scottish Sea Farms Ltd | R142: 999 | S142: Lynn of Lorn | T142: NM84904010 | U142: 184900 | V142: 740100 | W142: Seawater | X142: Argyll and Bute
A143: 2061648 | B143: 2010-12-01 | C143: FFMC19 | D143: 2245 | E143: 554 | F143: Scottish Sea Farms Ltd | G143: CAR/L/1000843 | H143: 0 | I143: 95152 | J143: 40 | K143: 0 | L143: 0 | M143: 0 | N143: 0 | O143: Creran A | P143: CAR/L/1000843/C1/V2 | Q143: Scottish Sea Farms Ltd | R143: 1500 | S143: Loch Creran | T143: NM93074182 | U143: 193070 | V143: 741820 | W143: Seawater | X143: Argyll and Bute
A144: 2049361 | B144: 2011-04-01 | C144: FFMC41 | D144: 1482 | E144: 500 | F144: Scottish Sea Farms Ltd | G144: CAR/L/1003486 | H144: 0 | I144: 83655 | J144: 40 | K144: 0 | L144: 0 | M144: 0 | N144: 0 | O144: Achnacroish (Walters,Lismore East) | P144: CAR/L/1003486/C2/V3 | Q144: Scottish Sea Farms Ltd | R144: 999 | S144: Lynn of Lorn | T144: NM84904010 | U144: 184900 | V144: 740100 | W144: Seawater | X144: Argyll and Bute
A145: 2043232 | B145: 2010-12-01 | C145: ARDI1 | D145: 1148 | E145: 791 | F145: Scottish Sea Farms Ltd | G145: CAR/L/1002353 | H145: 0 | I145: 159790 | J145: 40 | K145: 0 | L145: 0 | M145: 0 | N145: 0 | O145: Ardintigh (Nevis C) | P145: CAR/L/1002353/V6 | Q145: Scottish Sea Farms Ltd | R145: 1630 | S145: Loch Nevis | T145: NM77009360 | U145: 177000 | V145: 793600 | W145: Seawater | X145: Highland
A146: 2061786 | B146: 2009-10-01 | C146: FFMC20 | D146: 853 | E146: 598 | F146: Scottish Sea Farms Ltd | G146: WPC/W/22899/R1 | H146: 0 | I146: 131500 | J146: 40 | K146: 0 | L146: 0 | M146: 0 | N146: 0 | O146: Creran B | P146: CAR/L/1003492/V5 | Q146: Scottish Sea Farms Ltd | R146: 1500 | S146: Loch Creran | T146: NM93804220 | U146: 193800 | V146: 742200 | W146: Seawater | X146: Argyll and Bute
A147: 2047415 | B147: 2011-02-01 | C147: FFMC27 | D147: 814 | E147: 560 | F147: Scottish Sea Farms Ltd | G147: CAR/L/1009031 | H147: 0 | I147: 67356 | J147: 40 | K147: 0 | L147: 0 | M147: 0 | N147: 0 | O147: Dunstaffnage | P147: CAR/L/1009031/C1/V4 | Q147: Scottish Sea Farms Ltd | R147: 1300 | S147: Firth of Lorn | T147: NM86623398 | U147: 186620 | V147: 733980 | W147: Seawater | X147: Argyll and Bute
A148: 2053855 | B148: 2009-08-01 | C148: FFMC40A | D148: 765 | E148: 549 | F148: Scottish Sea Farms Ltd | G148: WPC/W/30431 | H148: 0 | I148: 67803 | J148: 40 | K148: 0 | L148: 0 | M148: 0 | N148: 0 | O148: Port na Moralachd (Lismore A) | P148: CAR/L/1008832/V5 | Q148: Scottish Sea Farms Ltd | R148: 680 | S148: Loch Linnhe | T148: NM86644541 | U148: 186640 | V148: 745410 | W148: Seawater | X148: Argyll and Bute
A149: 2053877 | B149: 2011-06-01 | C149: FFMC40A | D149: 567 | E149: 573 | F149: Scottish Sea Farms Ltd | G149: CAR/L/1008832 | H149: 0 | I149: 71714 | J149: 40 | K149: 0 | L149: 0 | M149: 0 | N149: 0 | O149: Port na Moralachd (Lismore A) | P149: CAR/L/1008832/V5 | Q149: Scottish Sea Farms Ltd | R149: 680 | S149: Loch Linnhe | T149: NM86644541 | U149: 186640 | V149: 745410 | W149: Seawater | X149: Argyll and Bute
A150: 2047411 | B150: 2010-10-01 | C150: FFMC27 | D150: 504 | E150: 273 | F150: Scottish Sea Farms Ltd | G150: CAR/L/1009031 | H150: 0 | I150: 108776 | J150: 40 | K150: 0 | L150: 0 | M150: 0 | N150: 0 | O150: Dunstaffnage | P150: CAR/L/1009031/C1/V4 | Q150: Scottish Sea Farms Ltd | R150: 1300 | S150: Firth of Lorn | T150: NM86623398 | U150: 186620 | V150: 733980 | W150: Seawater | X150: Argyll and Bute
A151: 2053873 | B151: 2011-02-01 | C151: FFMC40A | D151: 408 | E151: 390 | F151: Scottish Sea Farms Ltd | G151: CAR/L/1008832 | H151: 0 | I151: 51735 | J151: 40 | K151: 0 | L151: 0 | M151: 0 | N151: 0 | O151: Port na Moralachd (Lismore A) | P151: CAR/L/1008832/V5 | Q151: Scottish Sea Farms Ltd | R151: 680 | S151: Loch Linnhe | T151: NM86644541 | U151: 186640 | V151: 745410 | W151: Seawater | X151: Argyll and Bute
A152: 2047413 | B152: 2010-12-01 | C152: FFMC27 | D152: 257 | E152: 429 | F152: Scottish Sea Farms Ltd | G152: CAR/L/1009031 | H152: 0 | I152: 99974 | J152: 40 | K152: 0 | L152: 0 | M152: 0 | N152: 0 | O152: Dunstaffnage | P152: CAR/L/1009031/C1/V4 | Q152: Scottish Sea Farms Ltd | R152: 1300 | S152: Firth of Lorn | T152: NM86623398 | U152: 186620 | V152: 733980 | W152: Seawater | X152: Argyll and Bute
A153: 2053875 | B153: 2011-04-01 | C153: FFMC40A | D153: 255 | E153: 455 | F153: Scottish Sea Farms Ltd | G153: CAR/L/1008832 | H153: 0 | I153: 49062 | J153: 40 | K153: 0 | L153: 0 | M153: 0 | N153: 0 | O153: Port na Moralachd (Lismore A) | P153: CAR/L/1008832/V5 | Q153: Scottish Sea Farms Ltd | R153: 680 | S153: Loch Linnhe | T153: NM86644541 | U153: 186640 | V153: 745410 | W153: Seawater | X153: Argyll and Bute
A154: 2053871 | B154: 2010-12-01 | C154: FFMC40A | D154: 248 | E154: 306 | F154: Scottish Sea Farms Ltd | G154: CAR/L/1008832 | H154: 0 | I154: 77717 | J154: 40 | K154: 0 | L154: 0 | M154: 0 | N154: 0 | O154: Port na Moralachd (Lismore A) | P154: CAR/L/1008832/V5 | Q154: Scottish Sea Farms Ltd | R154: 680 | S154: Loch Linnhe | T154: NM86644541 | U154: 186640 | V154: 745410 | W154: Seawater | X154: Argyll and Bute
A155: 2054048 | B155: 2011-09-01 | C155: FFMC40B | D155: 11632 | E155: 463 | F155: Scottish Sea Farms Ltd | G155: CAR/L/1008806 | H155: 0 | I155: 29504 | J155: 39 | K155: 0 | L155: 0 | M155: 0 | N155: 0 | O155: Dubh Sgeir (Lismore North) | P155: CAR/L/1008806/C1/V2 | Q155: Scottish Sea Farms Ltd | R155: 500 | S155: Loch Linnhe | T155: NM86104520 | U155: 186100 | V155: 745200 | W155: Seawater | X155: Argyll and Bute
A156: 2053709 | B156: 2011-09-01 | C156: FFMC56 | D156: 6508 | E156: 978 | F156: Scottish Sea Farms Ltd | G156: CAR/L/1008759 | H156: 0 | I156: 152774 | J156: 39 | K156: 0 | L156: 0 | M156: 0 | N156: 0 | O156: Charlottes Bay (Kerrara B) | P156: CAR/L/1008759/C1/V2 | Q156: Scottish Sea Farms Ltd | R156: 1063 | S156: Firth of Lorn | T156: NM83433057 | U156: 183430 | V156: 730570 | W156: Seawater | X156: Argyll and Bute
A157: 2054047 | B157: 2011-08-01 | C157: FFMC40B | D157: 3728 | E157: 498 | F157: Scottish Sea Farms Ltd | G157: CAR/L/1008806 | H157: 0 | I157: 92451 | J157: 39 | K157: 0 | L157: 0 | M157: 0 | N157: 0 | O157: Dubh Sgeir (Lismore North) | P157: CAR/L/1008806/C1/V2 | Q157: Scottish Sea Farms Ltd | R157: 500 | S157: Loch Linnhe | T157: NM86104520 | U157: 186100 | V157: 745200 | W157: Seawater | X157: Argyll and Bute
A158: 2062998 | B158: 2012-09-01 | C158: STOU1 | D158: 1782 | E158: 807 | F158: Scottish Sea Farms Ltd | G158: CAR/L/1004072 | H158: 0 | I158: 123664 | J158: 37.5 | K158: 0 | L158: 525 | M158: 0 | N158: 336 | O158: Stoull (Nevis B) | P158: CAR/L/1004072/V3 | Q158: Scottish Sea Farms Ltd | R158: 1500 | S158: Loch Nevis | T158: NM74809530 | U158: 174800 | V158: 795300 | W158: Seawater | X158: Highland
A159: 2053707 | B159: 2011-07-01 | C159: FFMC56 | D159: 2376 | E159: 1062 | F159: Scottish Sea Farms Ltd | G159: CAR/L/1008759 | H159: 0 | I159: 186222 | J159: 37.5 | K159: 0 | L159: 0 | M159: 0 | N159: 0 | O159: Charlottes Bay (Kerrara B) | P159: CAR/L/1008759/C1/V2 | Q159: Scottish Sea Farms Ltd | R159: 1063 | S159: Firth of Lorn | T159: NM83433057 | U159: 183430 | V159: 730570 | W159: Seawater | X159: Argyll and Bute
A160: 2054046 | B160: 2011-07-01 | C160: FFMC40B | D160: 2097 | E160: 496 | F160: Scottish Sea Farms Ltd | G160: CAR/L/1008806 | H160: 0 | I160: 100113 | J160: 37.5 | K160: 0 | L160: 0 | M160: 0 | N160: 0 | O160: Dubh Sgeir (Lismore North) | P160: CAR/L/1008806/C1/V2 | Q160: Scottish Sea Farms Ltd | R160: 500 | S160: Loch Linnhe | T160: NM86104520 | U160: 186100 | V160: 745200 | W160: Seawater | X160: Argyll and Bute
A161: 2062999 | B161: 2012-10-01 | C161: STOU1 | D161: 1803 | E161: 609 | F161: Scottish Sea Farms Ltd | G161: CAR/L/1004072 | H161: 0 | I161: 128176 | J161: 37.5 | K161: 0 | L161: 0 | M161: 0 | N161: 0 | O161: Stoull (Nevis B) | P161: CAR/L/1004072/V3 | Q161: Scottish Sea Farms Ltd | R161: 1500 | S161: Loch Nevis | T161: NM74809530 | U161: 174800 | V161: 795300 | W161: Seawater | X161: Highland
A162: 2053706 | B162: 2011-06-01 | C162: FFMC56 | D162: 1095 | E162: 1063 | F162: Scottish Sea Farms Ltd | G162: CAR/L/1008759 | H162: 0 | I162: 180907 | J162: 37.5 | K162: 0 | L162: 0 | M162: 0 | N162: 0 | O162: Charlottes Bay (Kerrara B) | P162: CAR/L/1008759/C1/V2 | Q162: Scottish Sea Farms Ltd | R162: 1063 | S162: Firth of Lorn | T162: NM83433057 | U162: 183430 | V162: 730570 | W162: Seawater | X162: Argyll and Bute
A163: 2061995 | B163: 2014-08-01 | C163: FFMC60 | D163: 1793 | E163: 206 | F163: Scottish Sea Farms Ltd | G163: CAR/L/1000890 | H163: 0 | I163: 72526 | J163: 37.4 | K163: 0 | L163: 0 | M163: 0 | N163: 156 | O163: Port nan Ledaig (Lismore B) | P163: CAR/L/1000890/C1/V2 | Q163: Scottish Sea Farms Ltd | R163: 1130 | S163: Loch Linnhe | T163: NM82104080 | U163: 182100 | V163: 740800 | W163: Seawater | X163: Argyll and Bute
A164: 2049401 | B164: 2014-08-01 | C164: FFMC41 | D164: 1191 | E164: 258 | F164: Scottish Sea Farms Ltd | G164: CAR/L/1003486 | H164: 0 | I164: 85021 | J164: 37.4 | K164: 0 | L164: 1800 | M164: 0 | N164: 0 | O164: Achnacroish (Walters,Lismore East) | P164: CAR/L/1003486/C2/V3 | Q164: Scottish Sea Farms Ltd | R164: 999 | S164: Lynn of Lorn | T164: NM84904010 | U164: 184900 | V164: 740100 | W164: Seawater | X164: Argyll and Bute
A165: 2062134 | B165: 2011-12-01 | C165: EFM1 | D165: 189 | E165: 39 | F165: Scottish Sea Farms Ltd | G165: CAR/L/1002916 | H165: 0 | I165: 15690 | J165: 36 | K165: 0 | L165: 0 | M165: 0 | N165: 25 | O165: Eilean Fada Mor | P165: CAR/L/1002916/V4 | Q165: Scottish Sea Farms Ltd | R165: 600 | S165: Summer Isles | T165: NB97600780 | U165: 197600 | V165: 907800 | W165: Seawater | X165: Highland
A166: 2057441 | B166: 2015-01-01 | C166: FFMC22 | D166: 19803 | E166: 594 | F166: Scottish Sea Farms Ltd | G166: CAR/L/1008861 | H166: 0 | I166: 34739 | J166: 36 | K166: 0 | L166: 0 | M166: 0 | N166: 0 | O166: Spelve B (Dalnaha) | P166: CAR/L/1008861/V5 | Q166: Scottish Sea Farms Ltd | R166: 700 | S166: Loch Spelve | T166: NM68902690 | U166: 168900 | V166: 726900 | W166: Seawater | X166: Argyll and Bute
A167: 2057437 | B167: 2014-09-01 | C167: FFMC22 | D167: 6667 | E167: 662 | F167: Scottish Sea Farms Ltd | G167: CAR/L/1008861 | H167: 0 | I167: 141790 | J167: 36 | K167: 0 | L167: 0 | M167: 0 | N167: 0 | O167: Spelve B (Dalnaha) | P167: CAR/L/1008861/V5 | Q167: Scottish Sea Farms Ltd | R167: 700 | S167: Loch Spelve | T167: NM68902690 | U167: 168900 | V167: 726900 | W167: Seawater | X167: Argyll and Bute
A168: 2062119 | B168: 2010-09-01 | C168: EFM1 | D168: 902 | E168: 479 | F168: Scottish Sea Farms Ltd | G168: CAR/L/1002916 | H168: 0 | I168: 105862 | J168: 36 | K168: 0 | L168: 0 | M168: 0 | N168: 0 | O168: Eilean Fada Mor | P168: CAR/L/1002916/V4 | Q168: Scottish Sea Farms Ltd | R168: 600 | S168: Summer Isles | T168: NB97600780 | U168: 197600 | V168: 907800 | W168: Seawater | X168: Highland
A169: 2062118 | B169: 2010-08-01 | C169: EFM1 | D169: 791 | E169: 387 | F169: Scottish Sea Farms Ltd | G169: CAR/L/1002916 | H169: 0 | I169: 116715 | J169: 36 | K169: 0 | L169: 0 | M169: 0 | N169: 0 | O169: Eilean Fada Mor | P169: CAR/L/1002916/V4 | Q169: Scottish Sea Farms Ltd | R169: 600 | S169: Summer Isles | T169: NB97600780 | U169: 197600 | V169: 907800 | W169: Seawater | X169: Highland
A170: 2057207 | B170: 2009-10-01 | C170: FFMC18 | D170: 4969 | E170: 589 | F170: Scottish Sea Farms Ltd | G170: WPC/W/22833/R1 | H170: 0 | I170: 58500 | J170: 35 | K170: 0 | L170: 0 | M170: 0 | N170: 0 | O170: Shuna | P170: CAR/L/1009032/C1/V3 | Q170: Scottish Sea Farms Ltd | R170: 800 | S170: Loch Linnhe | T170: NM92504968 | U170: 192500 | V170: 749680 | W170: Seawater | X170: Argyll and Bute
A171: 2056630 | B171: 2009-12-01 | C171: NNES2 | D171: 928 | E171: 517 | F171: Scottish Sea Farms Ltd | G171: CAR/L/1004209 | H171: 0 | I171: 110809 | J171: 32.96 | K171: 0 | L171: 0 | M171: 0 | N171: 0 | O171: North Nesting Site 2 | P171: CAR/L/1004209/V3 | Q171: Scottish Sea Farms Ltd | R171: 995 | S171: Dury Voe | T171: HU46106238 | U171: 446100 | V171: 1162380 | W171: Seawater | X171: Shetland Islands
A172: 2047395 | B172: 2009-06-01 | C172: FFMC27 | D172: 5942 | E172: 950 | F172: Scottish Sea Farms Ltd | G172: CAR/L/1009031 | H172: 0 | I172: 179138 | J172: 30 | K172: 54 | L172: 0 | M172: 0 | N172: 0 | O172: Dunstaffnage | P172: CAR/L/1009031/C1/V4 | Q172: Scottish Sea Farms Ltd | R172: 1300 | S172: Firth of Lorn | T172: NM86623398 | U172: 186620 | V172: 733980 | W172: Seawater | X172: Argyll and Bute
A173: 2068533 | B173: 2009-09-01 | C173: MAN3 | D173: 88576 | E173: 432 | F173: Scottish Sea Farms Ltd | G173: CAR/L/1003903 | H173: 0 | I173: 95200 | J173: 30 | K173: 0 | L173: 1064 | M173: 0 | N173: 0 | O173: Mangaster Voe Inner | P173: CAR/L/1003903/V7 | Q173: Scottish Sea Farms Ltd | R173: 999 | S173: Mangaster Voe | T173: HU32907030 | U173: 432900 | V173: 1170300 | W173: Seawater | X173: Shetland Islands
A174: 2054071 | B174: 2013-08-01 | C174: FFMC40B | D174: 1027 | E174: 441 | F174: Scottish Sea Farms Ltd | G174: CAR/L/1008806 | H174: 0 | I174: 141998 | J174: 30 | K174: 0 | L174: 900 | M174: 0 | N174: 0 | O174: Dubh Sgeir (Lismore North) | P174: CAR/L/1008806/C1/V2 | Q174: Scottish Sea Farms Ltd | R174: 500 | S174: Loch Linnhe | T174: NM86104520 | U174: 186100 | V174: 745200 | W174: Seawater | X174: Argyll and Bute
A175: 2049502 | B175: 2008-10-01 | C175: FFMC23 | D175: 16976 | E175: 653 | F175: Scottish Sea Farms Ltd | G175: CAR/L/1003493 | H175: 0 | I175: 190180 | J175: 30 | K175: 0 | L175: 0 | M175: 0 | N175: 0 | O175: Fishnish A | P175: CAR/L/1003493/V4 | Q175: Scottish Sea Farms Ltd | R175: 1300 | S175: Sound of Mull | T175: NM63914254 | U175: 163910 | V175: 742540 | W175: Seawater | X175: Argyll and Bute
A176: 2049340 | B176: 2009-07-01 | C176: FFMC41 | D176: 11773 | E176: 591 | F176: Scottish Sea Farms Ltd | G176: WPC/W/22831/R1 | H176: 0 | I176: 101073 | J176: 30 | K176: 0 | L176: 0 | M176: 0 | N176: 0 | O176: Achnacroish (Walters,Lismore East) | P176: CAR/L/1003486/C2/V3 | Q176: Scottish Sea Farms Ltd | R176: 999 | S176: Lynn of Lorn | T176: NM84904010 | U176: 184900 | V176: 740100 | W176: Seawater | X176: Argyll and Bute
A177: 2062826 | B177: 2012-08-01 | C177: EAR1 | D177: 10393 | E177: 756 | F177: Scottish Sea Farms Ltd | G177: CAR/L/1004071 | H177: 0 | I177: 28441 | J177: 30 | K177: 0 | L177: 0 | M177: 0 | N177: 0 | O177: Earnsaig (Nevis A) | P177: CAR/L/1004071/V7 | Q177: Scottish Sea Farms Ltd | R177: 1350 | S177: Loch Nevis | T177: NM74309750 | U177: 174300 | V177: 797500 | W177: Seawater | X177: Highland
A178: 2053685 | B178: 2009-09-01 | C178: FFMC56 | D178: 5824 | E178: 574 | F178: Scottish Sea Farms Ltd | G178: CAR/L/1008759 | H178: 0 | I178: 179425 | J178: 30 | K178: 0 | L178: 0 | M178: 0 | N178: 0 | O178: Charlottes Bay (Kerrara B) | P178: CAR/L/1008759/C1/V2 | Q178: Scottish Sea Farms Ltd | R178: 1063 | S178: Firth of Lorn | T178: NM83433057 | U178: 183430 | V178: 730570 | W178: Seawater | X178: Argyll and Bute
A179: 2049342 | B179: 2009-09-01 | C179: FFMC41 | D179: 3745 | E179: 756 | F179: Scottish Sea Farms Ltd | G179: WPC/W/22831/R1 | H179: 0 | I179: 168799 | J179: 30 | K179: 0 | L179: 0 | M179: 0 | N179: 0 | O179: Achnacroish (Walters,Lismore East) | P179: CAR/L/1003486/C2/V3 | Q179: Scottish Sea Farms Ltd | R179: 999 | S179: Lynn of Lorn | T179: NM84904010 | U179: 184900 | V179: 740100 | W179: Seawater | X179: Argyll and Bute
A180: 2049345 | B180: 2009-12-01 | C180: FFMC41 | D180: 3341 | E180: 770 | F180: Scottish Sea Farms Ltd | G180: WPC/W/22831/R1 | H180: 0 | I180: 131467 | J180: 30 | K180: 0 | L180: 0 | M180: 0 | N180: 0 | O180: Achnacroish (Walters,Lismore East) | P180: CAR/L/1003486/C2/V3 | Q180: Scottish Sea Farms Ltd | R180: 999 | S180: Lynn of Lorn | T180: NM84904010 | U180: 184900 | V180: 740100 | W180: Seawater | X180: Argyll and Bute
A181: 2047400 | B181: 2009-11-01 | C181: FFMC27 | D181: 2186 | E181: 485 | F181: Scottish Sea Farms Ltd | G181: CAR/L/1009031 | H181: 0 | I181: 91654 | J181: 30 | K181: 0 | L181: 0 | M181: 0 | N181: 0 | O181: Dunstaffnage | P181: CAR/L/1009031/C1/V4 | Q181: Scottish Sea Farms Ltd | R181: 1300 | S181: Firth of Lorn | T181: NM86623398 | U181: 186620 | V181: 733980 | W181: Seawater | X181: Argyll and Bute
A182: 2054045 | B182: 2011-06-01 | C182: FFMC40B | D182: 2119 | E182: 470 | F182: Scottish Sea Farms Ltd | G182: CAR/L/1008806 | H182: 0 | I182: 61969 | J182: 30 | K182: 0 | L182: 0 | M182: 0 | N182: 0 | O182: Dubh Sgeir (Lismore North) | P182: CAR/L/1008806/C1/V2 | Q182: Scottish Sea Farms Ltd | R182: 500 | S182: Loch Linnhe | T182: NM86104520 | U182: 186100 | V182: 745200 | W182: Seawater | X182: Argyll and Bute
A183: 2062975 | B183: 2010-10-01 | C183: STOU1 | D183: 1877 | E183: 646 | F183: Scottish Sea Farms Ltd | G183: CAR/L/1004072 | H183: 0 | I183: 98921 | J183: 30 | K183: 0 | L183: 0 | M183: 0 | N183: 0 | O183: Stoull (Nevis B) | P183: CAR/L/1004072/V3 | Q183: Scottish Sea Farms Ltd | R183: 1500 | S183: Loch Nevis | T183: NM74809530 | U183: 174800 | V183: 795300 | W183: Seawater | X183: Highland
A184: 2053698 | B184: 2010-10-01 | C184: FFMC56 | D184: 1603 | E184: 463 | F184: Scottish Sea Farms Ltd | G184: CAR/L/1008759 | H184: 0 | I184: 170473 | J184: 30 | K184: 0 | L184: 0 | M184: 0 | N184: 0 | O184: Charlottes Bay (Kerrara B) | P184: CAR/L/1008759/C1/V2 | Q184: Scottish Sea Farms Ltd | R184: 1063 | S184: Firth of Lorn | T184: NM83433057 | U184: 183430 | V184: 730570 | W184: Seawater | X184: Argyll and Bute
A185: 2054044 | B185: 2011-05-01 | C185: FFMC40B | D185: 1102 | E185: 461 | F185: Scottish Sea Farms Ltd | G185: CAR/L/1008806 | H185: 0 | I185: 60383 | J185: 30 | K185: 0 | L185: 0 | M185: 0 | N185: 0 | O185: Dubh Sgeir (Lismore North) | P185: CAR/L/1008806/C1/V2 | Q185: Scottish Sea Farms Ltd | R185: 500 | S185: Loch Linnhe | T185: NM86104520 | U185: 186100 | V185: 745200 | W185: Seawater | X185: Argyll and Bute
A186: 2053704 | B186: 2011-04-01 | C186: FFMC56 | D186: 833 | E186: 963 | F186: Scottish Sea Farms Ltd | G186: CAR/L/1008759 | H186: 0 | I186: 161341 | J186: 30 | K186: 0 | L186: 0 | M186: 0 | N186: 0 | O186: Charlottes Bay (Kerrara B) | P186: CAR/L/1008759/C1/V2 | Q186: Scottish Sea Farms Ltd | R186: 1063 | S186: Firth of Lorn | T186: NM83433057 | U186: 183430 | V186: 730570 | W186: Seawater | X186: Argyll and Bute
A187: 2062461 | B187: 2010-09-01 | C187: TAN2 | D187: 833 | E187: 424 | F187: Scottish Sea Farms Ltd | G187: CAR/L/1002915 | H187: 0 | I187: 88224 | J187: 30 | K187: 0 | L187: 0 | M187: 0 | N187: 0 | O187: Tanera 2 | P187: CAR/L/1002915/V4 | Q187: Scottish Sea Farms Ltd | R187: 625 | S187: Summer Isles | T187: NB99400740 | U187: 199400 | V187: 907400 | W187: Seawater | X187: Highland
A188: 2053684 | B188: 2009-08-01 | C188: FFMC56 | D188: 708 | E188: 742 | F188: Scottish Sea Farms Ltd | G188: CAR/L/1008759 | H188: 0 | I188: 202335 | J188: 30 | K188: 0 | L188: 0 | M188: 0 | N188: 0 | O188: Charlottes Bay (Kerrara B) | P188: CAR/L/1008759/C1/V2 | Q188: Scottish Sea Farms Ltd | R188: 1063 | S188: Firth of Lorn | T188: NM83433057 | U188: 183430 | V188: 730570 | W188: Seawater | X188: Argyll and Bute
A189: 2063164 | B189: 2012-06-01 | C189: KEM1 | D189: 618 | E189: 121 | F189: Scottish Sea Farms Ltd | G189: CAR/L/1003110 | H189: 0 | I189: 30089 | J189: 30 | K189: 0 | L189: 0 | M189: 0 | N189: 0 | O189: Kempie Bay | P189: CAR/L/1003110/C1/V3 | Q189: Scottish Sea Farms Ltd | R189: 400 | S189: Loch Eriboll | T189: NC44625809 | U189: 244620 | V189: 958090 | W189: Seawater | X189: Highland
A190: 2062460 | B190: 2010-08-01 | C190: TAN2 | D190: 561 | E190: 349 | F190: Scottish Sea Farms Ltd | G190: CAR/L/1002915 | H190: 0 | I190: 98185 | J190: 30 | K190: 0 | L190: 0 | M190: 0 | N190: 0 | O190: Tanera 2 | P190: CAR/L/1002915/V4 | Q190: Scottish Sea Farms Ltd | R190: 625 | S190: Summer Isles | T190: NB99400740 | U190: 199400 | V190: 907400 | W190: Seawater | X190: Highland
A191: 2054041 | B191: 2011-02-01 | C191: FFMC40B | D191: 548 | E191: 351 | F191: Scottish Sea Farms Ltd | G191: CAR/L/1008806 | H191: 0 | I191: 26529 | J191: 30 | K191: 0 | L191: 0 | M191: 0 | N191: 0 | O191: Dubh Sgeir (Lismore North) | P191: CAR/L/1008806/C1/V2 | Q191: Scottish Sea Farms Ltd | R191: 500 | S191: Loch Linnhe | T191: NM86104520 | U191: 186100 | V191: 745200 | W191: Seawater | X191: Argyll and Bute
A192: 2062290 | B192: 2010-09-01 | C192: MINE1 | D192: 478 | E192: 375 | F192: Scottish Sea Farms Ltd | G192: CAR/L/1002914 | H192: 0 | I192: 77000 | J192: 30 | K192: 0 | L192: 0 | M192: 0 | N192: 0 | O192: Tanera 1 | P192: CAR/L/1002914/V4 | Q192: Scottish Sea Farms Ltd | R192: 625 | S192: Summer Isles | T192: NB99200770 | U192: 199200 | V192: 907700 | W192: Seawater | X192: Highland
A193: 2061948 | B193: 2010-09-01 | C193: FFMC60 | D193: 309 | E193: 238 | F193: Scottish Sea Farms Ltd | G193: CAR/L/1000890 | H193: 0 | I193: 85517 | J193: 30 | K193: 0 | L193: 0 | M193: 0 | N193: 0 | O193: Port nan Ledaig (Lismore B) | P193: CAR/L/1000890/C1/V2 | Q193: Scottish Sea Farms Ltd | R193: 1130 | S193: Loch Linnhe | T193: NM82104080 | U193: 182100 | V193: 740800 | W193: Seawater | X193: Argyll and Bute
A194: 2062458 | B194: 2010-06-01 | C194: TAN2 | D194: 192 | E194: 349 | F194: Scottish Sea Farms Ltd | G194: CAR/L/1002915 | H194: 0 | I194: 19830 | J194: 30 | K194: 0 | L194: 0 | M194: 0 | N194: 0 | O194: Tanera 2 | P194: CAR/L/1002915/V4 | Q194: Scottish Sea Farms Ltd | R194: 625 | S194: Summer Isles | T194: NB99400740 | U194: 199400 | V194: 907400 | W194: Seawater | X194: Highland
A195: 2062680 | B195: 2014-09-01 | C195: FFMC21 | D195: 7238 | E195: 328 | F195: Scottish Sea Farms Ltd | G195: CAR/L/1008860 | H195: 0 | I195: 78392 | J195: 29.7 | K195: 0 | L195: 0 | M195: 0 | N195: 0 | O195: Spelve A (Balure) | P195: CAR/L/1008860/V4 | Q195: Scottish Sea Farms Ltd | R195: 350 | S195: Loch Spelve | T195: NM67672664 | U195: 167675 | V195: 726641 | W195: Seawater | X195: Argyll and Bute
A196: 2057394 | B196: 2011-02-01 | C196: FFMC22 | D196: 1574 | E196: 682 | F196: Scottish Sea Farms Ltd | G196: CAR/L/1008861 | H196: 0 | I196: 79700 | J196: 27 | K196: 0 | L196: 0 | M196: 0 | N196: 0 | O196: Spelve B (Dalnaha) | P196: CAR/L/1008861/V5 | Q196: Scottish Sea Farms Ltd | R196: 700 | S196: Loch Spelve | T196: NM68902690 | U196: 168900 | V196: 726900 | W196: Seawater | X196: Argyll and Bute
A197: 2062681 | B197: 2014-10-01 | C197: FFMC21 | D197: 9868 | E197: 311 | F197: Scottish Sea Farms Ltd | G197: CAR/L/1008860 | H197: 0 | I197: 66720 | J197: 26.4 | K197: 0 | L197: 0 | M197: 0 | N197: 0 | O197: Spelve A (Balure) | P197: CAR/L/1008860/V4 | Q197: Scottish Sea Farms Ltd | R197: 350 | S197: Loch Spelve | T197: NM67672664 | U197: 167675 | V197: 726641 | W197: Seawater | X197: Argyll and Bute
A198: 2063298 | B198: 2010-03-01 | C198: SIAN1 | D198: 2041 | E198: 339 | F198: Scottish Sea Farms Ltd | G198: CAR/L/1003109 | H198: 0 | I198: 45664 | J198: 25 | K198: 0 | L198: 0 | M198: 0 | N198: 0 | O198: Sian Bay | P198: CAR/L/1003109/C1/V3 | Q198: Scottish Sea Farms Ltd | R198: 995 | S198: Loch Eriboll | T198: NC44576247 | U198: 244570 | V198: 962470 | W198: Seawater | X198: Highland
A199: 2063293 | B199: 2009-10-01 | C199: SIAN1 | D199: 679 | E199: 204 | F199: Scottish Sea Farms Ltd | G199: CAR/L/1003109 | H199: 0 | I199: 42250 | J199: 25 | K199: 0 | L199: 0 | M199: 0 | N199: 0 | O199: Sian Bay | P199: CAR/L/1003109/C1/V3 | Q199: Scottish Sea Farms Ltd | R199: 995 | S199: Loch Eriboll | T199: NC44576247 | U199: 244570 | V199: 962470 | W199: Seawater | X199: Highland
A200: 2062289 | B200: 2010-08-01 | C200: MINE1 | D200: 388 | E200: 309 | F200: Scottish Sea Farms Ltd | G200: CAR/L/1002914 | H200: 0 | I200: 93803 | J200: 25 | K200: 0 | L200: 0 | M200: 0 | N200: 0 | O200: Tanera 1 | P200: CAR/L/1002914/V4 | Q200: Scottish Sea Farms Ltd | R200: 625 | S200: Summer Isles | T200: NB99200770 | U200: 199200 | V200: 907700 | W200: Seawater | X200: Highland
... 2050 more rows

Sheet Cooke
A1: Monthly Report ID | B1: Year | C1: SEPA Site | D1: Mortalities Kilograms | E1: Actual Biomass on Site (tonnes) | F1: Submitted By | G1: Licence Active at Report | H1: Biomass Exceedence Tonnes | I1: Feed Kilograms | J1: Deltamethrin grams | K1: Cypermethrin grams | L1: Azamethiphos grams | M1: Teflubenzuron grams | N1: Emamectin Benzoate grams | O1: Site Name | P1: Active Licence Number | Q1: Operator | R1: Maximum Biomass Allowed (tonnes) | S1: Receiving Water | T1: National Grid Reference | U1: Easting | V1: Northing | W1: Water Type | X1: Local Authority
A2: 2052641 | B2: 2009-07-01 | C2: CLO1 | D2: 1698 | E2: 212 | F2: Hoganess Salmon Ltd | G2: CAR/L/1004036 | H2: 0 | I2: 77219 | J2: 86.4 | K2: 0 | L2: 0 | M2: 0 | N2: 0 | O2: Cloudin | P2: CAR/L/1004036/V4 | Q2: Cooke Aquaculture Scotland | R2: 1995 | S2: Vaila Sound | T2: HU23304750 | U2: 423300 | V2: 1147500 | W2: Seawater | X2: Shetland Islands
A3: 2052805 | B3: 2009-06-01 | C3: HOG1 | D3: 1645 | E3: 1063 | F3: Hoganess Salmon Ltd | G3: CAR/L/1005096 | H3: 0 | I3: 210241 | J3: 55.6 | K3: 0 | L3: 0 | M3: 0 | N3: 0 | O3: Hogan (Site 1) | P3: CAR/L/1005096/V3 | Q3: Cooke Aquaculture Scotland | R3: 1500 | S3: Gruting Voe | T3: HU26504735 | U3: 426600 | V3: 1147400 | W3: Seawater | X3: Shetland Islands
A4: 2052999 | B4: 2011-12-01 | C4: SELH1 | D4: 262 | E4: 491 | F4: Hoganess Salmon Ltd | G4: CAR/L/1004032 | H4: 0 | I4: 45693 | J4: 38.4 | K4: 0 | L4: 1920 | M4: 0 | N4: 215.6 | O4: Holm | P4: CAR/L/1004032/V3 | Q4: Cooke Aquaculture Scotland | R4: 900 | S4: Gruting Voe | T4: HU27804780 | U4: 427800 | V4: 1147800 | W4: Seawater | X4: Shetland Islands
A5: 2052998 | B5: 2011-11-01 | C5: SELH1 | D5: 276 | E5: 455 | F5: Hoganess Salmon Ltd | G5: CAR/L/1004032 | H5: 0 | I5: 860601 | J5: 38.4 | K5: 0 | L5: 1680 | M5: 0 | N5: 0 | O5: Holm | P5: CAR/L/1004032/V3 | Q5: Cooke Aquaculture Scotland | R5: 900 | S5: Gruting Voe | T5: HU27804780 | U5: 427800 | V5: 1147800 | W5: Seawater | X5: Shetland Islands
A6: 2052969 | B6: 2009-06-01 | C6: SELH1 | D6: 3754 | E6: 794 | F6: Hoganess Salmon Ltd | G6: CAR/L/1004032 | H6: 0 | I6: 164040 | J6: 38 | K6: 0 | L6: 0 | M6: 0 | N6: 0 | O6: Holm | P6: CAR/L/1004032/V3 | Q6: Cooke Aquaculture Scotland | R6: 900 | S6: Gruting Voe | T6: HU27804780 | U6: 427800 | V6: 1147800 | W6: Seawater | X6: Shetland Islands
A7: 2052668 | B7: 2011-10-01 | C7: CLO1 | D7: 1503 | E7: 1729 | F7: Hoganess Salmon Ltd | G7: CAR/L/1004036 | H7: 0 | I7: 338015 | J7: 25.6 | K7: 0 | L7: 880 | M7: 0 | N7: 0 | O7: Cloudin | P7: CAR/L/1004036/V4 | Q7: Cooke Aquaculture Scotland | R7: 1995 | S7: Vaila Sound | T7: HU23304750 | U7: 423300 | V7: 1147500 | W7: Seawater | X7: Shetland Islands
A8: 2053134 | B8: 2009-06-01 | C8: MID1 | D8: 465 | E8: 455 | F8: Hoganess Salmon Ltd | G8: CAR/L/1005043 | H8: 0 | I8: 92750 | J8: 19 | K8: 0 | L8: 0 | M8: 0 | N8: 0 | O8: Mid Taing | P8: CAR/L/1005043/V4 | Q8: Cooke Aquaculture Scotland | R8: 500 | S8: Gruting Voe | T8: HU25774711 | U8: 425768 | V8: 1147110 | W8: Seawater | X8: Shetland Islands
A9: 2052489 | B9: 2010-08-01 | C9: BURA1 | D9: 51038 | E9: 522 | F9: Hoganess Salmon Ltd | G9: CAR/L/1005095 | H9: 0 | I9: 70750 | J9: 14 | K9: 26 | L9: 50 | M9: 0 | N9: 0 | O9: Burrastow | P9: CAR/L/1005095/C1/V1 | Q9: Cooke Aquaculture Scotland | R9: 643 | S9: Vaila Sound | T9: HU22644769 | U9: 422645 | V9: 1147691 | W9: Seawater | X9: Shetland Islands
A10: 2052834 | B10: 2011-11-01 | C10: HOG1 | D10: 893 | E10: 101 | F10: Hoganess Salmon Ltd | G10: CAR/L/1005096 | H10: 0 | I10: 36502 | J10: 14 | K10: 0 | L10: 700 | M10: 0 | N10: 57 | O10: Hogan (Site 1) | P10: CAR/L/1005096/V3 | Q10: Cooke Aquaculture Scotland | R10: 1500 | S10: Gruting Voe | T10: HU26504735 | U10: 426600 | V10: 1147400 | W10: Seawater | X10: Shetland Islands
A11: 2052300 | B11: 2008-09-01 | C11: SOA1 | D11: 19084 | E11: 348 | F11: Mainstream Scotland Ltd | G11: CAR/L/1004195 | H11: 0 | I11: 62046 | J11: 9.24 | K11: 0 | L11: 0 | M11: 0 | N11: 0 | O11: Stead of Aithness | P11: CAR/L/1004195/V3 | Q11: Cooke Aquaculture Scotland | R11: 2443 | S11: Aith Voe | T11: HU32205980 | U11: 432200 | V11: 1159800 | W11: Seawater | X11: Shetland Islands
A12: 2028842 | B12: 2008-09-01 | C12: BUN1 | D12: 18677 | E12: 329 | F12: Mainstream Scotland Ltd | G12: CAR/L/1004205 | H12: 0 | I12: 41701 | J12: 9.24 | K12: 0 | L12: 0 | M12: 0 | N12: 0 | O12: Bunya Sand | P12: CAR/L/1004205/V1 | Q12: Cooke Aquaculture Scotland | R12: 750 | S12: Mid Yell Voe | T12: HU52309090 | U12: 452300 | V12: 1190900 | W12: Seawater | X12: Shetland Islands
A13: 2052667 | B13: 2011-09-01 | C13: CLO1 | D13: 5318 | E13: 2043 | F13: Hoganess Salmon Ltd | G13: CAR/L/1004036 | H13: 48 | I13: 358645 | J13: 0.6 | K13: 0 | L13: 2326 | M13: 0 | N13: 0 | O13: Cloudin | P13: CAR/L/1004036/V4 | Q13: Cooke Aquaculture Scotland | R13: 1995 | S13: Vaila Sound | T13: HU23304750 | U13: 423300 | V13: 1147500 | W13: Seawater | X13: Shetland Islands
A14: 2052221 | B14: 2002-02-01 | C14: SOA1 | D14: 1220 | E14: 276 | F14: Aquascot Seafarms Ltd | G14: WPC/N/60926 | H14: 0 | I14: 38826 | J14: 0 | K14: 84 | L14: 0 | M14: 0 | N14: 0 | O14: Stead of Aithness | P14: CAR/L/1004195/V3 | Q14: Cooke Aquaculture Scotland | R14: 2443 | S14: Aith Voe | T14: HU32205980 | U14: 432200 | V14: 1159800 | W14: Seawater | X14: Shetland Islands
A15: 2052774 | B15: 2006-11-01 | C15: HOG1 | D15: 5676 | E15: 492 | F15: Hoganess Salmon Ltd | G15: WPC/N/73009 | H15: 0 | I15: 102733 | J15: 0 | K15: 80 | L15: 0 | M15: 0 | N15: 0 | O15: Hogan (Site 1) | P15: CAR/L/1005096/V3 | Q15: Cooke Aquaculture Scotland | R15: 1500 | S15: Gruting Voe | T15: HU26504735 | U15: 426600 | V15: 1147400 | W15: Seawater | X15: Shetland Islands
A16: 2028847 | B16: 2009-02-01 | C16: BUN1 | D16: 1838 | E16: 220 | F16: Mainstream Scotland Ltd | G16: CAR/L/1004205 | H16: 0 | I16: 23275 | J16: 0 | K16: 58 | L16: 0 | M16: 0 | N16: 0 | O16: Bunya Sand | P16: CAR/L/1004205/V1 | Q16: Cooke Aquaculture Scotland | R16: 750 | S16: Mid Yell Voe | T16: HU52309090 | U16: 452300 | V16: 1190900 | W16: Seawater | X16: Shetland Islands
A17: 2052610 | B17: 2006-12-01 | C17: CLO1 | D17: 1459 | E17: 908 | F17: Hoganess Salmon Ltd | G17: WPC/N/72030 | H17: 0 | I17: 107206 | J17: 0 | K17: 56 | L17: 0 | M17: 0 | N17: 0 | O17: Cloudin | P17: CAR/L/1004036/V4 | Q17: Cooke Aquaculture Scotland | R17: 1995 | S17: Vaila Sound | T17: HU23304750 | U17: 423300 | V17: 1147500 | W17: Seawater | X17: Shetland Islands
A18: 2052788 | B18: 2008-01-01 | C18: HOG1 | D18: 6886 | E18: 1163 | F18: Hoganess Salmon Ltd | G18: CAR/L/1005096 | H18: 0 | I18: 59880 | J18: 0 | K18: 50 | L18: 0 | M18: 0 | N18: 0 | O18: Hogan (Site 1) | P18: CAR/L/1005096/V3 | Q18: Cooke Aquaculture Scotland | R18: 1500 | S18: Gruting Voe | T18: HU26504735 | U18: 426600 | V18: 1147400 | W18: Seawater | X18: Shetland Islands
A19: 2055741 | B19: 2002-04-01 | C19: BVN1 | D19: 381 | E19: 197 | F19: Aquascot Seafarms Ltd | G19: WPC/N/61625 | H19: 0 | I19: 24630 | J19: 0 | K19: 48 | L19: 0 | M19: 0 | N19: 0 | O19: Basta Voe North | P19: CAR/L/1004196/V2 | Q19: Cooke Aquaculture Scotland | R19: 600 | S19: Basta Voe | T19: HU52329585 | U19: 452320 | V19: 1195850 | W19: Seawater | X19: Shetland Islands
A20: 2055747 | B20: 2002-10-01 | C20: BVN1 | D20: 191 | E20: 353 | F20: Aquascot Seafarms Ltd | G20: WPC/N/61625 | H20: 0 | I20: 83700 | J20: 0 | K20: 48 | L20: 0 | M20: 0 | N20: 0 | O20: Basta Voe North | P20: CAR/L/1004196/V2 | Q20: Cooke Aquaculture Scotland | R20: 600 | S20: Basta Voe | T20: HU52329585 | U20: 452320 | V20: 1195850 | W20: Seawater | X20: Shetland Islands
A21: 2028773 | B21: 2002-12-01 | C21: BUN1 | D21: 1517 | E21: 23 | F21: Aquascot Seafarms Ltd | G21: WPC/N/60720 | H21: 0 | I21: 17401 | J21: 0 | K21: 44 | L21: 0 | M21: 0 | N21: 0 | O21: Bunya Sand | P21: CAR/L/1004205/V1 | Q21: Cooke Aquaculture Scotland | R21: 750 | S21: Mid Yell Voe | T21: HU52309090 | U21: 452300 | V21: 1190900 | W21: Seawater | X21: Shetland Islands
A22: 2028775 | B22: 2003-02-01 | C22: BUN1 | D22: 1138 | E22: 62 | F22: Aquascot Seafarms Ltd | G22: WPC/N/70324 | H22: 0 | I22: 20124 | J22: 0 | K22: 44 | L22: 0 | M22: 0 | N22: 0 | O22: Bunya Sand | P22: CAR/L/1004205/V1 | Q22: Cooke Aquaculture Scotland | R22: 750 | S22: Mid Yell Voe | T22: HU52309090 | U22: 452300 | V22: 1190900 | W22: Seawater | X22: Shetland Islands
A23: 2055928 | B23: 2003-02-01 | C23: BASS1 | D23: 2586 | E23: 614 | F23: Aquascot Seafarms Ltd | G23: WPC/N/61966(02) | H23: 0 | I23: 30625 | J23: 0 | K23: 38 | L23: 0 | M23: 0 | N23: 0 | O23: Basta Voe South | P23: CAR/L/1003877/V2 | Q23: Cooke Aquaculture Scotland | R23: 950 | S23: Basta Voe | T23: HU53059470 | U23: 453130 | V23: 1194720 | W23: Seawater | X23: Shetland Islands
A24: 2055926 | B24: 2002-12-01 | C24: BASS1 | D24: 297 | E24: 441 | F24: Aquascot Seafarms Ltd | G24: WPC/N/61966(02) | H24: 0 | I24: 65605 | J24: 0 | K24: 36 | L24: 0 | M24: 0 | N24: 0 | O24: Basta Voe South | P24: CAR/L/1003877/V2 | Q24: Cooke Aquaculture Scotland | R24: 950 | S24: Basta Voe | T24: HU53059470 | U24: 453130 | V24: 1194720 | W24: Seawater | X24: Shetland Islands
A25: 2028762 | B25: 2002-01-01 | C25: BUN1 | D25: 4100 | E25: 552 | F25: Aquascot Seafarms Ltd | G25: WPC/N/60720 | H25: 127 | I25: 53584 | J25: 0 | K25: 24 | L25: 0 | M25: 0 | N25: 0 | O25: Bunya Sand | P25: CAR/L/1004205/V1 | Q25: Cooke Aquaculture Scotland | R25: 750 | S25: Mid Yell Voe | T25: HU52309090 | U25: 452300 | V25: 1190900 | W25: Seawater | X25: Shetland Islands
A26: 2028765 | B26: 2002-04-01 | C26: BUN1 | D26: 0 | E26: 0 | F26: Aquascot Seafarms Ltd | G26: WPC/N/60720 | H26: 0 | I26: 0 | J26: 0 | K26: 24 | L26: 0 | M26: 0 | N26: 0 | O26: Bunya Sand | P26: CAR/L/1004205/V1 | Q26: Cooke Aquaculture Scotland | R26: 750 | S26: Mid Yell Voe | T26: HU52309090 | U26: 452300 | V26: 1190900 | W26: Seawater | X26: Shetland Islands
A27: 2028767 | B27: 2002-06-01 | C27: BUN1 | D27: 0 | E27: 0 | F27: Aquascot Seafarms Ltd | G27: WPC/N/60720 | H27: 0 | I27: 0 | J27: 0 | K27: 16 | L27: 0 | M27: 0 | N27: 0 | O27: Bunya Sand | P27: CAR/L/1004205/V1 | Q27: Cooke Aquaculture Scotland | R27: 750 | S27: Mid Yell Voe | T27: HU52309090 | U27: 452300 | V27: 1190900 | W27: Seawater | X27: Shetland Islands
A28: 2036121 | B28: 2004-11-01 | C28: MYV1 | D28: 1925 | E28: 26 | F28: Mainstream Scotland Ltd | G28: WPC/N/70299 | H28: 0 | I28: 9376 | J28: 0 | K28: 12 | L28: 0 | M28: 0 | N28: 0 | O28: Mid Yell Voe | P28: CAR/L/1004200/V1 | Q28: Cooke Aquaculture Scotland | R28: 460 | S28: Mid Yell Voe | T28: HU51709180 | U28: 451700 | V28: 1191800 | W28: Seawater | X28: Shetland Islands
A29: 2037303 | B29: 2003-07-01 | C29: ORE1 | D29: 1117 | E29: 112 | F29: Aquascot Seafarms Ltd | G29: WPC/N/58985(01) | H29: 0 | I29: 49450 | J29: 0 | K29: 12 | L29: 0 | M29: 0 | N29: 0 | O29: Ore Bay | P29: CAR/L/1003962 | Q29: Cooke Aquaculture Scotland | R29: 450 | S29: Scapa Flow | T29: ND31209440 | U29: 331200 | V29: 994400 | W29: Seawater | X29: Orkney Islands
A30: 2055750 | B30: 2003-01-01 | C30: BVN1 | D30: 236 | E30: 192 | F30: Aquascot Seafarms Ltd | G30: WPC/N/70273 | H30: 0 | I30: 29303 | J30: 0 | K30: 12 | L30: 0 | M30: 0 | N30: 0 | O30: Basta Voe North | P30: CAR/L/1004196/V2 | Q30: Cooke Aquaculture Scotland | R30: 600 | S30: Basta Voe | T30: HU52329585 | U30: 452320 | V30: 1195850 | W30: Seawater | X30: Shetland Islands
A31: 2028766 | B31: 2002-05-01 | C31: BUN1 | D31: 0 | E31: 0 | F31: Aquascot Seafarms Ltd | G31: WPC/N/60720 | H31: 0 | I31: 0 | J31: 0 | K31: 12 | L31: 0 | M31: 0 | N31: 0 | O31: Bunya Sand | P31: CAR/L/1004205/V1 | Q31: Cooke Aquaculture Scotland | R31: 750 | S31: Mid Yell Voe | T31: HU52309090 | U31: 452300 | V31: 1190900 | W31: Seawater | X31: Shetland Islands
A32: 2056914 | B32: 2013-06-01 | C32: VAT1 | D32: 3701 | E32: 1741 | F32: Meridian Salmon Farms Ltd | G32: CAR/L/1004201 | H32: 0 | I32: 337101 | J32: 0 | K32: 0 | L32: 0 | M32: 0 | N32: 704 | O32: Wick of Vatsetter | P32: CAR/L/1004201/V4 | Q32: Cooke Aquaculture Scotland | R32: 1999 | S32: Colgrave Sound | T32: HU53409020 | U32: 453400 | V32: 1190200 | W32: Seawater | X32: Shetland Islands
A33: 2052651 | B33: 2010-05-01 | C33: CLO1 | D33: 0 | E33: 1591 | F33: Hoganess Salmon Ltd | G33: CAR/L/1004036 | H33: 0 | I33: 333352 | J33: 0 | K33: 0 | L33: 0 | M33: 0 | N33: 693 | O33: Cloudin | P33: CAR/L/1004036/V4 | Q33: Cooke Aquaculture Scotland | R33: 1995 | S33: Vaila Sound | T33: HU23304750 | U33: 423300 | V33: 1147500 | W33: Seawater | X33: Shetland Islands
A34: 2052627 | B34: 2008-05-01 | C34: CLO1 | D34: 11540 | E34: 1481 | F34: Hoganess Salmon Ltd | G34: CAR/L/1004036 | H34: 0 | I34: 224727 | J34: 0 | K34: 0 | L34: 0 | M34: 0 | N34: 682.5 | O34: Cloudin | P34: CAR/L/1004036/V4 | Q34: Cooke Aquaculture Scotland | R34: 1995 | S34: Vaila Sound | T34: HU23304750 | U34: 423300 | V34: 1147500 | W34: Seawater | X34: Shetland Islands
A35: 2056863 | B35: 2009-03-01 | C35: VAT1 | D35: 1126 | E35: 1217 | F35: Mainstream Scotland Ltd | G35: CAR/L/1004201 | H35: 0 | I35: 213745 | J35: 0 | K35: 0 | L35: 0 | M35: 0 | N35: 643.5 | O35: Wick of Vatsetter | P35: CAR/L/1004201/V4 | Q35: Cooke Aquaculture Scotland | R35: 1999 | S35: Colgrave Sound | T35: HU53409020 | U35: 453400 | V35: 1190200 | W35: Seawater | X35: Shetland Islands
A36: 2056515 | B36: 2014-11-01 | C36: HAS1 | D36: 1914 | E36: 987 | F36: Cooke Aquaculture Scotland | G36: CAR/L/1003874 | H36: 0 | I36: 161286 | J36: 0 | K36: 0 | L36: 0 | M36: 0 | N36: 608 | O36: Bow of Hascosay | P36: CAR/L/1003874/V3 | Q36: Cooke Aquaculture Scotland | R36: 1784 | S36: Hascosay Sound | T36: HU54709250 | U36: 454700 | V36: 1192500 | W36: Seawater | X36: Shetland Islands
A37: 2056334 | B37: 2014-03-01 | C37: HAC1 | D37: 12183 | E37: 1189 | F37: Meridian Salmon Farms Ltd | G37: CAR/L/1003873 | H37: 0 | I37: 201269 | J37: 0 | K37: 0 | L37: 0 | M37: 0 | N37: 564.72 | O37: Djuba Wick | P37: CAR/L/1003873/V4 | Q37: Cooke Aquaculture Scotland | R37: 2500 | S37: Colgrave Sound | T37: HU55789322 | U37: 455780 | V37: 1193220 | W37: Seawater | X37: Shetland Islands
A38: 2056518 | B38: 2015-02-01 | C38: HAS1 | D38: 1924 | E38: 1346 | F38: Cooke Aquaculture Scotland | G38: CAR/L/1003874 | H38: 0 | I38: 182671 | J38: 0 | K38: 0 | L38: 0 | M38: 0 | N38: 547.4 | O38: Bow of Hascosay | P38: CAR/L/1003874/V3 | Q38: Cooke Aquaculture Scotland | R38: 1784 | S38: Hascosay Sound | T38: HU54709250 | U38: 454700 | V38: 1192500 | W38: Seawater | X38: Shetland Islands
A39: 2052619 | B39: 2007-09-01 | C39: CLO1 | D39: 2177 | E39: 1737 | F39: Hoganess Salmon Ltd | G39: WPC/N/72030 | H39: 0 | I39: 305016 | J39: 0 | K39: 0 | L39: 0 | M39: 0 | N39: 530 | O39: Cloudin | P39: CAR/L/1004036/V4 | Q39: Cooke Aquaculture Scotland | R39: 1995 | S39: Vaila Sound | T39: HU23304750 | U39: 423300 | V39: 1147500 | W39: Seawater | X39: Shetland Islands
A40: 2052560 | B40: 2016-07-01 | C40: CLO1 | D40: 1976 | E40: 1222 | F40: Cooke Aquaculture Scotland | G40: CAR/L/1004036 | H40: 0 | I40: 314477 | J40: 0 | K40: 0 | L40: 0 | M40: 0 | N40: 493.36 | O40: Cloudin | P40: CAR/L/1004036/V4 | Q40: Cooke Aquaculture Scotland | R40: 1995 | S40: Vaila Sound | T40: HU23304750 | U40: 423300 | V40: 1147500 | W40: Seawater | X40: Shetland Islands
A41: 2056498 | B41: 2013-06-01 | C41: HAS1 | D41: 1404 | E41: 1195 | F41: Meridian Salmon Farms Ltd | G41: CAR/L/1003874 | H41: 0 | I41: 217103 | J41: 0 | K41: 0 | L41: 0 | M41: 0 | N41: 481.8 | O41: Bow of Hascosay | P41: CAR/L/1003874/V3 | Q41: Cooke Aquaculture Scotland | R41: 1784 | S41: Hascosay Sound | T41: HU54709250 | U41: 454700 | V41: 1192500 | W41: Seawater | X41: Shetland Islands
A42: 2052802 | B42: 2009-03-01 | C42: HOG1 | D42: 2295 | E42: 938 | F42: Hoganess Salmon Ltd | G42: CAR/L/1005096 | H42: 0 | I42: 193361 | J42: 0 | K42: 0 | L42: 0 | M42: 0 | N42: 476 | O42: Hogan (Site 1) | P42: CAR/L/1005096/V3 | Q42: Cooke Aquaculture Scotland | R42: 1500 | S42: Gruting Voe | T42: HU26504735 | U42: 426600 | V42: 1147400 | W42: Seawater | X42: Shetland Islands
A43: 2056859 | B43: 2008-11-01 | C43: VAT1 | D43: 1019 | E43: 658 | F43: Mainstream Scotland Ltd | G43: CAR/L/1004201 | H43: 0 | I43: 119202 | J43: 0 | K43: 0 | L43: 1400 | M43: 0 | N43: 459 | O43: Wick of Vatsetter | P43: CAR/L/1004201/V4 | Q43: Cooke Aquaculture Scotland | R43: 1999 | S43: Colgrave Sound | T43: HU53409020 | U43: 453400 | V43: 1190200 | W43: Seawater | X43: Shetland Islands
A44: 2056181 | B44: 2016-02-01 | C44: NCH1 | D44: 6907 | E44: 930 | F44: Cooke Aquaculture Scotland | G44: CAR/L/1016128 | H44: 0 | I44: 115681 | J44: 0 | K44: 0 | L44: 0 | M44: 0 | N44: 456.78 | O44: Ness of Copister | P44: CAR/L/1016128/V2 | Q44: Cooke Aquaculture Scotland | R44: 1500 | S44: Hamna Voe, Yell | T44: HU50407910 | U44: 450400 | V44: 1179100 | W44: Seawater | X44: Shetland Islands
A45: 2056934 | B45: 2015-02-01 | C45: VAT1 | D45: 2734 | E45: 1029 | F45: Cooke Aquaculture Scotland | G45: CAR/L/1004201 | H45: 0 | I45: 151600 | J45: 0 | K45: 0 | L45: 0 | M45: 0 | N45: 455.4 | O45: Wick of Vatsetter | P45: CAR/L/1004201/V4 | Q45: Cooke Aquaculture Scotland | R45: 1999 | S45: Colgrave Sound | T45: HU53409020 | U45: 453400 | V45: 1190200 | W45: Seawater | X45: Shetland Islands
A46: 2056910 | B46: 2013-02-01 | C46: VAT1 | D46: 2664 | E46: 938 | F46: Meridian Salmon Farms Ltd | G46: CAR/L/1004201 | H46: 0 | I46: 134755 | J46: 0 | K46: 0 | L46: 0 | M46: 0 | N46: 442.2 | O46: Wick of Vatsetter | P46: CAR/L/1004201/V4 | Q46: Cooke Aquaculture Scotland | R46: 1999 | S46: Colgrave Sound | T46: HU53409020 | U46: 453400 | V46: 1190200 | W46: Seawater | X46: Shetland Islands
A47: 2056359 | B47: 2016-03-01 | C47: HAC1 | D47: 11503 | E47: 887 | F47: Cooke Aquaculture Scotland | G47: CAR/L/1003873 | H47: 0 | I47: 146059 | J47: 0 | K47: 0 | L47: 0 | M47: 0 | N47: 437.98 | O47: Djuba Wick | P47: CAR/L/1003873/V4 | Q47: Cooke Aquaculture Scotland | R47: 2500 | S47: Colgrave Sound | T47: HU55789322 | U47: 455780 | V47: 1193220 | W47: Seawater | X47: Shetland Islands
A48: 2056842 | B48: 2007-06-01 | C48: VAT1 | D48: 2683 | E48: 1413 | F48: Mainstream Scotland Ltd | G48: WPC/N/70298 | H48: 0 | I48: 272790 | J48: 0 | K48: 0 | L48: 0 | M48: 0 | N48: 432 | O48: Wick of Vatsetter | P48: CAR/L/1004201/V4 | Q48: Cooke Aquaculture Scotland | R48: 1999 | S48: Colgrave Sound | T48: HU53409020 | U48: 453400 | V48: 1190200 | W48: Seawater | X48: Shetland Islands
A49: 2056447 | B49: 2009-03-01 | C49: HAS1 | D49: 1140 | E49: 645 | F49: Mainstream Scotland Ltd | G49: CAR/L/1003874 | H49: 0 | I49: 129553 | J49: 0 | K49: 0 | L49: 0 | M49: 0 | N49: 431.2 | O49: Bow of Hascosay | P49: CAR/L/1003874/V3 | Q49: Cooke Aquaculture Scotland | R49: 1784 | S49: Hascosay Sound | T49: HU54709250 | U49: 454700 | V49: 1192500 | W49: Seawater | X49: Shetland Islands
A50: 2056263 | B50: 2008-04-01 | C50: HAC1 | D50: 3371 | E50: 1179 | F50: Mainstream Scotland Ltd | G50: CAR/L/1003873 | H50: 0 | I50: 190388 | J50: 0 | K50: 0 | L50: 0 | M50: 0 | N50: 374 | O50: Djuba Wick | P50: CAR/L/1003873/V4 | Q50: Cooke Aquaculture Scotland | R50: 2500 | S50: Colgrave Sound | T50: HU55789322 | U50: 455780 | V50: 1193220 | W50: Seawater | X50: Shetland Islands
A51: 2056931 | B51: 2014-11-01 | C51: VAT1 | D51: 2407 | E51: 687 | F51: Cooke Aquaculture Scotland | G51: CAR/L/1004201 | H51: 0 | I51: 152309 | J51: 0 | K51: 0 | L51: 0 | M51: 0 | N51: 374 | O51: Wick of Vatsetter | P51: CAR/L/1004201/V4 | Q51: Cooke Aquaculture Scotland | R51: 1999 | S51: Colgrave Sound | T51: HU53409020 | U51: 453400 | V51: 1190200 | W51: Seawater | X51: Shetland Islands
A52: 2052613 | B52: 2007-03-01 | C52: CLO1 | D52: 33428 | E52: 945 | F52: Hoganess Salmon Ltd | G52: WPC/N/72030 | H52: 0 | I52: 105699 | J52: 0 | K52: 0 | L52: 0 | M52: 0 | N52: 373.1 | O52: Cloudin | P52: CAR/L/1004036/V4 | Q52: Cooke Aquaculture Scotland | R52: 1995 | S52: Vaila Sound | T52: HU23304750 | U52: 423300 | V52: 1147500 | W52: Seawater | X52: Shetland Islands
A53: 2052703 | B53: 2014-09-01 | C53: CLO1 | D53: 6887 | E53: 1209 | F53: Cooke Aquaculture Scotland | G53: CAR/L/1004036 | H53: 0 | I53: 376902 | J53: 0 | K53: 0 | L53: 0 | M53: 0 | N53: 371.96 | O53: Cloudin | P53: CAR/L/1004036/V4 | Q53: Cooke Aquaculture Scotland | R53: 1995 | S53: Vaila Sound | T53: HU23304750 | U53: 423300 | V53: 1147500 | W53: Seawater | X53: Shetland Islands
A54: 2055969 | B54: 2006-07-01 | C54: BASS1 | D54: 11858 | E54: 1060 | F54: Mainstream Scotland Ltd | G54: WPC/N/61966(03) | H54: 110 | I54: 212783 | J54: 0 | K54: 0 | L54: 0 | M54: 0 | N54: 371 | O54: Basta Voe South | P54: CAR/L/1003877/V2 | Q54: Cooke Aquaculture Scotland | R54: 950 | S54: Basta Voe | T54: HU53059470 | U54: 453130 | V54: 1194720 | W54: Seawater | X54: Shetland Islands
A55: 2052680 | B55: 2012-10-01 | C55: CLO1 | D55: 6876 | E55: 806 | F55: Meridian Salmon Farms Ltd | G55: CAR/L/1004036 | H55: 0 | I55: 216402 | J55: 0 | K55: 0 | L55: 0 | M55: 0 | N55: 370.7 | O55: Cloudin | P55: CAR/L/1004036/V4 | Q55: Cooke Aquaculture Scotland | R55: 1995 | S55: Vaila Sound | T55: HU23304750 | U55: 423300 | V55: 1147500 | W55: Seawater | X55: Shetland Islands
A56: 2056067 | B56: 2014-09-01 | C56: BASS1 | D56: 7029 | E56: 877 | F56: Cooke Aquaculture Scotland | G56: CAR/L/1003877 | H56: 0 | I56: 127021 | J56: 0 | K56: 0 | L56: 0 | M56: 0 | N56: 366.3 | O56: Basta Voe South | P56: CAR/L/1003877/V2 | Q56: Cooke Aquaculture Scotland | R56: 950 | S56: Basta Voe | T56: HU53059470 | U56: 453130 | V56: 1194720 | W56: Seawater | X56: Shetland Islands
A57: 2056136 | B57: 2012-06-01 | C57: NCH1 | D57: 862 | E57: 1198 | F57: Meridian Salmon Farms Ltd | G57: CAR/L/1016128 | H57: 0 | I57: 192917 | J57: 0 | K57: 0 | L57: 0 | M57: 0 | N57: 365.04 | O57: Ness of Copister | P57: CAR/L/1016128/V2 | Q57: Cooke Aquaculture Scotland | R57: 1500 | S57: Hamna Voe, Yell | T57: HU50407910 | U57: 450400 | V57: 1179100 | W57: Seawater | X57: Shetland Islands
A58: 2052767 | B58: 2006-04-01 | C58: HOG1 | D58: 1502 | E58: 1047 | F58: Hoganess Salmon Ltd | G58: WPC/N/73009 | H58: 0 | I58: 134951 | J58: 0 | K58: 0 | L58: 0 | M58: 0 | N58: 364 | O58: Hogan (Site 1) | P58: CAR/L/1005096/V3 | Q58: Cooke Aquaculture Scotland | R58: 1500 | S58: Gruting Voe | T58: HU26504735 | U58: 426600 | V58: 1147400 | W58: Seawater | X58: Shetland Islands
A59: 2052661 | B59: 2011-03-01 | C59: CLO1 | D59: 2106 | E59: 816 | F59: Hoganess Salmon Ltd | G59: CAR/L/1004036 | H59: 0 | I59: 192713 | J59: 0 | K59: 0 | L59: 0 | M59: 0 | N59: 349.8 | O59: Cloudin | P59: CAR/L/1004036/V4 | Q59: Cooke Aquaculture Scotland | R59: 1995 | S59: Vaila Sound | T59: HU23304750 | U59: 423300 | V59: 1147500 | W59: Seawater | X59: Shetland Islands
A60: 2052647 | B60: 2010-01-01 | C60: CLO1 | D60: 1576 | E60: 812 | F60: Hoganess Salmon Ltd | G60: CAR/L/1004036 | H60: 0 | I60: 174738 | J60: 0 | K60: 0 | L60: 2640 | M60: 0 | N60: 349.24 | O60: Cloudin | P60: CAR/L/1004036/V4 | Q60: Cooke Aquaculture Scotland | R60: 1995 | S60: Vaila Sound | T60: HU23304750 | U60: 423300 | V60: 1147500 | W60: Seawater | X60: Shetland Islands
A61: 2052631 | B61: 2008-09-01 | C61: CLO1 | D61: 8494 | E61: 1428 | F61: Hoganess Salmon Ltd | G61: CAR/L/1004036 | H61: 0 | I61: 233246 | J61: 0 | K61: 0 | L61: 400 | M61: 0 | N61: 346 | O61: Cloudin | P61: CAR/L/1004036/V4 | Q61: Cooke Aquaculture Scotland | R61: 1995 | S61: Vaila Sound | T61: HU23304750 | U61: 423300 | V61: 1147500 | W61: Seawater | X61: Shetland Islands
A62: 2052645 | B62: 2009-11-01 | C62: CLO1 | D62: 1797 | E62: 700 | F62: Hoganess Salmon Ltd | G62: CAR/L/1004036 | H62: 0 | I62: 191458 | J62: 0 | K62: 0 | L62: 900 | M62: 0 | N62: 340 | O62: Cloudin | P62: CAR/L/1004036/V4 | Q62: Cooke Aquaculture Scotland | R62: 1995 | S62: Vaila Sound | T62: HU23304750 | U62: 423300 | V62: 1147500 | W62: Seawater | X62: Shetland Islands
A63: 2056284 | B63: 2010-01-01 | C63: HAC1 | D63: 1771 | E63: 829 | F63: Mainstream Scotland Ltd | G63: CAR/L/1003873 | H63: 0 | I63: 153618 | J63: 0 | K63: 0 | L63: 0 | M63: 0 | N63: 339.4 | O63: Djuba Wick | P63: CAR/L/1003873/V4 | Q63: Cooke Aquaculture Scotland | R63: 2500 | S63: Colgrave Sound | T63: HU55789322 | U63: 455780 | V63: 1193220 | W63: Seawater | X63: Shetland Islands
A64: 2052234 | B64: 2003-03-01 | C64: SOA1 | D64: 2482 | E64: 727 | F64: Aquascot Seafarms Ltd | G64: WPC/N/70272 | H64: 0 | I64: 70952 | J64: 0 | K64: 0 | L64: 0 | M64: 0 | N64: 330 | O64: Stead of Aithness | P64: CAR/L/1004195/V3 | Q64: Cooke Aquaculture Scotland | R64: 2443 | S64: Aith Voe | T64: HU32205980 | U64: 432200 | V64: 1159800 | W64: Seawater | X64: Shetland Islands
A65: 2056213 | B65: 2004-02-01 | C65: HAC1 | D65: 298 | E65: 1080 | F65: Mainstream Scotland Ltd | G65: WPC/N/61973(02) | H65: 0 | I65: 104863 | J65: 0 | K65: 0 | L65: 0 | M65: 0 | N65: 320 | O65: Djuba Wick | P65: CAR/L/1003873/V4 | Q65: Cooke Aquaculture Scotland | R65: 2500 | S65: Colgrave Sound | T65: HU55789322 | U65: 455780 | V65: 1193220 | W65: Seawater | X65: Shetland Islands
A66: 2052931 | B66: 2006-04-01 | C66: SELH1 | D66: 1378 | E66: 908 | F66: Hoganess Salmon Ltd | G66: WPC/N/72031 | H66: 8 | I66: 121843 | J66: 0 | K66: 0 | L66: 0 | M66: 0 | N66: 314 | O66: Holm | P66: CAR/L/1004032/V3 | Q66: Cooke Aquaculture Scotland | R66: 900 | S66: Gruting Voe | T66: HU27804780 | U66: 427800 | V66: 1147800 | W66: Seawater | X66: Shetland Islands
A67: 2056016 | B67: 2010-06-01 | C67: BASS1 | D67: 7477 | E67: 829 | F67: Mainstream Scotland Ltd | G67: CAR/L/1003877 | H67: 0 | I67: 124025 | J67: 0 | K67: 0 | L67: 0 | M67: 0 | N67: 306 | O67: Basta Voe South | P67: CAR/L/1003877/V2 | Q67: Cooke Aquaculture Scotland | R67: 950 | S67: Basta Voe | T67: HU53059470 | U67: 453130 | V67: 1194720 | W67: Seawater | X67: Shetland Islands
A68: 2052770 | B68: 2006-07-01 | C68: HOG1 | D68: 925 | E68: 1246 | F68: Hoganess Salmon Ltd | G68: WPC/N/73009 | H68: 0 | I68: 243987 | J68: 0 | K68: 0 | L68: 0 | M68: 0 | N68: 300 | O68: Hogan (Site 1) | P68: CAR/L/1005096/V3 | Q68: Cooke Aquaculture Scotland | R68: 1500 | S68: Gruting Voe | T68: HU26504735 | U68: 426600 | V68: 1147400 | W68: Seawater | X68: Shetland Islands
A69: 2052934 | B69: 2006-07-01 | C69: SELH1 | D69: 464 | E69: 900 | F69: Hoganess Salmon Ltd | G69: WPC/N/72031 | H69: 0 | I69: 158042 | J69: 0 | K69: 0 | L69: 0 | M69: 0 | N69: 298 | O69: Holm | P69: CAR/L/1004032/V3 | Q69: Cooke Aquaculture Scotland | R69: 900 | S69: Gruting Voe | T69: HU27804780 | U69: 427800 | V69: 1147800 | W69: Seawater | X69: Shetland Islands
A70: 2056042 | B70: 2012-08-01 | C70: BASS1 | D70: 3128 | E70: 894 | F70: Meridian Salmon Farms Ltd | G70: CAR/L/1003877 | H70: 0 | I70: 185863 | J70: 0 | K70: 0 | L70: 0 | M70: 0 | N70: 293.44 | O70: Basta Voe South | P70: CAR/L/1003877/V2 | Q70: Cooke Aquaculture Scotland | R70: 950 | S70: Basta Voe | T70: HU53059470 | U70: 453130 | V70: 1194720 | W70: Seawater | X70: Shetland Islands
A71: 2052387 | B71: 2015-11-01 | C71: SOA1 | D71: 35362 | E71: 633 | F71: Cooke Aquaculture Scotland | G71: CAR/L/1004195 | H71: 0 | I71: 79390 | J71: 0 | K71: 0 | L71: 0 | M71: 0 | N71: 289.52 | O71: Stead of Aithness | P71: CAR/L/1004195/V3 | Q71: Cooke Aquaculture Scotland | R71: 2443 | S71: Aith Voe | T71: HU32205980 | U71: 432200 | V71: 1159800 | W71: Seawater | X71: Shetland Islands
A72: 2056494 | B72: 2013-02-01 | C72: HAS1 | D72: 849 | E72: 631 | F72: Meridian Salmon Farms Ltd | G72: CAR/L/1003874 | H72: 0 | I72: 98395 | J72: 0 | K72: 0 | L72: 0 | M72: 0 | N72: 280.5 | O72: Bow of Hascosay | P72: CAR/L/1003874/V3 | Q72: Cooke Aquaculture Scotland | R72: 1784 | S72: Hascosay Sound | T72: HU54709250 | U72: 454700 | V72: 1192500 | W72: Seawater | X72: Shetland Islands
A73: 2056793 | B73: 2003-05-01 | C73: VAT1 | D73: 3729 | E73: 924 | F73: Aquascot Seafarms Ltd | G73: WPC/N/70298 | H73: 0 | I73: 150521 | J73: 0 | K73: 0 | L73: 0 | M73: 0 | N73: 275 | O73: Wick of Vatsetter | P73: CAR/L/1004201/V4 | Q73: Cooke Aquaculture Scotland | R73: 1999 | S73: Colgrave Sound | T73: HU53409020 | U73: 453400 | V73: 1190200 | W73: Seawater | X73: Shetland Islands
A74: 2056061 | B74: 2014-03-01 | C74: BASS1 | D74: 4247 | E74: 534 | F74: Meridian Salmon Farms Ltd | G74: CAR/L/1003877 | H74: 0 | I74: 65254 | J74: 0 | K74: 0 | L74: 0 | M74: 0 | N74: 268.32 | O74: Basta Voe South | P74: CAR/L/1003877/V2 | Q74: Cooke Aquaculture Scotland | R74: 950 | S74: Basta Voe | T74: HU53059470 | U74: 453130 | V74: 1194720 | W74: Seawater | X74: Shetland Islands
A75: 2056513 | B75: 2014-09-01 | C75: HAS1 | D75: 6312 | E75: 679 | F75: Cooke Aquaculture Scotland | G75: CAR/L/1003874 | H75: 0 | I75: 225214 | J75: 0 | K75: 0 | L75: 0 | M75: 0 | N75: 260.64 | O75: Bow of Hascosay | P75: CAR/L/1003874/V3 | Q75: Cooke Aquaculture Scotland | R75: 1784 | S75: Hascosay Sound | T75: HU54709250 | U75: 454700 | V75: 1192500 | W75: Seawater | X75: Shetland Islands
A76: 2052593 | B76: 2005-07-01 | C76: CLO1 | D76: 20000 | E76: 398 | F76: Hoganess Salmon Ltd | G76: WPC/N/72030 | H76: 0 | I76: 108000 | J76: 0 | K76: 0 | L76: 0 | M76: 0 | N76: 260 | O76: Cloudin | P76: CAR/L/1004036/V4 | Q76: Cooke Aquaculture Scotland | R76: 1995 | S76: Vaila Sound | T76: HU23304750 | U76: 423300 | V76: 1147500 | W76: Seawater | X76: Shetland Islands
A77: 2052785 | B77: 2007-10-01 | C77: HOG1 | D77: 5440 | E77: 922 | F77: Hoganess Salmon Ltd | G77: CAR/L/1005096 | H77: 0 | I77: 253000 | J77: 0 | K77: 0 | L77: 0 | M77: 0 | N77: 257.5 | O77: Hogan (Site 1) | P77: CAR/L/1005096/V3 | Q77: Cooke Aquaculture Scotland | R77: 1500 | S77: Gruting Voe | T77: HU26504735 | U77: 426600 | V77: 1147400 | W77: Seawater | X77: Shetland Islands
A78: 2052784 | B78: 2007-09-01 | C78: HOG1 | D78: 3508 | E78: 679 | F78: Hoganess Salmon Ltd | G78: CAR/L/1005096 | H78: 0 | I78: 219734 | J78: 0 | K78: 0 | L78: 0 | M78: 0 | N78: 256 | O78: Hogan (Site 1) | P78: CAR/L/1005096/V3 | Q78: Cooke Aquaculture Scotland | R78: 1500 | S78: Gruting Voe | T78: HU26504735 | U78: 426600 | V78: 1147400 | W78: Seawater | X78: Shetland Islands
A79: 2056364 | B79: 2016-08-01 | C79: HAS1 | D79: 14963 | E79: 640 | F79: Cooke Aquaculture Scotland | G79: CAR/L/1003874 | H79: 0 | I79: 214204 | J79: 0 | K79: 0 | L79: 0 | M79: 0 | N79: 254.5 | O79: Bow of Hascosay | P79: CAR/L/1003874/V3 | Q79: Cooke Aquaculture Scotland | R79: 1784 | S79: Hascosay Sound | T79: HU54709250 | U79: 454700 | V79: 1192500 | W79: Seawater | X79: Shetland Islands
A80: 2056817 | B80: 2005-05-01 | C80: VAT1 | D80: 9319 | E80: 988 | F80: Mainstream Scotland Ltd | G80: WPC/N/70298 | H80: 0 | I80: 143025 | J80: 0 | K80: 0 | L80: 0 | M80: 0 | N80: 254 | O80: Wick of Vatsetter | P80: CAR/L/1004201/V4 | Q80: Cooke Aquaculture Scotland | R80: 1999 | S80: Colgrave Sound | T80: HU53409020 | U80: 453400 | V80: 1190200 | W80: Seawater | X80: Shetland Islands
A81: 2052302 | B81: 2008-11-01 | C81: SOA1 | D81: 39971 | E81: 324 | F81: Mainstream Scotland Ltd | G81: CAR/L/1004195 | H81: 0 | I81: 63635 | J81: 0 | K81: 0 | L81: 420 | M81: 0 | N81: 253.5 | O81: Stead of Aithness | P81: CAR/L/1004195/V3 | Q81: Cooke Aquaculture Scotland | R81: 2443 | S81: Aith Voe | T81: HU32205980 | U81: 432200 | V81: 1159800 | W81: Seawater | X81: Shetland Islands
A82: 2056443 | B82: 2008-11-01 | C82: HAS1 | D82: 439 | E82: 367 | F82: Mainstream Scotland Ltd | G82: CAR/L/1003874 | H82: 0 | I82: 88047 | J82: 0 | K82: 0 | L82: 0 | M82: 0 | N82: 249.2 | O82: Bow of Hascosay | P82: CAR/L/1003874/V3 | Q82: Cooke Aquaculture Scotland | R82: 1784 | S82: Hascosay Sound | T82: HU54709250 | U82: 454700 | V82: 1192500 | W82: Seawater | X82: Shetland Islands
A83: 2052925 | B83: 2005-10-01 | C83: SELH1 | D83: 339 | E83: 713 | F83: Hoganess Salmon Ltd | G83: WPC/N/62035(01) | H83: 0 | I83: 186000 | J83: 0 | K83: 0 | L83: 0 | M83: 0 | N83: 243.38 | O83: Holm | P83: CAR/L/1004032/V3 | Q83: Cooke Aquaculture Scotland | R83: 900 | S83: Gruting Voe | T83: HU27804780 | U83: 427800 | V83: 1147800 | W83: Seawater | X83: Shetland Islands
A84: 2055989 | B84: 2008-03-01 | C84: BASS1 | D84: 757 | E84: 741 | F84: Mainstream Scotland Ltd | G84: CAR/L/1003877 | H84: 0 | I84: 118976 | J84: 0 | K84: 0 | L84: 0 | M84: 0 | N84: 234 | O84: Basta Voe South | P84: CAR/L/1003877/V2 | Q84: Cooke Aquaculture Scotland | R84: 950 | S84: Basta Voe | T84: HU53059470 | U84: 453130 | V84: 1194720 | W84: Seawater | X84: Shetland Islands
A85: 2028844 | B85: 2008-11-01 | C85: BUN1 | D85: 149345 | E85: 189 | F85: Mainstream Scotland Ltd | G85: CAR/L/1004205 | H85: 0 | I85: 25703 | J85: 0 | K85: 0 | L85: 350 | M85: 0 | N85: 228 | O85: Bunya Sand | P85: CAR/L/1004205/V1 | Q85: Cooke Aquaculture Scotland | R85: 750 | S85: Mid Yell Voe | T85: HU52309090 | U85: 452300 | V85: 1190900 | W85: Seawater | X85: Shetland Islands
A86: 2056350 | B86: 2015-10-01 | C86: HAC1 | D86: 4012 | E86: 431 | F86: Cooke Aquaculture Scotland | G86: CAR/L/1003873 | H86: 0 | I86: 110283 | J86: 0 | K86: 0 | L86: 0 | M86: 0 | N86: 224.28 | O86: Djuba Wick | P86: CAR/L/1003873/V4 | Q86: Cooke Aquaculture Scotland | R86: 2500 | S86: Colgrave Sound | T86: HU55789322 | U86: 455780 | V86: 1193220 | W86: Seawater | X86: Shetland Islands
A87: 2052279 | B87: 2006-12-01 | C87: SOA1 | D87: 5234 | E87: 682 | F87: Mainstream Scotland Ltd | G87: WPC/N/70272 | H87: 0 | I87: 152700 | J87: 0 | K87: 0 | L87: 0 | M87: 0 | N87: 215 | O87: Stead of Aithness | P87: CAR/L/1004195/V3 | Q87: Cooke Aquaculture Scotland | R87: 2443 | S87: Aith Voe | T87: HU32205980 | U87: 432200 | V87: 1159800 | W87: Seawater | X87: Shetland Islands
A88: 2056401 | B88: 2005-05-01 | C88: HAS1 | D88: 10165 | E88: 905 | F88: Mainstream Scotland Ltd | G88: WPC/N/61974(02) | H88: 0 | I88: 159000 | J88: 0 | K88: 0 | L88: 0 | M88: 0 | N88: 206 | O88: Bow of Hascosay | P88: CAR/L/1003874/V3 | Q88: Cooke Aquaculture Scotland | R88: 1784 | S88: Hascosay Sound | T88: HU54709250 | U88: 454700 | V88: 1192500 | W88: Seawater | X88: Shetland Islands
A89: 2052448 | B89: 2007-03-01 | C89: BURA1 | D89: 918 | E89: 432 | F89: Hoganess Salmon Ltd | G89: CAR/L/1005095 | H89: 0 | I89: 85419 | J89: 0 | K89: 0 | L89: 0 | M89: 0 | N89: 204.2 | O89: Burrastow | P89: CAR/L/1005095/C1/V1 | Q89: Cooke Aquaculture Scotland | R89: 643 | S89: Vaila Sound | T89: HU22644769 | U89: 422645 | V89: 1147691 | W89: Seawater | X89: Shetland Islands
A90: 2056235 | B90: 2005-12-01 | C90: HAC1 | D90: 354 | E90: 578 | F90: Mainstream Scotland Ltd | G90: WPC/N/61973(02) | H90: 0 | I90: 79437 | J90: 0 | K90: 0 | L90: 0 | M90: 0 | N90: 192 | O90: Djuba Wick | P90: CAR/L/1003873/V4 | Q90: Cooke Aquaculture Scotland | R90: 2500 | S90: Colgrave Sound | T90: HU55789322 | U90: 455780 | V90: 1193220 | W90: Seawater | X90: Shetland Islands
A91: 2052823 | B91: 2010-12-01 | C91: HOG1 | D91: 1093 | E91: 693 | F91: Hoganess Salmon Ltd | G91: CAR/L/1005096 | H91: 0 | I91: 105499 | J91: 0 | K91: 0 | L91: 0 | M91: 0 | N91: 190 | O91: Hogan (Site 1) | P91: CAR/L/1005096/V3 | Q91: Cooke Aquaculture Scotland | R91: 1500 | S91: Gruting Voe | T91: HU26504735 | U91: 426600 | V91: 1147400 | W91: Seawater | X91: Shetland Islands
A92: 2052720 | B92: 2016-02-01 | C92: CLO1 | D92: 3754 | E92: 487 | F92: Cooke Aquaculture Scotland | G92: CAR/L/1004036 | H92: 0 | I92: 100000 | J92: 0 | K92: 0 | L92: 0 | M92: 0 | N92: 186.48 | O92: Cloudin | P92: CAR/L/1004036/V4 | Q92: Cooke Aquaculture Scotland | R92: 1995 | S92: Vaila Sound | T92: HU23304750 | U92: 423300 | V92: 1147500 | W92: Seawater | X92: Shetland Islands
A93: 2051925 | B93: 2008-01-01 | C93: BOB1 | D93: 2625 | E93: 537 | F93: Mainstream Scotland Ltd | G93: CAR/L/1004207 | H93: 0 | I93: 80449 | J93: 0 | K93: 0 | L93: 0 | M93: 0 | N93: 183 | O93: Bight of Braewick | P93: CAR/L/1004207/V2 | Q93: Cooke Aquaculture Scotland | R93: 962 | S93: Aith Voe | T93: HU34005800 | U93: 434000 | V93: 1158000 | W93: Seawater | X93: Shetland Islands
A94: 2055985 | B94: 2007-11-01 | C94: BASS1 | D94: 360 | E94: 469 | F94: Mainstream Scotland Ltd | G94: CAR/L/1003877 | H94: 0 | I94: 21370 | J94: 0 | K94: 0 | L94: 0 | M94: 0 | N94: 176 | O94: Basta Voe South | P94: CAR/L/1003877/V2 | Q94: Cooke Aquaculture Scotland | R94: 950 | S94: Basta Voe | T94: HU53059470 | U94: 453130 | V94: 1194720 | W94: Seawater | X94: Shetland Islands
A95: 2056374 | B95: 2003-02-01 | C95: HAS1 | D95: 366 | E95: 627 | F95: Aquascot Seafarms Ltd | G95: WPC/N/61974(02) | H95: 0 | I95: 118025 | J95: 0 | K95: 0 | L95: 0 | M95: 0 | N95: 175 | O95: Bow of Hascosay | P95: CAR/L/1003874/V3 | Q95: Cooke Aquaculture Scotland | R95: 1784 | S95: Hascosay Sound | T95: HU54709250 | U95: 454700 | V95: 1192500 | W95: Seawater | X95: Shetland Islands
A96: 2056834 | B96: 2006-10-01 | C96: VAT1 | D96: 3049 | E96: 550 | F96: Mainstream Scotland Ltd | G96: WPC/N/70298 | H96: 0 | I96: 186279 | J96: 0 | K96: 0 | L96: 0 | M96: 0 | N96: 165 | O96: Wick of Vatsetter | P96: CAR/L/1004201/V4 | Q96: Cooke Aquaculture Scotland | R96: 1999 | S96: Colgrave Sound | T96: HU53409020 | U96: 453400 | V96: 1190200 | W96: Seawater | X96: Shetland Islands
A97: 2056929 | B97: 2014-09-01 | C97: VAT1 | D97: 13310 | E97: 413 | F97: Cooke Aquaculture Scotland | G97: CAR/L/1004201 | H97: 0 | I97: 138404 | J97: 0 | K97: 0 | L97: 0 | M97: 0 | N97: 163.52 | O97: Wick of Vatsetter | P97: CAR/L/1004201/V4 | Q97: Cooke Aquaculture Scotland | R97: 1999 | S97: Colgrave Sound | T97: HU53409020 | U97: 453400 | V97: 1190200 | W97: Seawater | X97: Shetland Islands
A98: 2052462 | B98: 2008-05-01 | C98: BURA1 | D98: 1543 | E98: 476 | F98: Hoganess Salmon Ltd | G98: CAR/L/1005095 | H98: 0 | I98: 64375 | J98: 0 | K98: 0 | L98: 0 | M98: 0 | N98: 157.5 | O98: Burrastow | P98: CAR/L/1005095/C1/V1 | Q98: Cooke Aquaculture Scotland | R98: 643 | S98: Vaila Sound | T98: HU22644769 | U98: 422645 | V98: 1147691 | W98: Seawater | X98: Shetland Islands
A99: 2056776 | B99: 2016-08-01 | C99: VAT1 | D99: 32501 | E99: 383 | F99: Cooke Aquaculture Scotland | G99: CAR/L/1004201 | H99: 0 | I99: 150840 | J99: 0 | K99: 0 | L99: 0 | M99: 0 | N99: 156 | O99: Wick of Vatsetter | P99: CAR/L/1004201/V4 | Q99: Cooke Aquaculture Scotland | R99: 1999 | S99: Colgrave Sound | T99: HU53409020 | U99: 453400 | V99: 1190200 | W99: Seawater | X99: Shetland Islands
A100: 2056408 | B100: 2005-12-01 | C100: HAS1 | D100: 20589 | E100: 468 | F100: Mainstream Scotland Ltd | G100: WPC/N/61974(02) | H100: 0 | I100: 100650 | J100: 0 | K100: 0 | L100: 0 | M100: 0 | N100: 155 | O100: Bow of Hascosay | P100: CAR/L/1003874/V3 | Q100: Cooke Aquaculture Scotland | R100: 1784 | S100: Hascosay Sound | T100: HU54709250 | U100: 454700 | V100: 1192500 | W100: Seawater | X100: Shetland Islands
A101: 2055812 | B101: 2008-03-01 | C101: BVN1 | D101: 1023 | E101: 472 | F101: Mainstream Scotland Ltd | G101: CAR/L/1004196 | H101: 0 | I101: 75776 | J101: 0 | K101: 0 | L101: 0 | M101: 0 | N101: 153 | O101: Basta Voe North | P101: CAR/L/1004196/V2 | Q101: Cooke Aquaculture Scotland | R101: 600 | S101: Basta Voe | T101: HU52329585 | U101: 452320 | V101: 1195850 | W101: Seawater | X101: Shetland Islands
A102: 2070150 | B102: 2005-07-01 | C102: CHA1 | D102: 16897 | E102: 865 | F102: Mainstream Scotland Ltd | G102: WPC/N/71124 | H102: 0 | I102: 168925 | J102: 0 | K102: 0 | L102: 0 | M102: 0 | N102: 151.2 | O102: Chalmers Hope | P102: CAR/L/1003062/V5 | Q102: Cooke Aquaculture Scotland | R102: 1000 | S102: Scapa Flow | T102: HY28800070 | U102: 328800 | V102: 1000700 | W102: Seawater | X102: Orkney Islands
A103: 2055962 | B103: 2005-12-01 | C103: BASS1 | D103: 122 | E103: 445 | F103: Mainstream Scotland Ltd | G103: WPC/N/61966(03) | H103: 0 | I103: 61579 | J103: 0 | K103: 0 | L103: 0 | M103: 0 | N103: 147.2 | O103: Basta Voe South | P103: CAR/L/1003877/V2 | Q103: Cooke Aquaculture Scotland | R103: 950 | S103: Basta Voe | T103: HU53059470 | U103: 453130 | V103: 1194720 | W103: Seawater | X103: Shetland Islands
A104: 2052796 | B104: 2008-09-01 | C104: HOG1 | D104: 1519 | E104: 565 | F104: Hoganess Salmon Ltd | G104: CAR/L/1005096 | H104: 0 | I104: 205123 | J104: 0 | K104: 0 | L104: 0 | M104: 0 | N104: 145 | O104: Hogan (Site 1) | P104: CAR/L/1005096/V3 | Q104: Cooke Aquaculture Scotland | R104: 1500 | S104: Gruting Voe | T104: HU26504735 | U104: 426600 | V104: 1147400 | W104: Seawater | X104: Shetland Islands
A105: 2051923 | B105: 2007-11-01 | C105: BOB1 | D105: 5405 | E105: 627 | F105: Mainstream Scotland Ltd | G105: CAR/L/1004207 | H105: 0 | I105: 102785 | J105: 0 | K105: 0 | L105: 0 | M105: 0 | N105: 136 | O105: Bight of Braewick | P105: CAR/L/1004207/V2 | Q105: Cooke Aquaculture Scotland | R105: 962 | S105: Aith Voe | T105: HU34005800 | U105: 434000 | V105: 1158000 | W105: Seawater | X105: Shetland Islands
A106: 2052483 | B106: 2010-02-01 | C106: BURA1 | D106: 10152 | E106: 269 | F106: Hoganess Salmon Ltd | G106: CAR/L/1005095 | H106: 0 | I106: 24000 | J106: 0 | K106: 0 | L106: 600 | M106: 0 | N106: 135 | O106: Burrastow | P106: CAR/L/1005095/C1/V1 | Q106: Cooke Aquaculture Scotland | R106: 643 | S106: Vaila Sound | T106: HU22644769 | U106: 422645 | V106: 1147691 | W106: Seawater | X106: Shetland Islands
A107: 2056511 | B107: 2014-07-01 | C107: HAS1 | D107: 20177 | E107: 344 | F107: Cooke Aquaculture Scotland | G107: CAR/L/1003874 | H107: 0 | I107: 113984 | J107: 0 | K107: 0 | L107: 0 | M107: 0 | N107: 124.32 | O107: Bow of Hascosay | P107: CAR/L/1003874/V3 | Q107: Cooke Aquaculture Scotland | R107: 1784 | S107: Hascosay Sound | T107: HU54709250 | U107: 454700 | V107: 1192500 | W107: Seawater | X107: Shetland Islands
A108: 2056011 | B108: 2010-01-01 | C108: BASS1 | D108: 523 | E108: 268 | F108: Mainstream Scotland Ltd | G108: CAR/L/1003877 | H108: 0 | I108: 34083 | J108: 0 | K108: 0 | L108: 0 | M108: 0 | N108: 121 | O108: Basta Voe South | P108: CAR/L/1003877/V2 | Q108: Cooke Aquaculture Scotland | R108: 950 | S108: Basta Voe | T108: HU53059470 | U108: 453130 | V108: 1194720 | W108: Seawater | X108: Shetland Islands
A109: 2028841 | B109: 2008-08-01 | C109: BUN1 | D109: 655 | E109: 314 | F109: Mainstream Scotland Ltd | G109: CAR/L/1004205 | H109: 0 | I109: 91897 | J109: 0 | K109: 0 | L109: 0 | M109: 0 | N109: 119 | O109: Bunya Sand | P109: CAR/L/1004205/V1 | Q109: Cooke Aquaculture Scotland | R109: 750 | S109: Mid Yell Voe | T109: HU52309090 | U109: 452300 | V109: 1190900 | W109: Seawater | X109: Shetland Islands
A110: 2056009 | B110: 2009-11-01 | C110: BASS1 | D110: 1018 | E110: 235 | F110: Mainstream Scotland Ltd | G110: CAR/L/1003877 | H110: 0 | I110: 34478 | J110: 0 | K110: 0 | L110: 0 | M110: 0 | N110: 116 | O110: Basta Voe South | P110: CAR/L/1003877/V2 | Q110: Cooke Aquaculture Scotland | R110: 950 | S110: Basta Voe | T110: HU53059470 | U110: 453130 | V110: 1194720 | W110: Seawater | X110: Shetland Islands
A111: 2052396 | B111: 2016-08-01 | C111: BURA1 | D111: 2769 | E111: 397 | F111: Cooke Aquaculture Scotland | G111: CAR/L/1005095 | H111: 0 | I111: 137780 | J111: 0 | K111: 0 | L111: 0 | M111: 0 | N111: 113.12 | O111: Burrastow | P111: CAR/L/1005095/C1/V1 | Q111: Cooke Aquaculture Scotland | R111: 643 | S111: Vaila Sound | T111: HU22644769 | U111: 422645 | V111: 1147691 | W111: Seawater | X111: Shetland Islands
A112: 2052697 | B112: 2014-03-01 | C112: CLO1 | D112: 1270 | E112: 285 | F112: Meridian Salmon Farms Ltd | G112: CAR/L/1004036 | H112: 0 | I112: 74388 | J112: 0 | K112: 0 | L112: 0 | M112: 0 | N112: 111.54 | O112: Cloudin | P112: CAR/L/1004036/V4 | Q112: Cooke Aquaculture Scotland | R112: 1995 | S112: Vaila Sound | T112: HU23304750 | U112: 423300 | V112: 1147500 | W112: Seawater | X112: Shetland Islands
A113: 2056151 | B113: 2013-09-01 | C113: NCH1 | D113: 2416 | E113: 379 | F113: Meridian Salmon Farms Ltd | G113: CAR/L/1016128 | H113: 0 | I113: 129165 | J113: 0 | K113: 0 | L113: 0 | M113: 0 | N113: 110.46 | O113: Ness of Copister | P113: CAR/L/1016128/V2 | Q113: Cooke Aquaculture Scotland | R113: 1500 | S113: Hamna Voe, Yell | T113: HU50407910 | U113: 450400 | V113: 1179100 | W113: Seawater | X113: Shetland Islands
A114: 2055808 | B114: 2007-11-01 | C114: BVN1 | D114: 880 | E114: 733 | F114: Mainstream Scotland Ltd | G114: WPC/N/70273 | H114: 133 | I114: 87894 | J114: 0 | K114: 0 | L114: 0 | M114: 0 | N114: 110 | O114: Basta Voe North | P114: CAR/L/1004196/V2 | Q114: Cooke Aquaculture Scotland | R114: 600 | S114: Basta Voe | T114: HU52329585 | U114: 452320 | V114: 1195850 | W114: Seawater | X114: Shetland Islands
A115: 2052997 | B115: 2011-10-01 | C115: SELH1 | D115: 1288 | E115: 386 | F115: Hoganess Salmon Ltd | G115: CAR/L/1004032 | H115: 0 | I115: 135582 | J115: 0 | K115: 0 | L115: 0 | M115: 0 | N115: 110 | O115: Holm | P115: CAR/L/1004032/V3 | Q115: Cooke Aquaculture Scotland | R115: 900 | S115: Gruting Voe | T115: HU27804780 | U115: 427800 | V115: 1147800 | W115: Seawater | X115: Shetland Islands
A116: 2052642 | B116: 2009-08-01 | C116: CLO1 | D116: 1595 | E116: 291 | F116: Hoganess Salmon Ltd | G116: CAR/L/1004036 | H116: 0 | I116: 91540 | J116: 0 | K116: 0 | L116: 2700 | M116: 0 | N116: 108 | O116: Cloudin | P116: CAR/L/1004036/V4 | Q116: Cooke Aquaculture Scotland | R116: 1995 | S116: Vaila Sound | T116: HU23304750 | U116: 423300 | V116: 1147500 | W116: Seawater | X116: Shetland Islands
A117: 2055834 | B117: 2010-01-01 | C117: BVN1 | D117: 272 | E117: 224 | F117: Mainstream Scotland Ltd | G117: CAR/L/1004196 | H117: 0 | I117: 39142 | J117: 0 | K117: 0 | L117: 0 | M117: 0 | N117: 107.4 | O117: Basta Voe North | P117: CAR/L/1004196/V2 | Q117: Cooke Aquaculture Scotland | R117: 600 | S117: Basta Voe | T117: HU52329585 | U117: 452320 | V117: 1195850 | W117: Seawater | X117: Shetland Islands
A118: 2052763 | B118: 2005-12-01 | C118: HOG1 | D118: 448 | E118: 635 | F118: Hoganess Salmon Ltd | G118: WPC/N/62036(01) | H118: 0 | I118: 65825 | J118: 0 | K118: 0 | L118: 0 | M118: 0 | N118: 106 | O118: Hogan (Site 1) | P118: CAR/L/1005096/V3 | Q118: Cooke Aquaculture Scotland | R118: 1500 | S118: Gruting Voe | T118: HU26504735 | U118: 426600 | V118: 1147400 | W118: Seawater | X118: Shetland Islands
